Workbook

Sheet Resumo
A2: Unid. | B2: (vazio)
A4: Total Por Macro
A5: Cód. Tarefa | B5: Descrição | C5: Total
A6: 001 | B6: CASA TERREA A = 52,57 m² | C6: 61614.04526
A7: 001.01 | B7: SERVIÇOS PRELIMINARES | C7: 2369.629532
A8: 001.02 | B8: FUNDACOES | C8: 3849.15238
A9: 001.03 | B9: ESTRUTURA | C9: 6371.598019
A10: 001.04 | B10: ALVENARIA | C10: 9506.479508
A11: 001.05 | B11: COBERTURA | C11: 7330.915729
A12: 001.06 | B12: ESQUADRIAS | C12: 2961.516947
A13: 001.07 | B13: IMPERMEABILIZACAO | C13: 584.9891286
A14: 001.08 | B14: REVESTIMENTO | C14: 9293.377084
A15: 001.08.01 | B15: REVESTIMENTO INTERNO | C15: 5178.810806
A16: 001.08.02 | B16: REVESTIMENTO EXTERNO | C16: 4114.566278
A17: 001.09 | B17: REVESTIMENTO DE PISO | C17: 3073.865452
A18: 001.10 | B18: PINTURA | C18: 2710.074207
A19: 001.11 | B19: VIDROS | C19: 594.7806
A20: 001.12 | B20: INSTALACOES ELETRICAS | C20: 2424.9905
A21: 001.13 | B21: INSTALACOES HIDRAULICAS | C21: 1429.627107
A22: 001.14 | B22: INSTALACOES SANITARIAS | C22: 1278.835753
A23: 001.15 | B23: INSTALACOES P/ AGUA PLUVIAL | C23: 2130.546027
A24: 001.16 | B24: LOUCAS | C24: 1146.41546
A25: 001.17 | B25: SERVIÇOS COMPLEMENTARES | C25: 4557.25183
A26: 001.17.05 | B26: CALCADA EXTERNA | C26: 679.5388416

Sheet Cronograma
B1: Planilha de Obras - Cronograma
B2: Projeto:
B3: Total = | C3: =C43 -> 61614.04526
B4: Data Inicial | C4: 41974
B5: Mascara do Codigo | C5: ???.??
B6: Valor | C6: S/ BDI
A8: Codigo | B8: Descrição | C8: =IF($C$6="S/ BDI","TotalPor Macro","TotalPor Macro - BDI") -> TotalPor Macro | D8: =C4 -> 2014-12-01 | E8: =DATE(YEAR(D8),MONTH(D8)+1,1) -> 2015-01-01 | F8: =DATE(YEAR(E8),MONTH(E8)+1,1) -> 2015-02-01 | G8: 2015-03-01 | H8: 2015-04-01 | I8: 2015-05-01 | J8: 2015-06-01 | K8: 2015-07-01 | L8: 2015-08-01 | M8: 2015-09-01 | N8: 2015-10-01 | O8: 2015-11-01 | P8: TOTAIS
A9: 001.01 | B9: =VLOOKUP(A9,'Planilha de Orçamento'!$B:$P,3,FALSE) -> SERVIÇOS PRELIMINARES | C9: =VLOOKUP(A9,'Planilha de Orçamento'!$B:$P,IF(Cronograma!$C$6="S/ BDI",10,15),FALSE) -> 2369.629532 | D9: =$C9*D10 -> 1184.814766 | E9: =$C9*E10 -> 1184.814766 | F9: 0 | G9: 0 | H9: 0 | I9: 0 | J9: 0 | K9: 0 | L9: 0 | M9: 0 | N9: 0 | O9: 0 | P9: =SUM(D9:O9) -> 2369.629532
D10: 0.5 | E10: 0.5 | P10: 1
A11: 001.02 | B11: =VLOOKUP(A11,'Planilha de Orçamento'!$B:$P,3,FALSE) -> FUNDACOES | C11: =VLOOKUP(A11,'Planilha de Orçamento'!$B:$P,IF(Cronograma!$C$6="S/ BDI",10,15),FALSE) -> 3849.15238 | D11: =$C11*D12 -> 0 | E11: 1924.57619 | F11: 1924.57619 | G11: 0 | H11: 0 | I11: 0 | J11: 0 | K11: 0 | L11: 0 | M11: 0 | N11: 0 | O11: 0 | P11: =SUM(D11:O11) -> 3849.15238
E12: 0.5 | F12: 0.5 | P12: 1
A13: 001.03 | B13: =VLOOKUP(A13,'Planilha de Orçamento'!$B:$P,3,FALSE) -> ESTRUTURA | C13: =VLOOKUP(A13,'Planilha de Orçamento'!$B:$P,IF(Cronograma!$C$6="S/ BDI",10,15),FALSE) -> 6371.598019 | D13: =$C13*D14 -> 0 | E13: 0 | F13: 1911.479406 | G13: 1911.479406 | H13: 2548.639208 | I13: 0 | J13: 0 | K13: 0 | L13: 0 | M13: 0 | N13: 0 | O13: 0 | P13: 6371.598019
F14: 0.3 | G14: 0.3 | H14: 0.4 | P14: 1
A15: 001.04 | B15: =VLOOKUP(A15,'Planilha de Orçamento'!$B:$P,3,FALSE) -> ALVENARIA | C15: =VLOOKUP(A15,'Planilha de Orçamento'!$B:$P,IF(Cronograma!$C$6="S/ BDI",10,15),FALSE) -> 9506.479508 | D15: =$C15*D16 -> 0 | E15: 0 | F15: 0 | G15: 2376.619877 | H15: 2376.619877 | I15: 2376.619877 | J15: 2376.619877 | K15: 0 | L15: 0 | M15: 0 | N15: 0 | O15: 0 | P15: 9506.479508
G16: 0.25 | H16: 0.25 | I16: 0.25 | J16: 0.25 | P16: 1
A17: 001.05 | B17: =VLOOKUP(A17,'Planilha de Orçamento'!$B:$P,3,FALSE) -> COBERTURA | C17: =VLOOKUP(A17,'Planilha de Orçamento'!$B:$P,IF(Cronograma!$C$6="S/ BDI",10,15),FALSE) -> 7330.915729 | D17: =$C17*D18 -> 0 | E17: 0 | F17: 0 | G17: 0 | H17: 0 | I17: 0 | J17: 0 | K17: 0 | L17: 0 | M17: 0 | N17: 3665.457864 | O17: 3665.457864 | P17: 7330.915729
N18: 0.5 | O18: 0.5 | P18: 1
A19: 001.06 | B19: =VLOOKUP(A19,'Planilha de Orçamento'!$B:$P,3,FALSE) -> ESQUADRIAS | C19: =VLOOKUP(A19,'Planilha de Orçamento'!$B:$P,IF(Cronograma!$C$6="S/ BDI",10,15),FALSE) -> 2961.516947 | D19: =$C19*D20 -> 0 | E19: 0 | F19: 0 | G19: 0 | H19: 740.3792367 | I19: 740.3792367 | J19: 740.3792367 | K19: 740.3792367 | L19: 0 | M19: 0 | N19: 0 | O19: 0 | P19: 2961.516947
H20: 0.25 | I20: 0.25 | J20: 0.25 | K20: 0.25 | P20: 1
A21: 001.07 | B21: =VLOOKUP(A21,'Planilha de Orçamento'!$B:$P,3,FALSE) -> IMPERMEABILIZACAO | C21: =VLOOKUP(A21,'Planilha de Orçamento'!$B:$P,IF(Cronograma!$C$6="S/ BDI",10,15),FALSE) -> 584.9891286 | D21: =$C21*D22 -> 146.2472821 | E21: 146.2472821 | F21: 0 | G21: 116.9978257 | H21: 116.9978257 | I21: 58.49891286 | J21: 0 | K21: 0 | L21: 0 | M21: 0 | N21: 0 | O21: 0 | P21: 584.9891286
D22: 0.25 | E22: 0.25 | G22: 0.2 | H22: 0.2 | I22: 0.1 | P22: 1
A23: 001.08 | B23: =VLOOKUP(A23,'Planilha de Orçamento'!$B:$P,3,FALSE) -> REVESTIMENTO | C23: =VLOOKUP(A23,'Planilha de Orçamento'!$B:$P,IF(Cronograma!$C$6="S/ BDI",10,15),FALSE) -> 9293.377084 | D23: =$C23*D24 -> 0 | E23: 0 | F23: 0 | G23: 0 | H23: 0 | I23: 2788.013125 | J23: 2788.013125 | K23: 3717.350834 | L23: 0 | M23: 0 | N23: 0 | O23: 0 | P23: 9293.377084
I24: 0.3 | J24: 0.3 | K24: 0.4 | P24: 1
A25: 001.09 | B25: =VLOOKUP(A25,'Planilha de Orçamento'!$B:$P,3,FALSE) -> REVESTIMENTO DE PISO | C25: =VLOOKUP(A25,'Planilha de Orçamento'!$B:$P,IF(Cronograma!$C$6="S/ BDI",10,15),FALSE) -> 3073.865452 | D25: =$C25*D26 -> 0 | E25: 0 | F25: 0 | G25: 0 | H25: 0 | I25: 0 | J25: 768.466363 | K25: 768.466363 | L25: 1536.932726 | M25: 0 | N25: 0 | O25: 0 | P25: 3073.865452
J26: 0.25 | K26: 0.25 | L26: 0.5 | P26: 1
A27: 001.10 | B27: =VLOOKUP(A27,'Planilha de Orçamento'!$B:$P,3,FALSE) -> PINTURA | C27: =VLOOKUP(A27,'Planilha de Orçamento'!$B:$P,IF(Cronograma!$C$6="S/ BDI",10,15),FALSE) -> 2710.074207 | D27: =$C27*D28 -> 0 | E27: 0 | F27: 0 | G27: 0 | H27: 0 | I27: 0 | J27: 0 | K27: 0 | L27: 0 | M27: 1355.037103 | N27: 1355.037103 | O27: 0 | P27: 2710.074207
M28: 0.5 | N28: 0.5 | P28: 1
A29: 001.11 | B29: =VLOOKUP(A29,'Planilha de Orçamento'!$B:$P,3,FALSE) -> VIDROS | C29: =VLOOKUP(A29,'Planilha de Orçamento'!$B:$P,IF(Cronograma!$C$6="S/ BDI",10,15),FALSE) -> 594.7806 | D29: =$C29*D30 -> 0 | E29: 0 | F29: 0 | G29: 0 | H29: 0 | I29: 0 | J29: 0 | K29: 0 | L29: 0 | M29: 297.3903 | N29: 297.3903 | O29: 0 | P29: 594.7806
M30: 0.5 | N30: 0.5 | P30: 1
A31: 001.12 | B31: =VLOOKUP(A31,'Planilha de Orçamento'!$B:$P,3,FALSE) -> INSTALACOES ELETRICAS | C31: =VLOOKUP(A31,'Planilha de Orçamento'!$B:$P,IF(Cronograma!$C$6="S/ BDI",10,15),FALSE) -> 2424.9905 | D31: =$C31*D32 -> 0 | E31: 0 | F31: 0 | G31: 242.49905 | H31: 242.49905 | I31: 484.9981 | J31: 484.9981 | K31: 727.49715 | L31: 0 | M31: 242.49905 | N31: 0 | O31: 0 | P31: 2424.9905
G32: 0.1 | H32: 0.1 | I32: 0.2 | J32: 0.2 | K32: 0.3 | M32: 0.1 | P32: 1
A33: 001.13 | B33: =VLOOKUP(A33,'Planilha de Orçamento'!$B:$P,3,FALSE) -> INSTALACOES HIDRAULICAS | C33: =VLOOKUP(A33,'Planilha de Orçamento'!$B:$P,IF(Cronograma!$C$6="S/ BDI",10,15),FALSE) -> 1429.627107 | D33: =$C33*D34 -> 0 | E33: 0 | F33: 0 | G33: 142.9627107 | H33: 142.9627107 | I33: 285.9254214 | J33: 285.9254214 | K33: 428.888132 | L33: 0 | M33: 142.9627107 | N33: 0 | O33: 0 | P33: 1429.627107
G34: 0.1 | H34: 0.1 | I34: 0.2 | J34: 0.2 | K34: 0.3 | M34: 0.1 | P34: 1
A35: 001.14 | B35: =VLOOKUP(A35,'Planilha de Orçamento'!$B:$P,3,FALSE) -> INSTALACOES SANITARIAS | C35: =VLOOKUP(A35,'Planilha de Orçamento'!$B:$P,IF(Cronograma!$C$6="S/ BDI",10,15),FALSE) -> 1278.835753 | D35: =$C35*D36 -> 0 | E35: 0 | F35: 0 | G35: 127.8835753 | H35: 127.8835753 | I35: 255.7671505 | J35: 255.7671505 | K35: 383.6507258 | L35: 0 | M35: 127.8835753 | N35: 0 | O35: 0 | P35: 1278.835753
G36: 0.1 | H36: 0.1 | I36: 0.2 | J36: 0.2 | K36: 0.3 | M36: 0.1 | P36: 1
A37: 001.15 | B37: =VLOOKUP(A37,'Planilha de Orçamento'!$B:$P,3,FALSE) -> INSTALACOES P/ AGUA PLUVIAL | C37: =VLOOKUP(A37,'Planilha de Orçamento'!$B:$P,IF(Cronograma!$C$6="S/ BDI",10,15),FALSE) -> 2130.546027 | D37: =$C37*D38 -> 0 | E37: 0 | F37: 0 | G37: 213.0546027 | H37: 213.0546027 | I37: 426.1092055 | J37: 426.1092055 | K37: 639.1638082 | L37: 0 | M37: 213.0546027 | N37: 0 | O37: 0 | P37: 2130.546027
G38: 0.1 | H38: 0.1 | I38: 0.2 | J38: 0.2 | K38: 0.3 | M38: 0.1 | P38: 1
A39: 001.16 | B39: =VLOOKUP(A39,'Planilha de Orçamento'!$B:$P,3,FALSE) -> LOUCAS | C39: =VLOOKUP(A39,'Planilha de Orçamento'!$B:$P,IF(Cronograma!$C$6="S/ BDI",10,15),FALSE) -> 1146.41546 | D39: =$C39*D40 -> 0 | E39: 0 | F39: 0 | G39: 0 | H39: 0 | I39: 0 | J39: 0 | K39: 0 | L39: 0 | M39: 573.20773 | N39: 573.20773 | O39: 0 | P39: 1146.41546
M40: 0.5 | N40: 0.5 | P40: 1
A41: 001.17 | B41: =VLOOKUP(A41,'Planilha de Orçamento'!$B:$P,3,FALSE) -> SERVIÇOS COMPLEMENTARES | C41: =VLOOKUP(A41,'Planilha de Orçamento'!$B:$P,IF(Cronograma!$C$6="S/ BDI",10,15),FALSE) -> 4557.25183 | D41: =$C41*D42 -> 0 | E41: 0 | F41: 0 | G41: 0 | H41: 0 | I41: 0 | J41: 0 | K41: 0 | L41: 0 | M41: 0 | N41: 4557.25183 | O41: 0 | P41: 4557.25183
N42: 1 | P42: 1
B43: Total | C43: =SUMIF($A:$A,$C$5,C:C) -> 61614.04526 | D43: 1331.062048 | E43: 3255.638238 | F43: 3836.055596 | G43: 5131.497047 | H43: 6509.036086 | I43: 7416.311029 | J43: 8126.278479 | K43: 7405.396249 | L43: 1536.932726 | M43: 2952.035072 | N43: 10448.34483 | O43: 3665.457864 | P43: =O44 -> 61614.04526
C44: Total Acumulada | D44: =SUM(D43:$D43) -> 1331.062048 | E44: =SUM($D43:E43) -> 4586.700286 | F44: =SUM($D43:F43) -> 8422.755882 | G44: =SUM($D43:G43) -> 13554.25293 | H44: =SUM($D43:H43) -> 20063.28902 | I44: =SUM($D43:I43) -> 27479.60004 | J44: =SUM($D43:J43) -> 35605.87852 | K44: =SUM($D43:K43) -> 43011.27477 | L44: =SUM($D43:L43) -> 44548.2075 | M44: =SUM($D43:M43) -> 47500.24257 | N44: =SUM($D43:N43) -> 57948.5874 | O44: =SUM($D43:O43) -> 61614.04526
C45: Porcentagem | D45: =D43/$C43 -> 0.02160322443 | E45: =E43/$C43 -> 0.05283922236 | F45: =F43/$C43 -> 0.06225943419 | G45: =G43/$C43 -> 0.08328453399 | H45: 0.105642083 | I45: =I43/$C43 -> 0.1203672149 | J45: 0.1318900333 | K45: =K43/$C43 -> 0.1201900673 | L45: 0.02494451905 | M45: =M43/$C43 -> 0.04791172304 | N45: 0.1695773226 | O45: =O43/$C43 -> 0.0594906218 | P45: =O46 -> 1
C46: Porcentagem Acumulada | D46: =SUM(D45:$D45) -> 0.02160322443 | E46: =SUM($D45:E45) -> 0.07444244679 | F46: =SUM($D45:F45) -> 0.136701881 | G46: =SUM($D45:G45) -> 0.219986415 | H46: =SUM($D45:H45) -> 0.325628498 | I46: =SUM($D45:I45) -> 0.4459957129 | J46: =SUM($D45:J45) -> 0.5778857462 | K46: =SUM($D45:K45) -> 0.6980758135 | L46: =SUM($D45:L45) -> 0.7230203326 | M46: =SUM($D45:M45) -> 0.7709320556 | N46: =SUM($D45:N45) -> 0.9405093782 | O46: =SUM($D45:O45) -> 1

Sheet Medição
B1: Planilha de Obras - Medição
B2: Projeto: | D2: Previsto | F2: =HLOOKUP(DATE(YEAR($C$4),MONTH($C$4),1),INDIRECT("Cronograma!8:"&MATCH("Porcentagem Acumulada",Cronograma!C:C,0)),MATCH("Porcentagem Acumulada",Cronograma!C:C,0)-7,FALSE)*$C$3 -> 1331.062048 | H2: =F2/$C$3 -> 0.02160322443
B3: Total = | C3: =IF(Medição!C$5="S/ BDI",'Planilha de Orçamento'!H4,'Planilha de Orçamento'!H5) -> 61614.04526 | D3: Executado | F3: =SUM(MEDICAO[Valor Parc.]) -> 0 | H3: =F3/$C$3 -> 0
B4: Data Med | C4: 41980 | D4: Á Executar | F4: =C3-F3 -> 61614.04526 | H4: =F4/$C$3 -> 1
B5: Valor | C5: S/ BDI
A7: Cód. Tarefa | B7: Comp. | C7: Descrição | D7: % Executada | E7: Quant. | F7: Unid. | G7: Valor Unit. | H7: Valor Parc. | I7: Total | J7: %
A8: 001 | B8: 0 | C8: CASA TERREA A = 52,57 m² | E8: =VLOOKUP(A8,PLANILHA_TAREFA[[Cód. Tarefa]:[Total Por Macro - BDI]],4,FALSE) -> 1 | F8: 0 | G8: =IF(Medição!C$5="S/ BDI",VLOOKUP(A8,'Planilha de Orçamento'!B:P,6,FALSE),(1+VLOOKUP(A8,'Planilha de Orçamento'!B:P,13,FALSE))*VLOOKUP(A8,'Planilha de Orçamento'!B:P,6,FALSE)) -> 0 | H8: =G8*IF(AND(D8*E8=0,F8=""),1,(D8)*E8)*SUMIF(A:A,MID(A8,1,IF(ISERR(FIND(".",A8,1))=TRUE,LEN(A8),FIND(".",A8,1)-1)),E:E) -> 0 | I8: =IF(F8=0,SUMIF(MEDICAO[Cód. Tarefa],"="&A8&"."&"*",MEDICAO[Valor Parc.]),0) -> 0 | J8: =IF(F8="",I8/SUMIF(A:A,"="&MID(A8,1,IF(ISEVEN(LEN(A8)),LEN(A8)-3,LEN(A8)-2))&"*",H:H),H8/SUMIF(A:A,"="&MID(A8,1,IF(ISEVEN(LEN(A8)),LEN(A8)-3,LEN(A8)-2))&"*",H:H)) -> 
A9: 001.01 | B9: 0 | C9: SERVIÇOS PRELIMINARES | E9: =VLOOKUP(A9,PLANILHA_TAREFA[[Cód. Tarefa]:[Total Por Macro - BDI]],4,FALSE) -> 0 | F9: 0 | G9: =IF(Medição!C$5="S/ BDI",VLOOKUP(A9,'Planilha de Orçamento'!B:P,6,FALSE),(1+VLOOKUP(A9,'Planilha de Orçamento'!B:P,13,FALSE))*VLOOKUP(A9,'Planilha de Orçamento'!B:P,6,FALSE)) -> 0 | H9: 0 | I9: =IF(F9=0,SUMIF(MEDICAO[Cód. Tarefa],"="&A9&"."&"*",MEDICAO[Valor Parc.]),0) -> 0
A10: 001.01.01 | B10: 000020 | C10: LOCACAO DA OBRA | E10: =VLOOKUP(A10,PLANILHA_TAREFA[[Cód. Tarefa]:[Total Por Macro - BDI]],4,FALSE) -> 52.57 | F10: M2 | G10: =IF(Medição!C$5="S/ BDI",VLOOKUP(A10,'Planilha de Orçamento'!B:P,6,FALSE),(1+VLOOKUP(A10,'Planilha de Orçamento'!B:P,13,FALSE))*VLOOKUP(A10,'Planilha de Orçamento'!B:P,6,FALSE)) -> 4.51188 | H10: 0 | I10: =IF(F10=0,SUMIF(MEDICAO[Cód. Tarefa],"="&A10&"."&"*",MEDICAO[Valor Parc.]),0) -> 0
A11: 001.01.02 | B11: 300574 | C11: TERRAPLENAGEM - LIMPEZA,BEM COMO,REMOCAO DO SOLO VEGETAL NA ESP.MEDIA DE 10CM,CARGA E TRAN | E11: =VLOOKUP(A11,PLANILHA_TAREFA[[Cód. Tarefa]:[Total Por Macro - BDI]],4,FALSE) -> 125 | F11: M2 | G11: =IF(Medição!C$5="S/ BDI",VLOOKUP(A11,'Planilha de Orçamento'!B:P,6,FALSE),(1+VLOOKUP(A11,'Planilha de Orçamento'!B:P,13,FALSE))*VLOOKUP(A11,'Planilha de Orçamento'!B:P,6,FALSE)) -> 2 | H11: 0 | I11: =IF(F11=0,SUMIF(MEDICAO[Cód. Tarefa],"="&A11&"."&"*",MEDICAO[Valor Parc.]),0) -> 0
A12: 001.01.03 | B12: 300571 | C12: TERRAPLENAGEM - CORTE DE MATERIAL DE 1ª CATEGORIA | E12: =VLOOKUP(A12,PLANILHA_TAREFA[[Cód. Tarefa]:[Total Por Macro - BDI]],4,FALSE) -> 63 | F12: M3 | G12: =IF(Medição!C$5="S/ BDI",VLOOKUP(A12,'Planilha de Orçamento'!B:P,6,FALSE),(1+VLOOKUP(A12,'Planilha de Orçamento'!B:P,13,FALSE))*VLOOKUP(A12,'Planilha de Orçamento'!B:P,6,FALSE)) -> 4.58 | H12: 0 | I12: =IF(F12=0,SUMIF(MEDICAO[Cód. Tarefa],"="&A12&"."&"*",MEDICAO[Valor Parc.]),0) -> 0
A13: 001.01.04 | B13: 300573 | C13: TERRAPLENAGEM - FORNEC. DE MAT. P/ ATERRO, INCLUINDO CORTE,CARGA,TRANS | E13: =VLOOKUP(A13,PLANILHA_TAREFA[[Cód. Tarefa]:[Total Por Macro - BDI]],4,FALSE) -> 63 | F13: M3 | G13: =IF(Medição!C$5="S/ BDI",VLOOKUP(A13,'Planilha de Orçamento'!B:P,6,FALSE),(1+VLOOKUP(A13,'Planilha de Orçamento'!B:P,13,FALSE))*VLOOKUP(A13,'Planilha de Orçamento'!B:P,6,FALSE)) -> 25.3 | H13: 0 | I13: =IF(F13=0,SUMIF(MEDICAO[Cód. Tarefa],"="&A13&"."&"*",MEDICAO[Valor Parc.]),0) -> 0
A14: 001.02 | B14: 0 | C14: FUNDACOES | E14: =VLOOKUP(A14,PLANILHA_TAREFA[[Cód. Tarefa]:[Total Por Macro - BDI]],4,FALSE) -> 0 | F14: 0 | G14: =IF(Medição!C$5="S/ BDI",VLOOKUP(A14,'Planilha de Orçamento'!B:P,6,FALSE),(1+VLOOKUP(A14,'Planilha de Orçamento'!B:P,13,FALSE))*VLOOKUP(A14,'Planilha de Orçamento'!B:P,6,FALSE)) -> 0 | H14: 0 | I14: =IF(F14=0,SUMIF(MEDICAO[Cód. Tarefa],"="&A14&"."&"*",MEDICAO[Valor Parc.]),0) -> 0
A15: 001.02.01 | B15: 500001 | C15: RADIER | E15: =VLOOKUP(A15,PLANILHA_TAREFA[[Cód. Tarefa]:[Total Por Macro - BDI]],4,FALSE) -> 69.37 | F15: M2 | G15: =IF(Medição!C$5="S/ BDI",VLOOKUP(A15,'Planilha de Orçamento'!B:P,6,FALSE),(1+VLOOKUP(A15,'Planilha de Orçamento'!B:P,13,FALSE))*VLOOKUP(A15,'Planilha de Orçamento'!B:P,6,FALSE)) -> 53.41292 | H15: 0 | I15: =IF(F15=0,SUMIF(MEDICAO[Cód. Tarefa],"="&A15&"."&"*",MEDICAO[Valor Parc.]),0) -> 0
A16: 001.02.02 | B16: 500015 | C16: ARMACAO ACO CA-50 MEDIA | E16: =VLOOKUP(A16,PLANILHA_TAREFA[[Cód. Tarefa]:[Total Por Macro - BDI]],4,FALSE) -> 23 | F16: KG | G16: =IF(Medição!C$5="S/ BDI",VLOOKUP(A16,'Planilha de Orçamento'!B:P,6,FALSE),(1+VLOOKUP(A16,'Planilha de Orçamento'!B:P,13,FALSE))*VLOOKUP(A16,'Planilha de Orçamento'!B:P,6,FALSE)) -> 6.25644 | H16: 0 | I16: =IF(F16=0,SUMIF(MEDICAO[Cód. Tarefa],"="&A16&"."&"*",MEDICAO[Valor Parc.]),0) -> 0
A17: 001.03 | B17: 0 | C17: ESTRUTURA | E17: =VLOOKUP(A17,PLANILHA_TAREFA[[Cód. Tarefa]:[Total Por Macro - BDI]],4,FALSE) -> 0 | F17: 0 | G17: =IF(Medição!C$5="S/ BDI",VLOOKUP(A17,'Planilha de Orçamento'!B:P,6,FALSE),(1+VLOOKUP(A17,'Planilha de Orçamento'!B:P,13,FALSE))*VLOOKUP(A17,'Planilha de Orçamento'!B:P,6,FALSE)) -> 0 | H17: 0 | I17: =IF(F17=0,SUMIF(MEDICAO[Cód. Tarefa],"="&A17&"."&"*",MEDICAO[Valor Parc.]),0) -> 0
A18: 001.03.01 | B18: 002953 | C18: CONCRETO USINADO 20,0 MPA SLUMP CONVENCIONAL C/ LANCAMENTO | E18: =VLOOKUP(A18,PLANILHA_TAREFA[[Cód. Tarefa]:[Total Por Macro - BDI]],4,FALSE) -> 1.92 | F18: M3 | G18: =IF(Medição!C$5="S/ BDI",VLOOKUP(A18,'Planilha de Orçamento'!B:P,6,FALSE),(1+VLOOKUP(A18,'Planilha de Orçamento'!B:P,13,FALSE))*VLOOKUP(A18,'Planilha de Orçamento'!B:P,6,FALSE)) -> 337.4595 | H18: 0 | I18: =IF(F18=0,SUMIF(MEDICAO[Cód. Tarefa],"="&A18&"."&"*",MEDICAO[Valor Parc.]),0) -> 0
A19: 001.03.02 | B19: 500015 | C19: ARMACAO ACO CA-50 MEDIA | E19: =VLOOKUP(A19,PLANILHA_TAREFA[[Cód. Tarefa]:[Total Por Macro - BDI]],4,FALSE) -> 221 | F19: KG | G19: =IF(Medição!C$5="S/ BDI",VLOOKUP(A19,'Planilha de Orçamento'!B:P,6,FALSE),(1+VLOOKUP(A19,'Planilha de Orçamento'!B:P,13,FALSE))*VLOOKUP(A19,'Planilha de Orçamento'!B:P,6,FALSE)) -> 6.25644 | H19: 0 | I19: =IF(F19=0,SUMIF(MEDICAO[Cód. Tarefa],"="&A19&"."&"*",MEDICAO[Valor Parc.]),0) -> 0
A20: 001.03.03 | B20: 500016 | C20: LAJE DE FORRO PRE-FABRICADA | E20: =VLOOKUP(A20,PLANILHA_TAREFA[[Cód. Tarefa]:[Total Por Macro - BDI]],4,FALSE) -> 52.57 | F20: M2 | G20: =IF(Medição!C$5="S/ BDI",VLOOKUP(A20,'Planilha de Orçamento'!B:P,6,FALSE),(1+VLOOKUP(A20,'Planilha de Orçamento'!B:P,13,FALSE))*VLOOKUP(A20,'Planilha de Orçamento'!B:P,6,FALSE)) -> 59.88816 | H20: 0 | I20: =IF(F20=0,SUMIF(MEDICAO[Cód. Tarefa],"="&A20&"."&"*",MEDICAO[Valor Parc.]),0) -> 0
A21: 001.03.04 | B21: 402485 | C21: FORMA DE COMPENSADO PLASTIFICADO 18,0 MM | E21: =VLOOKUP(A21,PLANILHA_TAREFA[[Cód. Tarefa]:[Total Por Macro - BDI]],4,FALSE) -> 23.83 | F21: M2 | G21: =IF(Medição!C$5="S/ BDI",VLOOKUP(A21,'Planilha de Orçamento'!B:P,6,FALSE),(1+VLOOKUP(A21,'Planilha de Orçamento'!B:P,13,FALSE))*VLOOKUP(A21,'Planilha de Orçamento'!B:P,6,FALSE)) -> 50.0496 | H21: 0 | I21: =IF(F21=0,SUMIF(MEDICAO[Cód. Tarefa],"="&A21&"."&"*",MEDICAO[Valor Parc.]),0) -> 0
A22: 001.04 | B22: 0 | C22: ALVENARIA | E22: =VLOOKUP(A22,PLANILHA_TAREFA[[Cód. Tarefa]:[Total Por Macro - BDI]],4,FALSE) -> 0 | F22: 0 | G22: =IF(Medição!C$5="S/ BDI",VLOOKUP(A22,'Planilha de Orçamento'!B:P,6,FALSE),(1+VLOOKUP(A22,'Planilha de Orçamento'!B:P,13,FALSE))*VLOOKUP(A22,'Planilha de Orçamento'!B:P,6,FALSE)) -> 0 | H22: 0 | I22: =IF(F22=0,SUMIF(MEDICAO[Cód. Tarefa],"="&A22&"."&"*",MEDICAO[Valor Parc.]),0) -> 0
A23: 001.04.01 | B23: 000780 | C23: ALVENARIA BLOCO DE CONCRETO VEDACAO - E=14,0 CM - C=39,0 CM - 03,0 MPA | E23: =VLOOKUP(A23,PLANILHA_TAREFA[[Cód. Tarefa]:[Total Por Macro - BDI]],4,FALSE) -> 175.64 | F23: M2 | G23: =IF(Medição!C$5="S/ BDI",VLOOKUP(A23,'Planilha de Orçamento'!B:P,6,FALSE),(1+VLOOKUP(A23,'Planilha de Orçamento'!B:P,13,FALSE))*VLOOKUP(A23,'Planilha de Orçamento'!B:P,6,FALSE)) -> 50.7163 | H23: 0 | I23: =IF(F23=0,SUMIF(MEDICAO[Cód. Tarefa],"="&A23&"."&"*",MEDICAO[Valor Parc.]),0) -> 0
A24: 001.04.02 | B24: 000820 | C24: ALVENARIA BLOCO DE CONCRETO CANALETA VEDACAO - E=14,0 CM - C=39,0 CM - 03,0 MPA | E24: =VLOOKUP(A24,PLANILHA_TAREFA[[Cód. Tarefa]:[Total Por Macro - BDI]],4,FALSE) -> 10.38 | F24: M2 | G24: =IF(Medição!C$5="S/ BDI",VLOOKUP(A24,'Planilha de Orçamento'!B:P,6,FALSE),(1+VLOOKUP(A24,'Planilha de Orçamento'!B:P,13,FALSE))*VLOOKUP(A24,'Planilha de Orçamento'!B:P,6,FALSE)) -> 57.6752 | H24: 0 | I24: =IF(F24=0,SUMIF(MEDICAO[Cód. Tarefa],"="&A24&"."&"*",MEDICAO[Valor Parc.]),0) -> 0
A25: 001.05 | B25: 0 | C25: COBERTURA | E25: =VLOOKUP(A25,PLANILHA_TAREFA[[Cód. Tarefa]:[Total Por Macro - BDI]],4,FALSE) -> 0 | F25: 0 | G25: =IF(Medição!C$5="S/ BDI",VLOOKUP(A25,'Planilha de Orçamento'!B:P,6,FALSE),(1+VLOOKUP(A25,'Planilha de Orçamento'!B:P,13,FALSE))*VLOOKUP(A25,'Planilha de Orçamento'!B:P,6,FALSE)) -> 0 | H25: 0 | I25: =IF(F25=0,SUMIF(MEDICAO[Cód. Tarefa],"="&A25&"."&"*",MEDICAO[Valor Parc.]),0) -> 0
A26: 001.05.01 | B26: 611154 | C26: ESTRUTURA METALICA P/ TELHA CERAMICA (EQUIP. COMUNITARIOS) | E26: =VLOOKUP(A26,PLANILHA_TAREFA[[Cód. Tarefa]:[Total Por Macro - BDI]],4,FALSE) -> 56.03 | F26: M2 | G26: =IF(Medição!C$5="S/ BDI",VLOOKUP(A26,'Planilha de Orçamento'!B:P,6,FALSE),(1+VLOOKUP(A26,'Planilha de Orçamento'!B:P,13,FALSE))*VLOOKUP(A26,'Planilha de Orçamento'!B:P,6,FALSE)) -> 80 | H26: 0 | I26: =IF(F26=0,SUMIF(MEDICAO[Cód. Tarefa],"="&A26&"."&"*",MEDICAO[Valor Parc.]),0) -> 0
A27: 001.05.02 | B27: 402096 | C27: TELHA DE FIBROCIMENTO ONDULADA - E = 05,0 MM | E27: =VLOOKUP(A27,PLANILHA_TAREFA[[Cód. Tarefa]:[Total Por Macro - BDI]],4,FALSE) -> 56.03 | F27: M2 | G27: =IF(Medição!C$5="S/ BDI",VLOOKUP(A27,'Planilha de Orçamento'!B:P,6,FALSE),(1+VLOOKUP(A27,'Planilha de Orçamento'!B:P,13,FALSE))*VLOOKUP(A27,'Planilha de Orçamento'!B:P,6,FALSE)) -> 19.23896 | H27: 0 | I27: =IF(F27=0,SUMIF(MEDICAO[Cód. Tarefa],"="&A27&"."&"*",MEDICAO[Valor Parc.]),0) -> 0
A28: 001.05.04 | B28: 500468 | C28: CALHA DE CHAPA GALVANIZADA Nº 26 D = 050 CM | E28: =VLOOKUP(A28,PLANILHA_TAREFA[[Cód. Tarefa]:[Total Por Macro - BDI]],4,FALSE) -> 14.71 | F28: MT | G28: =IF(Medição!C$5="S/ BDI",VLOOKUP(A28,'Planilha de Orçamento'!B:P,6,FALSE),(1+VLOOKUP(A28,'Planilha de Orçamento'!B:P,13,FALSE))*VLOOKUP(A28,'Planilha de Orçamento'!B:P,6,FALSE)) -> 26.469 | H28: 0 | I28: =IF(F28=0,SUMIF(MEDICAO[Cód. Tarefa],"="&A28&"."&"*",MEDICAO[Valor Parc.]),0) -> 0
A29: 001.05.05 | B29: 500027 | C29: CALHA TIPO RUFO EM CHAPA GALVANIZADA Nº 26 D = 030 CM | E29: =VLOOKUP(A29,PLANILHA_TAREFA[[Cód. Tarefa]:[Total Por Macro - BDI]],4,FALSE) -> 39.6 | F29: MT | G29: =IF(Medição!C$5="S/ BDI",VLOOKUP(A29,'Planilha de Orçamento'!B:P,6,FALSE),(1+VLOOKUP(A29,'Planilha de Orçamento'!B:P,13,FALSE))*VLOOKUP(A29,'Planilha de Orçamento'!B:P,6,FALSE)) -> 16.1879 | H29: 0 | I29: =IF(F29=0,SUMIF(MEDICAO[Cód. Tarefa],"="&A29&"."&"*",MEDICAO[Valor Parc.]),0) -> 0
A30: 001.05.06 | B30: 600226 | C30: CALHA TIPO PINGADEIRA EM CHAPA GALVANIZADA Nº 26 D = 030 CM | E30: =VLOOKUP(A30,PLANILHA_TAREFA[[Cód. Tarefa]:[Total Por Macro - BDI]],4,FALSE) -> 39.14 | F30: MT | G30: =IF(Medição!C$5="S/ BDI",VLOOKUP(A30,'Planilha de Orçamento'!B:P,6,FALSE),(1+VLOOKUP(A30,'Planilha de Orçamento'!B:P,13,FALSE))*VLOOKUP(A30,'Planilha de Orçamento'!B:P,6,FALSE)) -> 18.9105 | H30: 0 | I30: =IF(F30=0,SUMIF(MEDICAO[Cód. Tarefa],"="&A30&"."&"*",MEDICAO[Valor Parc.]),0) -> 0
A31: 001.06 | B31: 0 | C31: ESQUADRIAS | E31: =VLOOKUP(A31,PLANILHA_TAREFA[[Cód. Tarefa]:[Total Por Macro - BDI]],4,FALSE) -> 0 | F31: 0 | G31: =IF(Medição!C$5="S/ BDI",VLOOKUP(A31,'Planilha de Orçamento'!B:P,6,FALSE),(1+VLOOKUP(A31,'Planilha de Orçamento'!B:P,13,FALSE))*VLOOKUP(A31,'Planilha de Orçamento'!B:P,6,FALSE)) -> 0 | H31: 0 | I31: =IF(F31=0,SUMIF(MEDICAO[Cód. Tarefa],"="&A31&"."&"*",MEDICAO[Valor Parc.]),0) -> 0
A32: 001.06.01 | B32: 500148 | C32: PORTA DE MADEIRA C/ MIOLO SEMI-OCO - 0,70 X 2,10 M - 1F S/ BATENTE | E32: =VLOOKUP(A32,PLANILHA_TAREFA[[Cód. Tarefa]:[Total Por Macro - BDI]],4,FALSE) -> 1 | F32: UN | G32: =IF(Medição!C$5="S/ BDI",VLOOKUP(A32,'Planilha de Orçamento'!B:P,6,FALSE),(1+VLOOKUP(A32,'Planilha de Orçamento'!B:P,13,FALSE))*VLOOKUP(A32,'Planilha de Orçamento'!B:P,6,FALSE)) -> 79.21952 | H32: 0 | I32: =IF(F32=0,SUMIF(MEDICAO[Cód. Tarefa],"="&A32&"."&"*",MEDICAO[Valor Parc.]),0) -> 0
A33: 001.06.02 | B33: 500149 | C33: PORTA DE MADEIRA C/ MIOLO SEMI-OCO - 0,80 X 2,10 M - 1F S/ BATENTE | E33: =VLOOKUP(A33,PLANILHA_TAREFA[[Cód. Tarefa]:[Total Por Macro - BDI]],4,FALSE) -> 4 | F33: UN | G33: =IF(Medição!C$5="S/ BDI",VLOOKUP(A33,'Planilha de Orçamento'!B:P,6,FALSE),(1+VLOOKUP(A33,'Planilha de Orçamento'!B:P,13,FALSE))*VLOOKUP(A33,'Planilha de Orçamento'!B:P,6,FALSE)) -> 84.21952 | H33: 0 | I33: =IF(F33=0,SUMIF(MEDICAO[Cód. Tarefa],"="&A33&"."&"*",MEDICAO[Valor Parc.]),0) -> 0
A34: 001.06.03 | B34: 500147 | C34: BATENTE EM MADEIRA - 0,70 X 2,10 M - REQUADRO 055 MM | E34: =VLOOKUP(A34,PLANILHA_TAREFA[[Cód. Tarefa]:[Total Por Macro - BDI]],4,FALSE) -> 1 | F34: UN | G34: =IF(Medição!C$5="S/ BDI",VLOOKUP(A34,'Planilha de Orçamento'!B:P,6,FALSE),(1+VLOOKUP(A34,'Planilha de Orçamento'!B:P,13,FALSE))*VLOOKUP(A34,'Planilha de Orçamento'!B:P,6,FALSE)) -> 86.807 | H34: 0 | I34: =IF(F34=0,SUMIF(MEDICAO[Cód. Tarefa],"="&A34&"."&"*",MEDICAO[Valor Parc.]),0) -> 0
A35: 001.06.04 | B35: 500146 | C35: BATENTE EM MADEIRA - 0,80 X 2,10 M - REQUADRO 055 MM | E35: =VLOOKUP(A35,PLANILHA_TAREFA[[Cód. Tarefa]:[Total Por Macro - BDI]],4,FALSE) -> 4 | F35: UN | G35: =IF(Medição!C$5="S/ BDI",VLOOKUP(A35,'Planilha de Orçamento'!B:P,6,FALSE),(1+VLOOKUP(A35,'Planilha de Orçamento'!B:P,13,FALSE))*VLOOKUP(A35,'Planilha de Orçamento'!B:P,6,FALSE)) -> 84.02866 | H35: 0 | I35: =IF(F35=0,SUMIF(MEDICAO[Cód. Tarefa],"="&A35&"."&"*",MEDICAO[Valor Parc.]),0) -> 0
A36: 001.06.05 | B36: 002684 | C36: FECHADURA P/ PORTA EXTERNA - YALE | E36: =VLOOKUP(A36,PLANILHA_TAREFA[[Cód. Tarefa]:[Total Por Macro - BDI]],4,FALSE) -> 1 | F36: UN | G36: =IF(Medição!C$5="S/ BDI",VLOOKUP(A36,'Planilha de Orçamento'!B:P,6,FALSE),(1+VLOOKUP(A36,'Planilha de Orçamento'!B:P,13,FALSE))*VLOOKUP(A36,'Planilha de Orçamento'!B:P,6,FALSE)) -> 52.58644 | H36: 0 | I36: =IF(F36=0,SUMIF(MEDICAO[Cód. Tarefa],"="&A36&"."&"*",MEDICAO[Valor Parc.]),0) -> 0
A37: 001.06.06 | B37: 002685 | C37: FECHADURA P/ PORTA DO BANHEIRO | E37: =VLOOKUP(A37,PLANILHA_TAREFA[[Cód. Tarefa]:[Total Por Macro - BDI]],4,FALSE) -> 1 | F37: UN | G37: =IF(Medição!C$5="S/ BDI",VLOOKUP(A37,'Planilha de Orçamento'!B:P,6,FALSE),(1+VLOOKUP(A37,'Planilha de Orçamento'!B:P,13,FALSE))*VLOOKUP(A37,'Planilha de Orçamento'!B:P,6,FALSE)) -> 40.18644 | H37: 0 | I37: =IF(F37=0,SUMIF(MEDICAO[Cód. Tarefa],"="&A37&"."&"*",MEDICAO[Valor Parc.]),0) -> 0
A38: 001.06.07 | B38: 002687 | C38: FECHADURA P/ PORTA INTERNA - GORGES | E38: =VLOOKUP(A38,PLANILHA_TAREFA[[Cód. Tarefa]:[Total Por Macro - BDI]],4,FALSE) -> 2 | F38: UN | G38: =IF(Medição!C$5="S/ BDI",VLOOKUP(A38,'Planilha de Orçamento'!B:P,6,FALSE),(1+VLOOKUP(A38,'Planilha de Orçamento'!B:P,13,FALSE))*VLOOKUP(A38,'Planilha de Orçamento'!B:P,6,FALSE)) -> 40.08644 | H38: 0 | I38: =IF(F38=0,SUMIF(MEDICAO[Cód. Tarefa],"="&A38&"."&"*",MEDICAO[Valor Parc.]),0) -> 0
A39: 001.06.08 | B39: 500069 | C39: VITRO DE CORRER METALICO 1,50 X 1,10 M | E39: =VLOOKUP(A39,PLANILHA_TAREFA[[Cód. Tarefa]:[Total Por Macro - BDI]],4,FALSE) -> 1 | F39: UN | G39: =IF(Medição!C$5="S/ BDI",VLOOKUP(A39,'Planilha de Orçamento'!B:P,6,FALSE),(1+VLOOKUP(A39,'Planilha de Orçamento'!B:P,13,FALSE))*VLOOKUP(A39,'Planilha de Orçamento'!B:P,6,FALSE)) -> 221.85085 | H39: 0 | I39: =IF(F39=0,SUMIF(MEDICAO[Cód. Tarefa],"="&A39&"."&"*",MEDICAO[Valor Parc.]),0) -> 0
A40: 001.06.09 | B40: 601051 | C40: VITRO MAXIM-AR EM ACO GALVANIZADO 1 FOLHA MOVEL (0,80X0,60M) | E40: =VLOOKUP(A40,PLANILHA_TAREFA[[Cód. Tarefa]:[Total Por Macro - BDI]],4,FALSE) -> 1 | F40: UN | G40: =IF(Medição!C$5="S/ BDI",VLOOKUP(A40,'Planilha de Orçamento'!B:P,6,FALSE),(1+VLOOKUP(A40,'Planilha de Orçamento'!B:P,13,FALSE))*VLOOKUP(A40,'Planilha de Orçamento'!B:P,6,FALSE)) -> 137.24996 | H40: =G40*IF(AND(D40*E40=0,F40=""),1,(D40)*E40)*SUMIF(A:A,MID(A40,1,IF(ISERR(FIND(".",A40,1))=TRUE,LEN(A40),FIND(".",A40,1)-1)),E:E) -> 0 | I40: =IF(F40=0,SUMIF(MEDICAO[Cód. Tarefa],"="&A40&"."&"*",MEDICAO[Valor Parc.]),0) -> 0 | J40: =IF(F40="",I40/SUMIF(A:A,"="&MID(A40,1,IF(ISEVEN(LEN(A40)),LEN(A40)-3,LEN(A40)-2))&"*",H:H),H40/SUMIF(A:A,"="&MID(A40,1,IF(ISEVEN(LEN(A40)),LEN(A40)-3,LEN(A40)-2))&"*",H:H)) -> 
A41: 001.06.10 | B41: 600961 | C41: VENEZIANA EM ACO GALVANIZADO DE CORRER LATERAL 1,80 X 1,10 M | E41: =VLOOKUP(A41,PLANILHA_TAREFA[[Cód. Tarefa]:[Total Por Macro - BDI]],4,FALSE) -> 1 | F41: UN | G41: =IF(Medição!C$5="S/ BDI",VLOOKUP(A41,'Planilha de Orçamento'!B:P,6,FALSE),(1+VLOOKUP(A41,'Planilha de Orçamento'!B:P,13,FALSE))*VLOOKUP(A41,'Planilha de Orçamento'!B:P,6,FALSE)) -> 275.134376 | H41: 0 | I41: =IF(F41=0,SUMIF(MEDICAO[Cód. Tarefa],"="&A41&"."&"*",MEDICAO[Valor Parc.]),0) -> 0
A42: 001.06.11 | B42: 611364 | C42: VITRO ACO GALVANIZADO DE CORRER LATERAL 2,00 X 1,10 M | E42: =VLOOKUP(A42,PLANILHA_TAREFA[[Cód. Tarefa]:[Total Por Macro - BDI]],4,FALSE) -> 1 | F42: UN | G42: =IF(Medição!C$5="S/ BDI",VLOOKUP(A42,'Planilha de Orçamento'!B:P,6,FALSE),(1+VLOOKUP(A42,'Planilha de Orçamento'!B:P,13,FALSE))*VLOOKUP(A42,'Planilha de Orçamento'!B:P,6,FALSE)) -> 180.168092 | H42: 0 | I42: =IF(F42=0,SUMIF(MEDICAO[Cód. Tarefa],"="&A42&"."&"*",MEDICAO[Valor Parc.]),0) -> 0
A43: 001.06.12 | B43: 400131 | C43: ALCAPAO METALICO 0,60 X 0,60 M | E43: =VLOOKUP(A43,PLANILHA_TAREFA[[Cód. Tarefa]:[Total Por Macro - BDI]],4,FALSE) -> 1 | F43: UN | G43: =IF(Medição!C$5="S/ BDI",VLOOKUP(A43,'Planilha de Orçamento'!B:P,6,FALSE),(1+VLOOKUP(A43,'Planilha de Orçamento'!B:P,13,FALSE))*VLOOKUP(A43,'Planilha de Orçamento'!B:P,6,FALSE)) -> 95.8408188 | H43: 0 | I43: =IF(F43=0,SUMIF(MEDICAO[Cód. Tarefa],"="&A43&"."&"*",MEDICAO[Valor Parc.]),0) -> 0
A44: 001.06.13 | B44: 500090 | C44: PORTAO METALON 30 X 20 | E44: =VLOOKUP(A44,PLANILHA_TAREFA[[Cód. Tarefa]:[Total Por Macro - BDI]],4,FALSE) -> 3.75 | F44: M2 | G44: =IF(Medição!C$5="S/ BDI",VLOOKUP(A44,'Planilha de Orçamento'!B:P,6,FALSE),(1+VLOOKUP(A44,'Planilha de Orçamento'!B:P,13,FALSE))*VLOOKUP(A44,'Planilha de Orçamento'!B:P,6,FALSE)) -> 277.14876 | H44: 0 | I44: =IF(F44=0,SUMIF(MEDICAO[Cód. Tarefa],"="&A44&"."&"*",MEDICAO[Valor Parc.]),0) -> 0
A45: 001.07 | B45: 0 | C45: IMPERMEABILIZACAO | E45: =VLOOKUP(A45,PLANILHA_TAREFA[[Cód. Tarefa]:[Total Por Macro - BDI]],4,FALSE) -> 0 | F45: 0 | G45: =IF(Medição!C$5="S/ BDI",VLOOKUP(A45,'Planilha de Orçamento'!B:P,6,FALSE),(1+VLOOKUP(A45,'Planilha de Orçamento'!B:P,13,FALSE))*VLOOKUP(A45,'Planilha de Orçamento'!B:P,6,FALSE)) -> 0 | H45: 0 | I45: =IF(F45=0,SUMIF(MEDICAO[Cód. Tarefa],"="&A45&"."&"*",MEDICAO[Valor Parc.]),0) -> 0
A46: 001.07.01 | B46: 500142 | C46: ASSENTAMENTO DAS PRIMEIRAS FIADAS C/ ARGAMASSA C/ IMPERMEABILIZANTE | E46: =VLOOKUP(A46,PLANILHA_TAREFA[[Cód. Tarefa]:[Total Por Macro - BDI]],4,FALSE) -> 51.86 | F46: MT | G46: =IF(Medição!C$5="S/ BDI",VLOOKUP(A46,'Planilha de Orçamento'!B:P,6,FALSE),(1+VLOOKUP(A46,'Planilha de Orçamento'!B:P,13,FALSE))*VLOOKUP(A46,'Planilha de Orçamento'!B:P,6,FALSE)) -> 6.32717 | H46: 0 | I46: =IF(F46=0,SUMIF(MEDICAO[Cód. Tarefa],"="&A46&"."&"*",MEDICAO[Valor Parc.]),0) -> 0
A47: 001.07.02 | B47: 600681 | C47: BARRADO IMPERMEABILIZADO EXTERNO COM IGOFLEX | E47: =VLOOKUP(A47,PLANILHA_TAREFA[[Cód. Tarefa]:[Total Por Macro - BDI]],4,FALSE) -> 19.87 | F47: M2 | G47: =IF(Medição!C$5="S/ BDI",VLOOKUP(A47,'Planilha de Orçamento'!B:P,6,FALSE),(1+VLOOKUP(A47,'Planilha de Orçamento'!B:P,13,FALSE))*VLOOKUP(A47,'Planilha de Orçamento'!B:P,6,FALSE)) -> 5.94972 | H47: 0 | I47: =IF(F47=0,SUMIF(MEDICAO[Cód. Tarefa],"="&A47&"."&"*",MEDICAO[Valor Parc.]),0) -> 0
A48: 001.07.03 | B48: 600627 | C48: IMPERMEABILIZACAO C/ SIKATOP | E48: =VLOOKUP(A48,PLANILHA_TAREFA[[Cód. Tarefa]:[Total Por Macro - BDI]],4,FALSE) -> 31.12 | F48: M2 | G48: =IF(Medição!C$5="S/ BDI",VLOOKUP(A48,'Planilha de Orçamento'!B:P,6,FALSE),(1+VLOOKUP(A48,'Planilha de Orçamento'!B:P,13,FALSE))*VLOOKUP(A48,'Planilha de Orçamento'!B:P,6,FALSE)) -> 4.45505 | H48: 0 | I48: =IF(F48=0,SUMIF(MEDICAO[Cód. Tarefa],"="&A48&"."&"*",MEDICAO[Valor Parc.]),0) -> 0
A49: 001.08 | B49: 0 | C49: REVESTIMENTO | E49: =VLOOKUP(A49,PLANILHA_TAREFA[[Cód. Tarefa]:[Total Por Macro - BDI]],4,FALSE) -> 0 | F49: 0 | G49: =IF(Medição!C$5="S/ BDI",VLOOKUP(A49,'Planilha de Orçamento'!B:P,6,FALSE),(1+VLOOKUP(A49,'Planilha de Orçamento'!B:P,13,FALSE))*VLOOKUP(A49,'Planilha de Orçamento'!B:P,6,FALSE)) -> 0 | H49: 0 | I49: =IF(F49=0,SUMIF(MEDICAO[Cód. Tarefa],"="&A49&"."&"*",MEDICAO[Valor Parc.]),0) -> 0
A50: 001.08.01 | B50: 0 | C50: REVESTIMENTO INTERNO | E50: =VLOOKUP(A50,PLANILHA_TAREFA[[Cód. Tarefa]:[Total Por Macro - BDI]],4,FALSE) -> 0 | F50: 0 | G50: =IF(Medição!C$5="S/ BDI",VLOOKUP(A50,'Planilha de Orçamento'!B:P,6,FALSE),(1+VLOOKUP(A50,'Planilha de Orçamento'!B:P,13,FALSE))*VLOOKUP(A50,'Planilha de Orçamento'!B:P,6,FALSE)) -> 0 | H50: 0 | I50: =IF(F50=0,SUMIF(MEDICAO[Cód. Tarefa],"="&A50&"."&"*",MEDICAO[Valor Parc.]),0) -> 0
A51: 001.08.01.01 | B51: 500031 | C51: CHAPISCO | E51: =VLOOKUP(A51,PLANILHA_TAREFA[[Cód. Tarefa]:[Total Por Macro - BDI]],4,FALSE) -> 224.96 | F51: M2 | G51: =IF(Medição!C$5="S/ BDI",VLOOKUP(A51,'Planilha de Orçamento'!B:P,6,FALSE),(1+VLOOKUP(A51,'Planilha de Orçamento'!B:P,13,FALSE))*VLOOKUP(A51,'Planilha de Orçamento'!B:P,6,FALSE)) -> 2.24575 | H51: 0 | I51: =IF(F51=0,SUMIF(MEDICAO[Cód. Tarefa],"="&A51&"."&"*",MEDICAO[Valor Parc.]),0) -> 0
A52: 001.08.01.02 | B52: 500033 | C52: EMBOCO | E52: =VLOOKUP(A52,PLANILHA_TAREFA[[Cód. Tarefa]:[Total Por Macro - BDI]],4,FALSE) -> 224.96 | F52: M2 | G52: =IF(Medição!C$5="S/ BDI",VLOOKUP(A52,'Planilha de Orçamento'!B:P,6,FALSE),(1+VLOOKUP(A52,'Planilha de Orçamento'!B:P,13,FALSE))*VLOOKUP(A52,'Planilha de Orçamento'!B:P,6,FALSE)) -> 18.73623 | H52: 0 | I52: =IF(F52=0,SUMIF(MEDICAO[Cód. Tarefa],"="&A52&"."&"*",MEDICAO[Valor Parc.]),0) -> 0
A53: 001.08.01.03 | B53: 003017 | C53: AZULEJO BRANCO 15,0 X 15,0 CM | E53: =VLOOKUP(A53,PLANILHA_TAREFA[[Cód. Tarefa]:[Total Por Macro - BDI]],4,FALSE) -> 15.37 | F53: M2 | G53: =IF(Medição!C$5="S/ BDI",VLOOKUP(A53,'Planilha de Orçamento'!B:P,6,FALSE),(1+VLOOKUP(A53,'Planilha de Orçamento'!B:P,13,FALSE))*VLOOKUP(A53,'Planilha de Orçamento'!B:P,6,FALSE)) -> 29.84415 | H53: 0 | I53: =IF(F53=0,SUMIF(MEDICAO[Cód. Tarefa],"="&A53&"."&"*",MEDICAO[Valor Parc.]),0) -> 0
A54: 001.08.02 | B54: 0 | C54: REVESTIMENTO EXTERNO | E54: =VLOOKUP(A54,PLANILHA_TAREFA[[Cód. Tarefa]:[Total Por Macro - BDI]],4,FALSE) -> 0 | F54: 0 | G54: =IF(Medição!C$5="S/ BDI",VLOOKUP(A54,'Planilha de Orçamento'!B:P,6,FALSE),(1+VLOOKUP(A54,'Planilha de Orçamento'!B:P,13,FALSE))*VLOOKUP(A54,'Planilha de Orçamento'!B:P,6,FALSE)) -> 0 | H54: 0 | I54: =IF(F54=0,SUMIF(MEDICAO[Cód. Tarefa],"="&A54&"."&"*",MEDICAO[Valor Parc.]),0) -> 0
A55: 001.08.02.01 | B55: 500031 | C55: CHAPISCO | E55: =VLOOKUP(A55,PLANILHA_TAREFA[[Cód. Tarefa]:[Total Por Macro - BDI]],4,FALSE) -> 196.1 | F55: M2 | G55: =IF(Medição!C$5="S/ BDI",VLOOKUP(A55,'Planilha de Orçamento'!B:P,6,FALSE),(1+VLOOKUP(A55,'Planilha de Orçamento'!B:P,13,FALSE))*VLOOKUP(A55,'Planilha de Orçamento'!B:P,6,FALSE)) -> 2.24575 | H55: 0 | I55: =IF(F55=0,SUMIF(MEDICAO[Cód. Tarefa],"="&A55&"."&"*",MEDICAO[Valor Parc.]),0) -> 0
A56: 001.08.02.02 | B56: 500033 | C56: EMBOCO | E56: =VLOOKUP(A56,PLANILHA_TAREFA[[Cód. Tarefa]:[Total Por Macro - BDI]],4,FALSE) -> 196.1 | F56: M2 | G56: =IF(Medição!C$5="S/ BDI",VLOOKUP(A56,'Planilha de Orçamento'!B:P,6,FALSE),(1+VLOOKUP(A56,'Planilha de Orçamento'!B:P,13,FALSE))*VLOOKUP(A56,'Planilha de Orçamento'!B:P,6,FALSE)) -> 18.73623 | H56: 0 | I56: =IF(F56=0,SUMIF(MEDICAO[Cód. Tarefa],"="&A56&"."&"*",MEDICAO[Valor Parc.]),0) -> 0
A57: 001.09 | B57: 0 | C57: REVESTIMENTO DE PISO | E57: =VLOOKUP(A57,PLANILHA_TAREFA[[Cód. Tarefa]:[Total Por Macro - BDI]],4,FALSE) -> 0 | F57: 0 | G57: =IF(Medição!C$5="S/ BDI",VLOOKUP(A57,'Planilha de Orçamento'!B:P,6,FALSE),(1+VLOOKUP(A57,'Planilha de Orçamento'!B:P,13,FALSE))*VLOOKUP(A57,'Planilha de Orçamento'!B:P,6,FALSE)) -> 0 | H57: 0 | I57: =IF(F57=0,SUMIF(MEDICAO[Cód. Tarefa],"="&A57&"."&"*",MEDICAO[Valor Parc.]),0) -> 0
A58: 001.09.01 | B58: 001780 | C58: REGULARIZACAO PISO 1:3 DESEMPENADO E=3CM | E58: =VLOOKUP(A58,PLANILHA_TAREFA[[Cód. Tarefa]:[Total Por Macro - BDI]],4,FALSE) -> 45.6 | F58: M2 | G58: =IF(Medição!C$5="S/ BDI",VLOOKUP(A58,'Planilha de Orçamento'!B:P,6,FALSE),(1+VLOOKUP(A58,'Planilha de Orçamento'!B:P,13,FALSE))*VLOOKUP(A58,'Planilha de Orçamento'!B:P,6,FALSE)) -> 17.51509 | H58: 0 | I58: =IF(F58=0,SUMIF(MEDICAO[Cód. Tarefa],"="&A58&"."&"*",MEDICAO[Valor Parc.]),0) -> 0
A59: 001.09.02 | B59: 401646 | C59: PISO CERAMICO 30,0 X 30,0 CM C/ REJUNTE | E59: =VLOOKUP(A59,PLANILHA_TAREFA[[Cód. Tarefa]:[Total Por Macro - BDI]],4,FALSE) -> 45.6 | F59: M2 | G59: =IF(Medição!C$5="S/ BDI",VLOOKUP(A59,'Planilha de Orçamento'!B:P,6,FALSE),(1+VLOOKUP(A59,'Planilha de Orçamento'!B:P,13,FALSE))*VLOOKUP(A59,'Planilha de Orçamento'!B:P,6,FALSE)) -> 30.38362 | H59: 0 | I59: =IF(F59=0,SUMIF(MEDICAO[Cód. Tarefa],"="&A59&"."&"*",MEDICAO[Valor Parc.]),0) -> 0
A60: 001.09.03 | B60: 500154 | C60: RODAPE CERAMICO H = 05,0 CM | E60: =VLOOKUP(A60,PLANILHA_TAREFA[[Cód. Tarefa]:[Total Por Macro - BDI]],4,FALSE) -> 60.58 | F60: MT | G60: =IF(Medição!C$5="S/ BDI",VLOOKUP(A60,'Planilha de Orçamento'!B:P,6,FALSE),(1+VLOOKUP(A60,'Planilha de Orçamento'!B:P,13,FALSE))*VLOOKUP(A60,'Planilha de Orçamento'!B:P,6,FALSE)) -> 1.71515 | H60: 0 | I60: =IF(F60=0,SUMIF(MEDICAO[Cód. Tarefa],"="&A60&"."&"*",MEDICAO[Valor Parc.]),0) -> 0
A61: 001.09.04 | B61: 601077 | C61: BIT DE ARDOSIA E=2CM L=4CM | E61: =VLOOKUP(A61,PLANILHA_TAREFA[[Cód. Tarefa]:[Total Por Macro - BDI]],4,FALSE) -> 2.05 | F61: MT | G61: =IF(Medição!C$5="S/ BDI",VLOOKUP(A61,'Planilha de Orçamento'!B:P,6,FALSE),(1+VLOOKUP(A61,'Planilha de Orçamento'!B:P,13,FALSE))*VLOOKUP(A61,'Planilha de Orçamento'!B:P,6,FALSE)) -> 12.72322 | H61: 0 | I61: =IF(F61=0,SUMIF(MEDICAO[Cód. Tarefa],"="&A61&"."&"*",MEDICAO[Valor Parc.]),0) -> 0
A62: 001.09.05 | B62: 601063 | C62: SOLEIRA DE ARDOSIA E=2CM L=15CM | E62: =VLOOKUP(A62,PLANILHA_TAREFA[[Cód. Tarefa]:[Total Por Macro - BDI]],4,FALSE) -> 1.6 | F62: MT | G62: =IF(Medição!C$5="S/ BDI",VLOOKUP(A62,'Planilha de Orçamento'!B:P,6,FALSE),(1+VLOOKUP(A62,'Planilha de Orçamento'!B:P,13,FALSE))*VLOOKUP(A62,'Planilha de Orçamento'!B:P,6,FALSE)) -> 21.51662 | H62: 0 | I62: =IF(F62=0,SUMIF(MEDICAO[Cód. Tarefa],"="&A62&"."&"*",MEDICAO[Valor Parc.]),0) -> 0
A63: 001.09.06 | B63: 500038 | C63: CALÇADA EXTERNA 7CM | E63: =VLOOKUP(A63,PLANILHA_TAREFA[[Cód. Tarefa]:[Total Por Macro - BDI]],4,FALSE) -> 20.92 | F63: M2 | G63: =IF(Medição!C$5="S/ BDI",VLOOKUP(A63,'Planilha de Orçamento'!B:P,6,FALSE),(1+VLOOKUP(A63,'Planilha de Orçamento'!B:P,13,FALSE))*VLOOKUP(A63,'Planilha de Orçamento'!B:P,6,FALSE)) -> 34.6688 | H63: 0 | I63: =IF(F63=0,SUMIF(MEDICAO[Cód. Tarefa],"="&A63&"."&"*",MEDICAO[Valor Parc.]),0) -> 0
A64: 001.10 | B64: 0 | C64: PINTURA | E64: =VLOOKUP(A64,PLANILHA_TAREFA[[Cód. Tarefa]:[Total Por Macro - BDI]],4,FALSE) -> 0 | F64: 0 | G64: =IF(Medição!C$5="S/ BDI",VLOOKUP(A64,'Planilha de Orçamento'!B:P,6,FALSE),(1+VLOOKUP(A64,'Planilha de Orçamento'!B:P,13,FALSE))*VLOOKUP(A64,'Planilha de Orçamento'!B:P,6,FALSE)) -> 0 | H64: 0 | I64: =IF(F64=0,SUMIF(MEDICAO[Cód. Tarefa],"="&A64&"."&"*",MEDICAO[Valor Parc.]),0) -> 0
A65: 001.10.01 | B65: 002481 | C65: PINTURA ESMALTE SOBRE ESQUADRIA DE MADEIRA - 2 DEMAOS | E65: =VLOOKUP(A65,PLANILHA_TAREFA[[Cód. Tarefa]:[Total Por Macro - BDI]],4,FALSE) -> 20.5 | F65: M2 | G65: =IF(Medição!C$5="S/ BDI",VLOOKUP(A65,'Planilha de Orçamento'!B:P,6,FALSE),(1+VLOOKUP(A65,'Planilha de Orçamento'!B:P,13,FALSE))*VLOOKUP(A65,'Planilha de Orçamento'!B:P,6,FALSE)) -> 9.72398 | H65: 0 | I65: =IF(F65=0,SUMIF(MEDICAO[Cód. Tarefa],"="&A65&"."&"*",MEDICAO[Valor Parc.]),0) -> 0
A66: 001.10.02 | B66: 400132 | C66: PINTURA ESMALTE SOBRE ESQUADRIA METALICA (PREDIO) | E66: =VLOOKUP(A66,PLANILHA_TAREFA[[Cód. Tarefa]:[Total Por Macro - BDI]],4,FALSE) -> 24.19 | F66: M2 | G66: =IF(Medição!C$5="S/ BDI",VLOOKUP(A66,'Planilha de Orçamento'!B:P,6,FALSE),(1+VLOOKUP(A66,'Planilha de Orçamento'!B:P,13,FALSE))*VLOOKUP(A66,'Planilha de Orçamento'!B:P,6,FALSE)) -> 13.31234 | H66: 0 | I66: =IF(F66=0,SUMIF(MEDICAO[Cód. Tarefa],"="&A66&"."&"*",MEDICAO[Valor Parc.]),0) -> 0
A67: 001.10.03 | B67: 500049 | C67: LATEX ACRILICO | E67: =VLOOKUP(A67,PLANILHA_TAREFA[[Cód. Tarefa]:[Total Por Macro - BDI]],4,FALSE) -> 204.2 | F67: M2 | G67: =IF(Medição!C$5="S/ BDI",VLOOKUP(A67,'Planilha de Orçamento'!B:P,6,FALSE),(1+VLOOKUP(A67,'Planilha de Orçamento'!B:P,13,FALSE))*VLOOKUP(A67,'Planilha de Orçamento'!B:P,6,FALSE)) -> 5.50576 | H67: 0 | I67: =IF(F67=0,SUMIF(MEDICAO[Cód. Tarefa],"="&A67&"."&"*",MEDICAO[Valor Parc.]),0) -> 0
A68: 001.10.04 | B68: 500048 | C68: LATEX PVA | E68: =VLOOKUP(A68,PLANILHA_TAREFA[[Cód. Tarefa]:[Total Por Macro - BDI]],4,FALSE) -> 202 | F68: M2 | G68: =IF(Medição!C$5="S/ BDI",VLOOKUP(A68,'Planilha de Orçamento'!B:P,6,FALSE),(1+VLOOKUP(A68,'Planilha de Orçamento'!B:P,13,FALSE))*VLOOKUP(A68,'Planilha de Orçamento'!B:P,6,FALSE)) -> 5.26946 | H68: 0 | I68: =IF(F68=0,SUMIF(MEDICAO[Cód. Tarefa],"="&A68&"."&"*",MEDICAO[Valor Parc.]),0) -> 0
A69: 001.11 | B69: 0 | C69: VIDROS | E69: =VLOOKUP(A69,PLANILHA_TAREFA[[Cód. Tarefa]:[Total Por Macro - BDI]],4,FALSE) -> 0 | F69: 0 | G69: =IF(Medição!C$5="S/ BDI",VLOOKUP(A69,'Planilha de Orçamento'!B:P,6,FALSE),(1+VLOOKUP(A69,'Planilha de Orçamento'!B:P,13,FALSE))*VLOOKUP(A69,'Planilha de Orçamento'!B:P,6,FALSE)) -> 0 | H69: 0 | I69: =IF(F69=0,SUMIF(MEDICAO[Cód. Tarefa],"="&A69&"."&"*",MEDICAO[Valor Parc.]),0) -> 0
A70: 001.11.01 | B70: 500054 | C70: VIDRO LISO | E70: =VLOOKUP(A70,PLANILHA_TAREFA[[Cód. Tarefa]:[Total Por Macro - BDI]],4,FALSE) -> 6.31 | F70: M2 | G70: =IF(Medição!C$5="S/ BDI",VLOOKUP(A70,'Planilha de Orçamento'!B:P,6,FALSE),(1+VLOOKUP(A70,'Planilha de Orçamento'!B:P,13,FALSE))*VLOOKUP(A70,'Planilha de Orçamento'!B:P,6,FALSE)) -> 94.26 | H70: 0 | I70: =IF(F70=0,SUMIF(MEDICAO[Cód. Tarefa],"="&A70&"."&"*",MEDICAO[Valor Parc.]),0) -> 0
A71: 001.12 | B71: 0 | C71: INSTALACOES ELETRICAS | E71: =VLOOKUP(A71,PLANILHA_TAREFA[[Cód. Tarefa]:[Total Por Macro - BDI]],4,FALSE) -> 0 | F71: 0 | G71: =IF(Medição!C$5="S/ BDI",VLOOKUP(A71,'Planilha de Orçamento'!B:P,6,FALSE),(1+VLOOKUP(A71,'Planilha de Orçamento'!B:P,13,FALSE))*VLOOKUP(A71,'Planilha de Orçamento'!B:P,6,FALSE)) -> 0 | H71: 0 | I71: =IF(F71=0,SUMIF(MEDICAO[Cód. Tarefa],"="&A71&"."&"*",MEDICAO[Valor Parc.]),0) -> 0
A72: 001.12.01 | B72: 600237 | C72: INSTALACAO ELETRICA - ENTRADA DE ENERGIA | E72: =VLOOKUP(A72,PLANILHA_TAREFA[[Cód. Tarefa]:[Total Por Macro - BDI]],4,FALSE) -> 1 | F72: UN | G72: =IF(Medição!C$5="S/ BDI",VLOOKUP(A72,'Planilha de Orçamento'!B:P,6,FALSE),(1+VLOOKUP(A72,'Planilha de Orçamento'!B:P,13,FALSE))*VLOOKUP(A72,'Planilha de Orçamento'!B:P,6,FALSE)) -> 644.468 | H72: =G72*IF(AND(D72*E72=0,F72=""),1,(D72)*E72)*SUMIF(A:A,MID(A72,1,IF(ISERR(FIND(".",A72,1))=TRUE,LEN(A72),FIND(".",A72,1)-1)),E:E) -> 0 | I72: =IF(F72=0,SUMIF(MEDICAO[Cód. Tarefa],"="&A72&"."&"*",MEDICAO[Valor Parc.]),0) -> 0 | J72: =IF(F72="",I72/SUMIF(A:A,"="&MID(A72,1,IF(ISEVEN(LEN(A72)),LEN(A72)-3,LEN(A72)-2))&"*",H:H),H72/SUMIF(A:A,"="&MID(A72,1,IF(ISEVEN(LEN(A72)),LEN(A72)-3,LEN(A72)-2))&"*",H:H)) -> 
A73: 001.12.02 | B73: 600238 | C73: INSTALACAO ELETRICA - TUBULACAO + CAIXAS | E73: =VLOOKUP(A73,PLANILHA_TAREFA[[Cód. Tarefa]:[Total Por Macro - BDI]],4,FALSE) -> 1 | F73: UN | G73: =IF(Medição!C$5="S/ BDI",VLOOKUP(A73,'Planilha de Orçamento'!B:P,6,FALSE),(1+VLOOKUP(A73,'Planilha de Orçamento'!B:P,13,FALSE))*VLOOKUP(A73,'Planilha de Orçamento'!B:P,6,FALSE)) -> 490.4292 | H73: 0 | I73: =IF(F73=0,SUMIF(MEDICAO[Cód. Tarefa],"="&A73&"."&"*",MEDICAO[Valor Parc.]),0) -> 0
A74: 001.12.03 | B74: 600239 | C74: INSTALACAO ELETRICA - FIACAO | E74: =VLOOKUP(A74,PLANILHA_TAREFA[[Cód. Tarefa]:[Total Por Macro - BDI]],4,FALSE) -> 1 | F74: UN | G74: =IF(Medição!C$5="S/ BDI",VLOOKUP(A74,'Planilha de Orçamento'!B:P,6,FALSE),(1+VLOOKUP(A74,'Planilha de Orçamento'!B:P,13,FALSE))*VLOOKUP(A74,'Planilha de Orçamento'!B:P,6,FALSE)) -> 553 | H74: 0 | I74: =IF(F74=0,SUMIF(MEDICAO[Cód. Tarefa],"="&A74&"."&"*",MEDICAO[Valor Parc.]),0) -> 0
A75: 001.12.04 | B75: 600240 | C75: INSTALACAO ELETRICA - ILUMINACAO, TOMADAS E INTERRUPTORES | E75: =VLOOKUP(A75,PLANILHA_TAREFA[[Cód. Tarefa]:[Total Por Macro - BDI]],4,FALSE) -> 1 | F75: UN | G75: =IF(Medição!C$5="S/ BDI",VLOOKUP(A75,'Planilha de Orçamento'!B:P,6,FALSE),(1+VLOOKUP(A75,'Planilha de Orçamento'!B:P,13,FALSE))*VLOOKUP(A75,'Planilha de Orçamento'!B:P,6,FALSE)) -> 444.019 | H75: 0 | I75: =IF(F75=0,SUMIF(MEDICAO[Cód. Tarefa],"="&A75&"."&"*",MEDICAO[Valor Parc.]),0) -> 0
A76: 001.12.05 | B76: 600241 | C76: INSTALACAO ELETRICA - QUADRO DE DISTRIBUICAO | E76: =VLOOKUP(A76,PLANILHA_TAREFA[[Cód. Tarefa]:[Total Por Macro - BDI]],4,FALSE) -> 1 | F76: UN | G76: =IF(Medição!C$5="S/ BDI",VLOOKUP(A76,'Planilha de Orçamento'!B:P,6,FALSE),(1+VLOOKUP(A76,'Planilha de Orçamento'!B:P,13,FALSE))*VLOOKUP(A76,'Planilha de Orçamento'!B:P,6,FALSE)) -> 293.0743 | H76: 0 | I76: =IF(F76=0,SUMIF(MEDICAO[Cód. Tarefa],"="&A76&"."&"*",MEDICAO[Valor Parc.]),0) -> 0
A77: 001.13 | B77: 0 | C77: INSTALACOES HIDRAULICAS | E77: =VLOOKUP(A77,PLANILHA_TAREFA[[Cód. Tarefa]:[Total Por Macro - BDI]],4,FALSE) -> 0 | F77: 0 | G77: =IF(Medição!C$5="S/ BDI",VLOOKUP(A77,'Planilha de Orçamento'!B:P,6,FALSE),(1+VLOOKUP(A77,'Planilha de Orçamento'!B:P,13,FALSE))*VLOOKUP(A77,'Planilha de Orçamento'!B:P,6,FALSE)) -> 0 | H77: 0 | I77: =IF(F77=0,SUMIF(MEDICAO[Cód. Tarefa],"="&A77&"."&"*",MEDICAO[Valor Parc.]),0) -> 0
A78: 001.13.01 | B78: 600242 | C78: INSTALACAO HIDRAULICA - ENTRADA DE AGUA FRIA | E78: =VLOOKUP(A78,PLANILHA_TAREFA[[Cód. Tarefa]:[Total Por Macro - BDI]],4,FALSE) -> 1 | F78: UN | G78: =IF(Medição!C$5="S/ BDI",VLOOKUP(A78,'Planilha de Orçamento'!B:P,6,FALSE),(1+VLOOKUP(A78,'Planilha de Orçamento'!B:P,13,FALSE))*VLOOKUP(A78,'Planilha de Orçamento'!B:P,6,FALSE)) -> 558.104566 | H78: 0 | I78: =IF(F78=0,SUMIF(MEDICAO[Cód. Tarefa],"="&A78&"."&"*",MEDICAO[Valor Parc.]),0) -> 0
A79: 001.13.02 | B79: 600243 | C79: INSTALACAO HIDRAULICA - DISTRIBUICAO DE AGUA | E79: =VLOOKUP(A79,PLANILHA_TAREFA[[Cód. Tarefa]:[Total Por Macro - BDI]],4,FALSE) -> 1 | F79: UN | G79: =IF(Medição!C$5="S/ BDI",VLOOKUP(A79,'Planilha de Orçamento'!B:P,6,FALSE),(1+VLOOKUP(A79,'Planilha de Orçamento'!B:P,13,FALSE))*VLOOKUP(A79,'Planilha de Orçamento'!B:P,6,FALSE)) -> 214.7568 | H79: 0 | I79: =IF(F79=0,SUMIF(MEDICAO[Cód. Tarefa],"="&A79&"."&"*",MEDICAO[Valor Parc.]),0) -> 0
A80: 001.13.03 | B80: 600244 | C80: INSTALACAO HIDRAULICA - CAIXA D'AGUA | E80: =VLOOKUP(A80,PLANILHA_TAREFA[[Cód. Tarefa]:[Total Por Macro - BDI]],4,FALSE) -> 1 | F80: UN | G80: =IF(Medição!C$5="S/ BDI",VLOOKUP(A80,'Planilha de Orçamento'!B:P,6,FALSE),(1+VLOOKUP(A80,'Planilha de Orçamento'!B:P,13,FALSE))*VLOOKUP(A80,'Planilha de Orçamento'!B:P,6,FALSE)) -> 275.79112 | H80: 0 | I80: =IF(F80=0,SUMIF(MEDICAO[Cód. Tarefa],"="&A80&"."&"*",MEDICAO[Valor Parc.]),0) -> 0
A81: 001.13.04 | B81: 500466 | C81: ABRIGO PARA HIDROMETRO C/ TAMPA | E81: =VLOOKUP(A81,PLANILHA_TAREFA[[Cód. Tarefa]:[Total Por Macro - BDI]],4,FALSE) -> 1 | F81: UN | G81: =IF(Medição!C$5="S/ BDI",VLOOKUP(A81,'Planilha de Orçamento'!B:P,6,FALSE),(1+VLOOKUP(A81,'Planilha de Orçamento'!B:P,13,FALSE))*VLOOKUP(A81,'Planilha de Orçamento'!B:P,6,FALSE)) -> 273.2832208 | H81: 0 | I81: =IF(F81=0,SUMIF(MEDICAO[Cód. Tarefa],"="&A81&"."&"*",MEDICAO[Valor Parc.]),0) -> 0
A82: 001.13.05 | B82: 611365 | C82: LIGACAO DOMICILIAR - AGUA POTAVEL | E82: =VLOOKUP(A82,PLANILHA_TAREFA[[Cód. Tarefa]:[Total Por Macro - BDI]],4,FALSE) -> 1 | F82: UN | G82: =IF(Medição!C$5="S/ BDI",VLOOKUP(A82,'Planilha de Orçamento'!B:P,6,FALSE),(1+VLOOKUP(A82,'Planilha de Orçamento'!B:P,13,FALSE))*VLOOKUP(A82,'Planilha de Orçamento'!B:P,6,FALSE)) -> 107.6914 | H82: 0 | I82: =IF(F82=0,SUMIF(MEDICAO[Cód. Tarefa],"="&A82&"."&"*",MEDICAO[Valor Parc.]),0) -> 0
A83: 001.14 | B83: 0 | C83: INSTALACOES SANITARIAS | E83: =VLOOKUP(A83,PLANILHA_TAREFA[[Cód. Tarefa]:[Total Por Macro - BDI]],4,FALSE) -> 0 | F83: 0 | G83: =IF(Medição!C$5="S/ BDI",VLOOKUP(A83,'Planilha de Orçamento'!B:P,6,FALSE),(1+VLOOKUP(A83,'Planilha de Orçamento'!B:P,13,FALSE))*VLOOKUP(A83,'Planilha de Orçamento'!B:P,6,FALSE)) -> 0 | H83: 0 | I83: =IF(F83=0,SUMIF(MEDICAO[Cód. Tarefa],"="&A83&"."&"*",MEDICAO[Valor Parc.]),0) -> 0
A84: 001.14.01 | B84: 600246 | C84: INSTALACAO HIDRAULICA - ESGOTO INTERNO - PADRAO HABITACIONAL HM H02 (HM44) | E84: =VLOOKUP(A84,PLANILHA_TAREFA[[Cód. Tarefa]:[Total Por Macro - BDI]],4,FALSE) -> 1 | F84: UN | G84: =IF(Medição!C$5="S/ BDI",VLOOKUP(A84,'Planilha de Orçamento'!B:P,6,FALSE),(1+VLOOKUP(A84,'Planilha de Orçamento'!B:P,13,FALSE))*VLOOKUP(A84,'Planilha de Orçamento'!B:P,6,FALSE)) -> 301.86535 | H84: 0 | I84: =IF(F84=0,SUMIF(MEDICAO[Cód. Tarefa],"="&A84&"."&"*",MEDICAO[Valor Parc.]),0) -> 0
A85: 001.14.02 | B85: 600245 | C85: INSTALACAO HIDRAULICA - ESGOTO EXTERNO - PADRAO HABITACIONAL HM H02 (HM44) | E85: =VLOOKUP(A85,PLANILHA_TAREFA[[Cód. Tarefa]:[Total Por Macro - BDI]],4,FALSE) -> 1 | F85: UN | G85: =IF(Medição!C$5="S/ BDI",VLOOKUP(A85,'Planilha de Orçamento'!B:P,6,FALSE),(1+VLOOKUP(A85,'Planilha de Orçamento'!B:P,13,FALSE))*VLOOKUP(A85,'Planilha de Orçamento'!B:P,6,FALSE)) -> 675.5624546 | H85: 0 | I85: =IF(F85=0,SUMIF(MEDICAO[Cód. Tarefa],"="&A85&"."&"*",MEDICAO[Valor Parc.]),0) -> 0
A86: 001.14.03 | B86: 611366 | C86: LIGACAO DOMICILIAR - ESGOTO SANITARIO | E86: =VLOOKUP(A86,PLANILHA_TAREFA[[Cód. Tarefa]:[Total Por Macro - BDI]],4,FALSE) -> 1 | F86: 0 | G86: =IF(Medição!C$5="S/ BDI",VLOOKUP(A86,'Planilha de Orçamento'!B:P,6,FALSE),(1+VLOOKUP(A86,'Planilha de Orçamento'!B:P,13,FALSE))*VLOOKUP(A86,'Planilha de Orçamento'!B:P,6,FALSE)) -> 301.407948 | H86: 0 | I86: =IF(F86=0,SUMIF(MEDICAO[Cód. Tarefa],"="&A86&"."&"*",MEDICAO[Valor Parc.]),0) -> 0
A87: 001.15 | B87: 0 | C87: INSTALACOES P/ AGUA PLUVIAL | E87: =VLOOKUP(A87,PLANILHA_TAREFA[[Cód. Tarefa]:[Total Por Macro - BDI]],4,FALSE) -> 0 | F87: 0 | G87: =IF(Medição!C$5="S/ BDI",VLOOKUP(A87,'Planilha de Orçamento'!B:P,6,FALSE),(1+VLOOKUP(A87,'Planilha de Orçamento'!B:P,13,FALSE))*VLOOKUP(A87,'Planilha de Orçamento'!B:P,6,FALSE)) -> 0 | H87: 0 | I87: =IF(F87=0,SUMIF(MEDICAO[Cód. Tarefa],"="&A87&"."&"*",MEDICAO[Valor Parc.]),0) -> 0
A88: 001.15.01 | B88: 152030 | C88: TUBO PVC BRANCO 100 MM - ESGOTO | E88: =VLOOKUP(A88,PLANILHA_TAREFA[[Cód. Tarefa]:[Total Por Macro - BDI]],4,FALSE) -> 43.75 | F88: MT | G88: =IF(Medição!C$5="S/ BDI",VLOOKUP(A88,'Planilha de Orçamento'!B:P,6,FALSE),(1+VLOOKUP(A88,'Planilha de Orçamento'!B:P,13,FALSE))*VLOOKUP(A88,'Planilha de Orçamento'!B:P,6,FALSE)) -> 13.23902 | H88: 0 | I88: =IF(F88=0,SUMIF(MEDICAO[Cód. Tarefa],"="&A88&"."&"*",MEDICAO[Valor Parc.]),0) -> 0
A89: 001.15.02 | B89: 400843 | C89: CAIXA DE INSPECAO EM ALVENARIA DE TIJOLO COMUM - 060 X 060 X 070 CM - ESGOTO / AGUAS PLUVIAIS | E89: =VLOOKUP(A89,PLANILHA_TAREFA[[Cód. Tarefa]:[Total Por Macro - BDI]],4,FALSE) -> 4 | F89: UN | G89: =IF(Medição!C$5="S/ BDI",VLOOKUP(A89,'Planilha de Orçamento'!B:P,6,FALSE),(1+VLOOKUP(A89,'Planilha de Orçamento'!B:P,13,FALSE))*VLOOKUP(A89,'Planilha de Orçamento'!B:P,6,FALSE)) -> 387.8347256 | H89: 0 | I89: =IF(F89=0,SUMIF(MEDICAO[Cód. Tarefa],"="&A89&"."&"*",MEDICAO[Valor Parc.]),0) -> 0
A90: 001.16 | B90: 0 | C90: LOUCAS | E90: =VLOOKUP(A90,PLANILHA_TAREFA[[Cód. Tarefa]:[Total Por Macro - BDI]],4,FALSE) -> 0 | F90: 0 | G90: =IF(Medição!C$5="S/ BDI",VLOOKUP(A90,'Planilha de Orçamento'!B:P,6,FALSE),(1+VLOOKUP(A90,'Planilha de Orçamento'!B:P,13,FALSE))*VLOOKUP(A90,'Planilha de Orçamento'!B:P,6,FALSE)) -> 0 | H90: 0 | I90: =IF(F90=0,SUMIF(MEDICAO[Cód. Tarefa],"="&A90&"."&"*",MEDICAO[Valor Parc.]),0) -> 0
A91: 001.16.01 | B91: 151290 | C91: BACIA SANITARIA C/ CAIXA ACOPLADA - PADRAO BAIXO | E91: =VLOOKUP(A91,PLANILHA_TAREFA[[Cód. Tarefa]:[Total Por Macro - BDI]],4,FALSE) -> 1 | F91: UN | G91: =IF(Medição!C$5="S/ BDI",VLOOKUP(A91,'Planilha de Orçamento'!B:P,6,FALSE),(1+VLOOKUP(A91,'Planilha de Orçamento'!B:P,13,FALSE))*VLOOKUP(A91,'Planilha de Orçamento'!B:P,6,FALSE)) -> 307.81563 | H91: 0 | I91: =IF(F91=0,SUMIF(MEDICAO[Cód. Tarefa],"="&A91&"."&"*",MEDICAO[Valor Parc.]),0) -> 0
A92: 001.16.02 | B92: 155281 | C92: LAVATORIO DE LOUCA C/ COLUNA - BRANCO | E92: =VLOOKUP(A92,PLANILHA_TAREFA[[Cód. Tarefa]:[Total Por Macro - BDI]],4,FALSE) -> 1 | F92: UN | G92: =IF(Medição!C$5="S/ BDI",VLOOKUP(A92,'Planilha de Orçamento'!B:P,6,FALSE),(1+VLOOKUP(A92,'Planilha de Orçamento'!B:P,13,FALSE))*VLOOKUP(A92,'Planilha de Orçamento'!B:P,6,FALSE)) -> 140.50563 | H92: 0 | I92: =IF(F92=0,SUMIF(MEDICAO[Cód. Tarefa],"="&A92&"."&"*",MEDICAO[Valor Parc.]),0) -> 0
A93: 001.16.03 | B93: 500262 | C93: TANQUE DE MARMORE SINTETICO | E93: =VLOOKUP(A93,PLANILHA_TAREFA[[Cód. Tarefa]:[Total Por Macro - BDI]],4,FALSE) -> 1 | F93: UN | G93: =IF(Medição!C$5="S/ BDI",VLOOKUP(A93,'Planilha de Orçamento'!B:P,6,FALSE),(1+VLOOKUP(A93,'Planilha de Orçamento'!B:P,13,FALSE))*VLOOKUP(A93,'Planilha de Orçamento'!B:P,6,FALSE)) -> 210.117 | H93: 0 | I93: =IF(F93=0,SUMIF(MEDICAO[Cód. Tarefa],"="&A93&"."&"*",MEDICAO[Valor Parc.]),0) -> 0
A94: 001.16.04 | B94: 500058 | C94: PIA DE GRANITO 1,20 X 0,60 M C/ CUBA DE INOX | E94: =VLOOKUP(A94,PLANILHA_TAREFA[[Cód. Tarefa]:[Total Por Macro - BDI]],4,FALSE) -> 1 | F94: UN | G94: =IF(Medição!C$5="S/ BDI",VLOOKUP(A94,'Planilha de Orçamento'!B:P,6,FALSE),(1+VLOOKUP(A94,'Planilha de Orçamento'!B:P,13,FALSE))*VLOOKUP(A94,'Planilha de Orçamento'!B:P,6,FALSE)) -> 300.1905 | H94: 0 | I94: =IF(F94=0,SUMIF(MEDICAO[Cód. Tarefa],"="&A94&"."&"*",MEDICAO[Valor Parc.]),0) -> 0
A95: 001.16.05 | B95: 401514 | C95: TORNEIRA P/LAVATORIO CROMADA | E95: =VLOOKUP(A95,PLANILHA_TAREFA[[Cód. Tarefa]:[Total Por Macro - BDI]],4,FALSE) -> 1 | F95: UN | G95: =IF(Medição!C$5="S/ BDI",VLOOKUP(A95,'Planilha de Orçamento'!B:P,6,FALSE),(1+VLOOKUP(A95,'Planilha de Orçamento'!B:P,13,FALSE))*VLOOKUP(A95,'Planilha de Orçamento'!B:P,6,FALSE)) -> 23.7657 | H95: 0 | I95: =IF(F95=0,SUMIF(MEDICAO[Cód. Tarefa],"="&A95&"."&"*",MEDICAO[Valor Parc.]),0) -> 0
A96: 001.16.06 | B96: 401702 | C96: TORNEIRA CROMADA CURTA P/TANQUE 3/4'' | E96: =VLOOKUP(A96,PLANILHA_TAREFA[[Cód. Tarefa]:[Total Por Macro - BDI]],4,FALSE) -> 1 | F96: UN | G96: =IF(Medição!C$5="S/ BDI",VLOOKUP(A96,'Planilha de Orçamento'!B:P,6,FALSE),(1+VLOOKUP(A96,'Planilha de Orçamento'!B:P,13,FALSE))*VLOOKUP(A96,'Planilha de Orçamento'!B:P,6,FALSE)) -> 19.7657 | H96: 0 | I96: =IF(F96=0,SUMIF(MEDICAO[Cód. Tarefa],"="&A96&"."&"*",MEDICAO[Valor Parc.]),0) -> 0
A97: 001.16.07 | B97: 401513 | C97: TORNEIRA CROMADA P/ PIA DE COZINHA 1/2'' | E97: =VLOOKUP(A97,PLANILHA_TAREFA[[Cód. Tarefa]:[Total Por Macro - BDI]],4,FALSE) -> 1 | F97: UN | G97: =IF(Medição!C$5="S/ BDI",VLOOKUP(A97,'Planilha de Orçamento'!B:P,6,FALSE),(1+VLOOKUP(A97,'Planilha de Orçamento'!B:P,13,FALSE))*VLOOKUP(A97,'Planilha de Orçamento'!B:P,6,FALSE)) -> 31.7157 | H97: 0 | I97: =IF(F97=0,SUMIF(MEDICAO[Cód. Tarefa],"="&A97&"."&"*",MEDICAO[Valor Parc.]),0) -> 0
A98: 001.16.08 | B98: 403204 | C98: TORNEIRA P/ JARDIM AMARELA 1" | E98: =VLOOKUP(A98,PLANILHA_TAREFA[[Cód. Tarefa]:[Total Por Macro - BDI]],4,FALSE) -> 1 | F98: UN | G98: =IF(Medição!C$5="S/ BDI",VLOOKUP(A98,'Planilha de Orçamento'!B:P,6,FALSE),(1+VLOOKUP(A98,'Planilha de Orçamento'!B:P,13,FALSE))*VLOOKUP(A98,'Planilha de Orçamento'!B:P,6,FALSE)) -> 29.0885 | H98: 0 | I98: =IF(F98=0,SUMIF(MEDICAO[Cód. Tarefa],"="&A98&"."&"*",MEDICAO[Valor Parc.]),0) -> 0
A99: 001.16.09 | B99: 151040 | C99: REGISTRO DE PRESSAO 3/4'' CROMADO C/ CANOPLA | E99: =VLOOKUP(A99,PLANILHA_TAREFA[[Cód. Tarefa]:[Total Por Macro - BDI]],4,FALSE) -> 1 | F99: UN | G99: =IF(Medição!C$5="S/ BDI",VLOOKUP(A99,'Planilha de Orçamento'!B:P,6,FALSE),(1+VLOOKUP(A99,'Planilha de Orçamento'!B:P,13,FALSE))*VLOOKUP(A99,'Planilha de Orçamento'!B:P,6,FALSE)) -> 29.0021 | H99: 0 | I99: =IF(F99=0,SUMIF(MEDICAO[Cód. Tarefa],"="&A99&"."&"*",MEDICAO[Valor Parc.]),0) -> 0
A100: 001.16.10 | B100: 155468 | C100: REGISTRO DE GAVETA 3/4'' CROMADO C/ CANOPLA | E100: =VLOOKUP(A100,PLANILHA_TAREFA[[Cód. Tarefa]:[Total Por Macro - BDI]],4,FALSE) -> 2 | F100: UN | G100: =IF(Medição!C$5="S/ BDI",VLOOKUP(A100,'Planilha de Orçamento'!B:P,6,FALSE),(1+VLOOKUP(A100,'Planilha de Orçamento'!B:P,13,FALSE))*VLOOKUP(A100,'Planilha de Orçamento'!B:P,6,FALSE)) -> 27.2245 | H100: 0 | I100: =IF(F100=0,SUMIF(MEDICAO[Cód. Tarefa],"="&A100&"."&"*",MEDICAO[Valor Parc.]),0) -> 0
A101: 001.17 | B101: 0 | C101: SERVIÇOS COMPLEMENTARES | E101: =VLOOKUP(A101,PLANILHA_TAREFA[[Cód. Tarefa]:[Total Por Macro - BDI]],4,FALSE) -> 0 | F101: 0 | G101: =IF(Medição!C$5="S/ BDI",VLOOKUP(A101,'Planilha de Orçamento'!B:P,6,FALSE),(1+VLOOKUP(A101,'Planilha de Orçamento'!B:P,13,FALSE))*VLOOKUP(A101,'Planilha de Orçamento'!B:P,6,FALSE)) -> 0 | H101: 0 | I101: =IF(F101=0,SUMIF(MEDICAO[Cód. Tarefa],"="&A101&"."&"*",MEDICAO[Valor Parc.]),0) -> 0
A102: 001.17.01 | B102: 500488 | C102: MURO DE DIVISA PADRAO EM ALVENARIA - H = 1,50 M | E102: =VLOOKUP(A102,PLANILHA_TAREFA[[Cód. Tarefa]:[Total Por Macro - BDI]],4,FALSE) -> 12.4 | F102: MT | G102: =IF(Medição!C$5="S/ BDI",VLOOKUP(A102,'Planilha de Orçamento'!B:P,6,FALSE),(1+VLOOKUP(A102,'Planilha de Orçamento'!B:P,13,FALSE))*VLOOKUP(A102,'Planilha de Orçamento'!B:P,6,FALSE)) -> 274.5967566 | H102: 0 | I102: =IF(F102=0,SUMIF(MEDICAO[Cód. Tarefa],"="&A102&"."&"*",MEDICAO[Valor Parc.]),0) -> 0
A103: 001.17.02 | B103: 002330 | C103: LIMPEZA DA OBRA | E103: =VLOOKUP(A103,PLANILHA_TAREFA[[Cód. Tarefa]:[Total Por Macro - BDI]],4,FALSE) -> 52.57 | F103: M2 | G103: =IF(Medição!C$5="S/ BDI",VLOOKUP(A103,'Planilha de Orçamento'!B:P,6,FALSE),(1+VLOOKUP(A103,'Planilha de Orçamento'!B:P,13,FALSE))*VLOOKUP(A103,'Planilha de Orçamento'!B:P,6,FALSE)) -> 3.9312 | H103: 0 | I103: =IF(F103=0,SUMIF(MEDICAO[Cód. Tarefa],"="&A103&"."&"*",MEDICAO[Valor Parc.]),0) -> 0
A104: 001.17.03 | B104: 600216 | C104: PLACA DE IDENTIFICACAO - NUMERACAO DAS CASAS | E104: =VLOOKUP(A104,PLANILHA_TAREFA[[Cód. Tarefa]:[Total Por Macro - BDI]],4,FALSE) -> 1 | F104: UN | G104: =IF(Medição!C$5="S/ BDI",VLOOKUP(A104,'Planilha de Orçamento'!B:P,6,FALSE),(1+VLOOKUP(A104,'Planilha de Orçamento'!B:P,13,FALSE))*VLOOKUP(A104,'Planilha de Orçamento'!B:P,6,FALSE)) -> 11.08108 | H104: =G104*IF(AND(D104*E104=0,F104=""),1,(D104)*E104)*SUMIF(A:A,MID(A104,1,IF(ISERR(FIND(".",A104,1))=TRUE,LEN(A104),FIND(".",A104,1)-1)),E:E) -> 0 | I104: =IF(F104=0,SUMIF(MEDICAO[Cód. Tarefa],"="&A104&"."&"*",MEDICAO[Valor Parc.]),0) -> 0 | J104: =IF(F104="",I104/SUMIF(A:A,"="&MID(A104,1,IF(ISEVEN(LEN(A104)),LEN(A104)-3,LEN(A104)-2))&"*",H:H),H104/SUMIF(A:A,"="&MID(A104,1,IF(ISEVEN(LEN(A104)),LEN(A104)-3,LEN(A104)-2))&"*",H:H)) -> 
A105: 001.17.04 | B105: 500139 | C105: PAISAGISMO - PLANTIO DE GRAMA EM PLACAS (JARDINS) | E105: =VLOOKUP(A105,PLANILHA_TAREFA[[Cód. Tarefa]:[Total Por Macro - BDI]],4,FALSE) -> 34.66 | F105: M2 | G105: =IF(Medição!C$5="S/ BDI",VLOOKUP(A105,'Planilha de Orçamento'!B:P,6,FALSE),(1+VLOOKUP(A105,'Planilha de Orçamento'!B:P,13,FALSE))*VLOOKUP(A105,'Planilha de Orçamento'!B:P,6,FALSE)) -> 7.356288 | H105: 0 | I105: =IF(F105=0,SUMIF(MEDICAO[Cód. Tarefa],"="&A105&"."&"*",MEDICAO[Valor Parc.]),0) -> 0
A106: 001.17.05 | B106: 0 | C106: CALCADA EXTERNA | E106: =VLOOKUP(A106,PLANILHA_TAREFA[[Cód. Tarefa]:[Total Por Macro - BDI]],4,FALSE) -> 0 | F106: 0 | G106: =IF(Medição!C$5="S/ BDI",VLOOKUP(A106,'Planilha de Orçamento'!B:P,6,FALSE),(1+VLOOKUP(A106,'Planilha de Orçamento'!B:P,13,FALSE))*VLOOKUP(A106,'Planilha de Orçamento'!B:P,6,FALSE)) -> 0 | H106: 0 | I106: =IF(F106=0,SUMIF(MEDICAO[Cód. Tarefa],"="&A106&"."&"*",MEDICAO[Valor Parc.]),0) -> 0
A107: 001.17.05.01 | B107: 500038 | C107: CALÇADA EXTERNA 7CM | E107: =VLOOKUP(A107,PLANILHA_TAREFA[[Cód. Tarefa]:[Total Por Macro - BDI]],4,FALSE) -> 16.8 | F107: M2 | G107: =IF(Medição!C$5="S/ BDI",VLOOKUP(A107,'Planilha de Orçamento'!B:P,6,FALSE),(1+VLOOKUP(A107,'Planilha de Orçamento'!B:P,13,FALSE))*VLOOKUP(A107,'Planilha de Orçamento'!B:P,6,FALSE)) -> 34.6688 | H107: 0 | I107: =IF(F107=0,SUMIF(MEDICAO[Cód. Tarefa],"="&A107&"."&"*",MEDICAO[Valor Parc.]),0) -> 0
A108: 001.17.05.02 | B108: 500139 | C108: PAISAGISMO - PLANTIO DE GRAMA EM PLACAS (JARDINS) | E108: =VLOOKUP(A108,PLANILHA_TAREFA[[Cód. Tarefa]:[Total Por Macro - BDI]],4,FALSE) -> 13.2 | F108: M2 | G108: =IF(Medição!C$5="S/ BDI",VLOOKUP(A108,'Planilha de Orçamento'!B:P,6,FALSE),(1+VLOOKUP(A108,'Planilha de Orçamento'!B:P,13,FALSE))*VLOOKUP(A108,'Planilha de Orçamento'!B:P,6,FALSE)) -> 7.356288 | H108: 0 | I108: =IF(F108=0,SUMIF(MEDICAO[Cód. Tarefa],"="&A108&"."&"*",MEDICAO[Valor Parc.]),0) -> 0
A109: Total | H109: =SUBTOTAL(109,MEDICAO[Valor Parc.]) -> 0

Sheet Planilha de Orçamento
C1: Planilha de Orçamento
C2: Projeto:
C3: Proprietário:
C4: Endereço: | G4: Total s/ BDI | H4: =PLANILHA_TAREFA[[#Totals],[Valor Parc. Total]] -> 61614.04526
G5: Total c/ BDI | H5: =PLANILHA_TAREFA[[#Totals],[Valor Parc. Total - BDI]] -> 75785.27567
A10: Ativo | B10: Cód. Tarefa | C10: Comp. | D10: Descrição | E10: Quant. | F10: Unid. | G10: Valor Unit. | H10: Valor Cotado | I10: Valor Parc. Unitário | J10: Valor Parc. Total | K10: Total Por Macro | L10: Qte Total | M10: % | N10: BDI | O10: Valor Parc. Total - BDI | P10: Total Por Macro - BDI
A11: TRUE | B11: 001 | D11: CASA TERREA A = 52,57 m² | E11: 1 | G11: 0 | H11: 0 | I11: =IF(AND(J11>=0,E11<>""),IF(K11=0,J11/SUMIF(PLANILHA_TAREFA[Cód. Tarefa],MID(B11,1,IF(ISERR(FIND(".",B11,1))=TRUE,LEN(B11),FIND(".",B11,1)-1)),PLANILHA_TAREFA[Quant.]),K11/E11),K11/SUMIF(PLANILHA_TAREFA[Cód. Tarefa],MID(B11,1,IF(ISERR(FIND(".",B11,1))=TRUE,LEN(B11),FIND(".",B11,1)-1)),PLANILHA_TAREFA[Quant.])) -> 61614.04526 | J11: =IF(A11=TRUE,1,0)*IF(H11>0,H11,G11)*IF(AND(E11=0,F11=""),1,E11)*SUMIF(PLANILHA_TAREFA[Cód. Tarefa],MID(B11,1,IF(ISERR(FIND(".",B11,1))=TRUE,LEN(B11),FIND(".",B11,1)-1)),PLANILHA_TAREFA[Quant.]) -> 0 | K11: =IF(F11="",SUMIF(PLANILHA_TAREFA[Cód. Tarefa],"="&B11&"."&"*",PLANILHA_TAREFA[Valor Parc. Total]),0) -> 61614.04526 | L11: =SUMIF(PLANILHA_TAREFA[Cód. Tarefa],MID(B11,1,IF(ISERR(FIND(".",B11,1))=TRUE,LEN(B11),FIND(".",B11,1)-1)),PLANILHA_TAREFA[Quant.]) -> 1 | M11: =IF(F11="",IF(SUMIF(PLANILHA_TAREFA[Cód. Tarefa],"="&MID(B11,1,IF(ISEVEN(LEN(B11)),LEN(B11)-3,LEN(B11)-2))&"*",PLANILHA_TAREFA[Valor Parc. Total])=0,0,K11/SUMIF(PLANILHA_TAREFA[Cód. Tarefa],"="&MID(B11,1,IF(ISEVEN(LEN(B11)),LEN(B11)-3,LEN(B11)-2))&"*",PLANILHA_TAREFA[Valor Parc. Total])),IF(SUMIF(PLANILHA_TAREFA[Cód. Tarefa],"="&MID(B11,1,IF(ISEVEN(LEN(B11)),LEN(B11)-3,LEN(B11)-2))&"*",PLANILHA_TAREFA[Valor Parc. Total])=0,0,J11/SUMIF(PLANILHA_TAREFA[Cód. Tarefa],"="&MID(B11,1,IF(ISEVEN(LEN(B11)),LEN(B11)-3,LEN(B11)-2))&"*",PLANILHA_TAREFA[Valor Parc. Total]))) -> 1 | N11: 0.23 | O11: =J11*(1+N11) -> 0 | P11: =IF(F11="",SUMIF(PLANILHA_TAREFA[Cód. Tarefa],"="&B11&"."&"*",PLANILHA_TAREFA[Valor Parc. Total - BDI]),0) -> 75785.27567
A12: TRUE | B12: 001.01 | D12: SERVIÇOS PRELIMINARES | G12: 0 | H12: 0 | I12: =IF(AND(J12>=0,E12<>""),IF(K12=0,J12/SUMIF(PLANILHA_TAREFA[Cód. Tarefa],MID(B12,1,IF(ISERR(FIND(".",B12,1))=TRUE,LEN(B12),FIND(".",B12,1)-1)),PLANILHA_TAREFA[Quant.]),K12/E12),K12/SUMIF(PLANILHA_TAREFA[Cód. Tarefa],MID(B12,1,IF(ISERR(FIND(".",B12,1))=TRUE,LEN(B12),FIND(".",B12,1)-1)),PLANILHA_TAREFA[Quant.])) -> 2369.629532 | J12: =IF(A12=TRUE,1,0)*IF(H12>0,H12,G12)*IF(AND(E12=0,F12=""),1,E12)*SUMIF(PLANILHA_TAREFA[Cód. Tarefa],MID(B12,1,IF(ISERR(FIND(".",B12,1))=TRUE,LEN(B12),FIND(".",B12,1)-1)),PLANILHA_TAREFA[Quant.]) -> 0 | K12: =IF(F12="",SUMIF(PLANILHA_TAREFA[Cód. Tarefa],"="&B12&"."&"*",PLANILHA_TAREFA[Valor Parc. Total]),0) -> 2369.629532 | L12: =SUMIF(PLANILHA_TAREFA[Cód. Tarefa],MID(B12,1,IF(ISERR(FIND(".",B12,1))=TRUE,LEN(B12),FIND(".",B12,1)-1)),PLANILHA_TAREFA[Quant.]) -> 1 | M12: =IF(F12="",IF(SUMIF(PLANILHA_TAREFA[Cód. Tarefa],"="&MID(B12,1,IF(ISEVEN(LEN(B12)),LEN(B12)-3,LEN(B12)-2))&"*",PLANILHA_TAREFA[Valor Parc. Total])=0,0,K12/SUMIF(PLANILHA_TAREFA[Cód. Tarefa],"="&MID(B12,1,IF(ISEVEN(LEN(B12)),LEN(B12)-3,LEN(B12)-2))&"*",PLANILHA_TAREFA[Valor Parc. Total])),IF(SUMIF(PLANILHA_TAREFA[Cód. Tarefa],"="&MID(B12,1,IF(ISEVEN(LEN(B12)),LEN(B12)-3,LEN(B12)-2))&"*",PLANILHA_TAREFA[Valor Parc. Total])=0,0,J12/SUMIF(PLANILHA_TAREFA[Cód. Tarefa],"="&MID(B12,1,IF(ISEVEN(LEN(B12)),LEN(B12)-3,LEN(B12)-2))&"*",PLANILHA_TAREFA[Valor Parc. Total]))) -> 0.03845924288 | N12: 0.23 | O12: 0 | P12: =IF(F12="",SUMIF(PLANILHA_TAREFA[Cód. Tarefa],"="&B12&"."&"*",PLANILHA_TAREFA[Valor Parc. Total - BDI]),0) -> 2914.644324
A13: TRUE | B13: 001.01.01 | C13: 000020 | D13: LOCACAO DA OBRA | E13: 52.57 | F13: M2 | G13: 4.51188 | H13: 0 | I13: =IF(AND(J13>=0,E13<>""),IF(K13=0,J13/SUMIF(PLANILHA_TAREFA[Cód. Tarefa],MID(B13,1,IF(ISERR(FIND(".",B13,1))=TRUE,LEN(B13),FIND(".",B13,1)-1)),PLANILHA_TAREFA[Quant.]),K13/E13),K13/SUMIF(PLANILHA_TAREFA[Cód. Tarefa],MID(B13,1,IF(ISERR(FIND(".",B13,1))=TRUE,LEN(B13),FIND(".",B13,1)-1)),PLANILHA_TAREFA[Quant.])) -> 237.1895316 | J13: =IF(A13=TRUE,1,0)*IF(H13>0,H13,G13)*IF(AND(E13=0,F13=""),1,E13)*SUMIF(PLANILHA_TAREFA[Cód. Tarefa],MID(B13,1,IF(ISERR(FIND(".",B13,1))=TRUE,LEN(B13),FIND(".",B13,1)-1)),PLANILHA_TAREFA[Quant.]) -> 237.1895316 | K13: =IF(F13="",SUMIF(PLANILHA_TAREFA[Cód. Tarefa],"="&B13&"."&"*",PLANILHA_TAREFA[Valor Parc. Total]),0) -> 0 | L13: =SUMIF(PLANILHA_TAREFA[Cód. Tarefa],MID(B13,1,IF(ISERR(FIND(".",B13,1))=TRUE,LEN(B13),FIND(".",B13,1)-1)),PLANILHA_TAREFA[Quant.]) -> 1 | M13: =IF(F13="",IF(SUMIF(PLANILHA_TAREFA[Cód. Tarefa],"="&MID(B13,1,IF(ISEVEN(LEN(B13)),LEN(B13)-3,LEN(B13)-2))&"*",PLANILHA_TAREFA[Valor Parc. Total])=0,0,K13/SUMIF(PLANILHA_TAREFA[Cód. Tarefa],"="&MID(B13,1,IF(ISEVEN(LEN(B13)),LEN(B13)-3,LEN(B13)-2))&"*",PLANILHA_TAREFA[Valor Parc. Total])),IF(SUMIF(PLANILHA_TAREFA[Cód. Tarefa],"="&MID(B13,1,IF(ISEVEN(LEN(B13)),LEN(B13)-3,LEN(B13)-2))&"*",PLANILHA_TAREFA[Valor Parc. Total])=0,0,J13/SUMIF(PLANILHA_TAREFA[Cód. Tarefa],"="&MID(B13,1,IF(ISEVEN(LEN(B13)),LEN(B13)-3,LEN(B13)-2))&"*",PLANILHA_TAREFA[Valor Parc. Total]))) -> 0.1000956177 | N13: 0.23 | O13: 291.7431239 | P13: =IF(F13="",SUMIF(PLANILHA_TAREFA[Cód. Tarefa],"="&B13&"."&"*",PLANILHA_TAREFA[Valor Parc. Total - BDI]),0) -> 0
A14: TRUE | B14: 001.01.02 | C14: 300574 | D14: TERRAPLENAGEM - LIMPEZA,BEM COMO,REMOCAO DO SOLO VEGETAL NA ESP.MEDIA DE 10CM,CARGA E TRAN | E14: 125 | F14: M2 | G14: 2 | H14: 0 | I14: =IF(AND(J14>=0,E14<>""),IF(K14=0,J14/SUMIF(PLANILHA_TAREFA[Cód. Tarefa],MID(B14,1,IF(ISERR(FIND(".",B14,1))=TRUE,LEN(B14),FIND(".",B14,1)-1)),PLANILHA_TAREFA[Quant.]),K14/E14),K14/SUMIF(PLANILHA_TAREFA[Cód. Tarefa],MID(B14,1,IF(ISERR(FIND(".",B14,1))=TRUE,LEN(B14),FIND(".",B14,1)-1)),PLANILHA_TAREFA[Quant.])) -> 250 | J14: =IF(A14=TRUE,1,0)*IF(H14>0,H14,G14)*IF(AND(E14=0,F14=""),1,E14)*SUMIF(PLANILHA_TAREFA[Cód. Tarefa],MID(B14,1,IF(ISERR(FIND(".",B14,1))=TRUE,LEN(B14),FIND(".",B14,1)-1)),PLANILHA_TAREFA[Quant.]) -> 250 | K14: =IF(F14="",SUMIF(PLANILHA_TAREFA[Cód. Tarefa],"="&B14&"."&"*",PLANILHA_TAREFA[Valor Parc. Total]),0) -> 0 | L14: =SUMIF(PLANILHA_TAREFA[Cód. Tarefa],MID(B14,1,IF(ISERR(FIND(".",B14,1))=TRUE,LEN(B14),FIND(".",B14,1)-1)),PLANILHA_TAREFA[Quant.]) -> 1 | M14: =IF(F14="",IF(SUMIF(PLANILHA_TAREFA[Cód. Tarefa],"="&MID(B14,1,IF(ISEVEN(LEN(B14)),LEN(B14)-3,LEN(B14)-2))&"*",PLANILHA_TAREFA[Valor Parc. Total])=0,0,K14/SUMIF(PLANILHA_TAREFA[Cód. Tarefa],"="&MID(B14,1,IF(ISEVEN(LEN(B14)),LEN(B14)-3,LEN(B14)-2))&"*",PLANILHA_TAREFA[Valor Parc. Total])),IF(SUMIF(PLANILHA_TAREFA[Cód. Tarefa],"="&MID(B14,1,IF(ISEVEN(LEN(B14)),LEN(B14)-3,LEN(B14)-2))&"*",PLANILHA_TAREFA[Valor Parc. Total])=0,0,J14/SUMIF(PLANILHA_TAREFA[Cód. Tarefa],"="&MID(B14,1,IF(ISEVEN(LEN(B14)),LEN(B14)-3,LEN(B14)-2))&"*",PLANILHA_TAREFA[Valor Parc. Total]))) -> 0.1055017237 | N14: 0.23 | O14: 307.5 | P14: =IF(F14="",SUMIF(PLANILHA_TAREFA[Cód. Tarefa],"="&B14&"."&"*",PLANILHA_TAREFA[Valor Parc. Total - BDI]),0) -> 0
A15: TRUE | B15: 001.01.03 | C15: 300571 | D15: TERRAPLENAGEM - CORTE DE MATERIAL DE 1ª CATEGORIA | E15: 63 | F15: M3 | G15: 4.58 | H15: 0 | I15: =IF(AND(J15>=0,E15<>""),IF(K15=0,J15/SUMIF(PLANILHA_TAREFA[Cód. Tarefa],MID(B15,1,IF(ISERR(FIND(".",B15,1))=TRUE,LEN(B15),FIND(".",B15,1)-1)),PLANILHA_TAREFA[Quant.]),K15/E15),K15/SUMIF(PLANILHA_TAREFA[Cód. Tarefa],MID(B15,1,IF(ISERR(FIND(".",B15,1))=TRUE,LEN(B15),FIND(".",B15,1)-1)),PLANILHA_TAREFA[Quant.])) -> 288.54 | J15: =IF(A15=TRUE,1,0)*IF(H15>0,H15,G15)*IF(AND(E15=0,F15=""),1,E15)*SUMIF(PLANILHA_TAREFA[Cód. Tarefa],MID(B15,1,IF(ISERR(FIND(".",B15,1))=TRUE,LEN(B15),FIND(".",B15,1)-1)),PLANILHA_TAREFA[Quant.]) -> 288.54 | K15: =IF(F15="",SUMIF(PLANILHA_TAREFA[Cód. Tarefa],"="&B15&"."&"*",PLANILHA_TAREFA[Valor Parc. Total]),0) -> 0 | L15: =SUMIF(PLANILHA_TAREFA[Cód. Tarefa],MID(B15,1,IF(ISERR(FIND(".",B15,1))=TRUE,LEN(B15),FIND(".",B15,1)-1)),PLANILHA_TAREFA[Quant.]) -> 1 | M15: =IF(F15="",IF(SUMIF(PLANILHA_TAREFA[Cód. Tarefa],"="&MID(B15,1,IF(ISEVEN(LEN(B15)),LEN(B15)-3,LEN(B15)-2))&"*",PLANILHA_TAREFA[Valor Parc. Total])=0,0,K15/SUMIF(PLANILHA_TAREFA[Cód. Tarefa],"="&MID(B15,1,IF(ISEVEN(LEN(B15)),LEN(B15)-3,LEN(B15)-2))&"*",PLANILHA_TAREFA[Valor Parc. Total])),IF(SUMIF(PLANILHA_TAREFA[Cód. Tarefa],"="&MID(B15,1,IF(ISEVEN(LEN(B15)),LEN(B15)-3,LEN(B15)-2))&"*",PLANILHA_TAREFA[Valor Parc. Total])=0,0,J15/SUMIF(PLANILHA_TAREFA[Cód. Tarefa],"="&MID(B15,1,IF(ISEVEN(LEN(B15)),LEN(B15)-3,LEN(B15)-2))&"*",PLANILHA_TAREFA[Valor Parc. Total]))) -> 0.1217658694 | N15: 0.23 | O15: 354.9042 | P15: =IF(F15="",SUMIF(PLANILHA_TAREFA[Cód. Tarefa],"="&B15&"."&"*",PLANILHA_TAREFA[Valor Parc. Total - BDI]),0) -> 0
A16: TRUE | B16: 001.01.04 | C16: 300573 | D16: TERRAPLENAGEM - FORNEC. DE MAT. P/ ATERRO, INCLUINDO CORTE,CARGA,TRANS | E16: 63 | F16: M3 | G16: 25.3 | H16: 0 | I16: =IF(AND(J16>=0,E16<>""),IF(K16=0,J16/SUMIF(PLANILHA_TAREFA[Cód. Tarefa],MID(B16,1,IF(ISERR(FIND(".",B16,1))=TRUE,LEN(B16),FIND(".",B16,1)-1)),PLANILHA_TAREFA[Quant.]),K16/E16),K16/SUMIF(PLANILHA_TAREFA[Cód. Tarefa],MID(B16,1,IF(ISERR(FIND(".",B16,1))=TRUE,LEN(B16),FIND(".",B16,1)-1)),PLANILHA_TAREFA[Quant.])) -> 1593.9 | J16: =IF(A16=TRUE,1,0)*IF(H16>0,H16,G16)*IF(AND(E16=0,F16=""),1,E16)*SUMIF(PLANILHA_TAREFA[Cód. Tarefa],MID(B16,1,IF(ISERR(FIND(".",B16,1))=TRUE,LEN(B16),FIND(".",B16,1)-1)),PLANILHA_TAREFA[Quant.]) -> 1593.9 | K16: =IF(F16="",SUMIF(PLANILHA_TAREFA[Cód. Tarefa],"="&B16&"."&"*",PLANILHA_TAREFA[Valor Parc. Total]),0) -> 0 | L16: =SUMIF(PLANILHA_TAREFA[Cód. Tarefa],MID(B16,1,IF(ISERR(FIND(".",B16,1))=TRUE,LEN(B16),FIND(".",B16,1)-1)),PLANILHA_TAREFA[Quant.]) -> 1 | M16: =IF(F16="",IF(SUMIF(PLANILHA_TAREFA[Cód. Tarefa],"="&MID(B16,1,IF(ISEVEN(LEN(B16)),LEN(B16)-3,LEN(B16)-2))&"*",PLANILHA_TAREFA[Valor Parc. Total])=0,0,K16/SUMIF(PLANILHA_TAREFA[Cód. Tarefa],"="&MID(B16,1,IF(ISEVEN(LEN(B16)),LEN(B16)-3,LEN(B16)-2))&"*",PLANILHA_TAREFA[Valor Parc. Total])),IF(SUMIF(PLANILHA_TAREFA[Cód. Tarefa],"="&MID(B16,1,IF(ISEVEN(LEN(B16)),LEN(B16)-3,LEN(B16)-2))&"*",PLANILHA_TAREFA[Valor Parc. Total])=0,0,J16/SUMIF(PLANILHA_TAREFA[Cód. Tarefa],"="&MID(B16,1,IF(ISEVEN(LEN(B16)),LEN(B16)-3,LEN(B16)-2))&"*",PLANILHA_TAREFA[Valor Parc. Total]))) -> 0.6726367893 | N16: 0.23 | O16: 1960.497 | P16: =IF(F16="",SUMIF(PLANILHA_TAREFA[Cód. Tarefa],"="&B16&"."&"*",PLANILHA_TAREFA[Valor Parc. Total - BDI]),0) -> 0
A17: TRUE | B17: 001.02 | D17: FUNDACOES | G17: 0 | H17: 0 | I17: =IF(AND(J17>=0,E17<>""),IF(K17=0,J17/SUMIF(PLANILHA_TAREFA[Cód. Tarefa],MID(B17,1,IF(ISERR(FIND(".",B17,1))=TRUE,LEN(B17),FIND(".",B17,1)-1)),PLANILHA_TAREFA[Quant.]),K17/E17),K17/SUMIF(PLANILHA_TAREFA[Cód. Tarefa],MID(B17,1,IF(ISERR(FIND(".",B17,1))=TRUE,LEN(B17),FIND(".",B17,1)-1)),PLANILHA_TAREFA[Quant.])) -> 3849.15238 | J17: =IF(A17=TRUE,1,0)*IF(H17>0,H17,G17)*IF(AND(E17=0,F17=""),1,E17)*SUMIF(PLANILHA_TAREFA[Cód. Tarefa],MID(B17,1,IF(ISERR(FIND(".",B17,1))=TRUE,LEN(B17),FIND(".",B17,1)-1)),PLANILHA_TAREFA[Quant.]) -> 0 | K17: =IF(F17="",SUMIF(PLANILHA_TAREFA[Cód. Tarefa],"="&B17&"."&"*",PLANILHA_TAREFA[Valor Parc. Total]),0) -> 3849.15238 | L17: =SUMIF(PLANILHA_TAREFA[Cód. Tarefa],MID(B17,1,IF(ISERR(FIND(".",B17,1))=TRUE,LEN(B17),FIND(".",B17,1)-1)),PLANILHA_TAREFA[Quant.]) -> 1 | M17: =IF(F17="",IF(SUMIF(PLANILHA_TAREFA[Cód. Tarefa],"="&MID(B17,1,IF(ISEVEN(LEN(B17)),LEN(B17)-3,LEN(B17)-2))&"*",PLANILHA_TAREFA[Valor Parc. Total])=0,0,K17/SUMIF(PLANILHA_TAREFA[Cód. Tarefa],"="&MID(B17,1,IF(ISEVEN(LEN(B17)),LEN(B17)-3,LEN(B17)-2))&"*",PLANILHA_TAREFA[Valor Parc. Total])),IF(SUMIF(PLANILHA_TAREFA[Cód. Tarefa],"="&MID(B17,1,IF(ISEVEN(LEN(B17)),LEN(B17)-3,LEN(B17)-2))&"*",PLANILHA_TAREFA[Valor Parc. Total])=0,0,J17/SUMIF(PLANILHA_TAREFA[Cód. Tarefa],"="&MID(B17,1,IF(ISEVEN(LEN(B17)),LEN(B17)-3,LEN(B17)-2))&"*",PLANILHA_TAREFA[Valor Parc. Total]))) -> 0.06247199586 | N17: 0.23 | O17: 0 | P17: =IF(F17="",SUMIF(PLANILHA_TAREFA[Cód. Tarefa],"="&B17&"."&"*",PLANILHA_TAREFA[Valor Parc. Total - BDI]),0) -> 4734.457428
A18: TRUE | B18: 001.02.01 | C18: 500001 | D18: RADIER | E18: 69.37 | F18: M2 | G18: 53.41292 | H18: 0 | I18: =IF(AND(J18>=0,E18<>""),IF(K18=0,J18/SUMIF(PLANILHA_TAREFA[Cód. Tarefa],MID(B18,1,IF(ISERR(FIND(".",B18,1))=TRUE,LEN(B18),FIND(".",B18,1)-1)),PLANILHA_TAREFA[Quant.]),K18/E18),K18/SUMIF(PLANILHA_TAREFA[Cód. Tarefa],MID(B18,1,IF(ISERR(FIND(".",B18,1))=TRUE,LEN(B18),FIND(".",B18,1)-1)),PLANILHA_TAREFA[Quant.])) -> 3705.25426 | J18: =IF(A18=TRUE,1,0)*IF(H18>0,H18,G18)*IF(AND(E18=0,F18=""),1,E18)*SUMIF(PLANILHA_TAREFA[Cód. Tarefa],MID(B18,1,IF(ISERR(FIND(".",B18,1))=TRUE,LEN(B18),FIND(".",B18,1)-1)),PLANILHA_TAREFA[Quant.]) -> 3705.25426 | K18: =IF(F18="",SUMIF(PLANILHA_TAREFA[Cód. Tarefa],"="&B18&"."&"*",PLANILHA_TAREFA[Valor Parc. Total]),0) -> 0 | L18: =SUMIF(PLANILHA_TAREFA[Cód. Tarefa],MID(B18,1,IF(ISERR(FIND(".",B18,1))=TRUE,LEN(B18),FIND(".",B18,1)-1)),PLANILHA_TAREFA[Quant.]) -> 1 | M18: =IF(F18="",IF(SUMIF(PLANILHA_TAREFA[Cód. Tarefa],"="&MID(B18,1,IF(ISEVEN(LEN(B18)),LEN(B18)-3,LEN(B18)-2))&"*",PLANILHA_TAREFA[Valor Parc. Total])=0,0,K18/SUMIF(PLANILHA_TAREFA[Cód. Tarefa],"="&MID(B18,1,IF(ISEVEN(LEN(B18)),LEN(B18)-3,LEN(B18)-2))&"*",PLANILHA_TAREFA[Valor Parc. Total])),IF(SUMIF(PLANILHA_TAREFA[Cód. Tarefa],"="&MID(B18,1,IF(ISEVEN(LEN(B18)),LEN(B18)-3,LEN(B18)-2))&"*",PLANILHA_TAREFA[Valor Parc. Total])=0,0,J18/SUMIF(PLANILHA_TAREFA[Cód. Tarefa],"="&MID(B18,1,IF(ISEVEN(LEN(B18)),LEN(B18)-3,LEN(B18)-2))&"*",PLANILHA_TAREFA[Valor Parc. Total]))) -> 0.9626156344 | N18: 0.23 | O18: 4557.46274 | P18: =IF(F18="",SUMIF(PLANILHA_TAREFA[Cód. Tarefa],"="&B18&"."&"*",PLANILHA_TAREFA[Valor Parc. Total - BDI]),0) -> 0
A19: TRUE | B19: 001.02.02 | C19: 500015 | D19: ARMACAO ACO CA-50 MEDIA | E19: 23 | F19: KG | G19: 6.25644 | H19: 0 | I19: =IF(AND(J19>=0,E19<>""),IF(K19=0,J19/SUMIF(PLANILHA_TAREFA[Cód. Tarefa],MID(B19,1,IF(ISERR(FIND(".",B19,1))=TRUE,LEN(B19),FIND(".",B19,1)-1)),PLANILHA_TAREFA[Quant.]),K19/E19),K19/SUMIF(PLANILHA_TAREFA[Cód. Tarefa],MID(B19,1,IF(ISERR(FIND(".",B19,1))=TRUE,LEN(B19),FIND(".",B19,1)-1)),PLANILHA_TAREFA[Quant.])) -> 143.89812 | J19: =IF(A19=TRUE,1,0)*IF(H19>0,H19,G19)*IF(AND(E19=0,F19=""),1,E19)*SUMIF(PLANILHA_TAREFA[Cód. Tarefa],MID(B19,1,IF(ISERR(FIND(".",B19,1))=TRUE,LEN(B19),FIND(".",B19,1)-1)),PLANILHA_TAREFA[Quant.]) -> 143.89812 | K19: =IF(F19="",SUMIF(PLANILHA_TAREFA[Cód. Tarefa],"="&B19&"."&"*",PLANILHA_TAREFA[Valor Parc. Total]),0) -> 0 | L19: =SUMIF(PLANILHA_TAREFA[Cód. Tarefa],MID(B19,1,IF(ISERR(FIND(".",B19,1))=TRUE,LEN(B19),FIND(".",B19,1)-1)),PLANILHA_TAREFA[Quant.]) -> 1 | M19: =IF(F19="",IF(SUMIF(PLANILHA_TAREFA[Cód. Tarefa],"="&MID(B19,1,IF(ISEVEN(LEN(B19)),LEN(B19)-3,LEN(B19)-2))&"*",PLANILHA_TAREFA[Valor Parc. Total])=0,0,K19/SUMIF(PLANILHA_TAREFA[Cód. Tarefa],"="&MID(B19,1,IF(ISEVEN(LEN(B19)),LEN(B19)-3,LEN(B19)-2))&"*",PLANILHA_TAREFA[Valor Parc. Total])),IF(SUMIF(PLANILHA_TAREFA[Cód. Tarefa],"="&MID(B19,1,IF(ISEVEN(LEN(B19)),LEN(B19)-3,LEN(B19)-2))&"*",PLANILHA_TAREFA[Valor Parc. Total])=0,0,J19/SUMIF(PLANILHA_TAREFA[Cód. Tarefa],"="&MID(B19,1,IF(ISEVEN(LEN(B19)),LEN(B19)-3,LEN(B19)-2))&"*",PLANILHA_TAREFA[Valor Parc. Total]))) -> 0.03738436564 | N19: 0.23 | O19: 176.9946876 | P19: =IF(F19="",SUMIF(PLANILHA_TAREFA[Cód. Tarefa],"="&B19&"."&"*",PLANILHA_TAREFA[Valor Parc. Total - BDI]),0) -> 0
A20: TRUE | B20: 001.03 | D20: ESTRUTURA | G20: 0 | H20: 0 | I20: =IF(AND(J20>=0,E20<>""),IF(K20=0,J20/SUMIF(PLANILHA_TAREFA[Cód. Tarefa],MID(B20,1,IF(ISERR(FIND(".",B20,1))=TRUE,LEN(B20),FIND(".",B20,1)-1)),PLANILHA_TAREFA[Quant.]),K20/E20),K20/SUMIF(PLANILHA_TAREFA[Cód. Tarefa],MID(B20,1,IF(ISERR(FIND(".",B20,1))=TRUE,LEN(B20),FIND(".",B20,1)-1)),PLANILHA_TAREFA[Quant.])) -> 6371.598019 | J20: =IF(A20=TRUE,1,0)*IF(H20>0,H20,G20)*IF(AND(E20=0,F20=""),1,E20)*SUMIF(PLANILHA_TAREFA[Cód. Tarefa],MID(B20,1,IF(ISERR(FIND(".",B20,1))=TRUE,LEN(B20),FIND(".",B20,1)-1)),PLANILHA_TAREFA[Quant.]) -> 0 | K20: =IF(F20="",SUMIF(PLANILHA_TAREFA[Cód. Tarefa],"="&B20&"."&"*",PLANILHA_TAREFA[Valor Parc. Total]),0) -> 6371.598019 | L20: =SUMIF(PLANILHA_TAREFA[Cód. Tarefa],MID(B20,1,IF(ISERR(FIND(".",B20,1))=TRUE,LEN(B20),FIND(".",B20,1)-1)),PLANILHA_TAREFA[Quant.]) -> 1 | M20: =IF(F20="",IF(SUMIF(PLANILHA_TAREFA[Cód. Tarefa],"="&MID(B20,1,IF(ISEVEN(LEN(B20)),LEN(B20)-3,LEN(B20)-2))&"*",PLANILHA_TAREFA[Valor Parc. Total])=0,0,K20/SUMIF(PLANILHA_TAREFA[Cód. Tarefa],"="&MID(B20,1,IF(ISEVEN(LEN(B20)),LEN(B20)-3,LEN(B20)-2))&"*",PLANILHA_TAREFA[Valor Parc. Total])),IF(SUMIF(PLANILHA_TAREFA[Cód. Tarefa],"="&MID(B20,1,IF(ISEVEN(LEN(B20)),LEN(B20)-3,LEN(B20)-2))&"*",PLANILHA_TAREFA[Valor Parc. Total])=0,0,J20/SUMIF(PLANILHA_TAREFA[Cód. Tarefa],"="&MID(B20,1,IF(ISEVEN(LEN(B20)),LEN(B20)-3,LEN(B20)-2))&"*",PLANILHA_TAREFA[Valor Parc. Total]))) -> 0.1034114542 | N20: 0.23 | O20: 0 | P20: =IF(F20="",SUMIF(PLANILHA_TAREFA[Cód. Tarefa],"="&B20&"."&"*",PLANILHA_TAREFA[Valor Parc. Total - BDI]),0) -> 7837.065564
A21: TRUE | B21: 001.03.01 | C21: 002953 | D21: CONCRETO USINADO 20,0 MPA SLUMP CONVENCIONAL C/ LANCAMENTO | E21: 1.92 | F21: M3 | G21: 337.4595 | H21: 0 | I21: =IF(AND(J21>=0,E21<>""),IF(K21=0,J21/SUMIF(PLANILHA_TAREFA[Cód. Tarefa],MID(B21,1,IF(ISERR(FIND(".",B21,1))=TRUE,LEN(B21),FIND(".",B21,1)-1)),PLANILHA_TAREFA[Quant.]),K21/E21),K21/SUMIF(PLANILHA_TAREFA[Cód. Tarefa],MID(B21,1,IF(ISERR(FIND(".",B21,1))=TRUE,LEN(B21),FIND(".",B21,1)-1)),PLANILHA_TAREFA[Quant.])) -> 647.92224 | J21: =IF(A21=TRUE,1,0)*IF(H21>0,H21,G21)*IF(AND(E21=0,F21=""),1,E21)*SUMIF(PLANILHA_TAREFA[Cód. Tarefa],MID(B21,1,IF(ISERR(FIND(".",B21,1))=TRUE,LEN(B21),FIND(".",B21,1)-1)),PLANILHA_TAREFA[Quant.]) -> 647.92224 | K21: =IF(F21="",SUMIF(PLANILHA_TAREFA[Cód. Tarefa],"="&B21&"."&"*",PLANILHA_TAREFA[Valor Parc. Total]),0) -> 0 | L21: =SUMIF(PLANILHA_TAREFA[Cód. Tarefa],MID(B21,1,IF(ISERR(FIND(".",B21,1))=TRUE,LEN(B21),FIND(".",B21,1)-1)),PLANILHA_TAREFA[Quant.]) -> 1 | M21: =IF(F21="",IF(SUMIF(PLANILHA_TAREFA[Cód. Tarefa],"="&MID(B21,1,IF(ISEVEN(LEN(B21)),LEN(B21)-3,LEN(B21)-2))&"*",PLANILHA_TAREFA[Valor Parc. Total])=0,0,K21/SUMIF(PLANILHA_TAREFA[Cód. Tarefa],"="&MID(B21,1,IF(ISEVEN(LEN(B21)),LEN(B21)-3,LEN(B21)-2))&"*",PLANILHA_TAREFA[Valor Parc. Total])),IF(SUMIF(PLANILHA_TAREFA[Cód. Tarefa],"="&MID(B21,1,IF(ISEVEN(LEN(B21)),LEN(B21)-3,LEN(B21)-2))&"*",PLANILHA_TAREFA[Valor Parc. Total])=0,0,J21/SUMIF(PLANILHA_TAREFA[Cód. Tarefa],"="&MID(B21,1,IF(ISEVEN(LEN(B21)),LEN(B21)-3,LEN(B21)-2))&"*",PLANILHA_TAREFA[Valor Parc. Total]))) -> 0.101689127 | N21: 0.23 | O21: 796.9443552 | P21: =IF(F21="",SUMIF(PLANILHA_TAREFA[Cód. Tarefa],"="&B21&"."&"*",PLANILHA_TAREFA[Valor Parc. Total - BDI]),0) -> 0
A22: TRUE | B22: 001.03.02 | C22: 500015 | D22: ARMACAO ACO CA-50 MEDIA | E22: 221 | F22: KG | G22: 6.25644 | H22: 0 | I22: =IF(AND(J22>=0,E22<>""),IF(K22=0,J22/SUMIF(PLANILHA_TAREFA[Cód. Tarefa],MID(B22,1,IF(ISERR(FIND(".",B22,1))=TRUE,LEN(B22),FIND(".",B22,1)-1)),PLANILHA_TAREFA[Quant.]),K22/E22),K22/SUMIF(PLANILHA_TAREFA[Cód. Tarefa],MID(B22,1,IF(ISERR(FIND(".",B22,1))=TRUE,LEN(B22),FIND(".",B22,1)-1)),PLANILHA_TAREFA[Quant.])) -> 1382.67324 | J22: =IF(A22=TRUE,1,0)*IF(H22>0,H22,G22)*IF(AND(E22=0,F22=""),1,E22)*SUMIF(PLANILHA_TAREFA[Cód. Tarefa],MID(B22,1,IF(ISERR(FIND(".",B22,1))=TRUE,LEN(B22),FIND(".",B22,1)-1)),PLANILHA_TAREFA[Quant.]) -> 1382.67324 | K22: =IF(F22="",SUMIF(PLANILHA_TAREFA[Cód. Tarefa],"="&B22&"."&"*",PLANILHA_TAREFA[Valor Parc. Total]),0) -> 0 | L22: =SUMIF(PLANILHA_TAREFA[Cód. Tarefa],MID(B22,1,IF(ISERR(FIND(".",B22,1))=TRUE,LEN(B22),FIND(".",B22,1)-1)),PLANILHA_TAREFA[Quant.]) -> 1 | M22: =IF(F22="",IF(SUMIF(PLANILHA_TAREFA[Cód. Tarefa],"="&MID(B22,1,IF(ISEVEN(LEN(B22)),LEN(B22)-3,LEN(B22)-2))&"*",PLANILHA_TAREFA[Valor Parc. Total])=0,0,K22/SUMIF(PLANILHA_TAREFA[Cód. Tarefa],"="&MID(B22,1,IF(ISEVEN(LEN(B22)),LEN(B22)-3,LEN(B22)-2))&"*",PLANILHA_TAREFA[Valor Parc. Total])),IF(SUMIF(PLANILHA_TAREFA[Cód. Tarefa],"="&MID(B22,1,IF(ISEVEN(LEN(B22)),LEN(B22)-3,LEN(B22)-2))&"*",PLANILHA_TAREFA[Valor Parc. Total])=0,0,J22/SUMIF(PLANILHA_TAREFA[Cód. Tarefa],"="&MID(B22,1,IF(ISEVEN(LEN(B22)),LEN(B22)-3,LEN(B22)-2))&"*",PLANILHA_TAREFA[Valor Parc. Total]))) -> 0.2170057238 | N22: 0.23 | O22: 1700.688085 | P22: =IF(F22="",SUMIF(PLANILHA_TAREFA[Cód. Tarefa],"="&B22&"."&"*",PLANILHA_TAREFA[Valor Parc. Total - BDI]),0) -> 0
A23: TRUE | B23: 001.03.03 | C23: 500016 | D23: LAJE DE FORRO PRE-FABRICADA | E23: 52.57 | F23: M2 | G23: 59.88816 | H23: 0 | I23: =IF(AND(J23>=0,E23<>""),IF(K23=0,J23/SUMIF(PLANILHA_TAREFA[Cód. Tarefa],MID(B23,1,IF(ISERR(FIND(".",B23,1))=TRUE,LEN(B23),FIND(".",B23,1)-1)),PLANILHA_TAREFA[Quant.]),K23/E23),K23/SUMIF(PLANILHA_TAREFA[Cód. Tarefa],MID(B23,1,IF(ISERR(FIND(".",B23,1))=TRUE,LEN(B23),FIND(".",B23,1)-1)),PLANILHA_TAREFA[Quant.])) -> 3148.320571 | J23: =IF(A23=TRUE,1,0)*IF(H23>0,H23,G23)*IF(AND(E23=0,F23=""),1,E23)*SUMIF(PLANILHA_TAREFA[Cód. Tarefa],MID(B23,1,IF(ISERR(FIND(".",B23,1))=TRUE,LEN(B23),FIND(".",B23,1)-1)),PLANILHA_TAREFA[Quant.]) -> 3148.320571 | K23: =IF(F23="",SUMIF(PLANILHA_TAREFA[Cód. Tarefa],"="&B23&"."&"*",PLANILHA_TAREFA[Valor Parc. Total]),0) -> 0 | L23: =SUMIF(PLANILHA_TAREFA[Cód. Tarefa],MID(B23,1,IF(ISERR(FIND(".",B23,1))=TRUE,LEN(B23),FIND(".",B23,1)-1)),PLANILHA_TAREFA[Quant.]) -> 1 | M23: =IF(F23="",IF(SUMIF(PLANILHA_TAREFA[Cód. Tarefa],"="&MID(B23,1,IF(ISEVEN(LEN(B23)),LEN(B23)-3,LEN(B23)-2))&"*",PLANILHA_TAREFA[Valor Parc. Total])=0,0,K23/SUMIF(PLANILHA_TAREFA[Cód. Tarefa],"="&MID(B23,1,IF(ISEVEN(LEN(B23)),LEN(B23)-3,LEN(B23)-2))&"*",PLANILHA_TAREFA[Valor Parc. Total])),IF(SUMIF(PLANILHA_TAREFA[Cód. Tarefa],"="&MID(B23,1,IF(ISEVEN(LEN(B23)),LEN(B23)-3,LEN(B23)-2))&"*",PLANILHA_TAREFA[Valor Parc. Total])=0,0,J23/SUMIF(PLANILHA_TAREFA[Cód. Tarefa],"="&MID(B23,1,IF(ISEVEN(LEN(B23)),LEN(B23)-3,LEN(B23)-2))&"*",PLANILHA_TAREFA[Valor Parc. Total]))) -> 0.4941178903 | N23: 0.23 | O23: 3872.434303 | P23: =IF(F23="",SUMIF(PLANILHA_TAREFA[Cód. Tarefa],"="&B23&"."&"*",PLANILHA_TAREFA[Valor Parc. Total - BDI]),0) -> 0
A24: TRUE | B24: 001.03.04 | C24: 402485 | D24: FORMA DE COMPENSADO PLASTIFICADO 18,0 MM | E24: 23.83 | F24: M2 | G24: 50.0496 | H24: 0 | I24: =IF(AND(J24>=0,E24<>""),IF(K24=0,J24/SUMIF(PLANILHA_TAREFA[Cód. Tarefa],MID(B24,1,IF(ISERR(FIND(".",B24,1))=TRUE,LEN(B24),FIND(".",B24,1)-1)),PLANILHA_TAREFA[Quant.]),K24/E24),K24/SUMIF(PLANILHA_TAREFA[Cód. Tarefa],MID(B24,1,IF(ISERR(FIND(".",B24,1))=TRUE,LEN(B24),FIND(".",B24,1)-1)),PLANILHA_TAREFA[Quant.])) -> 1192.681968 | J24: =IF(A24=TRUE,1,0)*IF(H24>0,H24,G24)*IF(AND(E24=0,F24=""),1,E24)*SUMIF(PLANILHA_TAREFA[Cód. Tarefa],MID(B24,1,IF(ISERR(FIND(".",B24,1))=TRUE,LEN(B24),FIND(".",B24,1)-1)),PLANILHA_TAREFA[Quant.]) -> 1192.681968 | K24: =IF(F24="",SUMIF(PLANILHA_TAREFA[Cód. Tarefa],"="&B24&"."&"*",PLANILHA_TAREFA[Valor Parc. Total]),0) -> 0 | L24: =SUMIF(PLANILHA_TAREFA[Cód. Tarefa],MID(B24,1,IF(ISERR(FIND(".",B24,1))=TRUE,LEN(B24),FIND(".",B24,1)-1)),PLANILHA_TAREFA[Quant.]) -> 1 | M24: =IF(F24="",IF(SUMIF(PLANILHA_TAREFA[Cód. Tarefa],"="&MID(B24,1,IF(ISEVEN(LEN(B24)),LEN(B24)-3,LEN(B24)-2))&"*",PLANILHA_TAREFA[Valor Parc. Total])=0,0,K24/SUMIF(PLANILHA_TAREFA[Cód. Tarefa],"="&MID(B24,1,IF(ISEVEN(LEN(B24)),LEN(B24)-3,LEN(B24)-2))&"*",PLANILHA_TAREFA[Valor Parc. Total])),IF(SUMIF(PLANILHA_TAREFA[Cód. Tarefa],"="&MID(B24,1,IF(ISEVEN(LEN(B24)),LEN(B24)-3,LEN(B24)-2))&"*",PLANILHA_TAREFA[Valor Parc. Total])=0,0,J24/SUMIF(PLANILHA_TAREFA[Cód. Tarefa],"="&MID(B24,1,IF(ISEVEN(LEN(B24)),LEN(B24)-3,LEN(B24)-2))&"*",PLANILHA_TAREFA[Valor Parc. Total]))) -> 0.1871872589 | N24: 0.23 | O24: 1466.998821 | P24: =IF(F24="",SUMIF(PLANILHA_TAREFA[Cód. Tarefa],"="&B24&"."&"*",PLANILHA_TAREFA[Valor Parc. Total - BDI]),0) -> 0
A25: TRUE | B25: 001.04 | D25: ALVENARIA | G25: 0 | H25: 0 | I25: =IF(AND(J25>=0,E25<>""),IF(K25=0,J25/SUMIF(PLANILHA_TAREFA[Cód. Tarefa],MID(B25,1,IF(ISERR(FIND(".",B25,1))=TRUE,LEN(B25),FIND(".",B25,1)-1)),PLANILHA_TAREFA[Quant.]),K25/E25),K25/SUMIF(PLANILHA_TAREFA[Cód. Tarefa],MID(B25,1,IF(ISERR(FIND(".",B25,1))=TRUE,LEN(B25),FIND(".",B25,1)-1)),PLANILHA_TAREFA[Quant.])) -> 9506.479508 | J25: =IF(A25=TRUE,1,0)*IF(H25>0,H25,G25)*IF(AND(E25=0,F25=""),1,E25)*SUMIF(PLANILHA_TAREFA[Cód. Tarefa],MID(B25,1,IF(ISERR(FIND(".",B25,1))=TRUE,LEN(B25),FIND(".",B25,1)-1)),PLANILHA_TAREFA[Quant.]) -> 0 | K25: =IF(F25="",SUMIF(PLANILHA_TAREFA[Cód. Tarefa],"="&B25&"."&"*",PLANILHA_TAREFA[Valor Parc. Total]),0) -> 9506.479508 | L25: =SUMIF(PLANILHA_TAREFA[Cód. Tarefa],MID(B25,1,IF(ISERR(FIND(".",B25,1))=TRUE,LEN(B25),FIND(".",B25,1)-1)),PLANILHA_TAREFA[Quant.]) -> 1 | M25: =IF(F25="",IF(SUMIF(PLANILHA_TAREFA[Cód. Tarefa],"="&MID(B25,1,IF(ISEVEN(LEN(B25)),LEN(B25)-3,LEN(B25)-2))&"*",PLANILHA_TAREFA[Valor Parc. Total])=0,0,K25/SUMIF(PLANILHA_TAREFA[Cód. Tarefa],"="&MID(B25,1,IF(ISEVEN(LEN(B25)),LEN(B25)-3,LEN(B25)-2))&"*",PLANILHA_TAREFA[Valor Parc. Total])),IF(SUMIF(PLANILHA_TAREFA[Cód. Tarefa],"="&MID(B25,1,IF(ISEVEN(LEN(B25)),LEN(B25)-3,LEN(B25)-2))&"*",PLANILHA_TAREFA[Valor Parc. Total])=0,0,J25/SUMIF(PLANILHA_TAREFA[Cód. Tarefa],"="&MID(B25,1,IF(ISEVEN(LEN(B25)),LEN(B25)-3,LEN(B25)-2))&"*",PLANILHA_TAREFA[Valor Parc. Total]))) -> 0.1542907866 | N25: 0.23 | O25: 0 | P25: =IF(F25="",SUMIF(PLANILHA_TAREFA[Cód. Tarefa],"="&B25&"."&"*",PLANILHA_TAREFA[Valor Parc. Total - BDI]),0) -> 11692.96979
A26: TRUE | B26: 001.04.01 | C26: 000780 | D26: ALVENARIA BLOCO DE CONCRETO VEDACAO - E=14,0 CM - C=39,0 CM - 03,0 MPA | E26: 175.64 | F26: M2 | G26: 50.7163 | H26: 0 | I26: =IF(AND(J26>=0,E26<>""),IF(K26=0,J26/SUMIF(PLANILHA_TAREFA[Cód. Tarefa],MID(B26,1,IF(ISERR(FIND(".",B26,1))=TRUE,LEN(B26),FIND(".",B26,1)-1)),PLANILHA_TAREFA[Quant.]),K26/E26),K26/SUMIF(PLANILHA_TAREFA[Cód. Tarefa],MID(B26,1,IF(ISERR(FIND(".",B26,1))=TRUE,LEN(B26),FIND(".",B26,1)-1)),PLANILHA_TAREFA[Quant.])) -> 8907.810932 | J26: =IF(A26=TRUE,1,0)*IF(H26>0,H26,G26)*IF(AND(E26=0,F26=""),1,E26)*SUMIF(PLANILHA_TAREFA[Cód. Tarefa],MID(B26,1,IF(ISERR(FIND(".",B26,1))=TRUE,LEN(B26),FIND(".",B26,1)-1)),PLANILHA_TAREFA[Quant.]) -> 8907.810932 | K26: =IF(F26="",SUMIF(PLANILHA_TAREFA[Cód. Tarefa],"="&B26&"."&"*",PLANILHA_TAREFA[Valor Parc. Total]),0) -> 0 | L26: =SUMIF(PLANILHA_TAREFA[Cód. Tarefa],MID(B26,1,IF(ISERR(FIND(".",B26,1))=TRUE,LEN(B26),FIND(".",B26,1)-1)),PLANILHA_TAREFA[Quant.]) -> 1 | M26: =IF(F26="",IF(SUMIF(PLANILHA_TAREFA[Cód. Tarefa],"="&MID(B26,1,IF(ISEVEN(LEN(B26)),LEN(B26)-3,LEN(B26)-2))&"*",PLANILHA_TAREFA[Valor Parc. Total])=0,0,K26/SUMIF(PLANILHA_TAREFA[Cód. Tarefa],"="&MID(B26,1,IF(ISEVEN(LEN(B26)),LEN(B26)-3,LEN(B26)-2))&"*",PLANILHA_TAREFA[Valor Parc. Total])),IF(SUMIF(PLANILHA_TAREFA[Cód. Tarefa],"="&MID(B26,1,IF(ISEVEN(LEN(B26)),LEN(B26)-3,LEN(B26)-2))&"*",PLANILHA_TAREFA[Valor Parc. Total])=0,0,J26/SUMIF(PLANILHA_TAREFA[Cód. Tarefa],"="&MID(B26,1,IF(ISEVEN(LEN(B26)),LEN(B26)-3,LEN(B26)-2))&"*",PLANILHA_TAREFA[Valor Parc. Total]))) -> 0.9370252073 | N26: 0.23 | O26: 10956.60745 | P26: =IF(F26="",SUMIF(PLANILHA_TAREFA[Cód. Tarefa],"="&B26&"."&"*",PLANILHA_TAREFA[Valor Parc. Total - BDI]),0) -> 0
A27: TRUE | B27: 001.04.02 | C27: 000820 | D27: ALVENARIA BLOCO DE CONCRETO CANALETA VEDACAO - E=14,0 CM - C=39,0 CM - 03,0 MPA | E27: 10.38 | F27: M2 | G27: 57.6752 | H27: 0 | I27: =IF(AND(J27>=0,E27<>""),IF(K27=0,J27/SUMIF(PLANILHA_TAREFA[Cód. Tarefa],MID(B27,1,IF(ISERR(FIND(".",B27,1))=TRUE,LEN(B27),FIND(".",B27,1)-1)),PLANILHA_TAREFA[Quant.]),K27/E27),K27/SUMIF(PLANILHA_TAREFA[Cód. Tarefa],MID(B27,1,IF(ISERR(FIND(".",B27,1))=TRUE,LEN(B27),FIND(".",B27,1)-1)),PLANILHA_TAREFA[Quant.])) -> 598.668576 | J27: =IF(A27=TRUE,1,0)*IF(H27>0,H27,G27)*IF(AND(E27=0,F27=""),1,E27)*SUMIF(PLANILHA_TAREFA[Cód. Tarefa],MID(B27,1,IF(ISERR(FIND(".",B27,1))=TRUE,LEN(B27),FIND(".",B27,1)-1)),PLANILHA_TAREFA[Quant.]) -> 598.668576 | K27: =IF(F27="",SUMIF(PLANILHA_TAREFA[Cód. Tarefa],"="&B27&"."&"*",PLANILHA_TAREFA[Valor Parc. Total]),0) -> 0 | L27: =SUMIF(PLANILHA_TAREFA[Cód. Tarefa],MID(B27,1,IF(ISERR(FIND(".",B27,1))=TRUE,LEN(B27),FIND(".",B27,1)-1)),PLANILHA_TAREFA[Quant.]) -> 1 | M27: =IF(F27="",IF(SUMIF(PLANILHA_TAREFA[Cód. Tarefa],"="&MID(B27,1,IF(ISEVEN(LEN(B27)),LEN(B27)-3,LEN(B27)-2))&"*",PLANILHA_TAREFA[Valor Parc. Total])=0,0,K27/SUMIF(PLANILHA_TAREFA[Cód. Tarefa],"="&MID(B27,1,IF(ISEVEN(LEN(B27)),LEN(B27)-3,LEN(B27)-2))&"*",PLANILHA_TAREFA[Valor Parc. Total])),IF(SUMIF(PLANILHA_TAREFA[Cód. Tarefa],"="&MID(B27,1,IF(ISEVEN(LEN(B27)),LEN(B27)-3,LEN(B27)-2))&"*",PLANILHA_TAREFA[Valor Parc. Total])=0,0,J27/SUMIF(PLANILHA_TAREFA[Cód. Tarefa],"="&MID(B27,1,IF(ISEVEN(LEN(B27)),LEN(B27)-3,LEN(B27)-2))&"*",PLANILHA_TAREFA[Valor Parc. Total]))) -> 0.06297479267 | N27: 0.23 | O27: 736.3623485 | P27: =IF(F27="",SUMIF(PLANILHA_TAREFA[Cód. Tarefa],"="&B27&"."&"*",PLANILHA_TAREFA[Valor Parc. Total - BDI]),0) -> 0
A28: TRUE | B28: 001.05 | D28: COBERTURA | G28: 0 | H28: 0 | I28: =IF(AND(J28>=0,E28<>""),IF(K28=0,J28/SUMIF(PLANILHA_TAREFA[Cód. Tarefa],MID(B28,1,IF(ISERR(FIND(".",B28,1))=TRUE,LEN(B28),FIND(".",B28,1)-1)),PLANILHA_TAREFA[Quant.]),K28/E28),K28/SUMIF(PLANILHA_TAREFA[Cód. Tarefa],MID(B28,1,IF(ISERR(FIND(".",B28,1))=TRUE,LEN(B28),FIND(".",B28,1)-1)),PLANILHA_TAREFA[Quant.])) -> 7330.915729 | J28: =IF(A28=TRUE,1,0)*IF(H28>0,H28,G28)*IF(AND(E28=0,F28=""),1,E28)*SUMIF(PLANILHA_TAREFA[Cód. Tarefa],MID(B28,1,IF(ISERR(FIND(".",B28,1))=TRUE,LEN(B28),FIND(".",B28,1)-1)),PLANILHA_TAREFA[Quant.]) -> 0 | K28: =IF(F28="",SUMIF(PLANILHA_TAREFA[Cód. Tarefa],"="&B28&"."&"*",PLANILHA_TAREFA[Valor Parc. Total]),0) -> 7330.915729 | L28: =SUMIF(PLANILHA_TAREFA[Cód. Tarefa],MID(B28,1,IF(ISERR(FIND(".",B28,1))=TRUE,LEN(B28),FIND(".",B28,1)-1)),PLANILHA_TAREFA[Quant.]) -> 1 | M28: =IF(F28="",IF(SUMIF(PLANILHA_TAREFA[Cód. Tarefa],"="&MID(B28,1,IF(ISEVEN(LEN(B28)),LEN(B28)-3,LEN(B28)-2))&"*",PLANILHA_TAREFA[Valor Parc. Total])=0,0,K28/SUMIF(PLANILHA_TAREFA[Cód. Tarefa],"="&MID(B28,1,IF(ISEVEN(LEN(B28)),LEN(B28)-3,LEN(B28)-2))&"*",PLANILHA_TAREFA[Valor Parc. Total])),IF(SUMIF(PLANILHA_TAREFA[Cód. Tarefa],"="&MID(B28,1,IF(ISEVEN(LEN(B28)),LEN(B28)-3,LEN(B28)-2))&"*",PLANILHA_TAREFA[Valor Parc. Total])=0,0,J28/SUMIF(PLANILHA_TAREFA[Cód. Tarefa],"="&MID(B28,1,IF(ISEVEN(LEN(B28)),LEN(B28)-3,LEN(B28)-2))&"*",PLANILHA_TAREFA[Valor Parc. Total]))) -> 0.1189812436 | N28: 0.23 | O28: 0 | P28: =IF(F28="",SUMIF(PLANILHA_TAREFA[Cód. Tarefa],"="&B28&"."&"*",PLANILHA_TAREFA[Valor Parc. Total - BDI]),0) -> 9017.026346
A29: TRUE | B29: 001.05.01 | C29: 611154 | D29: ESTRUTURA METALICA P/ TELHA CERAMICA (EQUIP. COMUNITARIOS) | E29: 56.03 | F29: M2 | G29: 80 | H29: 0 | I29: =IF(AND(J29>=0,E29<>""),IF(K29=0,J29/SUMIF(PLANILHA_TAREFA[Cód. Tarefa],MID(B29,1,IF(ISERR(FIND(".",B29,1))=TRUE,LEN(B29),FIND(".",B29,1)-1)),PLANILHA_TAREFA[Quant.]),K29/E29),K29/SUMIF(PLANILHA_TAREFA[Cód. Tarefa],MID(B29,1,IF(ISERR(FIND(".",B29,1))=TRUE,LEN(B29),FIND(".",B29,1)-1)),PLANILHA_TAREFA[Quant.])) -> 4482.4 | J29: =IF(A29=TRUE,1,0)*IF(H29>0,H29,G29)*IF(AND(E29=0,F29=""),1,E29)*SUMIF(PLANILHA_TAREFA[Cód. Tarefa],MID(B29,1,IF(ISERR(FIND(".",B29,1))=TRUE,LEN(B29),FIND(".",B29,1)-1)),PLANILHA_TAREFA[Quant.]) -> 4482.4 | K29: =IF(F29="",SUMIF(PLANILHA_TAREFA[Cód. Tarefa],"="&B29&"."&"*",PLANILHA_TAREFA[Valor Parc. Total]),0) -> 0 | L29: =SUMIF(PLANILHA_TAREFA[Cód. Tarefa],MID(B29,1,IF(ISERR(FIND(".",B29,1))=TRUE,LEN(B29),FIND(".",B29,1)-1)),PLANILHA_TAREFA[Quant.]) -> 1 | M29: =IF(F29="",IF(SUMIF(PLANILHA_TAREFA[Cód. Tarefa],"="&MID(B29,1,IF(ISEVEN(LEN(B29)),LEN(B29)-3,LEN(B29)-2))&"*",PLANILHA_TAREFA[Valor Parc. Total])=0,0,K29/SUMIF(PLANILHA_TAREFA[Cód. Tarefa],"="&MID(B29,1,IF(ISEVEN(LEN(B29)),LEN(B29)-3,LEN(B29)-2))&"*",PLANILHA_TAREFA[Valor Parc. Total])),IF(SUMIF(PLANILHA_TAREFA[Cód. Tarefa],"="&MID(B29,1,IF(ISEVEN(LEN(B29)),LEN(B29)-3,LEN(B29)-2))&"*",PLANILHA_TAREFA[Valor Parc. Total])=0,0,J29/SUMIF(PLANILHA_TAREFA[Cód. Tarefa],"="&MID(B29,1,IF(ISEVEN(LEN(B29)),LEN(B29)-3,LEN(B29)-2))&"*",PLANILHA_TAREFA[Valor Parc. Total]))) -> 0.6114379384 | N29: 0.23 | O29: 5513.352 | P29: =IF(F29="",SUMIF(PLANILHA_TAREFA[Cód. Tarefa],"="&B29&"."&"*",PLANILHA_TAREFA[Valor Parc. Total - BDI]),0) -> 0
A30: TRUE | B30: 001.05.02 | C30: 402096 | D30: TELHA DE FIBROCIMENTO ONDULADA - E = 05,0 MM | E30: 56.03 | F30: M2 | G30: 19.23896 | H30: 0 | I30: =IF(AND(J30>=0,E30<>""),IF(K30=0,J30/SUMIF(PLANILHA_TAREFA[Cód. Tarefa],MID(B30,1,IF(ISERR(FIND(".",B30,1))=TRUE,LEN(B30),FIND(".",B30,1)-1)),PLANILHA_TAREFA[Quant.]),K30/E30),K30/SUMIF(PLANILHA_TAREFA[Cód. Tarefa],MID(B30,1,IF(ISERR(FIND(".",B30,1))=TRUE,LEN(B30),FIND(".",B30,1)-1)),PLANILHA_TAREFA[Quant.])) -> 1077.958929 | J30: =IF(A30=TRUE,1,0)*IF(H30>0,H30,G30)*IF(AND(E30=0,F30=""),1,E30)*SUMIF(PLANILHA_TAREFA[Cód. Tarefa],MID(B30,1,IF(ISERR(FIND(".",B30,1))=TRUE,LEN(B30),FIND(".",B30,1)-1)),PLANILHA_TAREFA[Quant.]) -> 1077.958929 | K30: =IF(F30="",SUMIF(PLANILHA_TAREFA[Cód. Tarefa],"="&B30&"."&"*",PLANILHA_TAREFA[Valor Parc. Total]),0) -> 0 | L30: =SUMIF(PLANILHA_TAREFA[Cód. Tarefa],MID(B30,1,IF(ISERR(FIND(".",B30,1))=TRUE,LEN(B30),FIND(".",B30,1)-1)),PLANILHA_TAREFA[Quant.]) -> 1 | M30: =IF(F30="",IF(SUMIF(PLANILHA_TAREFA[Cód. Tarefa],"="&MID(B30,1,IF(ISEVEN(LEN(B30)),LEN(B30)-3,LEN(B30)-2))&"*",PLANILHA_TAREFA[Valor Parc. Total])=0,0,K30/SUMIF(PLANILHA_TAREFA[Cód. Tarefa],"="&MID(B30,1,IF(ISEVEN(LEN(B30)),LEN(B30)-3,LEN(B30)-2))&"*",PLANILHA_TAREFA[Valor Parc. Total])),IF(SUMIF(PLANILHA_TAREFA[Cód. Tarefa],"="&MID(B30,1,IF(ISEVEN(LEN(B30)),LEN(B30)-3,LEN(B30)-2))&"*",PLANILHA_TAREFA[Valor Parc. Total])=0,0,J30/SUMIF(PLANILHA_TAREFA[Cód. Tarefa],"="&MID(B30,1,IF(ISEVEN(LEN(B30)),LEN(B30)-3,LEN(B30)-2))&"*",PLANILHA_TAREFA[Valor Parc. Total]))) -> 0.1470428755 | N30: 0.23 | O30: 1325.889482 | P30: =IF(F30="",SUMIF(PLANILHA_TAREFA[Cód. Tarefa],"="&B30&"."&"*",PLANILHA_TAREFA[Valor Parc. Total - BDI]),0) -> 0
A31: TRUE | B31: 001.05.04 | C31: 500468 | D31: CALHA DE CHAPA GALVANIZADA Nº 26 D = 050 CM | E31: 14.71 | F31: MT | G31: 26.469 | H31: 0 | I31: =IF(AND(J31>=0,E31<>""),IF(K31=0,J31/SUMIF(PLANILHA_TAREFA[Cód. Tarefa],MID(B31,1,IF(ISERR(FIND(".",B31,1))=TRUE,LEN(B31),FIND(".",B31,1)-1)),PLANILHA_TAREFA[Quant.]),K31/E31),K31/SUMIF(PLANILHA_TAREFA[Cód. Tarefa],MID(B31,1,IF(ISERR(FIND(".",B31,1))=TRUE,LEN(B31),FIND(".",B31,1)-1)),PLANILHA_TAREFA[Quant.])) -> 389.35899 | J31: =IF(A31=TRUE,1,0)*IF(H31>0,H31,G31)*IF(AND(E31=0,F31=""),1,E31)*SUMIF(PLANILHA_TAREFA[Cód. Tarefa],MID(B31,1,IF(ISERR(FIND(".",B31,1))=TRUE,LEN(B31),FIND(".",B31,1)-1)),PLANILHA_TAREFA[Quant.]) -> 389.35899 | K31: =IF(F31="",SUMIF(PLANILHA_TAREFA[Cód. Tarefa],"="&B31&"."&"*",PLANILHA_TAREFA[Valor Parc. Total]),0) -> 0 | L31: =SUMIF(PLANILHA_TAREFA[Cód. Tarefa],MID(B31,1,IF(ISERR(FIND(".",B31,1))=TRUE,LEN(B31),FIND(".",B31,1)-1)),PLANILHA_TAREFA[Quant.]) -> 1 | M31: =IF(F31="",IF(SUMIF(PLANILHA_TAREFA[Cód. Tarefa],"="&MID(B31,1,IF(ISEVEN(LEN(B31)),LEN(B31)-3,LEN(B31)-2))&"*",PLANILHA_TAREFA[Valor Parc. Total])=0,0,K31/SUMIF(PLANILHA_TAREFA[Cód. Tarefa],"="&MID(B31,1,IF(ISEVEN(LEN(B31)),LEN(B31)-3,LEN(B31)-2))&"*",PLANILHA_TAREFA[Valor Parc. Total])),IF(SUMIF(PLANILHA_TAREFA[Cód. Tarefa],"="&MID(B31,1,IF(ISEVEN(LEN(B31)),LEN(B31)-3,LEN(B31)-2))&"*",PLANILHA_TAREFA[Valor Parc. Total])=0,0,J31/SUMIF(PLANILHA_TAREFA[Cód. Tarefa],"="&MID(B31,1,IF(ISEVEN(LEN(B31)),LEN(B31)-3,LEN(B31)-2))&"*",PLANILHA_TAREFA[Valor Parc. Total]))) -> 0.05311191731 | N31: 0.23 | O31: 478.9115577 | P31: =IF(F31="",SUMIF(PLANILHA_TAREFA[Cód. Tarefa],"="&B31&"."&"*",PLANILHA_TAREFA[Valor Parc. Total - BDI]),0) -> 0
A32: TRUE | B32: 001.05.05 | C32: 500027 | D32: CALHA TIPO RUFO EM CHAPA GALVANIZADA Nº 26 D = 030 CM | E32: 39.6 | F32: MT | G32: 16.1879 | H32: 0 | I32: =IF(AND(J32>=0,E32<>""),IF(K32=0,J32/SUMIF(PLANILHA_TAREFA[Cód. Tarefa],MID(B32,1,IF(ISERR(FIND(".",B32,1))=TRUE,LEN(B32),FIND(".",B32,1)-1)),PLANILHA_TAREFA[Quant.]),K32/E32),K32/SUMIF(PLANILHA_TAREFA[Cód. Tarefa],MID(B32,1,IF(ISERR(FIND(".",B32,1))=TRUE,LEN(B32),FIND(".",B32,1)-1)),PLANILHA_TAREFA[Quant.])) -> 641.04084 | J32: =IF(A32=TRUE,1,0)*IF(H32>0,H32,G32)*IF(AND(E32=0,F32=""),1,E32)*SUMIF(PLANILHA_TAREFA[Cód. Tarefa],MID(B32,1,IF(ISERR(FIND(".",B32,1))=TRUE,LEN(B32),FIND(".",B32,1)-1)),PLANILHA_TAREFA[Quant.]) -> 641.04084 | K32: =IF(F32="",SUMIF(PLANILHA_TAREFA[Cód. Tarefa],"="&B32&"."&"*",PLANILHA_TAREFA[Valor Parc. Total]),0) -> 0 | L32: =SUMIF(PLANILHA_TAREFA[Cód. Tarefa],MID(B32,1,IF(ISERR(FIND(".",B32,1))=TRUE,LEN(B32),FIND(".",B32,1)-1)),PLANILHA_TAREFA[Quant.]) -> 1 | M32: =IF(F32="",IF(SUMIF(PLANILHA_TAREFA[Cód. Tarefa],"="&MID(B32,1,IF(ISEVEN(LEN(B32)),LEN(B32)-3,LEN(B32)-2))&"*",PLANILHA_TAREFA[Valor Parc. Total])=0,0,K32/SUMIF(PLANILHA_TAREFA[Cód. Tarefa],"="&MID(B32,1,IF(ISEVEN(LEN(B32)),LEN(B32)-3,LEN(B32)-2))&"*",PLANILHA_TAREFA[Valor Parc. Total])),IF(SUMIF(PLANILHA_TAREFA[Cód. Tarefa],"="&MID(B32,1,IF(ISEVEN(LEN(B32)),LEN(B32)-3,LEN(B32)-2))&"*",PLANILHA_TAREFA[Valor Parc. Total])=0,0,J32/SUMIF(PLANILHA_TAREFA[Cód. Tarefa],"="&MID(B32,1,IF(ISEVEN(LEN(B32)),LEN(B32)-3,LEN(B32)-2))&"*",PLANILHA_TAREFA[Valor Parc. Total]))) -> 0.08744348779 | N32: 0.23 | O32: 788.4802332 | P32: =IF(F32="",SUMIF(PLANILHA_TAREFA[Cód. Tarefa],"="&B32&"."&"*",PLANILHA_TAREFA[Valor Parc. Total - BDI]),0) -> 0
A33: TRUE | B33: 001.05.06 | C33: 600226 | D33: CALHA TIPO PINGADEIRA EM CHAPA GALVANIZADA Nº 26 D = 030 CM | E33: 39.14 | F33: MT | G33: 18.9105 | H33: 0 | I33: =IF(AND(J33>=0,E33<>""),IF(K33=0,J33/SUMIF(PLANILHA_TAREFA[Cód. Tarefa],MID(B33,1,IF(ISERR(FIND(".",B33,1))=TRUE,LEN(B33),FIND(".",B33,1)-1)),PLANILHA_TAREFA[Quant.]),K33/E33),K33/SUMIF(PLANILHA_TAREFA[Cód. Tarefa],MID(B33,1,IF(ISERR(FIND(".",B33,1))=TRUE,LEN(B33),FIND(".",B33,1)-1)),PLANILHA_TAREFA[Quant.])) -> 740.15697 | J33: =IF(A33=TRUE,1,0)*IF(H33>0,H33,G33)*IF(AND(E33=0,F33=""),1,E33)*SUMIF(PLANILHA_TAREFA[Cód. Tarefa],MID(B33,1,IF(ISERR(FIND(".",B33,1))=TRUE,LEN(B33),FIND(".",B33,1)-1)),PLANILHA_TAREFA[Quant.]) -> 740.15697 | K33: =IF(F33="",SUMIF(PLANILHA_TAREFA[Cód. Tarefa],"="&B33&"."&"*",PLANILHA_TAREFA[Valor Parc. Total]),0) -> 0 | L33: =SUMIF(PLANILHA_TAREFA[Cód. Tarefa],MID(B33,1,IF(ISERR(FIND(".",B33,1))=TRUE,LEN(B33),FIND(".",B33,1)-1)),PLANILHA_TAREFA[Quant.]) -> 1 | M33: =IF(F33="",IF(SUMIF(PLANILHA_TAREFA[Cód. Tarefa],"="&MID(B33,1,IF(ISEVEN(LEN(B33)),LEN(B33)-3,LEN(B33)-2))&"*",PLANILHA_TAREFA[Valor Parc. Total])=0,0,K33/SUMIF(PLANILHA_TAREFA[Cód. Tarefa],"="&MID(B33,1,IF(ISEVEN(LEN(B33)),LEN(B33)-3,LEN(B33)-2))&"*",PLANILHA_TAREFA[Valor Parc. Total])),IF(SUMIF(PLANILHA_TAREFA[Cód. Tarefa],"="&MID(B33,1,IF(ISEVEN(LEN(B33)),LEN(B33)-3,LEN(B33)-2))&"*",PLANILHA_TAREFA[Valor Parc. Total])=0,0,J33/SUMIF(PLANILHA_TAREFA[Cód. Tarefa],"="&MID(B33,1,IF(ISEVEN(LEN(B33)),LEN(B33)-3,LEN(B33)-2))&"*",PLANILHA_TAREFA[Valor Parc. Total]))) -> 0.100963781 | N33: 0.23 | O33: 910.3930731 | P33: =IF(F33="",SUMIF(PLANILHA_TAREFA[Cód. Tarefa],"="&B33&"."&"*",PLANILHA_TAREFA[Valor Parc. Total - BDI]),0) -> 0
A34: TRUE | B34: 001.06 | D34: ESQUADRIAS | G34: 0 | H34: 0 | I34: =IF(AND(J34>=0,E34<>""),IF(K34=0,J34/SUMIF(PLANILHA_TAREFA[Cód. Tarefa],MID(B34,1,IF(ISERR(FIND(".",B34,1))=TRUE,LEN(B34),FIND(".",B34,1)-1)),PLANILHA_TAREFA[Quant.]),K34/E34),K34/SUMIF(PLANILHA_TAREFA[Cód. Tarefa],MID(B34,1,IF(ISERR(FIND(".",B34,1))=TRUE,LEN(B34),FIND(".",B34,1)-1)),PLANILHA_TAREFA[Quant.])) -> 2961.516947 | J34: =IF(A34=TRUE,1,0)*IF(H34>0,H34,G34)*IF(AND(E34=0,F34=""),1,E34)*SUMIF(PLANILHA_TAREFA[Cód. Tarefa],MID(B34,1,IF(ISERR(FIND(".",B34,1))=TRUE,LEN(B34),FIND(".",B34,1)-1)),PLANILHA_TAREFA[Quant.]) -> 0 | K34: =IF(F34="",SUMIF(PLANILHA_TAREFA[Cód. Tarefa],"="&B34&"."&"*",PLANILHA_TAREFA[Valor Parc. Total]),0) -> 2961.516947 | L34: =SUMIF(PLANILHA_TAREFA[Cód. Tarefa],MID(B34,1,IF(ISERR(FIND(".",B34,1))=TRUE,LEN(B34),FIND(".",B34,1)-1)),PLANILHA_TAREFA[Quant.]) -> 1 | M34: =IF(F34="",IF(SUMIF(PLANILHA_TAREFA[Cód. Tarefa],"="&MID(B34,1,IF(ISEVEN(LEN(B34)),LEN(B34)-3,LEN(B34)-2))&"*",PLANILHA_TAREFA[Valor Parc. Total])=0,0,K34/SUMIF(PLANILHA_TAREFA[Cód. Tarefa],"="&MID(B34,1,IF(ISEVEN(LEN(B34)),LEN(B34)-3,LEN(B34)-2))&"*",PLANILHA_TAREFA[Valor Parc. Total])),IF(SUMIF(PLANILHA_TAREFA[Cód. Tarefa],"="&MID(B34,1,IF(ISEVEN(LEN(B34)),LEN(B34)-3,LEN(B34)-2))&"*",PLANILHA_TAREFA[Valor Parc. Total])=0,0,J34/SUMIF(PLANILHA_TAREFA[Cód. Tarefa],"="&MID(B34,1,IF(ISEVEN(LEN(B34)),LEN(B34)-3,LEN(B34)-2))&"*",PLANILHA_TAREFA[Valor Parc. Total]))) -> 0.04806561449 | N34: 0.23 | O34: 0 | P34: =IF(F34="",SUMIF(PLANILHA_TAREFA[Cód. Tarefa],"="&B34&"."&"*",PLANILHA_TAREFA[Valor Parc. Total - BDI]),0) -> 3642.665845
A35: TRUE | B35: 001.06.01 | C35: 500148 | D35: PORTA DE MADEIRA C/ MIOLO SEMI-OCO - 0,70 X 2,10 M - 1F S/ BATENTE | E35: 1 | F35: UN | G35: 79.21952 | H35: 0 | I35: =IF(AND(J35>=0,E35<>""),IF(K35=0,J35/SUMIF(PLANILHA_TAREFA[Cód. Tarefa],MID(B35,1,IF(ISERR(FIND(".",B35,1))=TRUE,LEN(B35),FIND(".",B35,1)-1)),PLANILHA_TAREFA[Quant.]),K35/E35),K35/SUMIF(PLANILHA_TAREFA[Cód. Tarefa],MID(B35,1,IF(ISERR(FIND(".",B35,1))=TRUE,LEN(B35),FIND(".",B35,1)-1)),PLANILHA_TAREFA[Quant.])) -> 79.21952 | J35: =IF(A35=TRUE,1,0)*IF(H35>0,H35,G35)*IF(AND(E35=0,F35=""),1,E35)*SUMIF(PLANILHA_TAREFA[Cód. Tarefa],MID(B35,1,IF(ISERR(FIND(".",B35,1))=TRUE,LEN(B35),FIND(".",B35,1)-1)),PLANILHA_TAREFA[Quant.]) -> 79.21952 | K35: =IF(F35="",SUMIF(PLANILHA_TAREFA[Cód. Tarefa],"="&B35&"."&"*",PLANILHA_TAREFA[Valor Parc. Total]),0) -> 0 | L35: =SUMIF(PLANILHA_TAREFA[Cód. Tarefa],MID(B35,1,IF(ISERR(FIND(".",B35,1))=TRUE,LEN(B35),FIND(".",B35,1)-1)),PLANILHA_TAREFA[Quant.]) -> 1 | M35: =IF(F35="",IF(SUMIF(PLANILHA_TAREFA[Cód. Tarefa],"="&MID(B35,1,IF(ISEVEN(LEN(B35)),LEN(B35)-3,LEN(B35)-2))&"*",PLANILHA_TAREFA[Valor Parc. Total])=0,0,K35/SUMIF(PLANILHA_TAREFA[Cód. Tarefa],"="&MID(B35,1,IF(ISEVEN(LEN(B35)),LEN(B35)-3,LEN(B35)-2))&"*",PLANILHA_TAREFA[Valor Parc. Total])),IF(SUMIF(PLANILHA_TAREFA[Cód. Tarefa],"="&MID(B35,1,IF(ISEVEN(LEN(B35)),LEN(B35)-3,LEN(B35)-2))&"*",PLANILHA_TAREFA[Valor Parc. Total])=0,0,J35/SUMIF(PLANILHA_TAREFA[Cód. Tarefa],"="&MID(B35,1,IF(ISEVEN(LEN(B35)),LEN(B35)-3,LEN(B35)-2))&"*",PLANILHA_TAREFA[Valor Parc. Total]))) -> 0.02674964264 | N35: 0.23 | O35: 97.4400096 | P35: =IF(F35="",SUMIF(PLANILHA_TAREFA[Cód. Tarefa],"="&B35&"."&"*",PLANILHA_TAREFA[Valor Parc. Total - BDI]),0) -> 0
A36: TRUE | B36: 001.06.02 | C36: 500149 | D36: PORTA DE MADEIRA C/ MIOLO SEMI-OCO - 0,80 X 2,10 M - 1F S/ BATENTE | E36: 4 | F36: UN | G36: 84.21952 | H36: 0 | I36: =IF(AND(J36>=0,E36<>""),IF(K36=0,J36/SUMIF(PLANILHA_TAREFA[Cód. Tarefa],MID(B36,1,IF(ISERR(FIND(".",B36,1))=TRUE,LEN(B36),FIND(".",B36,1)-1)),PLANILHA_TAREFA[Quant.]),K36/E36),K36/SUMIF(PLANILHA_TAREFA[Cód. Tarefa],MID(B36,1,IF(ISERR(FIND(".",B36,1))=TRUE,LEN(B36),FIND(".",B36,1)-1)),PLANILHA_TAREFA[Quant.])) -> 336.87808 | J36: =IF(A36=TRUE,1,0)*IF(H36>0,H36,G36)*IF(AND(E36=0,F36=""),1,E36)*SUMIF(PLANILHA_TAREFA[Cód. Tarefa],MID(B36,1,IF(ISERR(FIND(".",B36,1))=TRUE,LEN(B36),FIND(".",B36,1)-1)),PLANILHA_TAREFA[Quant.]) -> 336.87808 | K36: =IF(F36="",SUMIF(PLANILHA_TAREFA[Cód. Tarefa],"="&B36&"."&"*",PLANILHA_TAREFA[Valor Parc. Total]),0) -> 0 | L36: =SUMIF(PLANILHA_TAREFA[Cód. Tarefa],MID(B36,1,IF(ISERR(FIND(".",B36,1))=TRUE,LEN(B36),FIND(".",B36,1)-1)),PLANILHA_TAREFA[Quant.]) -> 1 | M36: =IF(F36="",IF(SUMIF(PLANILHA_TAREFA[Cód. Tarefa],"="&MID(B36,1,IF(ISEVEN(LEN(B36)),LEN(B36)-3,LEN(B36)-2))&"*",PLANILHA_TAREFA[Valor Parc. Total])=0,0,K36/SUMIF(PLANILHA_TAREFA[Cód. Tarefa],"="&MID(B36,1,IF(ISEVEN(LEN(B36)),LEN(B36)-3,LEN(B36)-2))&"*",PLANILHA_TAREFA[Valor Parc. Total])),IF(SUMIF(PLANILHA_TAREFA[Cód. Tarefa],"="&MID(B36,1,IF(ISEVEN(LEN(B36)),LEN(B36)-3,LEN(B36)-2))&"*",PLANILHA_TAREFA[Valor Parc. Total])=0,0,J36/SUMIF(PLANILHA_TAREFA[Cód. Tarefa],"="&MID(B36,1,IF(ISEVEN(LEN(B36)),LEN(B36)-3,LEN(B36)-2))&"*",PLANILHA_TAREFA[Valor Parc. Total]))) -> 0.1137518664 | N36: 0.23 | O36: 414.3600384 | P36: =IF(F36="",SUMIF(PLANILHA_TAREFA[Cód. Tarefa],"="&B36&"."&"*",PLANILHA_TAREFA[Valor Parc. Total - BDI]),0) -> 0
A37: TRUE | B37: 001.06.03 | C37: 500147 | D37: BATENTE EM MADEIRA - 0,70 X 2,10 M - REQUADRO 055 MM | E37: 1 | F37: UN | G37: 86.807 | H37: 0 | I37: =IF(AND(J37>=0,E37<>""),IF(K37=0,J37/SUMIF(PLANILHA_TAREFA[Cód. Tarefa],MID(B37,1,IF(ISERR(FIND(".",B37,1))=TRUE,LEN(B37),FIND(".",B37,1)-1)),PLANILHA_TAREFA[Quant.]),K37/E37),K37/SUMIF(PLANILHA_TAREFA[Cód. Tarefa],MID(B37,1,IF(ISERR(FIND(".",B37,1))=TRUE,LEN(B37),FIND(".",B37,1)-1)),PLANILHA_TAREFA[Quant.])) -> 86.807 | J37: =IF(A37=TRUE,1,0)*IF(H37>0,H37,G37)*IF(AND(E37=0,F37=""),1,E37)*SUMIF(PLANILHA_TAREFA[Cód. Tarefa],MID(B37,1,IF(ISERR(FIND(".",B37,1))=TRUE,LEN(B37),FIND(".",B37,1)-1)),PLANILHA_TAREFA[Quant.]) -> 86.807 | K37: =IF(F37="",SUMIF(PLANILHA_TAREFA[Cód. Tarefa],"="&B37&"."&"*",PLANILHA_TAREFA[Valor Parc. Total]),0) -> 0 | L37: =SUMIF(PLANILHA_TAREFA[Cód. Tarefa],MID(B37,1,IF(ISERR(FIND(".",B37,1))=TRUE,LEN(B37),FIND(".",B37,1)-1)),PLANILHA_TAREFA[Quant.]) -> 1 | M37: =IF(F37="",IF(SUMIF(PLANILHA_TAREFA[Cód. Tarefa],"="&MID(B37,1,IF(ISEVEN(LEN(B37)),LEN(B37)-3,LEN(B37)-2))&"*",PLANILHA_TAREFA[Valor Parc. Total])=0,0,K37/SUMIF(PLANILHA_TAREFA[Cód. Tarefa],"="&MID(B37,1,IF(ISEVEN(LEN(B37)),LEN(B37)-3,LEN(B37)-2))&"*",PLANILHA_TAREFA[Valor Parc. Total])),IF(SUMIF(PLANILHA_TAREFA[Cód. Tarefa],"="&MID(B37,1,IF(ISEVEN(LEN(B37)),LEN(B37)-3,LEN(B37)-2))&"*",PLANILHA_TAREFA[Valor Parc. Total])=0,0,J37/SUMIF(PLANILHA_TAREFA[Cód. Tarefa],"="&MID(B37,1,IF(ISEVEN(LEN(B37)),LEN(B37)-3,LEN(B37)-2))&"*",PLANILHA_TAREFA[Valor Parc. Total]))) -> 0.02931166749 | N37: 0.23 | O37: 106.77261 | P37: =IF(F37="",SUMIF(PLANILHA_TAREFA[Cód. Tarefa],"="&B37&"."&"*",PLANILHA_TAREFA[Valor Parc. Total - BDI]),0) -> 0
A38: TRUE | B38: 001.06.04 | C38: 500146 | D38: BATENTE EM MADEIRA - 0,80 X 2,10 M - REQUADRO 055 MM | E38: 4 | F38: UN | G38: 84.02866 | H38: 0 | I38: =IF(AND(J38>=0,E38<>""),IF(K38=0,J38/SUMIF(PLANILHA_TAREFA[Cód. Tarefa],MID(B38,1,IF(ISERR(FIND(".",B38,1))=TRUE,LEN(B38),FIND(".",B38,1)-1)),PLANILHA_TAREFA[Quant.]),K38/E38),K38/SUMIF(PLANILHA_TAREFA[Cód. Tarefa],MID(B38,1,IF(ISERR(FIND(".",B38,1))=TRUE,LEN(B38),FIND(".",B38,1)-1)),PLANILHA_TAREFA[Quant.])) -> 336.11464 | J38: =IF(A38=TRUE,1,0)*IF(H38>0,H38,G38)*IF(AND(E38=0,F38=""),1,E38)*SUMIF(PLANILHA_TAREFA[Cód. Tarefa],MID(B38,1,IF(ISERR(FIND(".",B38,1))=TRUE,LEN(B38),FIND(".",B38,1)-1)),PLANILHA_TAREFA[Quant.]) -> 336.11464 | K38: =IF(F38="",SUMIF(PLANILHA_TAREFA[Cód. Tarefa],"="&B38&"."&"*",PLANILHA_TAREFA[Valor Parc. Total]),0) -> 0 | L38: =SUMIF(PLANILHA_TAREFA[Cód. Tarefa],MID(B38,1,IF(ISERR(FIND(".",B38,1))=TRUE,LEN(B38),FIND(".",B38,1)-1)),PLANILHA_TAREFA[Quant.]) -> 1 | M38: =IF(F38="",IF(SUMIF(PLANILHA_TAREFA[Cód. Tarefa],"="&MID(B38,1,IF(ISEVEN(LEN(B38)),LEN(B38)-3,LEN(B38)-2))&"*",PLANILHA_TAREFA[Valor Parc. Total])=0,0,K38/SUMIF(PLANILHA_TAREFA[Cód. Tarefa],"="&MID(B38,1,IF(ISEVEN(LEN(B38)),LEN(B38)-3,LEN(B38)-2))&"*",PLANILHA_TAREFA[Valor Parc. Total])),IF(SUMIF(PLANILHA_TAREFA[Cód. Tarefa],"="&MID(B38,1,IF(ISEVEN(LEN(B38)),LEN(B38)-3,LEN(B38)-2))&"*",PLANILHA_TAREFA[Valor Parc. Total])=0,0,J38/SUMIF(PLANILHA_TAREFA[Cód. Tarefa],"="&MID(B38,1,IF(ISEVEN(LEN(B38)),LEN(B38)-3,LEN(B38)-2))&"*",PLANILHA_TAREFA[Valor Parc. Total]))) -> 0.1134940796 | N38: 0.23 | O38: 413.4210072 | P38: =IF(F38="",SUMIF(PLANILHA_TAREFA[Cód. Tarefa],"="&B38&"."&"*",PLANILHA_TAREFA[Valor Parc. Total - BDI]),0) -> 0
A39: TRUE | B39: 001.06.05 | C39: 002684 | D39: FECHADURA P/ PORTA EXTERNA - YALE | E39: 1 | F39: UN | G39: 52.58644 | I39: =IF(AND(J39>=0,E39<>""),IF(K39=0,J39/SUMIF(PLANILHA_TAREFA[Cód. Tarefa],MID(B39,1,IF(ISERR(FIND(".",B39,1))=TRUE,LEN(B39),FIND(".",B39,1)-1)),PLANILHA_TAREFA[Quant.]),K39/E39),K39/SUMIF(PLANILHA_TAREFA[Cód. Tarefa],MID(B39,1,IF(ISERR(FIND(".",B39,1))=TRUE,LEN(B39),FIND(".",B39,1)-1)),PLANILHA_TAREFA[Quant.])) -> 52.58644 | J39: =IF(A39=TRUE,1,0)*IF(H39>0,H39,G39)*IF(AND(E39=0,F39=""),1,E39)*SUMIF(PLANILHA_TAREFA[Cód. Tarefa],MID(B39,1,IF(ISERR(FIND(".",B39,1))=TRUE,LEN(B39),FIND(".",B39,1)-1)),PLANILHA_TAREFA[Quant.]) -> 52.58644 | K39: =IF(F39="",SUMIF(PLANILHA_TAREFA[Cód. Tarefa],"="&B39&"."&"*",PLANILHA_TAREFA[Valor Parc. Total]),0) -> 0 | L39: =SUMIF(PLANILHA_TAREFA[Cód. Tarefa],MID(B39,1,IF(ISERR(FIND(".",B39,1))=TRUE,LEN(B39),FIND(".",B39,1)-1)),PLANILHA_TAREFA[Quant.]) -> 1 | M39: =IF(F39="",IF(SUMIF(PLANILHA_TAREFA[Cód. Tarefa],"="&MID(B39,1,IF(ISEVEN(LEN(B39)),LEN(B39)-3,LEN(B39)-2))&"*",PLANILHA_TAREFA[Valor Parc. Total])=0,0,K39/SUMIF(PLANILHA_TAREFA[Cód. Tarefa],"="&MID(B39,1,IF(ISEVEN(LEN(B39)),LEN(B39)-3,LEN(B39)-2))&"*",PLANILHA_TAREFA[Valor Parc. Total])),IF(SUMIF(PLANILHA_TAREFA[Cód. Tarefa],"="&MID(B39,1,IF(ISEVEN(LEN(B39)),LEN(B39)-3,LEN(B39)-2))&"*",PLANILHA_TAREFA[Valor Parc. Total])=0,0,J39/SUMIF(PLANILHA_TAREFA[Cód. Tarefa],"="&MID(B39,1,IF(ISEVEN(LEN(B39)),LEN(B39)-3,LEN(B39)-2))&"*",PLANILHA_TAREFA[Valor Parc. Total]))) -> 0.01775658926 | N39: 0.23 | O39: 64.6813212 | P39: =IF(F39="",SUMIF(PLANILHA_TAREFA[Cód. Tarefa],"="&B39&"."&"*",PLANILHA_TAREFA[Valor Parc. Total - BDI]),0) -> 0
A40: TRUE | B40: 001.06.06 | C40: 002685 | D40: FECHADURA P/ PORTA DO BANHEIRO | E40: 1 | F40: UN | G40: 40.18644 | I40: =IF(AND(J40>=0,E40<>""),IF(K40=0,J40/SUMIF(PLANILHA_TAREFA[Cód. Tarefa],MID(B40,1,IF(ISERR(FIND(".",B40,1))=TRUE,LEN(B40),FIND(".",B40,1)-1)),PLANILHA_TAREFA[Quant.]),K40/E40),K40/SUMIF(PLANILHA_TAREFA[Cód. Tarefa],MID(B40,1,IF(ISERR(FIND(".",B40,1))=TRUE,LEN(B40),FIND(".",B40,1)-1)),PLANILHA_TAREFA[Quant.])) -> 40.18644 | J40: =IF(A40=TRUE,1,0)*IF(H40>0,H40,G40)*IF(AND(E40=0,F40=""),1,E40)*SUMIF(PLANILHA_TAREFA[Cód. Tarefa],MID(B40,1,IF(ISERR(FIND(".",B40,1))=TRUE,LEN(B40),FIND(".",B40,1)-1)),PLANILHA_TAREFA[Quant.]) -> 40.18644 | K40: =IF(F40="",SUMIF(PLANILHA_TAREFA[Cód. Tarefa],"="&B40&"."&"*",PLANILHA_TAREFA[Valor Parc. Total]),0) -> 0 | L40: =SUMIF(PLANILHA_TAREFA[Cód. Tarefa],MID(B40,1,IF(ISERR(FIND(".",B40,1))=TRUE,LEN(B40),FIND(".",B40,1)-1)),PLANILHA_TAREFA[Quant.]) -> 1 | M40: =IF(F40="",IF(SUMIF(PLANILHA_TAREFA[Cód. Tarefa],"="&MID(B40,1,IF(ISEVEN(LEN(B40)),LEN(B40)-3,LEN(B40)-2))&"*",PLANILHA_TAREFA[Valor Parc. Total])=0,0,K40/SUMIF(PLANILHA_TAREFA[Cód. Tarefa],"="&MID(B40,1,IF(ISEVEN(LEN(B40)),LEN(B40)-3,LEN(B40)-2))&"*",PLANILHA_TAREFA[Valor Parc. Total])),IF(SUMIF(PLANILHA_TAREFA[Cód. Tarefa],"="&MID(B40,1,IF(ISEVEN(LEN(B40)),LEN(B40)-3,LEN(B40)-2))&"*",PLANILHA_TAREFA[Valor Parc. Total])=0,0,J40/SUMIF(PLANILHA_TAREFA[Cód. Tarefa],"="&MID(B40,1,IF(ISEVEN(LEN(B40)),LEN(B40)-3,LEN(B40)-2))&"*",PLANILHA_TAREFA[Valor Parc. Total]))) -> 0.01356954585 | N40: 0.23 | O40: 49.4293212 | P40: =IF(F40="",SUMIF(PLANILHA_TAREFA[Cód. Tarefa],"="&B40&"."&"*",PLANILHA_TAREFA[Valor Parc. Total - BDI]),0) -> 0
A41: TRUE | B41: 001.06.07 | C41: 002687 | D41: FECHADURA P/ PORTA INTERNA - GORGES | E41: 2 | F41: UN | G41: 40.08644 | I41: =IF(AND(J41>=0,E41<>""),IF(K41=0,J41/SUMIF(PLANILHA_TAREFA[Cód. Tarefa],MID(B41,1,IF(ISERR(FIND(".",B41,1))=TRUE,LEN(B41),FIND(".",B41,1)-1)),PLANILHA_TAREFA[Quant.]),K41/E41),K41/SUMIF(PLANILHA_TAREFA[Cód. Tarefa],MID(B41,1,IF(ISERR(FIND(".",B41,1))=TRUE,LEN(B41),FIND(".",B41,1)-1)),PLANILHA_TAREFA[Quant.])) -> 80.17288 | J41: =IF(A41=TRUE,1,0)*IF(H41>0,H41,G41)*IF(AND(E41=0,F41=""),1,E41)*SUMIF(PLANILHA_TAREFA[Cód. Tarefa],MID(B41,1,IF(ISERR(FIND(".",B41,1))=TRUE,LEN(B41),FIND(".",B41,1)-1)),PLANILHA_TAREFA[Quant.]) -> 80.17288 | K41: =IF(F41="",SUMIF(PLANILHA_TAREFA[Cód. Tarefa],"="&B41&"."&"*",PLANILHA_TAREFA[Valor Parc. Total]),0) -> 0 | L41: =SUMIF(PLANILHA_TAREFA[Cód. Tarefa],MID(B41,1,IF(ISERR(FIND(".",B41,1))=TRUE,LEN(B41),FIND(".",B41,1)-1)),PLANILHA_TAREFA[Quant.]) -> 1 | M41: =IF(F41="",IF(SUMIF(PLANILHA_TAREFA[Cód. Tarefa],"="&MID(B41,1,IF(ISEVEN(LEN(B41)),LEN(B41)-3,LEN(B41)-2))&"*",PLANILHA_TAREFA[Valor Parc. Total])=0,0,K41/SUMIF(PLANILHA_TAREFA[Cód. Tarefa],"="&MID(B41,1,IF(ISEVEN(LEN(B41)),LEN(B41)-3,LEN(B41)-2))&"*",PLANILHA_TAREFA[Valor Parc. Total])),IF(SUMIF(PLANILHA_TAREFA[Cód. Tarefa],"="&MID(B41,1,IF(ISEVEN(LEN(B41)),LEN(B41)-3,LEN(B41)-2))&"*",PLANILHA_TAREFA[Valor Parc. Total])=0,0,J41/SUMIF(PLANILHA_TAREFA[Cód. Tarefa],"="&MID(B41,1,IF(ISEVEN(LEN(B41)),LEN(B41)-3,LEN(B41)-2))&"*",PLANILHA_TAREFA[Valor Parc. Total]))) -> 0.02707155875 | N41: 0.23 | O41: 98.6126424 | P41: =IF(F41="",SUMIF(PLANILHA_TAREFA[Cód. Tarefa],"="&B41&"."&"*",PLANILHA_TAREFA[Valor Parc. Total - BDI]),0) -> 0
A42: TRUE | B42: 001.06.08 | C42: 500069 | D42: VITRO DE CORRER METALICO 1,50 X 1,10 M | E42: 1 | F42: UN | G42: 221.85085 | H42: 0 | I42: =IF(AND(J42>=0,E42<>""),IF(K42=0,J42/SUMIF(PLANILHA_TAREFA[Cód. Tarefa],MID(B42,1,IF(ISERR(FIND(".",B42,1))=TRUE,LEN(B42),FIND(".",B42,1)-1)),PLANILHA_TAREFA[Quant.]),K42/E42),K42/SUMIF(PLANILHA_TAREFA[Cód. Tarefa],MID(B42,1,IF(ISERR(FIND(".",B42,1))=TRUE,LEN(B42),FIND(".",B42,1)-1)),PLANILHA_TAREFA[Quant.])) -> 221.85085 | J42: =IF(A42=TRUE,1,0)*IF(H42>0,H42,G42)*IF(AND(E42=0,F42=""),1,E42)*SUMIF(PLANILHA_TAREFA[Cód. Tarefa],MID(B42,1,IF(ISERR(FIND(".",B42,1))=TRUE,LEN(B42),FIND(".",B42,1)-1)),PLANILHA_TAREFA[Quant.]) -> 221.85085 | K42: =IF(F42="",SUMIF(PLANILHA_TAREFA[Cód. Tarefa],"="&B42&"."&"*",PLANILHA_TAREFA[Valor Parc. Total]),0) -> 0 | L42: =SUMIF(PLANILHA_TAREFA[Cód. Tarefa],MID(B42,1,IF(ISERR(FIND(".",B42,1))=TRUE,LEN(B42),FIND(".",B42,1)-1)),PLANILHA_TAREFA[Quant.]) -> 1 | M42: =IF(F42="",IF(SUMIF(PLANILHA_TAREFA[Cód. Tarefa],"="&MID(B42,1,IF(ISEVEN(LEN(B42)),LEN(B42)-3,LEN(B42)-2))&"*",PLANILHA_TAREFA[Valor Parc. Total])=0,0,K42/SUMIF(PLANILHA_TAREFA[Cód. Tarefa],"="&MID(B42,1,IF(ISEVEN(LEN(B42)),LEN(B42)-3,LEN(B42)-2))&"*",PLANILHA_TAREFA[Valor Parc. Total])),IF(SUMIF(PLANILHA_TAREFA[Cód. Tarefa],"="&MID(B42,1,IF(ISEVEN(LEN(B42)),LEN(B42)-3,LEN(B42)-2))&"*",PLANILHA_TAREFA[Valor Parc. Total])=0,0,J42/SUMIF(PLANILHA_TAREFA[Cód. Tarefa],"="&MID(B42,1,IF(ISEVEN(LEN(B42)),LEN(B42)-3,LEN(B42)-2))&"*",PLANILHA_TAREFA[Valor Parc. Total]))) -> 0.07491122083 | N42: 0.23 | O42: 272.8765455 | P42: =IF(F42="",SUMIF(PLANILHA_TAREFA[Cód. Tarefa],"="&B42&"."&"*",PLANILHA_TAREFA[Valor Parc. Total - BDI]),0) -> 0
A43: TRUE | B43: 001.06.09 | C43: 601051 | D43: VITRO MAXIM-AR EM ACO GALVANIZADO 1 FOLHA MOVEL (0,80X0,60M) | E43: 1 | F43: UN | G43: 137.24996 | H43: 0 | I43: =IF(AND(J43>=0,E43<>""),IF(K43=0,J43/SUMIF(PLANILHA_TAREFA[Cód. Tarefa],MID(B43,1,IF(ISERR(FIND(".",B43,1))=TRUE,LEN(B43),FIND(".",B43,1)-1)),PLANILHA_TAREFA[Quant.]),K43/E43),K43/SUMIF(PLANILHA_TAREFA[Cód. Tarefa],MID(B43,1,IF(ISERR(FIND(".",B43,1))=TRUE,LEN(B43),FIND(".",B43,1)-1)),PLANILHA_TAREFA[Quant.])) -> 137.24996 | J43: =IF(A43=TRUE,1,0)*IF(H43>0,H43,G43)*IF(AND(E43=0,F43=""),1,E43)*SUMIF(PLANILHA_TAREFA[Cód. Tarefa],MID(B43,1,IF(ISERR(FIND(".",B43,1))=TRUE,LEN(B43),FIND(".",B43,1)-1)),PLANILHA_TAREFA[Quant.]) -> 137.24996 | K43: =IF(F43="",SUMIF(PLANILHA_TAREFA[Cód. Tarefa],"="&B43&"."&"*",PLANILHA_TAREFA[Valor Parc. Total]),0) -> 0 | L43: =SUMIF(PLANILHA_TAREFA[Cód. Tarefa],MID(B43,1,IF(ISERR(FIND(".",B43,1))=TRUE,LEN(B43),FIND(".",B43,1)-1)),PLANILHA_TAREFA[Quant.]) -> 1 | M43: =IF(F43="",IF(SUMIF(PLANILHA_TAREFA[Cód. Tarefa],"="&MID(B43,1,IF(ISEVEN(LEN(B43)),LEN(B43)-3,LEN(B43)-2))&"*",PLANILHA_TAREFA[Valor Parc. Total])=0,0,K43/SUMIF(PLANILHA_TAREFA[Cód. Tarefa],"="&MID(B43,1,IF(ISEVEN(LEN(B43)),LEN(B43)-3,LEN(B43)-2))&"*",PLANILHA_TAREFA[Valor Parc. Total])),IF(SUMIF(PLANILHA_TAREFA[Cód. Tarefa],"="&MID(B43,1,IF(ISEVEN(LEN(B43)),LEN(B43)-3,LEN(B43)-2))&"*",PLANILHA_TAREFA[Valor Parc. Total])=0,0,J43/SUMIF(PLANILHA_TAREFA[Cód. Tarefa],"="&MID(B43,1,IF(ISEVEN(LEN(B43)),LEN(B43)-3,LEN(B43)-2))&"*",PLANILHA_TAREFA[Valor Parc. Total]))) -> 0.04634447902 | N43: 0.23 | O43: =J43*(1+N43) -> 168.8174508 | P43: =IF(F43="",SUMIF(PLANILHA_TAREFA[Cód. Tarefa],"="&B43&"."&"*",PLANILHA_TAREFA[Valor Parc. Total - BDI]),0) -> 0
A44: TRUE | B44: 001.06.10 | C44: 600961 | D44: VENEZIANA EM ACO GALVANIZADO DE CORRER LATERAL 1,80 X 1,10 M | E44: 1 | F44: UN | G44: 275.134376 | H44: 0 | I44: =IF(AND(J44>=0,E44<>""),IF(K44=0,J44/SUMIF(PLANILHA_TAREFA[Cód. Tarefa],MID(B44,1,IF(ISERR(FIND(".",B44,1))=TRUE,LEN(B44),FIND(".",B44,1)-1)),PLANILHA_TAREFA[Quant.]),K44/E44),K44/SUMIF(PLANILHA_TAREFA[Cód. Tarefa],MID(B44,1,IF(ISERR(FIND(".",B44,1))=TRUE,LEN(B44),FIND(".",B44,1)-1)),PLANILHA_TAREFA[Quant.])) -> 275.134376 | J44: =IF(A44=TRUE,1,0)*IF(H44>0,H44,G44)*IF(AND(E44=0,F44=""),1,E44)*SUMIF(PLANILHA_TAREFA[Cód. Tarefa],MID(B44,1,IF(ISERR(FIND(".",B44,1))=TRUE,LEN(B44),FIND(".",B44,1)-1)),PLANILHA_TAREFA[Quant.]) -> 275.134376 | K44: =IF(F44="",SUMIF(PLANILHA_TAREFA[Cód. Tarefa],"="&B44&"."&"*",PLANILHA_TAREFA[Valor Parc. Total]),0) -> 0 | L44: =SUMIF(PLANILHA_TAREFA[Cód. Tarefa],MID(B44,1,IF(ISERR(FIND(".",B44,1))=TRUE,LEN(B44),FIND(".",B44,1)-1)),PLANILHA_TAREFA[Quant.]) -> 1 | M44: =IF(F44="",IF(SUMIF(PLANILHA_TAREFA[Cód. Tarefa],"="&MID(B44,1,IF(ISEVEN(LEN(B44)),LEN(B44)-3,LEN(B44)-2))&"*",PLANILHA_TAREFA[Valor Parc. Total])=0,0,K44/SUMIF(PLANILHA_TAREFA[Cód. Tarefa],"="&MID(B44,1,IF(ISEVEN(LEN(B44)),LEN(B44)-3,LEN(B44)-2))&"*",PLANILHA_TAREFA[Valor Parc. Total])),IF(SUMIF(PLANILHA_TAREFA[Cód. Tarefa],"="&MID(B44,1,IF(ISEVEN(LEN(B44)),LEN(B44)-3,LEN(B44)-2))&"*",PLANILHA_TAREFA[Valor Parc. Total])=0,0,J44/SUMIF(PLANILHA_TAREFA[Cód. Tarefa],"="&MID(B44,1,IF(ISEVEN(LEN(B44)),LEN(B44)-3,LEN(B44)-2))&"*",PLANILHA_TAREFA[Valor Parc. Total]))) -> 0.09290319149 | N44: 0.23 | O44: 338.4152825 | P44: =IF(F44="",SUMIF(PLANILHA_TAREFA[Cód. Tarefa],"="&B44&"."&"*",PLANILHA_TAREFA[Valor Parc. Total - BDI]),0) -> 0
A45: TRUE | B45: 001.06.11 | C45: 611364 | D45: VITRO ACO GALVANIZADO DE CORRER LATERAL 2,00 X 1,10 M | E45: 1 | F45: UN | G45: 180.168092 | H45: 0 | I45: =IF(AND(J45>=0,E45<>""),IF(K45=0,J45/SUMIF(PLANILHA_TAREFA[Cód. Tarefa],MID(B45,1,IF(ISERR(FIND(".",B45,1))=TRUE,LEN(B45),FIND(".",B45,1)-1)),PLANILHA_TAREFA[Quant.]),K45/E45),K45/SUMIF(PLANILHA_TAREFA[Cód. Tarefa],MID(B45,1,IF(ISERR(FIND(".",B45,1))=TRUE,LEN(B45),FIND(".",B45,1)-1)),PLANILHA_TAREFA[Quant.])) -> 180.168092 | J45: =IF(A45=TRUE,1,0)*IF(H45>0,H45,G45)*IF(AND(E45=0,F45=""),1,E45)*SUMIF(PLANILHA_TAREFA[Cód. Tarefa],MID(B45,1,IF(ISERR(FIND(".",B45,1))=TRUE,LEN(B45),FIND(".",B45,1)-1)),PLANILHA_TAREFA[Quant.]) -> 180.168092 | K45: =IF(F45="",SUMIF(PLANILHA_TAREFA[Cód. Tarefa],"="&B45&"."&"*",PLANILHA_TAREFA[Valor Parc. Total]),0) -> 0 | L45: =SUMIF(PLANILHA_TAREFA[Cód. Tarefa],MID(B45,1,IF(ISERR(FIND(".",B45,1))=TRUE,LEN(B45),FIND(".",B45,1)-1)),PLANILHA_TAREFA[Quant.]) -> 1 | M45: =IF(F45="",IF(SUMIF(PLANILHA_TAREFA[Cód. Tarefa],"="&MID(B45,1,IF(ISEVEN(LEN(B45)),LEN(B45)-3,LEN(B45)-2))&"*",PLANILHA_TAREFA[Valor Parc. Total])=0,0,K45/SUMIF(PLANILHA_TAREFA[Cód. Tarefa],"="&MID(B45,1,IF(ISEVEN(LEN(B45)),LEN(B45)-3,LEN(B45)-2))&"*",PLANILHA_TAREFA[Valor Parc. Total])),IF(SUMIF(PLANILHA_TAREFA[Cód. Tarefa],"="&MID(B45,1,IF(ISEVEN(LEN(B45)),LEN(B45)-3,LEN(B45)-2))&"*",PLANILHA_TAREFA[Valor Parc. Total])=0,0,J45/SUMIF(PLANILHA_TAREFA[Cód. Tarefa],"="&MID(B45,1,IF(ISEVEN(LEN(B45)),LEN(B45)-3,LEN(B45)-2))&"*",PLANILHA_TAREFA[Valor Parc. Total]))) -> 0.06083642108 | N45: 0.23 | O45: 221.6067532 | P45: =IF(F45="",SUMIF(PLANILHA_TAREFA[Cód. Tarefa],"="&B45&"."&"*",PLANILHA_TAREFA[Valor Parc. Total - BDI]),0) -> 0
A46: TRUE | B46: 001.06.12 | C46: 400131 | D46: ALCAPAO METALICO 0,60 X 0,60 M | E46: 1 | F46: UN | G46: 95.8408188 | H46: 0 | I46: =IF(AND(J46>=0,E46<>""),IF(K46=0,J46/SUMIF(PLANILHA_TAREFA[Cód. Tarefa],MID(B46,1,IF(ISERR(FIND(".",B46,1))=TRUE,LEN(B46),FIND(".",B46,1)-1)),PLANILHA_TAREFA[Quant.]),K46/E46),K46/SUMIF(PLANILHA_TAREFA[Cód. Tarefa],MID(B46,1,IF(ISERR(FIND(".",B46,1))=TRUE,LEN(B46),FIND(".",B46,1)-1)),PLANILHA_TAREFA[Quant.])) -> 95.8408188 | J46: =IF(A46=TRUE,1,0)*IF(H46>0,H46,G46)*IF(AND(E46=0,F46=""),1,E46)*SUMIF(PLANILHA_TAREFA[Cód. Tarefa],MID(B46,1,IF(ISERR(FIND(".",B46,1))=TRUE,LEN(B46),FIND(".",B46,1)-1)),PLANILHA_TAREFA[Quant.]) -> 95.8408188 | K46: =IF(F46="",SUMIF(PLANILHA_TAREFA[Cód. Tarefa],"="&B46&"."&"*",PLANILHA_TAREFA[Valor Parc. Total]),0) -> 0 | L46: =SUMIF(PLANILHA_TAREFA[Cód. Tarefa],MID(B46,1,IF(ISERR(FIND(".",B46,1))=TRUE,LEN(B46),FIND(".",B46,1)-1)),PLANILHA_TAREFA[Quant.]) -> 1 | M46: =IF(F46="",IF(SUMIF(PLANILHA_TAREFA[Cód. Tarefa],"="&MID(B46,1,IF(ISEVEN(LEN(B46)),LEN(B46)-3,LEN(B46)-2))&"*",PLANILHA_TAREFA[Valor Parc. Total])=0,0,K46/SUMIF(PLANILHA_TAREFA[Cód. Tarefa],"="&MID(B46,1,IF(ISEVEN(LEN(B46)),LEN(B46)-3,LEN(B46)-2))&"*",PLANILHA_TAREFA[Valor Parc. Total])),IF(SUMIF(PLANILHA_TAREFA[Cód. Tarefa],"="&MID(B46,1,IF(ISEVEN(LEN(B46)),LEN(B46)-3,LEN(B46)-2))&"*",PLANILHA_TAREFA[Valor Parc. Total])=0,0,J46/SUMIF(PLANILHA_TAREFA[Cód. Tarefa],"="&MID(B46,1,IF(ISEVEN(LEN(B46)),LEN(B46)-3,LEN(B46)-2))&"*",PLANILHA_TAREFA[Valor Parc. Total]))) -> 0.03236207002 | N46: 0.23 | O46: 117.8842071 | P46: =IF(F46="",SUMIF(PLANILHA_TAREFA[Cód. Tarefa],"="&B46&"."&"*",PLANILHA_TAREFA[Valor Parc. Total - BDI]),0) -> 0
A47: TRUE | B47: 001.06.13 | C47: 500090 | D47: PORTAO METALON 30 X 20 | E47: =2.5*1.5 -> 3.75 | F47: M2 | G47: 277.14876 | H47: 0 | I47: =IF(AND(J47>=0,E47<>""),IF(K47=0,J47/SUMIF(PLANILHA_TAREFA[Cód. Tarefa],MID(B47,1,IF(ISERR(FIND(".",B47,1))=TRUE,LEN(B47),FIND(".",B47,1)-1)),PLANILHA_TAREFA[Quant.]),K47/E47),K47/SUMIF(PLANILHA_TAREFA[Cód. Tarefa],MID(B47,1,IF(ISERR(FIND(".",B47,1))=TRUE,LEN(B47),FIND(".",B47,1)-1)),PLANILHA_TAREFA[Quant.])) -> 1039.30785 | J47: =IF(A47=TRUE,1,0)*IF(H47>0,H47,G47)*IF(AND(E47=0,F47=""),1,E47)*SUMIF(PLANILHA_TAREFA[Cód. Tarefa],MID(B47,1,IF(ISERR(FIND(".",B47,1))=TRUE,LEN(B47),FIND(".",B47,1)-1)),PLANILHA_TAREFA[Quant.]) -> 1039.30785 | K47: =IF(F47="",SUMIF(PLANILHA_TAREFA[Cód. Tarefa],"="&B47&"."&"*",PLANILHA_TAREFA[Valor Parc. Total]),0) -> 0 | L47: =SUMIF(PLANILHA_TAREFA[Cód. Tarefa],MID(B47,1,IF(ISERR(FIND(".",B47,1))=TRUE,LEN(B47),FIND(".",B47,1)-1)),PLANILHA_TAREFA[Quant.]) -> 1 | M47: =IF(F47="",IF(SUMIF(PLANILHA_TAREFA[Cód. Tarefa],"="&MID(B47,1,IF(ISEVEN(LEN(B47)),LEN(B47)-3,LEN(B47)-2))&"*",PLANILHA_TAREFA[Valor Parc. Total])=0,0,K47/SUMIF(PLANILHA_TAREFA[Cód. Tarefa],"="&MID(B47,1,IF(ISEVEN(LEN(B47)),LEN(B47)-3,LEN(B47)-2))&"*",PLANILHA_TAREFA[Valor Parc. Total])),IF(SUMIF(PLANILHA_TAREFA[Cód. Tarefa],"="&MID(B47,1,IF(ISEVEN(LEN(B47)),LEN(B47)-3,LEN(B47)-2))&"*",PLANILHA_TAREFA[Valor Parc. Total])=0,0,J47/SUMIF(PLANILHA_TAREFA[Cód. Tarefa],"="&MID(B47,1,IF(ISEVEN(LEN(B47)),LEN(B47)-3,LEN(B47)-2))&"*",PLANILHA_TAREFA[Valor Parc. Total]))) -> 0.3509376676 | N47: 0.23 | O47: 1278.348655 | P47: =IF(F47="",SUMIF(PLANILHA_TAREFA[Cód. Tarefa],"="&B47&"."&"*",PLANILHA_TAREFA[Valor Parc. Total - BDI]),0) -> 0
A48: TRUE | B48: 001.07 | D48: IMPERMEABILIZACAO | G48: 0 | H48: 0 | I48: =IF(AND(J48>=0,E48<>""),IF(K48=0,J48/SUMIF(PLANILHA_TAREFA[Cód. Tarefa],MID(B48,1,IF(ISERR(FIND(".",B48,1))=TRUE,LEN(B48),FIND(".",B48,1)-1)),PLANILHA_TAREFA[Quant.]),K48/E48),K48/SUMIF(PLANILHA_TAREFA[Cód. Tarefa],MID(B48,1,IF(ISERR(FIND(".",B48,1))=TRUE,LEN(B48),FIND(".",B48,1)-1)),PLANILHA_TAREFA[Quant.])) -> 584.9891286 | J48: =IF(A48=TRUE,1,0)*IF(H48>0,H48,G48)*IF(AND(E48=0,F48=""),1,E48)*SUMIF(PLANILHA_TAREFA[Cód. Tarefa],MID(B48,1,IF(ISERR(FIND(".",B48,1))=TRUE,LEN(B48),FIND(".",B48,1)-1)),PLANILHA_TAREFA[Quant.]) -> 0 | K48: =IF(F48="",SUMIF(PLANILHA_TAREFA[Cód. Tarefa],"="&B48&"."&"*",PLANILHA_TAREFA[Valor Parc. Total]),0) -> 584.9891286 | L48: =SUMIF(PLANILHA_TAREFA[Cód. Tarefa],MID(B48,1,IF(ISERR(FIND(".",B48,1))=TRUE,LEN(B48),FIND(".",B48,1)-1)),PLANILHA_TAREFA[Quant.]) -> 1 | M48: =IF(F48="",IF(SUMIF(PLANILHA_TAREFA[Cód. Tarefa],"="&MID(B48,1,IF(ISEVEN(LEN(B48)),LEN(B48)-3,LEN(B48)-2))&"*",PLANILHA_TAREFA[Valor Parc. Total])=0,0,K48/SUMIF(PLANILHA_TAREFA[Cód. Tarefa],"="&MID(B48,1,IF(ISEVEN(LEN(B48)),LEN(B48)-3,LEN(B48)-2))&"*",PLANILHA_TAREFA[Valor Parc. Total])),IF(SUMIF(PLANILHA_TAREFA[Cód. Tarefa],"="&MID(B48,1,IF(ISEVEN(LEN(B48)),LEN(B48)-3,LEN(B48)-2))&"*",PLANILHA_TAREFA[Valor Parc. Total])=0,0,J48/SUMIF(PLANILHA_TAREFA[Cód. Tarefa],"="&MID(B48,1,IF(ISEVEN(LEN(B48)),LEN(B48)-3,LEN(B48)-2))&"*",PLANILHA_TAREFA[Valor Parc. Total]))) -> 0.009494411966 | N48: 0.23 | O48: 0 | P48: =IF(F48="",SUMIF(PLANILHA_TAREFA[Cód. Tarefa],"="&B48&"."&"*",PLANILHA_TAREFA[Valor Parc. Total - BDI]),0) -> 719.5366282
A49: TRUE | B49: 001.07.01 | C49: 500142 | D49: ASSENTAMENTO DAS PRIMEIRAS FIADAS C/ ARGAMASSA C/ IMPERMEABILIZANTE | E49: 51.86 | F49: MT | G49: 6.32717 | H49: 0 | I49: =IF(AND(J49>=0,E49<>""),IF(K49=0,J49/SUMIF(PLANILHA_TAREFA[Cód. Tarefa],MID(B49,1,IF(ISERR(FIND(".",B49,1))=TRUE,LEN(B49),FIND(".",B49,1)-1)),PLANILHA_TAREFA[Quant.]),K49/E49),K49/SUMIF(PLANILHA_TAREFA[Cód. Tarefa],MID(B49,1,IF(ISERR(FIND(".",B49,1))=TRUE,LEN(B49),FIND(".",B49,1)-1)),PLANILHA_TAREFA[Quant.])) -> 328.1270362 | J49: =IF(A49=TRUE,1,0)*IF(H49>0,H49,G49)*IF(AND(E49=0,F49=""),1,E49)*SUMIF(PLANILHA_TAREFA[Cód. Tarefa],MID(B49,1,IF(ISERR(FIND(".",B49,1))=TRUE,LEN(B49),FIND(".",B49,1)-1)),PLANILHA_TAREFA[Quant.]) -> 328.1270362 | K49: =IF(F49="",SUMIF(PLANILHA_TAREFA[Cód. Tarefa],"="&B49&"."&"*",PLANILHA_TAREFA[Valor Parc. Total]),0) -> 0 | L49: =SUMIF(PLANILHA_TAREFA[Cód. Tarefa],MID(B49,1,IF(ISERR(FIND(".",B49,1))=TRUE,LEN(B49),FIND(".",B49,1)-1)),PLANILHA_TAREFA[Quant.]) -> 1 | M49: =IF(F49="",IF(SUMIF(PLANILHA_TAREFA[Cód. Tarefa],"="&MID(B49,1,IF(ISEVEN(LEN(B49)),LEN(B49)-3,LEN(B49)-2))&"*",PLANILHA_TAREFA[Valor Parc. Total])=0,0,K49/SUMIF(PLANILHA_TAREFA[Cód. Tarefa],"="&MID(B49,1,IF(ISEVEN(LEN(B49)),LEN(B49)-3,LEN(B49)-2))&"*",PLANILHA_TAREFA[Valor Parc. Total])),IF(SUMIF(PLANILHA_TAREFA[Cód. Tarefa],"="&MID(B49,1,IF(ISEVEN(LEN(B49)),LEN(B49)-3,LEN(B49)-2))&"*",PLANILHA_TAREFA[Valor Parc. Total])=0,0,J49/SUMIF(PLANILHA_TAREFA[Cód. Tarefa],"="&MID(B49,1,IF(ISEVEN(LEN(B49)),LEN(B49)-3,LEN(B49)-2))&"*",PLANILHA_TAREFA[Valor Parc. Total]))) -> 0.5609113403 | N49: 0.23 | O49: 403.5962545 | P49: =IF(F49="",SUMIF(PLANILHA_TAREFA[Cód. Tarefa],"="&B49&"."&"*",PLANILHA_TAREFA[Valor Parc. Total - BDI]),0) -> 0
A50: TRUE | B50: 001.07.02 | C50: 600681 | D50: BARRADO IMPERMEABILIZADO EXTERNO COM IGOFLEX | E50: 19.87 | F50: M2 | G50: 5.94972 | H50: 0 | I50: =IF(AND(J50>=0,E50<>""),IF(K50=0,J50/SUMIF(PLANILHA_TAREFA[Cód. Tarefa],MID(B50,1,IF(ISERR(FIND(".",B50,1))=TRUE,LEN(B50),FIND(".",B50,1)-1)),PLANILHA_TAREFA[Quant.]),K50/E50),K50/SUMIF(PLANILHA_TAREFA[Cód. Tarefa],MID(B50,1,IF(ISERR(FIND(".",B50,1))=TRUE,LEN(B50),FIND(".",B50,1)-1)),PLANILHA_TAREFA[Quant.])) -> 118.2209364 | J50: =IF(A50=TRUE,1,0)*IF(H50>0,H50,G50)*IF(AND(E50=0,F50=""),1,E50)*SUMIF(PLANILHA_TAREFA[Cód. Tarefa],MID(B50,1,IF(ISERR(FIND(".",B50,1))=TRUE,LEN(B50),FIND(".",B50,1)-1)),PLANILHA_TAREFA[Quant.]) -> 118.2209364 | K50: =IF(F50="",SUMIF(PLANILHA_TAREFA[Cód. Tarefa],"="&B50&"."&"*",PLANILHA_TAREFA[Valor Parc. Total]),0) -> 0 | L50: =SUMIF(PLANILHA_TAREFA[Cód. Tarefa],MID(B50,1,IF(ISERR(FIND(".",B50,1))=TRUE,LEN(B50),FIND(".",B50,1)-1)),PLANILHA_TAREFA[Quant.]) -> 1 | M50: =IF(F50="",IF(SUMIF(PLANILHA_TAREFA[Cód. Tarefa],"="&MID(B50,1,IF(ISEVEN(LEN(B50)),LEN(B50)-3,LEN(B50)-2))&"*",PLANILHA_TAREFA[Valor Parc. Total])=0,0,K50/SUMIF(PLANILHA_TAREFA[Cód. Tarefa],"="&MID(B50,1,IF(ISEVEN(LEN(B50)),LEN(B50)-3,LEN(B50)-2))&"*",PLANILHA_TAREFA[Valor Parc. Total])),IF(SUMIF(PLANILHA_TAREFA[Cód. Tarefa],"="&MID(B50,1,IF(ISEVEN(LEN(B50)),LEN(B50)-3,LEN(B50)-2))&"*",PLANILHA_TAREFA[Valor Parc. Total])=0,0,J50/SUMIF(PLANILHA_TAREFA[Cód. Tarefa],"="&MID(B50,1,IF(ISEVEN(LEN(B50)),LEN(B50)-3,LEN(B50)-2))&"*",PLANILHA_TAREFA[Valor Parc. Total]))) -> 0.2020908263 | N50: 0.23 | O50: 145.4117518 | P50: =IF(F50="",SUMIF(PLANILHA_TAREFA[Cód. Tarefa],"="&B50&"."&"*",PLANILHA_TAREFA[Valor Parc. Total - BDI]),0) -> 0
A51: TRUE | B51: 001.07.03 | C51: 600627 | D51: IMPERMEABILIZACAO C/ SIKATOP | E51: 31.12 | F51: M2 | G51: 4.45505 | H51: 0 | I51: =IF(AND(J51>=0,E51<>""),IF(K51=0,J51/SUMIF(PLANILHA_TAREFA[Cód. Tarefa],MID(B51,1,IF(ISERR(FIND(".",B51,1))=TRUE,LEN(B51),FIND(".",B51,1)-1)),PLANILHA_TAREFA[Quant.]),K51/E51),K51/SUMIF(PLANILHA_TAREFA[Cód. Tarefa],MID(B51,1,IF(ISERR(FIND(".",B51,1))=TRUE,LEN(B51),FIND(".",B51,1)-1)),PLANILHA_TAREFA[Quant.])) -> 138.641156 | J51: =IF(A51=TRUE,1,0)*IF(H51>0,H51,G51)*IF(AND(E51=0,F51=""),1,E51)*SUMIF(PLANILHA_TAREFA[Cód. Tarefa],MID(B51,1,IF(ISERR(FIND(".",B51,1))=TRUE,LEN(B51),FIND(".",B51,1)-1)),PLANILHA_TAREFA[Quant.]) -> 138.641156 | K51: =IF(F51="",SUMIF(PLANILHA_TAREFA[Cód. Tarefa],"="&B51&"."&"*",PLANILHA_TAREFA[Valor Parc. Total]),0) -> 0 | L51: =SUMIF(PLANILHA_TAREFA[Cód. Tarefa],MID(B51,1,IF(ISERR(FIND(".",B51,1))=TRUE,LEN(B51),FIND(".",B51,1)-1)),PLANILHA_TAREFA[Quant.]) -> 1 | M51: =IF(F51="",IF(SUMIF(PLANILHA_TAREFA[Cód. Tarefa],"="&MID(B51,1,IF(ISEVEN(LEN(B51)),LEN(B51)-3,LEN(B51)-2))&"*",PLANILHA_TAREFA[Valor Parc. Total])=0,0,K51/SUMIF(PLANILHA_TAREFA[Cód. Tarefa],"="&MID(B51,1,IF(ISEVEN(LEN(B51)),LEN(B51)-3,LEN(B51)-2))&"*",PLANILHA_TAREFA[Valor Parc. Total])),IF(SUMIF(PLANILHA_TAREFA[Cód. Tarefa],"="&MID(B51,1,IF(ISEVEN(LEN(B51)),LEN(B51)-3,LEN(B51)-2))&"*",PLANILHA_TAREFA[Valor Parc. Total])=0,0,J51/SUMIF(PLANILHA_TAREFA[Cód. Tarefa],"="&MID(B51,1,IF(ISEVEN(LEN(B51)),LEN(B51)-3,LEN(B51)-2))&"*",PLANILHA_TAREFA[Valor Parc. Total]))) -> 0.2369978333 | N51: 0.23 | O51: 170.5286219 | P51: =IF(F51="",SUMIF(PLANILHA_TAREFA[Cód. Tarefa],"="&B51&"."&"*",PLANILHA_TAREFA[Valor Parc. Total - BDI]),0) -> 0
A52: TRUE | B52: 001.08 | D52: REVESTIMENTO | G52: 0 | H52: 0 | I52: =IF(AND(J52>=0,E52<>""),IF(K52=0,J52/SUMIF(PLANILHA_TAREFA[Cód. Tarefa],MID(B52,1,IF(ISERR(FIND(".",B52,1))=TRUE,LEN(B52),FIND(".",B52,1)-1)),PLANILHA_TAREFA[Quant.]),K52/E52),K52/SUMIF(PLANILHA_TAREFA[Cód. Tarefa],MID(B52,1,IF(ISERR(FIND(".",B52,1))=TRUE,LEN(B52),FIND(".",B52,1)-1)),PLANILHA_TAREFA[Quant.])) -> 9293.377084 | J52: =IF(A52=TRUE,1,0)*IF(H52>0,H52,G52)*IF(AND(E52=0,F52=""),1,E52)*SUMIF(PLANILHA_TAREFA[Cód. Tarefa],MID(B52,1,IF(ISERR(FIND(".",B52,1))=TRUE,LEN(B52),FIND(".",B52,1)-1)),PLANILHA_TAREFA[Quant.]) -> 0 | K52: =IF(F52="",SUMIF(PLANILHA_TAREFA[Cód. Tarefa],"="&B52&"."&"*",PLANILHA_TAREFA[Valor Parc. Total]),0) -> 9293.377084 | L52: =SUMIF(PLANILHA_TAREFA[Cód. Tarefa],MID(B52,1,IF(ISERR(FIND(".",B52,1))=TRUE,LEN(B52),FIND(".",B52,1)-1)),PLANILHA_TAREFA[Quant.]) -> 1 | M52: =IF(F52="",IF(SUMIF(PLANILHA_TAREFA[Cód. Tarefa],"="&MID(B52,1,IF(ISEVEN(LEN(B52)),LEN(B52)-3,LEN(B52)-2))&"*",PLANILHA_TAREFA[Valor Parc. Total])=0,0,K52/SUMIF(PLANILHA_TAREFA[Cód. Tarefa],"="&MID(B52,1,IF(ISEVEN(LEN(B52)),LEN(B52)-3,LEN(B52)-2))&"*",PLANILHA_TAREFA[Valor Parc. Total])),IF(SUMIF(PLANILHA_TAREFA[Cód. Tarefa],"="&MID(B52,1,IF(ISEVEN(LEN(B52)),LEN(B52)-3,LEN(B52)-2))&"*",PLANILHA_TAREFA[Valor Parc. Total])=0,0,J52/SUMIF(PLANILHA_TAREFA[Cód. Tarefa],"="&MID(B52,1,IF(ISEVEN(LEN(B52)),LEN(B52)-3,LEN(B52)-2))&"*",PLANILHA_TAREFA[Valor Parc. Total]))) -> 0.1508321203 | N52: 0.23 | O52: 0 | P52: =IF(F52="",SUMIF(PLANILHA_TAREFA[Cód. Tarefa],"="&B52&"."&"*",PLANILHA_TAREFA[Valor Parc. Total - BDI]),0) -> 11430.85381
A53: TRUE | B53: 001.08.01 | D53: REVESTIMENTO INTERNO | G53: 0 | H53: 0 | I53: =IF(AND(J53>=0,E53<>""),IF(K53=0,J53/SUMIF(PLANILHA_TAREFA[Cód. Tarefa],MID(B53,1,IF(ISERR(FIND(".",B53,1))=TRUE,LEN(B53),FIND(".",B53,1)-1)),PLANILHA_TAREFA[Quant.]),K53/E53),K53/SUMIF(PLANILHA_TAREFA[Cód. Tarefa],MID(B53,1,IF(ISERR(FIND(".",B53,1))=TRUE,LEN(B53),FIND(".",B53,1)-1)),PLANILHA_TAREFA[Quant.])) -> 5178.810806 | J53: =IF(A53=TRUE,1,0)*IF(H53>0,H53,G53)*IF(AND(E53=0,F53=""),1,E53)*SUMIF(PLANILHA_TAREFA[Cód. Tarefa],MID(B53,1,IF(ISERR(FIND(".",B53,1))=TRUE,LEN(B53),FIND(".",B53,1)-1)),PLANILHA_TAREFA[Quant.]) -> 0 | K53: =IF(F53="",SUMIF(PLANILHA_TAREFA[Cód. Tarefa],"="&B53&"."&"*",PLANILHA_TAREFA[Valor Parc. Total]),0) -> 5178.810806 | L53: =SUMIF(PLANILHA_TAREFA[Cód. Tarefa],MID(B53,1,IF(ISERR(FIND(".",B53,1))=TRUE,LEN(B53),FIND(".",B53,1)-1)),PLANILHA_TAREFA[Quant.]) -> 1 | M53: =IF(F53="",IF(SUMIF(PLANILHA_TAREFA[Cód. Tarefa],"="&MID(B53,1,IF(ISEVEN(LEN(B53)),LEN(B53)-3,LEN(B53)-2))&"*",PLANILHA_TAREFA[Valor Parc. Total])=0,0,K53/SUMIF(PLANILHA_TAREFA[Cód. Tarefa],"="&MID(B53,1,IF(ISEVEN(LEN(B53)),LEN(B53)-3,LEN(B53)-2))&"*",PLANILHA_TAREFA[Valor Parc. Total])),IF(SUMIF(PLANILHA_TAREFA[Cód. Tarefa],"="&MID(B53,1,IF(ISEVEN(LEN(B53)),LEN(B53)-3,LEN(B53)-2))&"*",PLANILHA_TAREFA[Valor Parc. Total])=0,0,J53/SUMIF(PLANILHA_TAREFA[Cód. Tarefa],"="&MID(B53,1,IF(ISEVEN(LEN(B53)),LEN(B53)-3,LEN(B53)-2))&"*",PLANILHA_TAREFA[Valor Parc. Total]))) -> 0.5572582237 | N53: 0.23 | O53: 0 | P53: =IF(F53="",SUMIF(PLANILHA_TAREFA[Cód. Tarefa],"="&B53&"."&"*",PLANILHA_TAREFA[Valor Parc. Total - BDI]),0) -> 6369.937292
A54: TRUE | B54: 001.08.01.01 | C54: 500031 | D54: CHAPISCO | E54: 224.96 | F54: M2 | G54: 2.24575 | H54: 0 | I54: =IF(AND(J54>=0,E54<>""),IF(K54=0,J54/SUMIF(PLANILHA_TAREFA[Cód. Tarefa],MID(B54,1,IF(ISERR(FIND(".",B54,1))=TRUE,LEN(B54),FIND(".",B54,1)-1)),PLANILHA_TAREFA[Quant.]),K54/E54),K54/SUMIF(PLANILHA_TAREFA[Cód. Tarefa],MID(B54,1,IF(ISERR(FIND(".",B54,1))=TRUE,LEN(B54),FIND(".",B54,1)-1)),PLANILHA_TAREFA[Quant.])) -> 505.20392 | J54: =IF(A54=TRUE,1,0)*IF(H54>0,H54,G54)*IF(AND(E54=0,F54=""),1,E54)*SUMIF(PLANILHA_TAREFA[Cód. Tarefa],MID(B54,1,IF(ISERR(FIND(".",B54,1))=TRUE,LEN(B54),FIND(".",B54,1)-1)),PLANILHA_TAREFA[Quant.]) -> 505.20392 | K54: =IF(F54="",SUMIF(PLANILHA_TAREFA[Cód. Tarefa],"="&B54&"."&"*",PLANILHA_TAREFA[Valor Parc. Total]),0) -> 0 | L54: =SUMIF(PLANILHA_TAREFA[Cód. Tarefa],MID(B54,1,IF(ISERR(FIND(".",B54,1))=TRUE,LEN(B54),FIND(".",B54,1)-1)),PLANILHA_TAREFA[Quant.]) -> 1 | M54: =IF(F54="",IF(SUMIF(PLANILHA_TAREFA[Cód. Tarefa],"="&MID(B54,1,IF(ISEVEN(LEN(B54)),LEN(B54)-3,LEN(B54)-2))&"*",PLANILHA_TAREFA[Valor Parc. Total])=0,0,K54/SUMIF(PLANILHA_TAREFA[Cód. Tarefa],"="&MID(B54,1,IF(ISEVEN(LEN(B54)),LEN(B54)-3,LEN(B54)-2))&"*",PLANILHA_TAREFA[Valor Parc. Total])),IF(SUMIF(PLANILHA_TAREFA[Cód. Tarefa],"="&MID(B54,1,IF(ISEVEN(LEN(B54)),LEN(B54)-3,LEN(B54)-2))&"*",PLANILHA_TAREFA[Valor Parc. Total])=0,0,J54/SUMIF(PLANILHA_TAREFA[Cód. Tarefa],"="&MID(B54,1,IF(ISEVEN(LEN(B54)),LEN(B54)-3,LEN(B54)-2))&"*",PLANILHA_TAREFA[Valor Parc. Total]))) -> 0.09755210972 | N54: 0.23 | O54: 621.4008216 | P54: =IF(F54="",SUMIF(PLANILHA_TAREFA[Cód. Tarefa],"="&B54&"."&"*",PLANILHA_TAREFA[Valor Parc. Total - BDI]),0) -> 0
A55: TRUE | B55: 001.08.01.02 | C55: 500033 | D55: EMBOCO | E55: 224.96 | F55: M2 | G55: 18.73623 | H55: 0 | I55: =IF(AND(J55>=0,E55<>""),IF(K55=0,J55/SUMIF(PLANILHA_TAREFA[Cód. Tarefa],MID(B55,1,IF(ISERR(FIND(".",B55,1))=TRUE,LEN(B55),FIND(".",B55,1)-1)),PLANILHA_TAREFA[Quant.]),K55/E55),K55/SUMIF(PLANILHA_TAREFA[Cód. Tarefa],MID(B55,1,IF(ISERR(FIND(".",B55,1))=TRUE,LEN(B55),FIND(".",B55,1)-1)),PLANILHA_TAREFA[Quant.])) -> 4214.902301 | J55: =IF(A55=TRUE,1,0)*IF(H55>0,H55,G55)*IF(AND(E55=0,F55=""),1,E55)*SUMIF(PLANILHA_TAREFA[Cód. Tarefa],MID(B55,1,IF(ISERR(FIND(".",B55,1))=TRUE,LEN(B55),FIND(".",B55,1)-1)),PLANILHA_TAREFA[Quant.]) -> 4214.902301 | K55: =IF(F55="",SUMIF(PLANILHA_TAREFA[Cód. Tarefa],"="&B55&"."&"*",PLANILHA_TAREFA[Valor Parc. Total]),0) -> 0 | L55: =SUMIF(PLANILHA_TAREFA[Cód. Tarefa],MID(B55,1,IF(ISERR(FIND(".",B55,1))=TRUE,LEN(B55),FIND(".",B55,1)-1)),PLANILHA_TAREFA[Quant.]) -> 1 | M55: =IF(F55="",IF(SUMIF(PLANILHA_TAREFA[Cód. Tarefa],"="&MID(B55,1,IF(ISEVEN(LEN(B55)),LEN(B55)-3,LEN(B55)-2))&"*",PLANILHA_TAREFA[Valor Parc. Total])=0,0,K55/SUMIF(PLANILHA_TAREFA[Cód. Tarefa],"="&MID(B55,1,IF(ISEVEN(LEN(B55)),LEN(B55)-3,LEN(B55)-2))&"*",PLANILHA_TAREFA[Valor Parc. Total])),IF(SUMIF(PLANILHA_TAREFA[Cód. Tarefa],"="&MID(B55,1,IF(ISEVEN(LEN(B55)),LEN(B55)-3,LEN(B55)-2))&"*",PLANILHA_TAREFA[Valor Parc. Total])=0,0,J55/SUMIF(PLANILHA_TAREFA[Cód. Tarefa],"="&MID(B55,1,IF(ISEVEN(LEN(B55)),LEN(B55)-3,LEN(B55)-2))&"*",PLANILHA_TAREFA[Valor Parc. Total]))) -> 0.8138745474 | N55: 0.23 | O55: 5184.32983 | P55: =IF(F55="",SUMIF(PLANILHA_TAREFA[Cód. Tarefa],"="&B55&"."&"*",PLANILHA_TAREFA[Valor Parc. Total - BDI]),0) -> 0
A56: TRUE | B56: 001.08.01.03 | C56: 003017 | D56: AZULEJO BRANCO 15,0 X 15,0 CM | E56: 15.37 | F56: M2 | G56: 29.84415 | H56: 0 | I56: =IF(AND(J56>=0,E56<>""),IF(K56=0,J56/SUMIF(PLANILHA_TAREFA[Cód. Tarefa],MID(B56,1,IF(ISERR(FIND(".",B56,1))=TRUE,LEN(B56),FIND(".",B56,1)-1)),PLANILHA_TAREFA[Quant.]),K56/E56),K56/SUMIF(PLANILHA_TAREFA[Cód. Tarefa],MID(B56,1,IF(ISERR(FIND(".",B56,1))=TRUE,LEN(B56),FIND(".",B56,1)-1)),PLANILHA_TAREFA[Quant.])) -> 458.7045855 | J56: =IF(A56=TRUE,1,0)*IF(H56>0,H56,G56)*IF(AND(E56=0,F56=""),1,E56)*SUMIF(PLANILHA_TAREFA[Cód. Tarefa],MID(B56,1,IF(ISERR(FIND(".",B56,1))=TRUE,LEN(B56),FIND(".",B56,1)-1)),PLANILHA_TAREFA[Quant.]) -> 458.7045855 | K56: =IF(F56="",SUMIF(PLANILHA_TAREFA[Cód. Tarefa],"="&B56&"."&"*",PLANILHA_TAREFA[Valor Parc. Total]),0) -> 0 | L56: =SUMIF(PLANILHA_TAREFA[Cód. Tarefa],MID(B56,1,IF(ISERR(FIND(".",B56,1))=TRUE,LEN(B56),FIND(".",B56,1)-1)),PLANILHA_TAREFA[Quant.]) -> 1 | M56: =IF(F56="",IF(SUMIF(PLANILHA_TAREFA[Cód. Tarefa],"="&MID(B56,1,IF(ISEVEN(LEN(B56)),LEN(B56)-3,LEN(B56)-2))&"*",PLANILHA_TAREFA[Valor Parc. Total])=0,0,K56/SUMIF(PLANILHA_TAREFA[Cód. Tarefa],"="&MID(B56,1,IF(ISEVEN(LEN(B56)),LEN(B56)-3,LEN(B56)-2))&"*",PLANILHA_TAREFA[Valor Parc. Total])),IF(SUMIF(PLANILHA_TAREFA[Cód. Tarefa],"="&MID(B56,1,IF(ISEVEN(LEN(B56)),LEN(B56)-3,LEN(B56)-2))&"*",PLANILHA_TAREFA[Valor Parc. Total])=0,0,J56/SUMIF(PLANILHA_TAREFA[Cód. Tarefa],"="&MID(B56,1,IF(ISEVEN(LEN(B56)),LEN(B56)-3,LEN(B56)-2))&"*",PLANILHA_TAREFA[Valor Parc. Total]))) -> 0.08857334293 | N56: 0.23 | O56: 564.2066402 | P56: =IF(F56="",SUMIF(PLANILHA_TAREFA[Cód. Tarefa],"="&B56&"."&"*",PLANILHA_TAREFA[Valor Parc. Total - BDI]),0) -> 0
A57: TRUE | B57: 001.08.02 | D57: REVESTIMENTO EXTERNO | G57: 0 | H57: 0 | I57: =IF(AND(J57>=0,E57<>""),IF(K57=0,J57/SUMIF(PLANILHA_TAREFA[Cód. Tarefa],MID(B57,1,IF(ISERR(FIND(".",B57,1))=TRUE,LEN(B57),FIND(".",B57,1)-1)),PLANILHA_TAREFA[Quant.]),K57/E57),K57/SUMIF(PLANILHA_TAREFA[Cód. Tarefa],MID(B57,1,IF(ISERR(FIND(".",B57,1))=TRUE,LEN(B57),FIND(".",B57,1)-1)),PLANILHA_TAREFA[Quant.])) -> 4114.566278 | J57: =IF(A57=TRUE,1,0)*IF(H57>0,H57,G57)*IF(AND(E57=0,F57=""),1,E57)*SUMIF(PLANILHA_TAREFA[Cód. Tarefa],MID(B57,1,IF(ISERR(FIND(".",B57,1))=TRUE,LEN(B57),FIND(".",B57,1)-1)),PLANILHA_TAREFA[Quant.]) -> 0 | K57: =IF(F57="",SUMIF(PLANILHA_TAREFA[Cód. Tarefa],"="&B57&"."&"*",PLANILHA_TAREFA[Valor Parc. Total]),0) -> 4114.566278 | L57: =SUMIF(PLANILHA_TAREFA[Cód. Tarefa],MID(B57,1,IF(ISERR(FIND(".",B57,1))=TRUE,LEN(B57),FIND(".",B57,1)-1)),PLANILHA_TAREFA[Quant.]) -> 1 | M57: =IF(F57="",IF(SUMIF(PLANILHA_TAREFA[Cód. Tarefa],"="&MID(B57,1,IF(ISEVEN(LEN(B57)),LEN(B57)-3,LEN(B57)-2))&"*",PLANILHA_TAREFA[Valor Parc. Total])=0,0,K57/SUMIF(PLANILHA_TAREFA[Cód. Tarefa],"="&MID(B57,1,IF(ISEVEN(LEN(B57)),LEN(B57)-3,LEN(B57)-2))&"*",PLANILHA_TAREFA[Valor Parc. Total])),IF(SUMIF(PLANILHA_TAREFA[Cód. Tarefa],"="&MID(B57,1,IF(ISEVEN(LEN(B57)),LEN(B57)-3,LEN(B57)-2))&"*",PLANILHA_TAREFA[Valor Parc. Total])=0,0,J57/SUMIF(PLANILHA_TAREFA[Cód. Tarefa],"="&MID(B57,1,IF(ISEVEN(LEN(B57)),LEN(B57)-3,LEN(B57)-2))&"*",PLANILHA_TAREFA[Valor Parc. Total]))) -> 0.4427417763 | N57: 0.23 | O57: 0 | P57: =IF(F57="",SUMIF(PLANILHA_TAREFA[Cód. Tarefa],"="&B57&"."&"*",PLANILHA_TAREFA[Valor Parc. Total - BDI]),0) -> 5060.916522
A58: TRUE | B58: 001.08.02.01 | C58: 500031 | D58: CHAPISCO | E58: 196.1 | F58: M2 | G58: 2.24575 | H58: 0 | I58: =IF(AND(J58>=0,E58<>""),IF(K58=0,J58/SUMIF(PLANILHA_TAREFA[Cód. Tarefa],MID(B58,1,IF(ISERR(FIND(".",B58,1))=TRUE,LEN(B58),FIND(".",B58,1)-1)),PLANILHA_TAREFA[Quant.]),K58/E58),K58/SUMIF(PLANILHA_TAREFA[Cód. Tarefa],MID(B58,1,IF(ISERR(FIND(".",B58,1))=TRUE,LEN(B58),FIND(".",B58,1)-1)),PLANILHA_TAREFA[Quant.])) -> 440.391575 | J58: =IF(A58=TRUE,1,0)*IF(H58>0,H58,G58)*IF(AND(E58=0,F58=""),1,E58)*SUMIF(PLANILHA_TAREFA[Cód. Tarefa],MID(B58,1,IF(ISERR(FIND(".",B58,1))=TRUE,LEN(B58),FIND(".",B58,1)-1)),PLANILHA_TAREFA[Quant.]) -> 440.391575 | K58: =IF(F58="",SUMIF(PLANILHA_TAREFA[Cód. Tarefa],"="&B58&"."&"*",PLANILHA_TAREFA[Valor Parc. Total]),0) -> 0 | L58: =SUMIF(PLANILHA_TAREFA[Cód. Tarefa],MID(B58,1,IF(ISERR(FIND(".",B58,1))=TRUE,LEN(B58),FIND(".",B58,1)-1)),PLANILHA_TAREFA[Quant.]) -> 1 | M58: =IF(F58="",IF(SUMIF(PLANILHA_TAREFA[Cód. Tarefa],"="&MID(B58,1,IF(ISEVEN(LEN(B58)),LEN(B58)-3,LEN(B58)-2))&"*",PLANILHA_TAREFA[Valor Parc. Total])=0,0,K58/SUMIF(PLANILHA_TAREFA[Cód. Tarefa],"="&MID(B58,1,IF(ISEVEN(LEN(B58)),LEN(B58)-3,LEN(B58)-2))&"*",PLANILHA_TAREFA[Valor Parc. Total])),IF(SUMIF(PLANILHA_TAREFA[Cód. Tarefa],"="&MID(B58,1,IF(ISEVEN(LEN(B58)),LEN(B58)-3,LEN(B58)-2))&"*",PLANILHA_TAREFA[Valor Parc. Total])=0,0,J58/SUMIF(PLANILHA_TAREFA[Cód. Tarefa],"="&MID(B58,1,IF(ISEVEN(LEN(B58)),LEN(B58)-3,LEN(B58)-2))&"*",PLANILHA_TAREFA[Valor Parc. Total]))) -> 0.1070323201 | N58: 0.23 | O58: 541.6816372 | P58: =IF(F58="",SUMIF(PLANILHA_TAREFA[Cód. Tarefa],"="&B58&"."&"*",PLANILHA_TAREFA[Valor Parc. Total - BDI]),0) -> 0
A59: TRUE | B59: 001.08.02.02 | C59: 500033 | D59: EMBOCO | E59: 196.1 | F59: M2 | G59: 18.73623 | H59: 0 | I59: =IF(AND(J59>=0,E59<>""),IF(K59=0,J59/SUMIF(PLANILHA_TAREFA[Cód. Tarefa],MID(B59,1,IF(ISERR(FIND(".",B59,1))=TRUE,LEN(B59),FIND(".",B59,1)-1)),PLANILHA_TAREFA[Quant.]),K59/E59),K59/SUMIF(PLANILHA_TAREFA[Cód. Tarefa],MID(B59,1,IF(ISERR(FIND(".",B59,1))=TRUE,LEN(B59),FIND(".",B59,1)-1)),PLANILHA_TAREFA[Quant.])) -> 3674.174703 | J59: =IF(A59=TRUE,1,0)*IF(H59>0,H59,G59)*IF(AND(E59=0,F59=""),1,E59)*SUMIF(PLANILHA_TAREFA[Cód. Tarefa],MID(B59,1,IF(ISERR(FIND(".",B59,1))=TRUE,LEN(B59),FIND(".",B59,1)-1)),PLANILHA_TAREFA[Quant.]) -> 3674.174703 | K59: =IF(F59="",SUMIF(PLANILHA_TAREFA[Cód. Tarefa],"="&B59&"."&"*",PLANILHA_TAREFA[Valor Parc. Total]),0) -> 0 | L59: =SUMIF(PLANILHA_TAREFA[Cód. Tarefa],MID(B59,1,IF(ISERR(FIND(".",B59,1))=TRUE,LEN(B59),FIND(".",B59,1)-1)),PLANILHA_TAREFA[Quant.]) -> 1 | M59: =IF(F59="",IF(SUMIF(PLANILHA_TAREFA[Cód. Tarefa],"="&MID(B59,1,IF(ISEVEN(LEN(B59)),LEN(B59)-3,LEN(B59)-2))&"*",PLANILHA_TAREFA[Valor Parc. Total])=0,0,K59/SUMIF(PLANILHA_TAREFA[Cód. Tarefa],"="&MID(B59,1,IF(ISEVEN(LEN(B59)),LEN(B59)-3,LEN(B59)-2))&"*",PLANILHA_TAREFA[Valor Parc. Total])),IF(SUMIF(PLANILHA_TAREFA[Cód. Tarefa],"="&MID(B59,1,IF(ISEVEN(LEN(B59)),LEN(B59)-3,LEN(B59)-2))&"*",PLANILHA_TAREFA[Valor Parc. Total])=0,0,J59/SUMIF(PLANILHA_TAREFA[Cód. Tarefa],"="&MID(B59,1,IF(ISEVEN(LEN(B59)),LEN(B59)-3,LEN(B59)-2))&"*",PLANILHA_TAREFA[Valor Parc. Total]))) -> 0.8929676799 | N59: 0.23 | O59: 4519.234885 | P59: =IF(F59="",SUMIF(PLANILHA_TAREFA[Cód. Tarefa],"="&B59&"."&"*",PLANILHA_TAREFA[Valor Parc. Total - BDI]),0) -> 0
A60: TRUE | B60: 001.09 | D60: REVESTIMENTO DE PISO | G60: 0 | H60: 0 | I60: =IF(AND(J60>=0,E60<>""),IF(K60=0,J60/SUMIF(PLANILHA_TAREFA[Cód. Tarefa],MID(B60,1,IF(ISERR(FIND(".",B60,1))=TRUE,LEN(B60),FIND(".",B60,1)-1)),PLANILHA_TAREFA[Quant.]),K60/E60),K60/SUMIF(PLANILHA_TAREFA[Cód. Tarefa],MID(B60,1,IF(ISERR(FIND(".",B60,1))=TRUE,LEN(B60),FIND(".",B60,1)-1)),PLANILHA_TAREFA[Quant.])) -> 3073.865452 | J60: =IF(A60=TRUE,1,0)*IF(H60>0,H60,G60)*IF(AND(E60=0,F60=""),1,E60)*SUMIF(PLANILHA_TAREFA[Cód. Tarefa],MID(B60,1,IF(ISERR(FIND(".",B60,1))=TRUE,LEN(B60),FIND(".",B60,1)-1)),PLANILHA_TAREFA[Quant.]) -> 0 | K60: =IF(F60="",SUMIF(PLANILHA_TAREFA[Cód. Tarefa],"="&B60&"."&"*",PLANILHA_TAREFA[Valor Parc. Total]),0) -> 3073.865452 | L60: =SUMIF(PLANILHA_TAREFA[Cód. Tarefa],MID(B60,1,IF(ISERR(FIND(".",B60,1))=TRUE,LEN(B60),FIND(".",B60,1)-1)),PLANILHA_TAREFA[Quant.]) -> 1 | M60: =IF(F60="",IF(SUMIF(PLANILHA_TAREFA[Cód. Tarefa],"="&MID(B60,1,IF(ISEVEN(LEN(B60)),LEN(B60)-3,LEN(B60)-2))&"*",PLANILHA_TAREFA[Valor Parc. Total])=0,0,K60/SUMIF(PLANILHA_TAREFA[Cód. Tarefa],"="&MID(B60,1,IF(ISEVEN(LEN(B60)),LEN(B60)-3,LEN(B60)-2))&"*",PLANILHA_TAREFA[Valor Parc. Total])),IF(SUMIF(PLANILHA_TAREFA[Cód. Tarefa],"="&MID(B60,1,IF(ISEVEN(LEN(B60)),LEN(B60)-3,LEN(B60)-2))&"*",PLANILHA_TAREFA[Valor Parc. Total])=0,0,J60/SUMIF(PLANILHA_TAREFA[Cód. Tarefa],"="&MID(B60,1,IF(ISEVEN(LEN(B60)),LEN(B60)-3,LEN(B60)-2))&"*",PLANILHA_TAREFA[Valor Parc. Total]))) -> 0.04988903811 | N60: 0.23 | O60: 0 | P60: =IF(F60="",SUMIF(PLANILHA_TAREFA[Cód. Tarefa],"="&B60&"."&"*",PLANILHA_TAREFA[Valor Parc. Total - BDI]),0) -> 3780.854506
A61: TRUE | B61: 001.09.01 | C61: 001780 | D61: REGULARIZACAO PISO 1:3 DESEMPENADO E=3CM | E61: 45.6 | F61: M2 | G61: 17.51509 | H61: 0 | I61: =IF(AND(J61>=0,E61<>""),IF(K61=0,J61/SUMIF(PLANILHA_TAREFA[Cód. Tarefa],MID(B61,1,IF(ISERR(FIND(".",B61,1))=TRUE,LEN(B61),FIND(".",B61,1)-1)),PLANILHA_TAREFA[Quant.]),K61/E61),K61/SUMIF(PLANILHA_TAREFA[Cód. Tarefa],MID(B61,1,IF(ISERR(FIND(".",B61,1))=TRUE,LEN(B61),FIND(".",B61,1)-1)),PLANILHA_TAREFA[Quant.])) -> 798.688104 | J61: =IF(A61=TRUE,1,0)*IF(H61>0,H61,G61)*IF(AND(E61=0,F61=""),1,E61)*SUMIF(PLANILHA_TAREFA[Cód. Tarefa],MID(B61,1,IF(ISERR(FIND(".",B61,1))=TRUE,LEN(B61),FIND(".",B61,1)-1)),PLANILHA_TAREFA[Quant.]) -> 798.688104 | K61: =IF(F61="",SUMIF(PLANILHA_TAREFA[Cód. Tarefa],"="&B61&"."&"*",PLANILHA_TAREFA[Valor Parc. Total]),0) -> 0 | L61: =SUMIF(PLANILHA_TAREFA[Cód. Tarefa],MID(B61,1,IF(ISERR(FIND(".",B61,1))=TRUE,LEN(B61),FIND(".",B61,1)-1)),PLANILHA_TAREFA[Quant.]) -> 1 | M61: =IF(F61="",IF(SUMIF(PLANILHA_TAREFA[Cód. Tarefa],"="&MID(B61,1,IF(ISEVEN(LEN(B61)),LEN(B61)-3,LEN(B61)-2))&"*",PLANILHA_TAREFA[Valor Parc. Total])=0,0,K61/SUMIF(PLANILHA_TAREFA[Cód. Tarefa],"="&MID(B61,1,IF(ISEVEN(LEN(B61)),LEN(B61)-3,LEN(B61)-2))&"*",PLANILHA_TAREFA[Valor Parc. Total])),IF(SUMIF(PLANILHA_TAREFA[Cód. Tarefa],"="&MID(B61,1,IF(ISEVEN(LEN(B61)),LEN(B61)-3,LEN(B61)-2))&"*",PLANILHA_TAREFA[Valor Parc. Total])=0,0,J61/SUMIF(PLANILHA_TAREFA[Cód. Tarefa],"="&MID(B61,1,IF(ISEVEN(LEN(B61)),LEN(B61)-3,LEN(B61)-2))&"*",PLANILHA_TAREFA[Valor Parc. Total]))) -> 0.259831836 | N61: 0.23 | O61: 982.3863679 | P61: =IF(F61="",SUMIF(PLANILHA_TAREFA[Cód. Tarefa],"="&B61&"."&"*",PLANILHA_TAREFA[Valor Parc. Total - BDI]),0) -> 0
A62: TRUE | B62: 001.09.02 | C62: 401646 | D62: PISO CERAMICO 30,0 X 30,0 CM C/ REJUNTE | E62: 45.6 | F62: M2 | G62: 30.38362 | H62: 0 | I62: =IF(AND(J62>=0,E62<>""),IF(K62=0,J62/SUMIF(PLANILHA_TAREFA[Cód. Tarefa],MID(B62,1,IF(ISERR(FIND(".",B62,1))=TRUE,LEN(B62),FIND(".",B62,1)-1)),PLANILHA_TAREFA[Quant.]),K62/E62),K62/SUMIF(PLANILHA_TAREFA[Cód. Tarefa],MID(B62,1,IF(ISERR(FIND(".",B62,1))=TRUE,LEN(B62),FIND(".",B62,1)-1)),PLANILHA_TAREFA[Quant.])) -> 1385.493072 | J62: =IF(A62=TRUE,1,0)*IF(H62>0,H62,G62)*IF(AND(E62=0,F62=""),1,E62)*SUMIF(PLANILHA_TAREFA[Cód. Tarefa],MID(B62,1,IF(ISERR(FIND(".",B62,1))=TRUE,LEN(B62),FIND(".",B62,1)-1)),PLANILHA_TAREFA[Quant.]) -> 1385.493072 | K62: =IF(F62="",SUMIF(PLANILHA_TAREFA[Cód. Tarefa],"="&B62&"."&"*",PLANILHA_TAREFA[Valor Parc. Total]),0) -> 0 | L62: =SUMIF(PLANILHA_TAREFA[Cód. Tarefa],MID(B62,1,IF(ISERR(FIND(".",B62,1))=TRUE,LEN(B62),FIND(".",B62,1)-1)),PLANILHA_TAREFA[Quant.]) -> 1 | M62: =IF(F62="",IF(SUMIF(PLANILHA_TAREFA[Cód. Tarefa],"="&MID(B62,1,IF(ISEVEN(LEN(B62)),LEN(B62)-3,LEN(B62)-2))&"*",PLANILHA_TAREFA[Valor Parc. Total])=0,0,K62/SUMIF(PLANILHA_TAREFA[Cód. Tarefa],"="&MID(B62,1,IF(ISEVEN(LEN(B62)),LEN(B62)-3,LEN(B62)-2))&"*",PLANILHA_TAREFA[Valor Parc. Total])),IF(SUMIF(PLANILHA_TAREFA[Cód. Tarefa],"="&MID(B62,1,IF(ISEVEN(LEN(B62)),LEN(B62)-3,LEN(B62)-2))&"*",PLANILHA_TAREFA[Valor Parc. Total])=0,0,J62/SUMIF(PLANILHA_TAREFA[Cód. Tarefa],"="&MID(B62,1,IF(ISEVEN(LEN(B62)),LEN(B62)-3,LEN(B62)-2))&"*",PLANILHA_TAREFA[Valor Parc. Total]))) -> 0.4507331546 | N62: 0.23 | O62: 1704.156479 | P62: =IF(F62="",SUMIF(PLANILHA_TAREFA[Cód. Tarefa],"="&B62&"."&"*",PLANILHA_TAREFA[Valor Parc. Total - BDI]),0) -> 0
A63: TRUE | B63: 001.09.03 | C63: 500154 | D63: RODAPE CERAMICO H = 05,0 CM | E63: 60.58 | F63: MT | G63: 1.71515 | H63: 0 | I63: =IF(AND(J63>=0,E63<>""),IF(K63=0,J63/SUMIF(PLANILHA_TAREFA[Cód. Tarefa],MID(B63,1,IF(ISERR(FIND(".",B63,1))=TRUE,LEN(B63),FIND(".",B63,1)-1)),PLANILHA_TAREFA[Quant.]),K63/E63),K63/SUMIF(PLANILHA_TAREFA[Cód. Tarefa],MID(B63,1,IF(ISERR(FIND(".",B63,1))=TRUE,LEN(B63),FIND(".",B63,1)-1)),PLANILHA_TAREFA[Quant.])) -> 103.903787 | J63: =IF(A63=TRUE,1,0)*IF(H63>0,H63,G63)*IF(AND(E63=0,F63=""),1,E63)*SUMIF(PLANILHA_TAREFA[Cód. Tarefa],MID(B63,1,IF(ISERR(FIND(".",B63,1))=TRUE,LEN(B63),FIND(".",B63,1)-1)),PLANILHA_TAREFA[Quant.]) -> 103.903787 | K63: =IF(F63="",SUMIF(PLANILHA_TAREFA[Cód. Tarefa],"="&B63&"."&"*",PLANILHA_TAREFA[Valor Parc. Total]),0) -> 0 | L63: =SUMIF(PLANILHA_TAREFA[Cód. Tarefa],MID(B63,1,IF(ISERR(FIND(".",B63,1))=TRUE,LEN(B63),FIND(".",B63,1)-1)),PLANILHA_TAREFA[Quant.]) -> 1 | M63: =IF(F63="",IF(SUMIF(PLANILHA_TAREFA[Cód. Tarefa],"="&MID(B63,1,IF(ISEVEN(LEN(B63)),LEN(B63)-3,LEN(B63)-2))&"*",PLANILHA_TAREFA[Valor Parc. Total])=0,0,K63/SUMIF(PLANILHA_TAREFA[Cód. Tarefa],"="&MID(B63,1,IF(ISEVEN(LEN(B63)),LEN(B63)-3,LEN(B63)-2))&"*",PLANILHA_TAREFA[Valor Parc. Total])),IF(SUMIF(PLANILHA_TAREFA[Cód. Tarefa],"="&MID(B63,1,IF(ISEVEN(LEN(B63)),LEN(B63)-3,LEN(B63)-2))&"*",PLANILHA_TAREFA[Valor Parc. Total])=0,0,J63/SUMIF(PLANILHA_TAREFA[Cód. Tarefa],"="&MID(B63,1,IF(ISEVEN(LEN(B63)),LEN(B63)-3,LEN(B63)-2))&"*",PLANILHA_TAREFA[Valor Parc. Total]))) -> 0.03380232109 | N63: 0.23 | O63: 127.801658 | P63: =IF(F63="",SUMIF(PLANILHA_TAREFA[Cód. Tarefa],"="&B63&"."&"*",PLANILHA_TAREFA[Valor Parc. Total - BDI]),0) -> 0
A64: TRUE | B64: 001.09.04 | C64: 601077 | D64: BIT DE ARDOSIA E=2CM L=4CM | E64: 2.05 | F64: MT | G64: 12.72322 | H64: 0 | I64: =IF(AND(J64>=0,E64<>""),IF(K64=0,J64/SUMIF(PLANILHA_TAREFA[Cód. Tarefa],MID(B64,1,IF(ISERR(FIND(".",B64,1))=TRUE,LEN(B64),FIND(".",B64,1)-1)),PLANILHA_TAREFA[Quant.]),K64/E64),K64/SUMIF(PLANILHA_TAREFA[Cód. Tarefa],MID(B64,1,IF(ISERR(FIND(".",B64,1))=TRUE,LEN(B64),FIND(".",B64,1)-1)),PLANILHA_TAREFA[Quant.])) -> 26.082601 | J64: =IF(A64=TRUE,1,0)*IF(H64>0,H64,G64)*IF(AND(E64=0,F64=""),1,E64)*SUMIF(PLANILHA_TAREFA[Cód. Tarefa],MID(B64,1,IF(ISERR(FIND(".",B64,1))=TRUE,LEN(B64),FIND(".",B64,1)-1)),PLANILHA_TAREFA[Quant.]) -> 26.082601 | K64: =IF(F64="",SUMIF(PLANILHA_TAREFA[Cód. Tarefa],"="&B64&"."&"*",PLANILHA_TAREFA[Valor Parc. Total]),0) -> 0 | L64: =SUMIF(PLANILHA_TAREFA[Cód. Tarefa],MID(B64,1,IF(ISERR(FIND(".",B64,1))=TRUE,LEN(B64),FIND(".",B64,1)-1)),PLANILHA_TAREFA[Quant.]) -> 1 | M64: =IF(F64="",IF(SUMIF(PLANILHA_TAREFA[Cód. Tarefa],"="&MID(B64,1,IF(ISEVEN(LEN(B64)),LEN(B64)-3,LEN(B64)-2))&"*",PLANILHA_TAREFA[Valor Parc. Total])=0,0,K64/SUMIF(PLANILHA_TAREFA[Cód. Tarefa],"="&MID(B64,1,IF(ISEVEN(LEN(B64)),LEN(B64)-3,LEN(B64)-2))&"*",PLANILHA_TAREFA[Valor Parc. Total])),IF(SUMIF(PLANILHA_TAREFA[Cód. Tarefa],"="&MID(B64,1,IF(ISEVEN(LEN(B64)),LEN(B64)-3,LEN(B64)-2))&"*",PLANILHA_TAREFA[Valor Parc. Total])=0,0,J64/SUMIF(PLANILHA_TAREFA[Cód. Tarefa],"="&MID(B64,1,IF(ISEVEN(LEN(B64)),LEN(B64)-3,LEN(B64)-2))&"*",PLANILHA_TAREFA[Valor Parc. Total]))) -> 0.008485277384 | N64: 0.23 | O64: 32.08159923 | P64: =IF(F64="",SUMIF(PLANILHA_TAREFA[Cód. Tarefa],"="&B64&"."&"*",PLANILHA_TAREFA[Valor Parc. Total - BDI]),0) -> 0
A65: TRUE | B65: 001.09.05 | C65: 601063 | D65: SOLEIRA DE ARDOSIA E=2CM L=15CM | E65: 1.6 | F65: MT | G65: 21.51662 | H65: 0 | I65: =IF(AND(J65>=0,E65<>""),IF(K65=0,J65/SUMIF(PLANILHA_TAREFA[Cód. Tarefa],MID(B65,1,IF(ISERR(FIND(".",B65,1))=TRUE,LEN(B65),FIND(".",B65,1)-1)),PLANILHA_TAREFA[Quant.]),K65/E65),K65/SUMIF(PLANILHA_TAREFA[Cód. Tarefa],MID(B65,1,IF(ISERR(FIND(".",B65,1))=TRUE,LEN(B65),FIND(".",B65,1)-1)),PLANILHA_TAREFA[Quant.])) -> 34.426592 | J65: =IF(A65=TRUE,1,0)*IF(H65>0,H65,G65)*IF(AND(E65=0,F65=""),1,E65)*SUMIF(PLANILHA_TAREFA[Cód. Tarefa],MID(B65,1,IF(ISERR(FIND(".",B65,1))=TRUE,LEN(B65),FIND(".",B65,1)-1)),PLANILHA_TAREFA[Quant.]) -> 34.426592 | K65: =IF(F65="",SUMIF(PLANILHA_TAREFA[Cód. Tarefa],"="&B65&"."&"*",PLANILHA_TAREFA[Valor Parc. Total]),0) -> 0 | L65: =SUMIF(PLANILHA_TAREFA[Cód. Tarefa],MID(B65,1,IF(ISERR(FIND(".",B65,1))=TRUE,LEN(B65),FIND(".",B65,1)-1)),PLANILHA_TAREFA[Quant.]) -> 1 | M65: =IF(F65="",IF(SUMIF(PLANILHA_TAREFA[Cód. Tarefa],"="&MID(B65,1,IF(ISEVEN(LEN(B65)),LEN(B65)-3,LEN(B65)-2))&"*",PLANILHA_TAREFA[Valor Parc. Total])=0,0,K65/SUMIF(PLANILHA_TAREFA[Cód. Tarefa],"="&MID(B65,1,IF(ISEVEN(LEN(B65)),LEN(B65)-3,LEN(B65)-2))&"*",PLANILHA_TAREFA[Valor Parc. Total])),IF(SUMIF(PLANILHA_TAREFA[Cód. Tarefa],"="&MID(B65,1,IF(ISEVEN(LEN(B65)),LEN(B65)-3,LEN(B65)-2))&"*",PLANILHA_TAREFA[Valor Parc. Total])=0,0,J65/SUMIF(PLANILHA_TAREFA[Cód. Tarefa],"="&MID(B65,1,IF(ISEVEN(LEN(B65)),LEN(B65)-3,LEN(B65)-2))&"*",PLANILHA_TAREFA[Valor Parc. Total]))) -> 0.01119977193 | N65: 0.23 | O65: 42.34470816 | P65: =IF(F65="",SUMIF(PLANILHA_TAREFA[Cód. Tarefa],"="&B65&"."&"*",PLANILHA_TAREFA[Valor Parc. Total - BDI]),0) -> 0
A66: TRUE | B66: 001.09.06 | C66: 500038 | D66: CALÇADA EXTERNA 7CM | E66: 20.92 | F66: M2 | G66: 34.6688 | H66: 0 | I66: =IF(AND(J66>=0,E66<>""),IF(K66=0,J66/SUMIF(PLANILHA_TAREFA[Cód. Tarefa],MID(B66,1,IF(ISERR(FIND(".",B66,1))=TRUE,LEN(B66),FIND(".",B66,1)-1)),PLANILHA_TAREFA[Quant.]),K66/E66),K66/SUMIF(PLANILHA_TAREFA[Cód. Tarefa],MID(B66,1,IF(ISERR(FIND(".",B66,1))=TRUE,LEN(B66),FIND(".",B66,1)-1)),PLANILHA_TAREFA[Quant.])) -> 725.271296 | J66: =IF(A66=TRUE,1,0)*IF(H66>0,H66,G66)*IF(AND(E66=0,F66=""),1,E66)*SUMIF(PLANILHA_TAREFA[Cód. Tarefa],MID(B66,1,IF(ISERR(FIND(".",B66,1))=TRUE,LEN(B66),FIND(".",B66,1)-1)),PLANILHA_TAREFA[Quant.]) -> 725.271296 | K66: =IF(F66="",SUMIF(PLANILHA_TAREFA[Cód. Tarefa],"="&B66&"."&"*",PLANILHA_TAREFA[Valor Parc. Total]),0) -> 0 | L66: =SUMIF(PLANILHA_TAREFA[Cód. Tarefa],MID(B66,1,IF(ISERR(FIND(".",B66,1))=TRUE,LEN(B66),FIND(".",B66,1)-1)),PLANILHA_TAREFA[Quant.]) -> 1 | M66: =IF(F66="",IF(SUMIF(PLANILHA_TAREFA[Cód. Tarefa],"="&MID(B66,1,IF(ISEVEN(LEN(B66)),LEN(B66)-3,LEN(B66)-2))&"*",PLANILHA_TAREFA[Valor Parc. Total])=0,0,K66/SUMIF(PLANILHA_TAREFA[Cód. Tarefa],"="&MID(B66,1,IF(ISEVEN(LEN(B66)),LEN(B66)-3,LEN(B66)-2))&"*",PLANILHA_TAREFA[Valor Parc. Total])),IF(SUMIF(PLANILHA_TAREFA[Cód. Tarefa],"="&MID(B66,1,IF(ISEVEN(LEN(B66)),LEN(B66)-3,LEN(B66)-2))&"*",PLANILHA_TAREFA[Valor Parc. Total])=0,0,J66/SUMIF(PLANILHA_TAREFA[Cód. Tarefa],"="&MID(B66,1,IF(ISEVEN(LEN(B66)),LEN(B66)-3,LEN(B66)-2))&"*",PLANILHA_TAREFA[Valor Parc. Total]))) -> 0.235947639 | N66: 0.23 | O66: 892.0836941 | P66: =IF(F66="",SUMIF(PLANILHA_TAREFA[Cód. Tarefa],"="&B66&"."&"*",PLANILHA_TAREFA[Valor Parc. Total - BDI]),0) -> 0
A67: TRUE | B67: 001.10 | D67: PINTURA | G67: 0 | H67: 0 | I67: =IF(AND(J67>=0,E67<>""),IF(K67=0,J67/SUMIF(PLANILHA_TAREFA[Cód. Tarefa],MID(B67,1,IF(ISERR(FIND(".",B67,1))=TRUE,LEN(B67),FIND(".",B67,1)-1)),PLANILHA_TAREFA[Quant.]),K67/E67),K67/SUMIF(PLANILHA_TAREFA[Cód. Tarefa],MID(B67,1,IF(ISERR(FIND(".",B67,1))=TRUE,LEN(B67),FIND(".",B67,1)-1)),PLANILHA_TAREFA[Quant.])) -> 2710.074207 | J67: =IF(A67=TRUE,1,0)*IF(H67>0,H67,G67)*IF(AND(E67=0,F67=""),1,E67)*SUMIF(PLANILHA_TAREFA[Cód. Tarefa],MID(B67,1,IF(ISERR(FIND(".",B67,1))=TRUE,LEN(B67),FIND(".",B67,1)-1)),PLANILHA_TAREFA[Quant.]) -> 0 | K67: =IF(F67="",SUMIF(PLANILHA_TAREFA[Cód. Tarefa],"="&B67&"."&"*",PLANILHA_TAREFA[Valor Parc. Total]),0) -> 2710.074207 | L67: =SUMIF(PLANILHA_TAREFA[Cód. Tarefa],MID(B67,1,IF(ISERR(FIND(".",B67,1))=TRUE,LEN(B67),FIND(".",B67,1)-1)),PLANILHA_TAREFA[Quant.]) -> 1 | M67: =IF(F67="",IF(SUMIF(PLANILHA_TAREFA[Cód. Tarefa],"="&MID(B67,1,IF(ISEVEN(LEN(B67)),LEN(B67)-3,LEN(B67)-2))&"*",PLANILHA_TAREFA[Valor Parc. Total])=0,0,K67/SUMIF(PLANILHA_TAREFA[Cód. Tarefa],"="&MID(B67,1,IF(ISEVEN(LEN(B67)),LEN(B67)-3,LEN(B67)-2))&"*",PLANILHA_TAREFA[Valor Parc. Total])),IF(SUMIF(PLANILHA_TAREFA[Cód. Tarefa],"="&MID(B67,1,IF(ISEVEN(LEN(B67)),LEN(B67)-3,LEN(B67)-2))&"*",PLANILHA_TAREFA[Valor Parc. Total])=0,0,J67/SUMIF(PLANILHA_TAREFA[Cód. Tarefa],"="&MID(B67,1,IF(ISEVEN(LEN(B67)),LEN(B67)-3,LEN(B67)-2))&"*",PLANILHA_TAREFA[Valor Parc. Total]))) -> 0.04398468231 | N67: 0.23 | O67: 0 | P67: =IF(F67="",SUMIF(PLANILHA_TAREFA[Cód. Tarefa],"="&B67&"."&"*",PLANILHA_TAREFA[Valor Parc. Total - BDI]),0) -> 3333.391274
A68: TRUE | B68: 001.10.01 | C68: 002481 | D68: PINTURA ESMALTE SOBRE ESQUADRIA DE MADEIRA - 2 DEMAOS | E68: 20.5 | F68: M2 | G68: 9.72398 | H68: 0 | I68: =IF(AND(J68>=0,E68<>""),IF(K68=0,J68/SUMIF(PLANILHA_TAREFA[Cód. Tarefa],MID(B68,1,IF(ISERR(FIND(".",B68,1))=TRUE,LEN(B68),FIND(".",B68,1)-1)),PLANILHA_TAREFA[Quant.]),K68/E68),K68/SUMIF(PLANILHA_TAREFA[Cód. Tarefa],MID(B68,1,IF(ISERR(FIND(".",B68,1))=TRUE,LEN(B68),FIND(".",B68,1)-1)),PLANILHA_TAREFA[Quant.])) -> 199.34159 | J68: =IF(A68=TRUE,1,0)*IF(H68>0,H68,G68)*IF(AND(E68=0,F68=""),1,E68)*SUMIF(PLANILHA_TAREFA[Cód. Tarefa],MID(B68,1,IF(ISERR(FIND(".",B68,1))=TRUE,LEN(B68),FIND(".",B68,1)-1)),PLANILHA_TAREFA[Quant.]) -> 199.34159 | K68: =IF(F68="",SUMIF(PLANILHA_TAREFA[Cód. Tarefa],"="&B68&"."&"*",PLANILHA_TAREFA[Valor Parc. Total]),0) -> 0 | L68: =SUMIF(PLANILHA_TAREFA[Cód. Tarefa],MID(B68,1,IF(ISERR(FIND(".",B68,1))=TRUE,LEN(B68),FIND(".",B68,1)-1)),PLANILHA_TAREFA[Quant.]) -> 1 | M68: =IF(F68="",IF(SUMIF(PLANILHA_TAREFA[Cód. Tarefa],"="&MID(B68,1,IF(ISEVEN(LEN(B68)),LEN(B68)-3,LEN(B68)-2))&"*",PLANILHA_TAREFA[Valor Parc. Total])=0,0,K68/SUMIF(PLANILHA_TAREFA[Cód. Tarefa],"="&MID(B68,1,IF(ISEVEN(LEN(B68)),LEN(B68)-3,LEN(B68)-2))&"*",PLANILHA_TAREFA[Valor Parc. Total])),IF(SUMIF(PLANILHA_TAREFA[Cód. Tarefa],"="&MID(B68,1,IF(ISEVEN(LEN(B68)),LEN(B68)-3,LEN(B68)-2))&"*",PLANILHA_TAREFA[Valor Parc. Total])=0,0,J68/SUMIF(PLANILHA_TAREFA[Cód. Tarefa],"="&MID(B68,1,IF(ISEVEN(LEN(B68)),LEN(B68)-3,LEN(B68)-2))&"*",PLANILHA_TAREFA[Valor Parc. Total]))) -> 0.07355576815 | N68: 0.23 | O68: 245.1901557 | P68: =IF(F68="",SUMIF(PLANILHA_TAREFA[Cód. Tarefa],"="&B68&"."&"*",PLANILHA_TAREFA[Valor Parc. Total - BDI]),0) -> 0
A69: TRUE | B69: 001.10.02 | C69: 400132 | D69: PINTURA ESMALTE SOBRE ESQUADRIA METALICA (PREDIO) | E69: 24.19 | F69: M2 | G69: 13.31234 | H69: 0 | I69: =IF(AND(J69>=0,E69<>""),IF(K69=0,J69/SUMIF(PLANILHA_TAREFA[Cód. Tarefa],MID(B69,1,IF(ISERR(FIND(".",B69,1))=TRUE,LEN(B69),FIND(".",B69,1)-1)),PLANILHA_TAREFA[Quant.]),K69/E69),K69/SUMIF(PLANILHA_TAREFA[Cód. Tarefa],MID(B69,1,IF(ISERR(FIND(".",B69,1))=TRUE,LEN(B69),FIND(".",B69,1)-1)),PLANILHA_TAREFA[Quant.])) -> 322.0255046 | J69: =IF(A69=TRUE,1,0)*IF(H69>0,H69,G69)*IF(AND(E69=0,F69=""),1,E69)*SUMIF(PLANILHA_TAREFA[Cód. Tarefa],MID(B69,1,IF(ISERR(FIND(".",B69,1))=TRUE,LEN(B69),FIND(".",B69,1)-1)),PLANILHA_TAREFA[Quant.]) -> 322.0255046 | K69: =IF(F69="",SUMIF(PLANILHA_TAREFA[Cód. Tarefa],"="&B69&"."&"*",PLANILHA_TAREFA[Valor Parc. Total]),0) -> 0 | L69: =SUMIF(PLANILHA_TAREFA[Cód. Tarefa],MID(B69,1,IF(ISERR(FIND(".",B69,1))=TRUE,LEN(B69),FIND(".",B69,1)-1)),PLANILHA_TAREFA[Quant.]) -> 1 | M69: =IF(F69="",IF(SUMIF(PLANILHA_TAREFA[Cód. Tarefa],"="&MID(B69,1,IF(ISEVEN(LEN(B69)),LEN(B69)-3,LEN(B69)-2))&"*",PLANILHA_TAREFA[Valor Parc. Total])=0,0,K69/SUMIF(PLANILHA_TAREFA[Cód. Tarefa],"="&MID(B69,1,IF(ISEVEN(LEN(B69)),LEN(B69)-3,LEN(B69)-2))&"*",PLANILHA_TAREFA[Valor Parc. Total])),IF(SUMIF(PLANILHA_TAREFA[Cód. Tarefa],"="&MID(B69,1,IF(ISEVEN(LEN(B69)),LEN(B69)-3,LEN(B69)-2))&"*",PLANILHA_TAREFA[Valor Parc. Total])=0,0,J69/SUMIF(PLANILHA_TAREFA[Cód. Tarefa],"="&MID(B69,1,IF(ISEVEN(LEN(B69)),LEN(B69)-3,LEN(B69)-2))&"*",PLANILHA_TAREFA[Valor Parc. Total]))) -> 0.1188253457 | N69: 0.23 | O69: 396.0913707 | P69: =IF(F69="",SUMIF(PLANILHA_TAREFA[Cód. Tarefa],"="&B69&"."&"*",PLANILHA_TAREFA[Valor Parc. Total - BDI]),0) -> 0
A70: TRUE | B70: 001.10.03 | C70: 500049 | D70: LATEX ACRILICO | E70: 204.2 | F70: M2 | G70: 5.50576 | H70: 0 | I70: =IF(AND(J70>=0,E70<>""),IF(K70=0,J70/SUMIF(PLANILHA_TAREFA[Cód. Tarefa],MID(B70,1,IF(ISERR(FIND(".",B70,1))=TRUE,LEN(B70),FIND(".",B70,1)-1)),PLANILHA_TAREFA[Quant.]),K70/E70),K70/SUMIF(PLANILHA_TAREFA[Cód. Tarefa],MID(B70,1,IF(ISERR(FIND(".",B70,1))=TRUE,LEN(B70),FIND(".",B70,1)-1)),PLANILHA_TAREFA[Quant.])) -> 1124.276192 | J70: =IF(A70=TRUE,1,0)*IF(H70>0,H70,G70)*IF(AND(E70=0,F70=""),1,E70)*SUMIF(PLANILHA_TAREFA[Cód. Tarefa],MID(B70,1,IF(ISERR(FIND(".",B70,1))=TRUE,LEN(B70),FIND(".",B70,1)-1)),PLANILHA_TAREFA[Quant.]) -> 1124.276192 | K70: =IF(F70="",SUMIF(PLANILHA_TAREFA[Cód. Tarefa],"="&B70&"."&"*",PLANILHA_TAREFA[Valor Parc. Total]),0) -> 0 | L70: =SUMIF(PLANILHA_TAREFA[Cód. Tarefa],MID(B70,1,IF(ISERR(FIND(".",B70,1))=TRUE,LEN(B70),FIND(".",B70,1)-1)),PLANILHA_TAREFA[Quant.]) -> 1 | M70: =IF(F70="",IF(SUMIF(PLANILHA_TAREFA[Cód. Tarefa],"="&MID(B70,1,IF(ISEVEN(LEN(B70)),LEN(B70)-3,LEN(B70)-2))&"*",PLANILHA_TAREFA[Valor Parc. Total])=0,0,K70/SUMIF(PLANILHA_TAREFA[Cód. Tarefa],"="&MID(B70,1,IF(ISEVEN(LEN(B70)),LEN(B70)-3,LEN(B70)-2))&"*",PLANILHA_TAREFA[Valor Parc. Total])),IF(SUMIF(PLANILHA_TAREFA[Cód. Tarefa],"="&MID(B70,1,IF(ISEVEN(LEN(B70)),LEN(B70)-3,LEN(B70)-2))&"*",PLANILHA_TAREFA[Valor Parc. Total])=0,0,J70/SUMIF(PLANILHA_TAREFA[Cód. Tarefa],"="&MID(B70,1,IF(ISEVEN(LEN(B70)),LEN(B70)-3,LEN(B70)-2))&"*",PLANILHA_TAREFA[Valor Parc. Total]))) -> 0.4148507038 | N70: 0.23 | O70: 1382.859716 | P70: =IF(F70="",SUMIF(PLANILHA_TAREFA[Cód. Tarefa],"="&B70&"."&"*",PLANILHA_TAREFA[Valor Parc. Total - BDI]),0) -> 0
A71: TRUE | B71: 001.10.04 | C71: 500048 | D71: LATEX PVA | E71: 202 | F71: M2 | G71: 5.26946 | H71: 0 | I71: =IF(AND(J71>=0,E71<>""),IF(K71=0,J71/SUMIF(PLANILHA_TAREFA[Cód. Tarefa],MID(B71,1,IF(ISERR(FIND(".",B71,1))=TRUE,LEN(B71),FIND(".",B71,1)-1)),PLANILHA_TAREFA[Quant.]),K71/E71),K71/SUMIF(PLANILHA_TAREFA[Cód. Tarefa],MID(B71,1,IF(ISERR(FIND(".",B71,1))=TRUE,LEN(B71),FIND(".",B71,1)-1)),PLANILHA_TAREFA[Quant.])) -> 1064.43092 | J71: =IF(A71=TRUE,1,0)*IF(H71>0,H71,G71)*IF(AND(E71=0,F71=""),1,E71)*SUMIF(PLANILHA_TAREFA[Cód. Tarefa],MID(B71,1,IF(ISERR(FIND(".",B71,1))=TRUE,LEN(B71),FIND(".",B71,1)-1)),PLANILHA_TAREFA[Quant.]) -> 1064.43092 | K71: =IF(F71="",SUMIF(PLANILHA_TAREFA[Cód. Tarefa],"="&B71&"."&"*",PLANILHA_TAREFA[Valor Parc. Total]),0) -> 0 | L71: =SUMIF(PLANILHA_TAREFA[Cód. Tarefa],MID(B71,1,IF(ISERR(FIND(".",B71,1))=TRUE,LEN(B71),FIND(".",B71,1)-1)),PLANILHA_TAREFA[Quant.]) -> 1 | M71: =IF(F71="",IF(SUMIF(PLANILHA_TAREFA[Cód. Tarefa],"="&MID(B71,1,IF(ISEVEN(LEN(B71)),LEN(B71)-3,LEN(B71)-2))&"*",PLANILHA_TAREFA[Valor Parc. Total])=0,0,K71/SUMIF(PLANILHA_TAREFA[Cód. Tarefa],"="&MID(B71,1,IF(ISEVEN(LEN(B71)),LEN(B71)-3,LEN(B71)-2))&"*",PLANILHA_TAREFA[Valor Parc. Total])),IF(SUMIF(PLANILHA_TAREFA[Cód. Tarefa],"="&MID(B71,1,IF(ISEVEN(LEN(B71)),LEN(B71)-3,LEN(B71)-2))&"*",PLANILHA_TAREFA[Valor Parc. Total])=0,0,J71/SUMIF(PLANILHA_TAREFA[Cód. Tarefa],"="&MID(B71,1,IF(ISEVEN(LEN(B71)),LEN(B71)-3,LEN(B71)-2))&"*",PLANILHA_TAREFA[Valor Parc. Total]))) -> 0.3927681823 | N71: 0.23 | O71: 1309.250032 | P71: =IF(F71="",SUMIF(PLANILHA_TAREFA[Cód. Tarefa],"="&B71&"."&"*",PLANILHA_TAREFA[Valor Parc. Total - BDI]),0) -> 0
A72: TRUE | B72: 001.11 | D72: VIDROS | G72: 0 | H72: 0 | I72: =IF(AND(J72>=0,E72<>""),IF(K72=0,J72/SUMIF(PLANILHA_TAREFA[Cód. Tarefa],MID(B72,1,IF(ISERR(FIND(".",B72,1))=TRUE,LEN(B72),FIND(".",B72,1)-1)),PLANILHA_TAREFA[Quant.]),K72/E72),K72/SUMIF(PLANILHA_TAREFA[Cód. Tarefa],MID(B72,1,IF(ISERR(FIND(".",B72,1))=TRUE,LEN(B72),FIND(".",B72,1)-1)),PLANILHA_TAREFA[Quant.])) -> 594.7806 | J72: =IF(A72=TRUE,1,0)*IF(H72>0,H72,G72)*IF(AND(E72=0,F72=""),1,E72)*SUMIF(PLANILHA_TAREFA[Cód. Tarefa],MID(B72,1,IF(ISERR(FIND(".",B72,1))=TRUE,LEN(B72),FIND(".",B72,1)-1)),PLANILHA_TAREFA[Quant.]) -> 0 | K72: =IF(F72="",SUMIF(PLANILHA_TAREFA[Cód. Tarefa],"="&B72&"."&"*",PLANILHA_TAREFA[Valor Parc. Total]),0) -> 594.7806 | L72: =SUMIF(PLANILHA_TAREFA[Cód. Tarefa],MID(B72,1,IF(ISERR(FIND(".",B72,1))=TRUE,LEN(B72),FIND(".",B72,1)-1)),PLANILHA_TAREFA[Quant.]) -> 1 | M72: =IF(F72="",IF(SUMIF(PLANILHA_TAREFA[Cód. Tarefa],"="&MID(B72,1,IF(ISEVEN(LEN(B72)),LEN(B72)-3,LEN(B72)-2))&"*",PLANILHA_TAREFA[Valor Parc. Total])=0,0,K72/SUMIF(PLANILHA_TAREFA[Cód. Tarefa],"="&MID(B72,1,IF(ISEVEN(LEN(B72)),LEN(B72)-3,LEN(B72)-2))&"*",PLANILHA_TAREFA[Valor Parc. Total])),IF(SUMIF(PLANILHA_TAREFA[Cód. Tarefa],"="&MID(B72,1,IF(ISEVEN(LEN(B72)),LEN(B72)-3,LEN(B72)-2))&"*",PLANILHA_TAREFA[Valor Parc. Total])=0,0,J72/SUMIF(PLANILHA_TAREFA[Cód. Tarefa],"="&MID(B72,1,IF(ISEVEN(LEN(B72)),LEN(B72)-3,LEN(B72)-2))&"*",PLANILHA_TAREFA[Valor Parc. Total]))) -> 0.009653328189 | N72: 0.23 | O72: 0 | P72: =IF(F72="",SUMIF(PLANILHA_TAREFA[Cód. Tarefa],"="&B72&"."&"*",PLANILHA_TAREFA[Valor Parc. Total - BDI]),0) -> 731.580138
A73: TRUE | B73: 001.11.01 | C73: 500054 | D73: VIDRO LISO | E73: 6.31 | F73: M2 | G73: 94.26 | H73: 0 | I73: =IF(AND(J73>=0,E73<>""),IF(K73=0,J73/SUMIF(PLANILHA_TAREFA[Cód. Tarefa],MID(B73,1,IF(ISERR(FIND(".",B73,1))=TRUE,LEN(B73),FIND(".",B73,1)-1)),PLANILHA_TAREFA[Quant.]),K73/E73),K73/SUMIF(PLANILHA_TAREFA[Cód. Tarefa],MID(B73,1,IF(ISERR(FIND(".",B73,1))=TRUE,LEN(B73),FIND(".",B73,1)-1)),PLANILHA_TAREFA[Quant.])) -> 594.7806 | J73: =IF(A73=TRUE,1,0)*IF(H73>0,H73,G73)*IF(AND(E73=0,F73=""),1,E73)*SUMIF(PLANILHA_TAREFA[Cód. Tarefa],MID(B73,1,IF(ISERR(FIND(".",B73,1))=TRUE,LEN(B73),FIND(".",B73,1)-1)),PLANILHA_TAREFA[Quant.]) -> 594.7806 | K73: =IF(F73="",SUMIF(PLANILHA_TAREFA[Cód. Tarefa],"="&B73&"."&"*",PLANILHA_TAREFA[Valor Parc. Total]),0) -> 0 | L73: =SUMIF(PLANILHA_TAREFA[Cód. Tarefa],MID(B73,1,IF(ISERR(FIND(".",B73,1))=TRUE,LEN(B73),FIND(".",B73,1)-1)),PLANILHA_TAREFA[Quant.]) -> 1 | M73: =IF(F73="",IF(SUMIF(PLANILHA_TAREFA[Cód. Tarefa],"="&MID(B73,1,IF(ISEVEN(LEN(B73)),LEN(B73)-3,LEN(B73)-2))&"*",PLANILHA_TAREFA[Valor Parc. Total])=0,0,K73/SUMIF(PLANILHA_TAREFA[Cód. Tarefa],"="&MID(B73,1,IF(ISEVEN(LEN(B73)),LEN(B73)-3,LEN(B73)-2))&"*",PLANILHA_TAREFA[Valor Parc. Total])),IF(SUMIF(PLANILHA_TAREFA[Cód. Tarefa],"="&MID(B73,1,IF(ISEVEN(LEN(B73)),LEN(B73)-3,LEN(B73)-2))&"*",PLANILHA_TAREFA[Valor Parc. Total])=0,0,J73/SUMIF(PLANILHA_TAREFA[Cód. Tarefa],"="&MID(B73,1,IF(ISEVEN(LEN(B73)),LEN(B73)-3,LEN(B73)-2))&"*",PLANILHA_TAREFA[Valor Parc. Total]))) -> 1 | N73: 0.23 | O73: 731.580138 | P73: =IF(F73="",SUMIF(PLANILHA_TAREFA[Cód. Tarefa],"="&B73&"."&"*",PLANILHA_TAREFA[Valor Parc. Total - BDI]),0) -> 0
A74: TRUE | B74: 001.12 | D74: INSTALACOES ELETRICAS | G74: 0 | H74: 0 | I74: =IF(AND(J74>=0,E74<>""),IF(K74=0,J74/SUMIF(PLANILHA_TAREFA[Cód. Tarefa],MID(B74,1,IF(ISERR(FIND(".",B74,1))=TRUE,LEN(B74),FIND(".",B74,1)-1)),PLANILHA_TAREFA[Quant.]),K74/E74),K74/SUMIF(PLANILHA_TAREFA[Cód. Tarefa],MID(B74,1,IF(ISERR(FIND(".",B74,1))=TRUE,LEN(B74),FIND(".",B74,1)-1)),PLANILHA_TAREFA[Quant.])) -> 2424.9905 | J74: =IF(A74=TRUE,1,0)*IF(H74>0,H74,G74)*IF(AND(E74=0,F74=""),1,E74)*SUMIF(PLANILHA_TAREFA[Cód. Tarefa],MID(B74,1,IF(ISERR(FIND(".",B74,1))=TRUE,LEN(B74),FIND(".",B74,1)-1)),PLANILHA_TAREFA[Quant.]) -> 0 | K74: =IF(F74="",SUMIF(PLANILHA_TAREFA[Cód. Tarefa],"="&B74&"."&"*",PLANILHA_TAREFA[Valor Parc. Total]),0) -> 2424.9905 | L74: =SUMIF(PLANILHA_TAREFA[Cód. Tarefa],MID(B74,1,IF(ISERR(FIND(".",B74,1))=TRUE,LEN(B74),FIND(".",B74,1)-1)),PLANILHA_TAREFA[Quant.]) -> 1 | M74: =IF(F74="",IF(SUMIF(PLANILHA_TAREFA[Cód. Tarefa],"="&MID(B74,1,IF(ISEVEN(LEN(B74)),LEN(B74)-3,LEN(B74)-2))&"*",PLANILHA_TAREFA[Valor Parc. Total])=0,0,K74/SUMIF(PLANILHA_TAREFA[Cód. Tarefa],"="&MID(B74,1,IF(ISEVEN(LEN(B74)),LEN(B74)-3,LEN(B74)-2))&"*",PLANILHA_TAREFA[Valor Parc. Total])),IF(SUMIF(PLANILHA_TAREFA[Cód. Tarefa],"="&MID(B74,1,IF(ISEVEN(LEN(B74)),LEN(B74)-3,LEN(B74)-2))&"*",PLANILHA_TAREFA[Valor Parc. Total])=0,0,J74/SUMIF(PLANILHA_TAREFA[Cód. Tarefa],"="&MID(B74,1,IF(ISEVEN(LEN(B74)),LEN(B74)-3,LEN(B74)-2))&"*",PLANILHA_TAREFA[Valor Parc. Total]))) -> 0.03935775503 | N74: 0.23 | O74: 0 | P74: =IF(F74="",SUMIF(PLANILHA_TAREFA[Cód. Tarefa],"="&B74&"."&"*",PLANILHA_TAREFA[Valor Parc. Total - BDI]),0) -> 2982.738315
A75: TRUE | B75: 001.12.01 | C75: 600237 | D75: INSTALACAO ELETRICA - ENTRADA DE ENERGIA | E75: 1 | F75: UN | G75: 644.468 | H75: 0 | I75: =IF(AND(J75>=0,E75<>""),IF(K75=0,J75/SUMIF(PLANILHA_TAREFA[Cód. Tarefa],MID(B75,1,IF(ISERR(FIND(".",B75,1))=TRUE,LEN(B75),FIND(".",B75,1)-1)),PLANILHA_TAREFA[Quant.]),K75/E75),K75/SUMIF(PLANILHA_TAREFA[Cód. Tarefa],MID(B75,1,IF(ISERR(FIND(".",B75,1))=TRUE,LEN(B75),FIND(".",B75,1)-1)),PLANILHA_TAREFA[Quant.])) -> 644.468 | J75: =IF(A75=TRUE,1,0)*IF(H75>0,H75,G75)*IF(AND(E75=0,F75=""),1,E75)*SUMIF(PLANILHA_TAREFA[Cód. Tarefa],MID(B75,1,IF(ISERR(FIND(".",B75,1))=TRUE,LEN(B75),FIND(".",B75,1)-1)),PLANILHA_TAREFA[Quant.]) -> 644.468 | K75: =IF(F75="",SUMIF(PLANILHA_TAREFA[Cód. Tarefa],"="&B75&"."&"*",PLANILHA_TAREFA[Valor Parc. Total]),0) -> 0 | L75: =SUMIF(PLANILHA_TAREFA[Cód. Tarefa],MID(B75,1,IF(ISERR(FIND(".",B75,1))=TRUE,LEN(B75),FIND(".",B75,1)-1)),PLANILHA_TAREFA[Quant.]) -> 1 | M75: =IF(F75="",IF(SUMIF(PLANILHA_TAREFA[Cód. Tarefa],"="&MID(B75,1,IF(ISEVEN(LEN(B75)),LEN(B75)-3,LEN(B75)-2))&"*",PLANILHA_TAREFA[Valor Parc. Total])=0,0,K75/SUMIF(PLANILHA_TAREFA[Cód. Tarefa],"="&MID(B75,1,IF(ISEVEN(LEN(B75)),LEN(B75)-3,LEN(B75)-2))&"*",PLANILHA_TAREFA[Valor Parc. Total])),IF(SUMIF(PLANILHA_TAREFA[Cód. Tarefa],"="&MID(B75,1,IF(ISEVEN(LEN(B75)),LEN(B75)-3,LEN(B75)-2))&"*",PLANILHA_TAREFA[Valor Parc. Total])=0,0,J75/SUMIF(PLANILHA_TAREFA[Cód. Tarefa],"="&MID(B75,1,IF(ISEVEN(LEN(B75)),LEN(B75)-3,LEN(B75)-2))&"*",PLANILHA_TAREFA[Valor Parc. Total]))) -> 0.2657610411 | N75: 0.23 | O75: =J75*(1+N75) -> 792.69564 | P75: =IF(F75="",SUMIF(PLANILHA_TAREFA[Cód. Tarefa],"="&B75&"."&"*",PLANILHA_TAREFA[Valor Parc. Total - BDI]),0) -> 0
A76: TRUE | B76: 001.12.02 | C76: 600238 | D76: INSTALACAO ELETRICA - TUBULACAO + CAIXAS | E76: 1 | F76: UN | G76: 490.4292 | H76: 0 | I76: =IF(AND(J76>=0,E76<>""),IF(K76=0,J76/SUMIF(PLANILHA_TAREFA[Cód. Tarefa],MID(B76,1,IF(ISERR(FIND(".",B76,1))=TRUE,LEN(B76),FIND(".",B76,1)-1)),PLANILHA_TAREFA[Quant.]),K76/E76),K76/SUMIF(PLANILHA_TAREFA[Cód. Tarefa],MID(B76,1,IF(ISERR(FIND(".",B76,1))=TRUE,LEN(B76),FIND(".",B76,1)-1)),PLANILHA_TAREFA[Quant.])) -> 490.4292 | J76: =IF(A76=TRUE,1,0)*IF(H76>0,H76,G76)*IF(AND(E76=0,F76=""),1,E76)*SUMIF(PLANILHA_TAREFA[Cód. Tarefa],MID(B76,1,IF(ISERR(FIND(".",B76,1))=TRUE,LEN(B76),FIND(".",B76,1)-1)),PLANILHA_TAREFA[Quant.]) -> 490.4292 | K76: =IF(F76="",SUMIF(PLANILHA_TAREFA[Cód. Tarefa],"="&B76&"."&"*",PLANILHA_TAREFA[Valor Parc. Total]),0) -> 0 | L76: =SUMIF(PLANILHA_TAREFA[Cód. Tarefa],MID(B76,1,IF(ISERR(FIND(".",B76,1))=TRUE,LEN(B76),FIND(".",B76,1)-1)),PLANILHA_TAREFA[Quant.]) -> 1 | M76: =IF(F76="",IF(SUMIF(PLANILHA_TAREFA[Cód. Tarefa],"="&MID(B76,1,IF(ISEVEN(LEN(B76)),LEN(B76)-3,LEN(B76)-2))&"*",PLANILHA_TAREFA[Valor Parc. Total])=0,0,K76/SUMIF(PLANILHA_TAREFA[Cód. Tarefa],"="&MID(B76,1,IF(ISEVEN(LEN(B76)),LEN(B76)-3,LEN(B76)-2))&"*",PLANILHA_TAREFA[Valor Parc. Total])),IF(SUMIF(PLANILHA_TAREFA[Cód. Tarefa],"="&MID(B76,1,IF(ISEVEN(LEN(B76)),LEN(B76)-3,LEN(B76)-2))&"*",PLANILHA_TAREFA[Valor Parc. Total])=0,0,J76/SUMIF(PLANILHA_TAREFA[Cód. Tarefa],"="&MID(B76,1,IF(ISEVEN(LEN(B76)),LEN(B76)-3,LEN(B76)-2))&"*",PLANILHA_TAREFA[Valor Parc. Total]))) -> 0.2022396376 | N76: 0.23 | O76: 603.227916 | P76: =IF(F76="",SUMIF(PLANILHA_TAREFA[Cód. Tarefa],"="&B76&"."&"*",PLANILHA_TAREFA[Valor Parc. Total - BDI]),0) -> 0
A77: TRUE | B77: 001.12.03 | C77: 600239 | D77: INSTALACAO ELETRICA - FIACAO | E77: 1 | F77: UN | G77: 553 | H77: 0 | I77: =IF(AND(J77>=0,E77<>""),IF(K77=0,J77/SUMIF(PLANILHA_TAREFA[Cód. Tarefa],MID(B77,1,IF(ISERR(FIND(".",B77,1))=TRUE,LEN(B77),FIND(".",B77,1)-1)),PLANILHA_TAREFA[Quant.]),K77/E77),K77/SUMIF(PLANILHA_TAREFA[Cód. Tarefa],MID(B77,1,IF(ISERR(FIND(".",B77,1))=TRUE,LEN(B77),FIND(".",B77,1)-1)),PLANILHA_TAREFA[Quant.])) -> 553 | J77: =IF(A77=TRUE,1,0)*IF(H77>0,H77,G77)*IF(AND(E77=0,F77=""),1,E77)*SUMIF(PLANILHA_TAREFA[Cód. Tarefa],MID(B77,1,IF(ISERR(FIND(".",B77,1))=TRUE,LEN(B77),FIND(".",B77,1)-1)),PLANILHA_TAREFA[Quant.]) -> 553 | K77: =IF(F77="",SUMIF(PLANILHA_TAREFA[Cód. Tarefa],"="&B77&"."&"*",PLANILHA_TAREFA[Valor Parc. Total]),0) -> 0 | L77: =SUMIF(PLANILHA_TAREFA[Cód. Tarefa],MID(B77,1,IF(ISERR(FIND(".",B77,1))=TRUE,LEN(B77),FIND(".",B77,1)-1)),PLANILHA_TAREFA[Quant.]) -> 1 | M77: =IF(F77="",IF(SUMIF(PLANILHA_TAREFA[Cód. Tarefa],"="&MID(B77,1,IF(ISEVEN(LEN(B77)),LEN(B77)-3,LEN(B77)-2))&"*",PLANILHA_TAREFA[Valor Parc. Total])=0,0,K77/SUMIF(PLANILHA_TAREFA[Cód. Tarefa],"="&MID(B77,1,IF(ISEVEN(LEN(B77)),LEN(B77)-3,LEN(B77)-2))&"*",PLANILHA_TAREFA[Valor Parc. Total])),IF(SUMIF(PLANILHA_TAREFA[Cód. Tarefa],"="&MID(B77,1,IF(ISEVEN(LEN(B77)),LEN(B77)-3,LEN(B77)-2))&"*",PLANILHA_TAREFA[Valor Parc. Total])=0,0,J77/SUMIF(PLANILHA_TAREFA[Cód. Tarefa],"="&MID(B77,1,IF(ISEVEN(LEN(B77)),LEN(B77)-3,LEN(B77)-2))&"*",PLANILHA_TAREFA[Valor Parc. Total]))) -> 0.2280421305 | N77: 0.23 | O77: 680.19 | P77: =IF(F77="",SUMIF(PLANILHA_TAREFA[Cód. Tarefa],"="&B77&"."&"*",PLANILHA_TAREFA[Valor Parc. Total - BDI]),0) -> 0
A78: TRUE | B78: 001.12.04 | C78: 600240 | D78: INSTALACAO ELETRICA - ILUMINACAO, TOMADAS E INTERRUPTORES | E78: 1 | F78: UN | G78: 444.019 | H78: 0 | I78: =IF(AND(J78>=0,E78<>""),IF(K78=0,J78/SUMIF(PLANILHA_TAREFA[Cód. Tarefa],MID(B78,1,IF(ISERR(FIND(".",B78,1))=TRUE,LEN(B78),FIND(".",B78,1)-1)),PLANILHA_TAREFA[Quant.]),K78/E78),K78/SUMIF(PLANILHA_TAREFA[Cód. Tarefa],MID(B78,1,IF(ISERR(FIND(".",B78,1))=TRUE,LEN(B78),FIND(".",B78,1)-1)),PLANILHA_TAREFA[Quant.])) -> 444.019 | J78: =IF(A78=TRUE,1,0)*IF(H78>0,H78,G78)*IF(AND(E78=0,F78=""),1,E78)*SUMIF(PLANILHA_TAREFA[Cód. Tarefa],MID(B78,1,IF(ISERR(FIND(".",B78,1))=TRUE,LEN(B78),FIND(".",B78,1)-1)),PLANILHA_TAREFA[Quant.]) -> 444.019 | K78: =IF(F78="",SUMIF(PLANILHA_TAREFA[Cód. Tarefa],"="&B78&"."&"*",PLANILHA_TAREFA[Valor Parc. Total]),0) -> 0 | L78: =SUMIF(PLANILHA_TAREFA[Cód. Tarefa],MID(B78,1,IF(ISERR(FIND(".",B78,1))=TRUE,LEN(B78),FIND(".",B78,1)-1)),PLANILHA_TAREFA[Quant.]) -> 1 | M78: =IF(F78="",IF(SUMIF(PLANILHA_TAREFA[Cód. Tarefa],"="&MID(B78,1,IF(ISEVEN(LEN(B78)),LEN(B78)-3,LEN(B78)-2))&"*",PLANILHA_TAREFA[Valor Parc. Total])=0,0,K78/SUMIF(PLANILHA_TAREFA[Cód. Tarefa],"="&MID(B78,1,IF(ISEVEN(LEN(B78)),LEN(B78)-3,LEN(B78)-2))&"*",PLANILHA_TAREFA[Valor Parc. Total])),IF(SUMIF(PLANILHA_TAREFA[Cód. Tarefa],"="&MID(B78,1,IF(ISEVEN(LEN(B78)),LEN(B78)-3,LEN(B78)-2))&"*",PLANILHA_TAREFA[Valor Parc. Total])=0,0,J78/SUMIF(PLANILHA_TAREFA[Cód. Tarefa],"="&MID(B78,1,IF(ISEVEN(LEN(B78)),LEN(B78)-3,LEN(B78)-2))&"*",PLANILHA_TAREFA[Valor Parc. Total]))) -> 0.1831013359 | N78: 0.23 | O78: 546.14337 | P78: =IF(F78="",SUMIF(PLANILHA_TAREFA[Cód. Tarefa],"="&B78&"."&"*",PLANILHA_TAREFA[Valor Parc. Total - BDI]),0) -> 0
A79: TRUE | B79: 001.12.05 | C79: 600241 | D79: INSTALACAO ELETRICA - QUADRO DE DISTRIBUICAO | E79: 1 | F79: UN | G79: 293.0743 | H79: 0 | I79: =IF(AND(J79>=0,E79<>""),IF(K79=0,J79/SUMIF(PLANILHA_TAREFA[Cód. Tarefa],MID(B79,1,IF(ISERR(FIND(".",B79,1))=TRUE,LEN(B79),FIND(".",B79,1)-1)),PLANILHA_TAREFA[Quant.]),K79/E79),K79/SUMIF(PLANILHA_TAREFA[Cód. Tarefa],MID(B79,1,IF(ISERR(FIND(".",B79,1))=TRUE,LEN(B79),FIND(".",B79,1)-1)),PLANILHA_TAREFA[Quant.])) -> 293.0743 | J79: =IF(A79=TRUE,1,0)*IF(H79>0,H79,G79)*IF(AND(E79=0,F79=""),1,E79)*SUMIF(PLANILHA_TAREFA[Cód. Tarefa],MID(B79,1,IF(ISERR(FIND(".",B79,1))=TRUE,LEN(B79),FIND(".",B79,1)-1)),PLANILHA_TAREFA[Quant.]) -> 293.0743 | K79: =IF(F79="",SUMIF(PLANILHA_TAREFA[Cód. Tarefa],"="&B79&"."&"*",PLANILHA_TAREFA[Valor Parc. Total]),0) -> 0 | L79: =SUMIF(PLANILHA_TAREFA[Cód. Tarefa],MID(B79,1,IF(ISERR(FIND(".",B79,1))=TRUE,LEN(B79),FIND(".",B79,1)-1)),PLANILHA_TAREFA[Quant.]) -> 1 | M79: =IF(F79="",IF(SUMIF(PLANILHA_TAREFA[Cód. Tarefa],"="&MID(B79,1,IF(ISEVEN(LEN(B79)),LEN(B79)-3,LEN(B79)-2))&"*",PLANILHA_TAREFA[Valor Parc. Total])=0,0,K79/SUMIF(PLANILHA_TAREFA[Cód. Tarefa],"="&MID(B79,1,IF(ISEVEN(LEN(B79)),LEN(B79)-3,LEN(B79)-2))&"*",PLANILHA_TAREFA[Valor Parc. Total])),IF(SUMIF(PLANILHA_TAREFA[Cód. Tarefa],"="&MID(B79,1,IF(ISEVEN(LEN(B79)),LEN(B79)-3,LEN(B79)-2))&"*",PLANILHA_TAREFA[Valor Parc. Total])=0,0,J79/SUMIF(PLANILHA_TAREFA[Cód. Tarefa],"="&MID(B79,1,IF(ISEVEN(LEN(B79)),LEN(B79)-3,LEN(B79)-2))&"*",PLANILHA_TAREFA[Valor Parc. Total]))) -> 0.1208558549 | N79: 0.23 | O79: 360.481389 | P79: =IF(F79="",SUMIF(PLANILHA_TAREFA[Cód. Tarefa],"="&B79&"."&"*",PLANILHA_TAREFA[Valor Parc. Total - BDI]),0) -> 0
A80: TRUE | B80: 001.13 | D80: INSTALACOES HIDRAULICAS | G80: 0 | H80: 0 | I80: =IF(AND(J80>=0,E80<>""),IF(K80=0,J80/SUMIF(PLANILHA_TAREFA[Cód. Tarefa],MID(B80,1,IF(ISERR(FIND(".",B80,1))=TRUE,LEN(B80),FIND(".",B80,1)-1)),PLANILHA_TAREFA[Quant.]),K80/E80),K80/SUMIF(PLANILHA_TAREFA[Cód. Tarefa],MID(B80,1,IF(ISERR(FIND(".",B80,1))=TRUE,LEN(B80),FIND(".",B80,1)-1)),PLANILHA_TAREFA[Quant.])) -> 1429.627107 | J80: =IF(A80=TRUE,1,0)*IF(H80>0,H80,G80)*IF(AND(E80=0,F80=""),1,E80)*SUMIF(PLANILHA_TAREFA[Cód. Tarefa],MID(B80,1,IF(ISERR(FIND(".",B80,1))=TRUE,LEN(B80),FIND(".",B80,1)-1)),PLANILHA_TAREFA[Quant.]) -> 0 | K80: =IF(F80="",SUMIF(PLANILHA_TAREFA[Cód. Tarefa],"="&B80&"."&"*",PLANILHA_TAREFA[Valor Parc. Total]),0) -> 1429.627107 | L80: =SUMIF(PLANILHA_TAREFA[Cód. Tarefa],MID(B80,1,IF(ISERR(FIND(".",B80,1))=TRUE,LEN(B80),FIND(".",B80,1)-1)),PLANILHA_TAREFA[Quant.]) -> 1 | M80: =IF(F80="",IF(SUMIF(PLANILHA_TAREFA[Cód. Tarefa],"="&MID(B80,1,IF(ISEVEN(LEN(B80)),LEN(B80)-3,LEN(B80)-2))&"*",PLANILHA_TAREFA[Valor Parc. Total])=0,0,K80/SUMIF(PLANILHA_TAREFA[Cód. Tarefa],"="&MID(B80,1,IF(ISEVEN(LEN(B80)),LEN(B80)-3,LEN(B80)-2))&"*",PLANILHA_TAREFA[Valor Parc. Total])),IF(SUMIF(PLANILHA_TAREFA[Cód. Tarefa],"="&MID(B80,1,IF(ISEVEN(LEN(B80)),LEN(B80)-3,LEN(B80)-2))&"*",PLANILHA_TAREFA[Valor Parc. Total])=0,0,J80/SUMIF(PLANILHA_TAREFA[Cód. Tarefa],"="&MID(B80,1,IF(ISEVEN(LEN(B80)),LEN(B80)-3,LEN(B80)-2))&"*",PLANILHA_TAREFA[Valor Parc. Total]))) -> 0.02320294181 | N80: 0.23 | O80: 0 | P80: =IF(F80="",SUMIF(PLANILHA_TAREFA[Cód. Tarefa],"="&B80&"."&"*",PLANILHA_TAREFA[Valor Parc. Total - BDI]),0) -> 1758.441341
A81: TRUE | B81: 001.13.01 | C81: 600242 | D81: INSTALACAO HIDRAULICA - ENTRADA DE AGUA FRIA | E81: 1 | F81: UN | G81: 558.104566 | H81: 0 | I81: =IF(AND(J81>=0,E81<>""),IF(K81=0,J81/SUMIF(PLANILHA_TAREFA[Cód. Tarefa],MID(B81,1,IF(ISERR(FIND(".",B81,1))=TRUE,LEN(B81),FIND(".",B81,1)-1)),PLANILHA_TAREFA[Quant.]),K81/E81),K81/SUMIF(PLANILHA_TAREFA[Cód. Tarefa],MID(B81,1,IF(ISERR(FIND(".",B81,1))=TRUE,LEN(B81),FIND(".",B81,1)-1)),PLANILHA_TAREFA[Quant.])) -> 558.104566 | J81: =IF(A81=TRUE,1,0)*IF(H81>0,H81,G81)*IF(AND(E81=0,F81=""),1,E81)*SUMIF(PLANILHA_TAREFA[Cód. Tarefa],MID(B81,1,IF(ISERR(FIND(".",B81,1))=TRUE,LEN(B81),FIND(".",B81,1)-1)),PLANILHA_TAREFA[Quant.]) -> 558.104566 | K81: =IF(F81="",SUMIF(PLANILHA_TAREFA[Cód. Tarefa],"="&B81&"."&"*",PLANILHA_TAREFA[Valor Parc. Total]),0) -> 0 | L81: =SUMIF(PLANILHA_TAREFA[Cód. Tarefa],MID(B81,1,IF(ISERR(FIND(".",B81,1))=TRUE,LEN(B81),FIND(".",B81,1)-1)),PLANILHA_TAREFA[Quant.]) -> 1 | M81: =IF(F81="",IF(SUMIF(PLANILHA_TAREFA[Cód. Tarefa],"="&MID(B81,1,IF(ISEVEN(LEN(B81)),LEN(B81)-3,LEN(B81)-2))&"*",PLANILHA_TAREFA[Valor Parc. Total])=0,0,K81/SUMIF(PLANILHA_TAREFA[Cód. Tarefa],"="&MID(B81,1,IF(ISEVEN(LEN(B81)),LEN(B81)-3,LEN(B81)-2))&"*",PLANILHA_TAREFA[Valor Parc. Total])),IF(SUMIF(PLANILHA_TAREFA[Cód. Tarefa],"="&MID(B81,1,IF(ISEVEN(LEN(B81)),LEN(B81)-3,LEN(B81)-2))&"*",PLANILHA_TAREFA[Valor Parc. Total])=0,0,J81/SUMIF(PLANILHA_TAREFA[Cód. Tarefa],"="&MID(B81,1,IF(ISEVEN(LEN(B81)),LEN(B81)-3,LEN(B81)-2))&"*",PLANILHA_TAREFA[Valor Parc. Total]))) -> 0.3903847118 | N81: 0.23 | O81: 686.4686162 | P81: =IF(F81="",SUMIF(PLANILHA_TAREFA[Cód. Tarefa],"="&B81&"."&"*",PLANILHA_TAREFA[Valor Parc. Total - BDI]),0) -> 0
A82: TRUE | B82: 001.13.02 | C82: 600243 | D82: INSTALACAO HIDRAULICA - DISTRIBUICAO DE AGUA | E82: 1 | F82: UN | G82: 214.7568 | H82: 0 | I82: =IF(AND(J82>=0,E82<>""),IF(K82=0,J82/SUMIF(PLANILHA_TAREFA[Cód. Tarefa],MID(B82,1,IF(ISERR(FIND(".",B82,1))=TRUE,LEN(B82),FIND(".",B82,1)-1)),PLANILHA_TAREFA[Quant.]),K82/E82),K82/SUMIF(PLANILHA_TAREFA[Cód. Tarefa],MID(B82,1,IF(ISERR(FIND(".",B82,1))=TRUE,LEN(B82),FIND(".",B82,1)-1)),PLANILHA_TAREFA[Quant.])) -> 214.7568 | J82: =IF(A82=TRUE,1,0)*IF(H82>0,H82,G82)*IF(AND(E82=0,F82=""),1,E82)*SUMIF(PLANILHA_TAREFA[Cód. Tarefa],MID(B82,1,IF(ISERR(FIND(".",B82,1))=TRUE,LEN(B82),FIND(".",B82,1)-1)),PLANILHA_TAREFA[Quant.]) -> 214.7568 | K82: =IF(F82="",SUMIF(PLANILHA_TAREFA[Cód. Tarefa],"="&B82&"."&"*",PLANILHA_TAREFA[Valor Parc. Total]),0) -> 0 | L82: =SUMIF(PLANILHA_TAREFA[Cód. Tarefa],MID(B82,1,IF(ISERR(FIND(".",B82,1))=TRUE,LEN(B82),FIND(".",B82,1)-1)),PLANILHA_TAREFA[Quant.]) -> 1 | M82: =IF(F82="",IF(SUMIF(PLANILHA_TAREFA[Cód. Tarefa],"="&MID(B82,1,IF(ISEVEN(LEN(B82)),LEN(B82)-3,LEN(B82)-2))&"*",PLANILHA_TAREFA[Valor Parc. Total])=0,0,K82/SUMIF(PLANILHA_TAREFA[Cód. Tarefa],"="&MID(B82,1,IF(ISEVEN(LEN(B82)),LEN(B82)-3,LEN(B82)-2))&"*",PLANILHA_TAREFA[Valor Parc. Total])),IF(SUMIF(PLANILHA_TAREFA[Cód. Tarefa],"="&MID(B82,1,IF(ISEVEN(LEN(B82)),LEN(B82)-3,LEN(B82)-2))&"*",PLANILHA_TAREFA[Valor Parc. Total])=0,0,J82/SUMIF(PLANILHA_TAREFA[Cód. Tarefa],"="&MID(B82,1,IF(ISEVEN(LEN(B82)),LEN(B82)-3,LEN(B82)-2))&"*",PLANILHA_TAREFA[Valor Parc. Total]))) -> 0.1502187521 | N82: 0.23 | O82: 264.150864 | P82: =IF(F82="",SUMIF(PLANILHA_TAREFA[Cód. Tarefa],"="&B82&"."&"*",PLANILHA_TAREFA[Valor Parc. Total - BDI]),0) -> 0
A83: TRUE | B83: 001.13.03 | C83: 600244 | D83: INSTALACAO HIDRAULICA - CAIXA D'AGUA | E83: 1 | F83: UN | G83: 275.79112 | H83: 0 | I83: =IF(AND(J83>=0,E83<>""),IF(K83=0,J83/SUMIF(PLANILHA_TAREFA[Cód. Tarefa],MID(B83,1,IF(ISERR(FIND(".",B83,1))=TRUE,LEN(B83),FIND(".",B83,1)-1)),PLANILHA_TAREFA[Quant.]),K83/E83),K83/SUMIF(PLANILHA_TAREFA[Cód. Tarefa],MID(B83,1,IF(ISERR(FIND(".",B83,1))=TRUE,LEN(B83),FIND(".",B83,1)-1)),PLANILHA_TAREFA[Quant.])) -> 275.79112 | J83: =IF(A83=TRUE,1,0)*IF(H83>0,H83,G83)*IF(AND(E83=0,F83=""),1,E83)*SUMIF(PLANILHA_TAREFA[Cód. Tarefa],MID(B83,1,IF(ISERR(FIND(".",B83,1))=TRUE,LEN(B83),FIND(".",B83,1)-1)),PLANILHA_TAREFA[Quant.]) -> 275.79112 | K83: =IF(F83="",SUMIF(PLANILHA_TAREFA[Cód. Tarefa],"="&B83&"."&"*",PLANILHA_TAREFA[Valor Parc. Total]),0) -> 0 | L83: =SUMIF(PLANILHA_TAREFA[Cód. Tarefa],MID(B83,1,IF(ISERR(FIND(".",B83,1))=TRUE,LEN(B83),FIND(".",B83,1)-1)),PLANILHA_TAREFA[Quant.]) -> 1 | M83: =IF(F83="",IF(SUMIF(PLANILHA_TAREFA[Cód. Tarefa],"="&MID(B83,1,IF(ISEVEN(LEN(B83)),LEN(B83)-3,LEN(B83)-2))&"*",PLANILHA_TAREFA[Valor Parc. Total])=0,0,K83/SUMIF(PLANILHA_TAREFA[Cód. Tarefa],"="&MID(B83,1,IF(ISEVEN(LEN(B83)),LEN(B83)-3,LEN(B83)-2))&"*",PLANILHA_TAREFA[Valor Parc. Total])),IF(SUMIF(PLANILHA_TAREFA[Cód. Tarefa],"="&MID(B83,1,IF(ISEVEN(LEN(B83)),LEN(B83)-3,LEN(B83)-2))&"*",PLANILHA_TAREFA[Valor Parc. Total])=0,0,J83/SUMIF(PLANILHA_TAREFA[Cód. Tarefa],"="&MID(B83,1,IF(ISEVEN(LEN(B83)),LEN(B83)-3,LEN(B83)-2))&"*",PLANILHA_TAREFA[Valor Parc. Total]))) -> 0.1929112275 | N83: 0.23 | O83: 339.2230776 | P83: =IF(F83="",SUMIF(PLANILHA_TAREFA[Cód. Tarefa],"="&B83&"."&"*",PLANILHA_TAREFA[Valor Parc. Total - BDI]),0) -> 0
A84: TRUE | B84: 001.13.04 | C84: 500466 | D84: ABRIGO PARA HIDROMETRO C/ TAMPA | E84: 1 | F84: UN | G84: 273.2832208 | H84: 0 | I84: =IF(AND(J84>=0,E84<>""),IF(K84=0,J84/SUMIF(PLANILHA_TAREFA[Cód. Tarefa],MID(B84,1,IF(ISERR(FIND(".",B84,1))=TRUE,LEN(B84),FIND(".",B84,1)-1)),PLANILHA_TAREFA[Quant.]),K84/E84),K84/SUMIF(PLANILHA_TAREFA[Cód. Tarefa],MID(B84,1,IF(ISERR(FIND(".",B84,1))=TRUE,LEN(B84),FIND(".",B84,1)-1)),PLANILHA_TAREFA[Quant.])) -> 273.2832208 | J84: =IF(A84=TRUE,1,0)*IF(H84>0,H84,G84)*IF(AND(E84=0,F84=""),1,E84)*SUMIF(PLANILHA_TAREFA[Cód. Tarefa],MID(B84,1,IF(ISERR(FIND(".",B84,1))=TRUE,LEN(B84),FIND(".",B84,1)-1)),PLANILHA_TAREFA[Quant.]) -> 273.2832208 | K84: =IF(F84="",SUMIF(PLANILHA_TAREFA[Cód. Tarefa],"="&B84&"."&"*",PLANILHA_TAREFA[Valor Parc. Total]),0) -> 0 | L84: =SUMIF(PLANILHA_TAREFA[Cód. Tarefa],MID(B84,1,IF(ISERR(FIND(".",B84,1))=TRUE,LEN(B84),FIND(".",B84,1)-1)),PLANILHA_TAREFA[Quant.]) -> 1 | M84: =IF(F84="",IF(SUMIF(PLANILHA_TAREFA[Cód. Tarefa],"="&MID(B84,1,IF(ISEVEN(LEN(B84)),LEN(B84)-3,LEN(B84)-2))&"*",PLANILHA_TAREFA[Valor Parc. Total])=0,0,K84/SUMIF(PLANILHA_TAREFA[Cód. Tarefa],"="&MID(B84,1,IF(ISEVEN(LEN(B84)),LEN(B84)-3,LEN(B84)-2))&"*",PLANILHA_TAREFA[Valor Parc. Total])),IF(SUMIF(PLANILHA_TAREFA[Cód. Tarefa],"="&MID(B84,1,IF(ISEVEN(LEN(B84)),LEN(B84)-3,LEN(B84)-2))&"*",PLANILHA_TAREFA[Valor Parc. Total])=0,0,J84/SUMIF(PLANILHA_TAREFA[Cód. Tarefa],"="&MID(B84,1,IF(ISEVEN(LEN(B84)),LEN(B84)-3,LEN(B84)-2))&"*",PLANILHA_TAREFA[Valor Parc. Total]))) -> 0.1911569944 | N84: 0.23 | O84: 336.1383616 | P84: =IF(F84="",SUMIF(PLANILHA_TAREFA[Cód. Tarefa],"="&B84&"."&"*",PLANILHA_TAREFA[Valor Parc. Total - BDI]),0) -> 0
A85: TRUE | B85: 001.13.05 | C85: 611365 | D85: LIGACAO DOMICILIAR - AGUA POTAVEL | E85: 1 | F85: UN | G85: 107.6914 | H85: 0 | I85: =IF(AND(J85>=0,E85<>""),IF(K85=0,J85/SUMIF(PLANILHA_TAREFA[Cód. Tarefa],MID(B85,1,IF(ISERR(FIND(".",B85,1))=TRUE,LEN(B85),FIND(".",B85,1)-1)),PLANILHA_TAREFA[Quant.]),K85/E85),K85/SUMIF(PLANILHA_TAREFA[Cód. Tarefa],MID(B85,1,IF(ISERR(FIND(".",B85,1))=TRUE,LEN(B85),FIND(".",B85,1)-1)),PLANILHA_TAREFA[Quant.])) -> 107.6914 | J85: =IF(A85=TRUE,1,0)*IF(H85>0,H85,G85)*IF(AND(E85=0,F85=""),1,E85)*SUMIF(PLANILHA_TAREFA[Cód. Tarefa],MID(B85,1,IF(ISERR(FIND(".",B85,1))=TRUE,LEN(B85),FIND(".",B85,1)-1)),PLANILHA_TAREFA[Quant.]) -> 107.6914 | K85: =IF(F85="",SUMIF(PLANILHA_TAREFA[Cód. Tarefa],"="&B85&"."&"*",PLANILHA_TAREFA[Valor Parc. Total]),0) -> 0 | L85: =SUMIF(PLANILHA_TAREFA[Cód. Tarefa],MID(B85,1,IF(ISERR(FIND(".",B85,1))=TRUE,LEN(B85),FIND(".",B85,1)-1)),PLANILHA_TAREFA[Quant.]) -> 1 | M85: =IF(F85="",IF(SUMIF(PLANILHA_TAREFA[Cód. Tarefa],"="&MID(B85,1,IF(ISEVEN(LEN(B85)),LEN(B85)-3,LEN(B85)-2))&"*",PLANILHA_TAREFA[Valor Parc. Total])=0,0,K85/SUMIF(PLANILHA_TAREFA[Cód. Tarefa],"="&MID(B85,1,IF(ISEVEN(LEN(B85)),LEN(B85)-3,LEN(B85)-2))&"*",PLANILHA_TAREFA[Valor Parc. Total])),IF(SUMIF(PLANILHA_TAREFA[Cód. Tarefa],"="&MID(B85,1,IF(ISEVEN(LEN(B85)),LEN(B85)-3,LEN(B85)-2))&"*",PLANILHA_TAREFA[Valor Parc. Total])=0,0,J85/SUMIF(PLANILHA_TAREFA[Cód. Tarefa],"="&MID(B85,1,IF(ISEVEN(LEN(B85)),LEN(B85)-3,LEN(B85)-2))&"*",PLANILHA_TAREFA[Valor Parc. Total]))) -> 0.07532831428 | N85: 0.23 | O85: 132.460422 | P85: =IF(F85="",SUMIF(PLANILHA_TAREFA[Cód. Tarefa],"="&B85&"."&"*",PLANILHA_TAREFA[Valor Parc. Total - BDI]),0) -> 0
A86: TRUE | B86: 001.14 | D86: INSTALACOES SANITARIAS | G86: 0 | H86: 0 | I86: =IF(AND(J86>=0,E86<>""),IF(K86=0,J86/SUMIF(PLANILHA_TAREFA[Cód. Tarefa],MID(B86,1,IF(ISERR(FIND(".",B86,1))=TRUE,LEN(B86),FIND(".",B86,1)-1)),PLANILHA_TAREFA[Quant.]),K86/E86),K86/SUMIF(PLANILHA_TAREFA[Cód. Tarefa],MID(B86,1,IF(ISERR(FIND(".",B86,1))=TRUE,LEN(B86),FIND(".",B86,1)-1)),PLANILHA_TAREFA[Quant.])) -> 1278.835753 | J86: =IF(A86=TRUE,1,0)*IF(H86>0,H86,G86)*IF(AND(E86=0,F86=""),1,E86)*SUMIF(PLANILHA_TAREFA[Cód. Tarefa],MID(B86,1,IF(ISERR(FIND(".",B86,1))=TRUE,LEN(B86),FIND(".",B86,1)-1)),PLANILHA_TAREFA[Quant.]) -> 0 | K86: =IF(F86="",SUMIF(PLANILHA_TAREFA[Cód. Tarefa],"="&B86&"."&"*",PLANILHA_TAREFA[Valor Parc. Total]),0) -> 1278.835753 | L86: =SUMIF(PLANILHA_TAREFA[Cód. Tarefa],MID(B86,1,IF(ISERR(FIND(".",B86,1))=TRUE,LEN(B86),FIND(".",B86,1)-1)),PLANILHA_TAREFA[Quant.]) -> 1 | M86: =IF(F86="",IF(SUMIF(PLANILHA_TAREFA[Cód. Tarefa],"="&MID(B86,1,IF(ISEVEN(LEN(B86)),LEN(B86)-3,LEN(B86)-2))&"*",PLANILHA_TAREFA[Valor Parc. Total])=0,0,K86/SUMIF(PLANILHA_TAREFA[Cód. Tarefa],"="&MID(B86,1,IF(ISEVEN(LEN(B86)),LEN(B86)-3,LEN(B86)-2))&"*",PLANILHA_TAREFA[Valor Parc. Total])),IF(SUMIF(PLANILHA_TAREFA[Cód. Tarefa],"="&MID(B86,1,IF(ISEVEN(LEN(B86)),LEN(B86)-3,LEN(B86)-2))&"*",PLANILHA_TAREFA[Valor Parc. Total])=0,0,J86/SUMIF(PLANILHA_TAREFA[Cód. Tarefa],"="&MID(B86,1,IF(ISEVEN(LEN(B86)),LEN(B86)-3,LEN(B86)-2))&"*",PLANILHA_TAREFA[Valor Parc. Total]))) -> 0.02075558823 | N86: 0.23 | O86: 0 | P86: =IF(F86="",SUMIF(PLANILHA_TAREFA[Cód. Tarefa],"="&B86&"."&"*",PLANILHA_TAREFA[Valor Parc. Total - BDI]),0) -> 1572.967976
A87: TRUE | B87: 001.14.01 | C87: 600246 | D87: INSTALACAO HIDRAULICA - ESGOTO INTERNO - PADRAO HABITACIONAL HM H02 (HM44) | E87: 1 | F87: UN | G87: 301.86535 | H87: 0 | I87: =IF(AND(J87>=0,E87<>""),IF(K87=0,J87/SUMIF(PLANILHA_TAREFA[Cód. Tarefa],MID(B87,1,IF(ISERR(FIND(".",B87,1))=TRUE,LEN(B87),FIND(".",B87,1)-1)),PLANILHA_TAREFA[Quant.]),K87/E87),K87/SUMIF(PLANILHA_TAREFA[Cód. Tarefa],MID(B87,1,IF(ISERR(FIND(".",B87,1))=TRUE,LEN(B87),FIND(".",B87,1)-1)),PLANILHA_TAREFA[Quant.])) -> 301.86535 | J87: =IF(A87=TRUE,1,0)*IF(H87>0,H87,G87)*IF(AND(E87=0,F87=""),1,E87)*SUMIF(PLANILHA_TAREFA[Cód. Tarefa],MID(B87,1,IF(ISERR(FIND(".",B87,1))=TRUE,LEN(B87),FIND(".",B87,1)-1)),PLANILHA_TAREFA[Quant.]) -> 301.86535 | K87: =IF(F87="",SUMIF(PLANILHA_TAREFA[Cód. Tarefa],"="&B87&"."&"*",PLANILHA_TAREFA[Valor Parc. Total]),0) -> 0 | L87: =SUMIF(PLANILHA_TAREFA[Cód. Tarefa],MID(B87,1,IF(ISERR(FIND(".",B87,1))=TRUE,LEN(B87),FIND(".",B87,1)-1)),PLANILHA_TAREFA[Quant.]) -> 1 | M87: =IF(F87="",IF(SUMIF(PLANILHA_TAREFA[Cód. Tarefa],"="&MID(B87,1,IF(ISEVEN(LEN(B87)),LEN(B87)-3,LEN(B87)-2))&"*",PLANILHA_TAREFA[Valor Parc. Total])=0,0,K87/SUMIF(PLANILHA_TAREFA[Cód. Tarefa],"="&MID(B87,1,IF(ISEVEN(LEN(B87)),LEN(B87)-3,LEN(B87)-2))&"*",PLANILHA_TAREFA[Valor Parc. Total])),IF(SUMIF(PLANILHA_TAREFA[Cód. Tarefa],"="&MID(B87,1,IF(ISEVEN(LEN(B87)),LEN(B87)-3,LEN(B87)-2))&"*",PLANILHA_TAREFA[Valor Parc. Total])=0,0,J87/SUMIF(PLANILHA_TAREFA[Cód. Tarefa],"="&MID(B87,1,IF(ISEVEN(LEN(B87)),LEN(B87)-3,LEN(B87)-2))&"*",PLANILHA_TAREFA[Valor Parc. Total]))) -> 0.2360470056 | N87: 0.23 | O87: 371.2943805 | P87: =IF(F87="",SUMIF(PLANILHA_TAREFA[Cód. Tarefa],"="&B87&"."&"*",PLANILHA_TAREFA[Valor Parc. Total - BDI]),0) -> 0
A88: TRUE | B88: 001.14.02 | C88: 600245 | D88: INSTALACAO HIDRAULICA - ESGOTO EXTERNO - PADRAO HABITACIONAL HM H02 (HM44) | E88: 1 | F88: UN | G88: 675.5624546 | H88: 0 | I88: =IF(AND(J88>=0,E88<>""),IF(K88=0,J88/SUMIF(PLANILHA_TAREFA[Cód. Tarefa],MID(B88,1,IF(ISERR(FIND(".",B88,1))=TRUE,LEN(B88),FIND(".",B88,1)-1)),PLANILHA_TAREFA[Quant.]),K88/E88),K88/SUMIF(PLANILHA_TAREFA[Cód. Tarefa],MID(B88,1,IF(ISERR(FIND(".",B88,1))=TRUE,LEN(B88),FIND(".",B88,1)-1)),PLANILHA_TAREFA[Quant.])) -> 675.5624546 | J88: =IF(A88=TRUE,1,0)*IF(H88>0,H88,G88)*IF(AND(E88=0,F88=""),1,E88)*SUMIF(PLANILHA_TAREFA[Cód. Tarefa],MID(B88,1,IF(ISERR(FIND(".",B88,1))=TRUE,LEN(B88),FIND(".",B88,1)-1)),PLANILHA_TAREFA[Quant.]) -> 675.5624546 | K88: =IF(F88="",SUMIF(PLANILHA_TAREFA[Cód. Tarefa],"="&B88&"."&"*",PLANILHA_TAREFA[Valor Parc. Total]),0) -> 0 | L88: =SUMIF(PLANILHA_TAREFA[Cód. Tarefa],MID(B88,1,IF(ISERR(FIND(".",B88,1))=TRUE,LEN(B88),FIND(".",B88,1)-1)),PLANILHA_TAREFA[Quant.]) -> 1 | M88: =IF(F88="",IF(SUMIF(PLANILHA_TAREFA[Cód. Tarefa],"="&MID(B88,1,IF(ISEVEN(LEN(B88)),LEN(B88)-3,LEN(B88)-2))&"*",PLANILHA_TAREFA[Valor Parc. Total])=0,0,K88/SUMIF(PLANILHA_TAREFA[Cód. Tarefa],"="&MID(B88,1,IF(ISEVEN(LEN(B88)),LEN(B88)-3,LEN(B88)-2))&"*",PLANILHA_TAREFA[Valor Parc. Total])),IF(SUMIF(PLANILHA_TAREFA[Cód. Tarefa],"="&MID(B88,1,IF(ISEVEN(LEN(B88)),LEN(B88)-3,LEN(B88)-2))&"*",PLANILHA_TAREFA[Valor Parc. Total])=0,0,J88/SUMIF(PLANILHA_TAREFA[Cód. Tarefa],"="&MID(B88,1,IF(ISEVEN(LEN(B88)),LEN(B88)-3,LEN(B88)-2))&"*",PLANILHA_TAREFA[Valor Parc. Total]))) -> 0.5282636595 | N88: 0.23 | O88: 830.9418192 | P88: =IF(F88="",SUMIF(PLANILHA_TAREFA[Cód. Tarefa],"="&B88&"."&"*",PLANILHA_TAREFA[Valor Parc. Total - BDI]),0) -> 0
A89: TRUE | B89: 001.14.03 | C89: 611366 | D89: LIGACAO DOMICILIAR - ESGOTO SANITARIO | E89: 1 | F89: 0 | G89: 301.407948 | H89: 0 | I89: =IF(AND(J89>=0,E89<>""),IF(K89=0,J89/SUMIF(PLANILHA_TAREFA[Cód. Tarefa],MID(B89,1,IF(ISERR(FIND(".",B89,1))=TRUE,LEN(B89),FIND(".",B89,1)-1)),PLANILHA_TAREFA[Quant.]),K89/E89),K89/SUMIF(PLANILHA_TAREFA[Cód. Tarefa],MID(B89,1,IF(ISERR(FIND(".",B89,1))=TRUE,LEN(B89),FIND(".",B89,1)-1)),PLANILHA_TAREFA[Quant.])) -> 301.407948 | J89: =IF(A89=TRUE,1,0)*IF(H89>0,H89,G89)*IF(AND(E89=0,F89=""),1,E89)*SUMIF(PLANILHA_TAREFA[Cód. Tarefa],MID(B89,1,IF(ISERR(FIND(".",B89,1))=TRUE,LEN(B89),FIND(".",B89,1)-1)),PLANILHA_TAREFA[Quant.]) -> 301.407948 | K89: =IF(F89="",SUMIF(PLANILHA_TAREFA[Cód. Tarefa],"="&B89&"."&"*",PLANILHA_TAREFA[Valor Parc. Total]),0) -> 0 | L89: =SUMIF(PLANILHA_TAREFA[Cód. Tarefa],MID(B89,1,IF(ISERR(FIND(".",B89,1))=TRUE,LEN(B89),FIND(".",B89,1)-1)),PLANILHA_TAREFA[Quant.]) -> 1 | M89: =IF(F89="",IF(SUMIF(PLANILHA_TAREFA[Cód. Tarefa],"="&MID(B89,1,IF(ISEVEN(LEN(B89)),LEN(B89)-3,LEN(B89)-2))&"*",PLANILHA_TAREFA[Valor Parc. Total])=0,0,K89/SUMIF(PLANILHA_TAREFA[Cód. Tarefa],"="&MID(B89,1,IF(ISEVEN(LEN(B89)),LEN(B89)-3,LEN(B89)-2))&"*",PLANILHA_TAREFA[Valor Parc. Total])),IF(SUMIF(PLANILHA_TAREFA[Cód. Tarefa],"="&MID(B89,1,IF(ISEVEN(LEN(B89)),LEN(B89)-3,LEN(B89)-2))&"*",PLANILHA_TAREFA[Valor Parc. Total])=0,0,J89/SUMIF(PLANILHA_TAREFA[Cód. Tarefa],"="&MID(B89,1,IF(ISEVEN(LEN(B89)),LEN(B89)-3,LEN(B89)-2))&"*",PLANILHA_TAREFA[Valor Parc. Total]))) -> 0.2356893349 | N89: 0.23 | O89: 370.731776 | P89: =IF(F89="",SUMIF(PLANILHA_TAREFA[Cód. Tarefa],"="&B89&"."&"*",PLANILHA_TAREFA[Valor Parc. Total - BDI]),0) -> 0
A90: TRUE | B90: 001.15 | D90: INSTALACOES P/ AGUA PLUVIAL | G90: 0 | H90: 0 | I90: =IF(AND(J90>=0,E90<>""),IF(K90=0,J90/SUMIF(PLANILHA_TAREFA[Cód. Tarefa],MID(B90,1,IF(ISERR(FIND(".",B90,1))=TRUE,LEN(B90),FIND(".",B90,1)-1)),PLANILHA_TAREFA[Quant.]),K90/E90),K90/SUMIF(PLANILHA_TAREFA[Cód. Tarefa],MID(B90,1,IF(ISERR(FIND(".",B90,1))=TRUE,LEN(B90),FIND(".",B90,1)-1)),PLANILHA_TAREFA[Quant.])) -> 2130.546027 | J90: =IF(A90=TRUE,1,0)*IF(H90>0,H90,G90)*IF(AND(E90=0,F90=""),1,E90)*SUMIF(PLANILHA_TAREFA[Cód. Tarefa],MID(B90,1,IF(ISERR(FIND(".",B90,1))=TRUE,LEN(B90),FIND(".",B90,1)-1)),PLANILHA_TAREFA[Quant.]) -> 0 | K90: =IF(F90="",SUMIF(PLANILHA_TAREFA[Cód. Tarefa],"="&B90&"."&"*",PLANILHA_TAREFA[Valor Parc. Total]),0) -> 2130.546027 | L90: =SUMIF(PLANILHA_TAREFA[Cód. Tarefa],MID(B90,1,IF(ISERR(FIND(".",B90,1))=TRUE,LEN(B90),FIND(".",B90,1)-1)),PLANILHA_TAREFA[Quant.]) -> 1 | M90: =IF(F90="",IF(SUMIF(PLANILHA_TAREFA[Cód. Tarefa],"="&MID(B90,1,IF(ISEVEN(LEN(B90)),LEN(B90)-3,LEN(B90)-2))&"*",PLANILHA_TAREFA[Valor Parc. Total])=0,0,K90/SUMIF(PLANILHA_TAREFA[Cód. Tarefa],"="&MID(B90,1,IF(ISEVEN(LEN(B90)),LEN(B90)-3,LEN(B90)-2))&"*",PLANILHA_TAREFA[Valor Parc. Total])),IF(SUMIF(PLANILHA_TAREFA[Cód. Tarefa],"="&MID(B90,1,IF(ISEVEN(LEN(B90)),LEN(B90)-3,LEN(B90)-2))&"*",PLANILHA_TAREFA[Valor Parc. Total])=0,0,J90/SUMIF(PLANILHA_TAREFA[Cód. Tarefa],"="&MID(B90,1,IF(ISEVEN(LEN(B90)),LEN(B90)-3,LEN(B90)-2))&"*",PLANILHA_TAREFA[Valor Parc. Total]))) -> 0.03457890191 | N90: 0.23 | O90: 0 | P90: =IF(F90="",SUMIF(PLANILHA_TAREFA[Cód. Tarefa],"="&B90&"."&"*",PLANILHA_TAREFA[Valor Parc. Total - BDI]),0) -> 2620.571614
A91: TRUE | B91: 001.15.01 | C91: 152030 | D91: TUBO PVC BRANCO 100 MM - ESGOTO | E91: 43.75 | F91: MT | G91: 13.23902 | H91: 0 | I91: =IF(AND(J91>=0,E91<>""),IF(K91=0,J91/SUMIF(PLANILHA_TAREFA[Cód. Tarefa],MID(B91,1,IF(ISERR(FIND(".",B91,1))=TRUE,LEN(B91),FIND(".",B91,1)-1)),PLANILHA_TAREFA[Quant.]),K91/E91),K91/SUMIF(PLANILHA_TAREFA[Cód. Tarefa],MID(B91,1,IF(ISERR(FIND(".",B91,1))=TRUE,LEN(B91),FIND(".",B91,1)-1)),PLANILHA_TAREFA[Quant.])) -> 579.207125 | J91: =IF(A91=TRUE,1,0)*IF(H91>0,H91,G91)*IF(AND(E91=0,F91=""),1,E91)*SUMIF(PLANILHA_TAREFA[Cód. Tarefa],MID(B91,1,IF(ISERR(FIND(".",B91,1))=TRUE,LEN(B91),FIND(".",B91,1)-1)),PLANILHA_TAREFA[Quant.]) -> 579.207125 | K91: =IF(F91="",SUMIF(PLANILHA_TAREFA[Cód. Tarefa],"="&B91&"."&"*",PLANILHA_TAREFA[Valor Parc. Total]),0) -> 0 | L91: =SUMIF(PLANILHA_TAREFA[Cód. Tarefa],MID(B91,1,IF(ISERR(FIND(".",B91,1))=TRUE,LEN(B91),FIND(".",B91,1)-1)),PLANILHA_TAREFA[Quant.]) -> 1 | M91: =IF(F91="",IF(SUMIF(PLANILHA_TAREFA[Cód. Tarefa],"="&MID(B91,1,IF(ISEVEN(LEN(B91)),LEN(B91)-3,LEN(B91)-2))&"*",PLANILHA_TAREFA[Valor Parc. Total])=0,0,K91/SUMIF(PLANILHA_TAREFA[Cód. Tarefa],"="&MID(B91,1,IF(ISEVEN(LEN(B91)),LEN(B91)-3,LEN(B91)-2))&"*",PLANILHA_TAREFA[Valor Parc. Total])),IF(SUMIF(PLANILHA_TAREFA[Cód. Tarefa],"="&MID(B91,1,IF(ISEVEN(LEN(B91)),LEN(B91)-3,LEN(B91)-2))&"*",PLANILHA_TAREFA[Valor Parc. Total])=0,0,J91/SUMIF(PLANILHA_TAREFA[Cód. Tarefa],"="&MID(B91,1,IF(ISEVEN(LEN(B91)),LEN(B91)-3,LEN(B91)-2))&"*",PLANILHA_TAREFA[Valor Parc. Total]))) -> 0.2718585365 | N91: 0.23 | O91: 712.4247638 | P91: =IF(F91="",SUMIF(PLANILHA_TAREFA[Cód. Tarefa],"="&B91&"."&"*",PLANILHA_TAREFA[Valor Parc. Total - BDI]),0) -> 0
A92: TRUE | B92: 001.15.02 | C92: 400843 | D92: CAIXA DE INSPECAO EM ALVENARIA DE TIJOLO COMUM - 060 X 060 X 070 CM - ESGOTO / AGUAS PLUVIAIS | E92: 4 | F92: UN | G92: 387.8347256 | H92: 0 | I92: =IF(AND(J92>=0,E92<>""),IF(K92=0,J92/SUMIF(PLANILHA_TAREFA[Cód. Tarefa],MID(B92,1,IF(ISERR(FIND(".",B92,1))=TRUE,LEN(B92),FIND(".",B92,1)-1)),PLANILHA_TAREFA[Quant.]),K92/E92),K92/SUMIF(PLANILHA_TAREFA[Cód. Tarefa],MID(B92,1,IF(ISERR(FIND(".",B92,1))=TRUE,LEN(B92),FIND(".",B92,1)-1)),PLANILHA_TAREFA[Quant.])) -> 1551.338902 | J92: =IF(A92=TRUE,1,0)*IF(H92>0,H92,G92)*IF(AND(E92=0,F92=""),1,E92)*SUMIF(PLANILHA_TAREFA[Cód. Tarefa],MID(B92,1,IF(ISERR(FIND(".",B92,1))=TRUE,LEN(B92),FIND(".",B92,1)-1)),PLANILHA_TAREFA[Quant.]) -> 1551.338902 | K92: =IF(F92="",SUMIF(PLANILHA_TAREFA[Cód. Tarefa],"="&B92&"."&"*",PLANILHA_TAREFA[Valor Parc. Total]),0) -> 0 | L92: =SUMIF(PLANILHA_TAREFA[Cód. Tarefa],MID(B92,1,IF(ISERR(FIND(".",B92,1))=TRUE,LEN(B92),FIND(".",B92,1)-1)),PLANILHA_TAREFA[Quant.]) -> 1 | M92: =IF(F92="",IF(SUMIF(PLANILHA_TAREFA[Cód. Tarefa],"="&MID(B92,1,IF(ISEVEN(LEN(B92)),LEN(B92)-3,LEN(B92)-2))&"*",PLANILHA_TAREFA[Valor Parc. Total])=0,0,K92/SUMIF(PLANILHA_TAREFA[Cód. Tarefa],"="&MID(B92,1,IF(ISEVEN(LEN(B92)),LEN(B92)-3,LEN(B92)-2))&"*",PLANILHA_TAREFA[Valor Parc. Total])),IF(SUMIF(PLANILHA_TAREFA[Cód. Tarefa],"="&MID(B92,1,IF(ISEVEN(LEN(B92)),LEN(B92)-3,LEN(B92)-2))&"*",PLANILHA_TAREFA[Valor Parc. Total])=0,0,J92/SUMIF(PLANILHA_TAREFA[Cód. Tarefa],"="&MID(B92,1,IF(ISEVEN(LEN(B92)),LEN(B92)-3,LEN(B92)-2))&"*",PLANILHA_TAREFA[Valor Parc. Total]))) -> 0.7281414635 | N92: 0.23 | O92: 1908.14685 | P92: =IF(F92="",SUMIF(PLANILHA_TAREFA[Cód. Tarefa],"="&B92&"."&"*",PLANILHA_TAREFA[Valor Parc. Total - BDI]),0) -> 0
A93: TRUE | B93: 001.16 | D93: LOUCAS | G93: 0 | H93: 0 | I93: =IF(AND(J93>=0,E93<>""),IF(K93=0,J93/SUMIF(PLANILHA_TAREFA[Cód. Tarefa],MID(B93,1,IF(ISERR(FIND(".",B93,1))=TRUE,LEN(B93),FIND(".",B93,1)-1)),PLANILHA_TAREFA[Quant.]),K93/E93),K93/SUMIF(PLANILHA_TAREFA[Cód. Tarefa],MID(B93,1,IF(ISERR(FIND(".",B93,1))=TRUE,LEN(B93),FIND(".",B93,1)-1)),PLANILHA_TAREFA[Quant.])) -> 1146.41546 | J93: =IF(A93=TRUE,1,0)*IF(H93>0,H93,G93)*IF(AND(E93=0,F93=""),1,E93)*SUMIF(PLANILHA_TAREFA[Cód. Tarefa],MID(B93,1,IF(ISERR(FIND(".",B93,1))=TRUE,LEN(B93),FIND(".",B93,1)-1)),PLANILHA_TAREFA[Quant.]) -> 0 | K93: =IF(F93="",SUMIF(PLANILHA_TAREFA[Cód. Tarefa],"="&B93&"."&"*",PLANILHA_TAREFA[Valor Parc. Total]),0) -> 1146.41546 | L93: =SUMIF(PLANILHA_TAREFA[Cód. Tarefa],MID(B93,1,IF(ISERR(FIND(".",B93,1))=TRUE,LEN(B93),FIND(".",B93,1)-1)),PLANILHA_TAREFA[Quant.]) -> 1 | M93: =IF(F93="",IF(SUMIF(PLANILHA_TAREFA[Cód. Tarefa],"="&MID(B93,1,IF(ISEVEN(LEN(B93)),LEN(B93)-3,LEN(B93)-2))&"*",PLANILHA_TAREFA[Valor Parc. Total])=0,0,K93/SUMIF(PLANILHA_TAREFA[Cód. Tarefa],"="&MID(B93,1,IF(ISEVEN(LEN(B93)),LEN(B93)-3,LEN(B93)-2))&"*",PLANILHA_TAREFA[Valor Parc. Total])),IF(SUMIF(PLANILHA_TAREFA[Cód. Tarefa],"="&MID(B93,1,IF(ISEVEN(LEN(B93)),LEN(B93)-3,LEN(B93)-2))&"*",PLANILHA_TAREFA[Valor Parc. Total])=0,0,J93/SUMIF(PLANILHA_TAREFA[Cód. Tarefa],"="&MID(B93,1,IF(ISEVEN(LEN(B93)),LEN(B93)-3,LEN(B93)-2))&"*",PLANILHA_TAREFA[Valor Parc. Total]))) -> 0.01860639819 | N93: 0.23 | O93: 0 | P93: =IF(F93="",SUMIF(PLANILHA_TAREFA[Cód. Tarefa],"="&B93&"."&"*",PLANILHA_TAREFA[Valor Parc. Total - BDI]),0) -> 1410.091016
A94: TRUE | B94: 001.16.01 | C94: 151290 | D94: BACIA SANITARIA C/ CAIXA ACOPLADA - PADRAO BAIXO | E94: 1 | F94: UN | G94: 307.81563 | H94: 0 | I94: =IF(AND(J94>=0,E94<>""),IF(K94=0,J94/SUMIF(PLANILHA_TAREFA[Cód. Tarefa],MID(B94,1,IF(ISERR(FIND(".",B94,1))=TRUE,LEN(B94),FIND(".",B94,1)-1)),PLANILHA_TAREFA[Quant.]),K94/E94),K94/SUMIF(PLANILHA_TAREFA[Cód. Tarefa],MID(B94,1,IF(ISERR(FIND(".",B94,1))=TRUE,LEN(B94),FIND(".",B94,1)-1)),PLANILHA_TAREFA[Quant.])) -> 307.81563 | J94: =IF(A94=TRUE,1,0)*IF(H94>0,H94,G94)*IF(AND(E94=0,F94=""),1,E94)*SUMIF(PLANILHA_TAREFA[Cód. Tarefa],MID(B94,1,IF(ISERR(FIND(".",B94,1))=TRUE,LEN(B94),FIND(".",B94,1)-1)),PLANILHA_TAREFA[Quant.]) -> 307.81563 | K94: =IF(F94="",SUMIF(PLANILHA_TAREFA[Cód. Tarefa],"="&B94&"."&"*",PLANILHA_TAREFA[Valor Parc. Total]),0) -> 0 | L94: =SUMIF(PLANILHA_TAREFA[Cód. Tarefa],MID(B94,1,IF(ISERR(FIND(".",B94,1))=TRUE,LEN(B94),FIND(".",B94,1)-1)),PLANILHA_TAREFA[Quant.]) -> 1 | M94: =IF(F94="",IF(SUMIF(PLANILHA_TAREFA[Cód. Tarefa],"="&MID(B94,1,IF(ISEVEN(LEN(B94)),LEN(B94)-3,LEN(B94)-2))&"*",PLANILHA_TAREFA[Valor Parc. Total])=0,0,K94/SUMIF(PLANILHA_TAREFA[Cód. Tarefa],"="&MID(B94,1,IF(ISEVEN(LEN(B94)),LEN(B94)-3,LEN(B94)-2))&"*",PLANILHA_TAREFA[Valor Parc. Total])),IF(SUMIF(PLANILHA_TAREFA[Cód. Tarefa],"="&MID(B94,1,IF(ISEVEN(LEN(B94)),LEN(B94)-3,LEN(B94)-2))&"*",PLANILHA_TAREFA[Valor Parc. Total])=0,0,J94/SUMIF(PLANILHA_TAREFA[Cód. Tarefa],"="&MID(B94,1,IF(ISEVEN(LEN(B94)),LEN(B94)-3,LEN(B94)-2))&"*",PLANILHA_TAREFA[Valor Parc. Total]))) -> 0.2685026858 | N94: 0.23 | O94: 378.6132249 | P94: =IF(F94="",SUMIF(PLANILHA_TAREFA[Cód. Tarefa],"="&B94&"."&"*",PLANILHA_TAREFA[Valor Parc. Total - BDI]),0) -> 0
A95: TRUE | B95: 001.16.02 | C95: 155281 | D95: LAVATORIO DE LOUCA C/ COLUNA - BRANCO | E95: 1 | F95: UN | G95: 140.50563 | H95: 0 | I95: =IF(AND(J95>=0,E95<>""),IF(K95=0,J95/SUMIF(PLANILHA_TAREFA[Cód. Tarefa],MID(B95,1,IF(ISERR(FIND(".",B95,1))=TRUE,LEN(B95),FIND(".",B95,1)-1)),PLANILHA_TAREFA[Quant.]),K95/E95),K95/SUMIF(PLANILHA_TAREFA[Cód. Tarefa],MID(B95,1,IF(ISERR(FIND(".",B95,1))=TRUE,LEN(B95),FIND(".",B95,1)-1)),PLANILHA_TAREFA[Quant.])) -> 140.50563 | J95: =IF(A95=TRUE,1,0)*IF(H95>0,H95,G95)*IF(AND(E95=0,F95=""),1,E95)*SUMIF(PLANILHA_TAREFA[Cód. Tarefa],MID(B95,1,IF(ISERR(FIND(".",B95,1))=TRUE,LEN(B95),FIND(".",B95,1)-1)),PLANILHA_TAREFA[Quant.]) -> 140.50563 | K95: =IF(F95="",SUMIF(PLANILHA_TAREFA[Cód. Tarefa],"="&B95&"."&"*",PLANILHA_TAREFA[Valor Parc. Total]),0) -> 0 | L95: =SUMIF(PLANILHA_TAREFA[Cód. Tarefa],MID(B95,1,IF(ISERR(FIND(".",B95,1))=TRUE,LEN(B95),FIND(".",B95,1)-1)),PLANILHA_TAREFA[Quant.]) -> 1 | M95: =IF(F95="",IF(SUMIF(PLANILHA_TAREFA[Cód. Tarefa],"="&MID(B95,1,IF(ISEVEN(LEN(B95)),LEN(B95)-3,LEN(B95)-2))&"*",PLANILHA_TAREFA[Valor Parc. Total])=0,0,K95/SUMIF(PLANILHA_TAREFA[Cód. Tarefa],"="&MID(B95,1,IF(ISEVEN(LEN(B95)),LEN(B95)-3,LEN(B95)-2))&"*",PLANILHA_TAREFA[Valor Parc. Total])),IF(SUMIF(PLANILHA_TAREFA[Cód. Tarefa],"="&MID(B95,1,IF(ISEVEN(LEN(B95)),LEN(B95)-3,LEN(B95)-2))&"*",PLANILHA_TAREFA[Valor Parc. Total])=0,0,J95/SUMIF(PLANILHA_TAREFA[Cód. Tarefa],"="&MID(B95,1,IF(ISEVEN(LEN(B95)),LEN(B95)-3,LEN(B95)-2))&"*",PLANILHA_TAREFA[Valor Parc. Total]))) -> 0.1225608297 | N95: 0.23 | O95: 172.8219249 | P95: =IF(F95="",SUMIF(PLANILHA_TAREFA[Cód. Tarefa],"="&B95&"."&"*",PLANILHA_TAREFA[Valor Parc. Total - BDI]),0) -> 0
A96: TRUE | B96: 001.16.03 | C96: 500262 | D96: TANQUE DE MARMORE SINTETICO | E96: 1 | F96: UN | G96: 210.117 | H96: 0 | I96: =IF(AND(J96>=0,E96<>""),IF(K96=0,J96/SUMIF(PLANILHA_TAREFA[Cód. Tarefa],MID(B96,1,IF(ISERR(FIND(".",B96,1))=TRUE,LEN(B96),FIND(".",B96,1)-1)),PLANILHA_TAREFA[Quant.]),K96/E96),K96/SUMIF(PLANILHA_TAREFA[Cód. Tarefa],MID(B96,1,IF(ISERR(FIND(".",B96,1))=TRUE,LEN(B96),FIND(".",B96,1)-1)),PLANILHA_TAREFA[Quant.])) -> 210.117 | J96: =IF(A96=TRUE,1,0)*IF(H96>0,H96,G96)*IF(AND(E96=0,F96=""),1,E96)*SUMIF(PLANILHA_TAREFA[Cód. Tarefa],MID(B96,1,IF(ISERR(FIND(".",B96,1))=TRUE,LEN(B96),FIND(".",B96,1)-1)),PLANILHA_TAREFA[Quant.]) -> 210.117 | K96: =IF(F96="",SUMIF(PLANILHA_TAREFA[Cód. Tarefa],"="&B96&"."&"*",PLANILHA_TAREFA[Valor Parc. Total]),0) -> 0 | L96: =SUMIF(PLANILHA_TAREFA[Cód. Tarefa],MID(B96,1,IF(ISERR(FIND(".",B96,1))=TRUE,LEN(B96),FIND(".",B96,1)-1)),PLANILHA_TAREFA[Quant.]) -> 1 | M96: =IF(F96="",IF(SUMIF(PLANILHA_TAREFA[Cód. Tarefa],"="&MID(B96,1,IF(ISEVEN(LEN(B96)),LEN(B96)-3,LEN(B96)-2))&"*",PLANILHA_TAREFA[Valor Parc. Total])=0,0,K96/SUMIF(PLANILHA_TAREFA[Cód. Tarefa],"="&MID(B96,1,IF(ISEVEN(LEN(B96)),LEN(B96)-3,LEN(B96)-2))&"*",PLANILHA_TAREFA[Valor Parc. Total])),IF(SUMIF(PLANILHA_TAREFA[Cód. Tarefa],"="&MID(B96,1,IF(ISEVEN(LEN(B96)),LEN(B96)-3,LEN(B96)-2))&"*",PLANILHA_TAREFA[Valor Parc. Total])=0,0,J96/SUMIF(PLANILHA_TAREFA[Cód. Tarefa],"="&MID(B96,1,IF(ISEVEN(LEN(B96)),LEN(B96)-3,LEN(B96)-2))&"*",PLANILHA_TAREFA[Valor Parc. Total]))) -> 0.1832817223 | N96: 0.23 | O96: 258.44391 | P96: =IF(F96="",SUMIF(PLANILHA_TAREFA[Cód. Tarefa],"="&B96&"."&"*",PLANILHA_TAREFA[Valor Parc. Total - BDI]),0) -> 0
A97: TRUE | B97: 001.16.04 | C97: 500058 | D97: PIA DE GRANITO 1,20 X 0,60 M C/ CUBA DE INOX | E97: 1 | F97: UN | G97: 300.1905 | H97: 0 | I97: =IF(AND(J97>=0,E97<>""),IF(K97=0,J97/SUMIF(PLANILHA_TAREFA[Cód. Tarefa],MID(B97,1,IF(ISERR(FIND(".",B97,1))=TRUE,LEN(B97),FIND(".",B97,1)-1)),PLANILHA_TAREFA[Quant.]),K97/E97),K97/SUMIF(PLANILHA_TAREFA[Cód. Tarefa],MID(B97,1,IF(ISERR(FIND(".",B97,1))=TRUE,LEN(B97),FIND(".",B97,1)-1)),PLANILHA_TAREFA[Quant.])) -> 300.1905 | J97: =IF(A97=TRUE,1,0)*IF(H97>0,H97,G97)*IF(AND(E97=0,F97=""),1,E97)*SUMIF(PLANILHA_TAREFA[Cód. Tarefa],MID(B97,1,IF(ISERR(FIND(".",B97,1))=TRUE,LEN(B97),FIND(".",B97,1)-1)),PLANILHA_TAREFA[Quant.]) -> 300.1905 | K97: =IF(F97="",SUMIF(PLANILHA_TAREFA[Cód. Tarefa],"="&B97&"."&"*",PLANILHA_TAREFA[Valor Parc. Total]),0) -> 0 | L97: =SUMIF(PLANILHA_TAREFA[Cód. Tarefa],MID(B97,1,IF(ISERR(FIND(".",B97,1))=TRUE,LEN(B97),FIND(".",B97,1)-1)),PLANILHA_TAREFA[Quant.]) -> 1 | M97: =IF(F97="",IF(SUMIF(PLANILHA_TAREFA[Cód. Tarefa],"="&MID(B97,1,IF(ISEVEN(LEN(B97)),LEN(B97)-3,LEN(B97)-2))&"*",PLANILHA_TAREFA[Valor Parc. Total])=0,0,K97/SUMIF(PLANILHA_TAREFA[Cód. Tarefa],"="&MID(B97,1,IF(ISEVEN(LEN(B97)),LEN(B97)-3,LEN(B97)-2))&"*",PLANILHA_TAREFA[Valor Parc. Total])),IF(SUMIF(PLANILHA_TAREFA[Cód. Tarefa],"="&MID(B97,1,IF(ISEVEN(LEN(B97)),LEN(B97)-3,LEN(B97)-2))&"*",PLANILHA_TAREFA[Valor Parc. Total])=0,0,J97/SUMIF(PLANILHA_TAREFA[Cód. Tarefa],"="&MID(B97,1,IF(ISEVEN(LEN(B97)),LEN(B97)-3,LEN(B97)-2))&"*",PLANILHA_TAREFA[Valor Parc. Total]))) -> 0.2618514059 | N97: 0.23 | O97: 369.234315 | P97: =IF(F97="",SUMIF(PLANILHA_TAREFA[Cód. Tarefa],"="&B97&"."&"*",PLANILHA_TAREFA[Valor Parc. Total - BDI]),0) -> 0
A98: TRUE | B98: 001.16.05 | C98: 401514 | D98: TORNEIRA P/LAVATORIO CROMADA | E98: 1 | F98: UN | G98: 23.7657 | H98: 0 | I98: =IF(AND(J98>=0,E98<>""),IF(K98=0,J98/SUMIF(PLANILHA_TAREFA[Cód. Tarefa],MID(B98,1,IF(ISERR(FIND(".",B98,1))=TRUE,LEN(B98),FIND(".",B98,1)-1)),PLANILHA_TAREFA[Quant.]),K98/E98),K98/SUMIF(PLANILHA_TAREFA[Cód. Tarefa],MID(B98,1,IF(ISERR(FIND(".",B98,1))=TRUE,LEN(B98),FIND(".",B98,1)-1)),PLANILHA_TAREFA[Quant.])) -> 23.7657 | J98: =IF(A98=TRUE,1,0)*IF(H98>0,H98,G98)*IF(AND(E98=0,F98=""),1,E98)*SUMIF(PLANILHA_TAREFA[Cód. Tarefa],MID(B98,1,IF(ISERR(FIND(".",B98,1))=TRUE,LEN(B98),FIND(".",B98,1)-1)),PLANILHA_TAREFA[Quant.]) -> 23.7657 | K98: =IF(F98="",SUMIF(PLANILHA_TAREFA[Cód. Tarefa],"="&B98&"."&"*",PLANILHA_TAREFA[Valor Parc. Total]),0) -> 0 | L98: =SUMIF(PLANILHA_TAREFA[Cód. Tarefa],MID(B98,1,IF(ISERR(FIND(".",B98,1))=TRUE,LEN(B98),FIND(".",B98,1)-1)),PLANILHA_TAREFA[Quant.]) -> 1 | M98: =IF(F98="",IF(SUMIF(PLANILHA_TAREFA[Cód. Tarefa],"="&MID(B98,1,IF(ISEVEN(LEN(B98)),LEN(B98)-3,LEN(B98)-2))&"*",PLANILHA_TAREFA[Valor Parc. Total])=0,0,K98/SUMIF(PLANILHA_TAREFA[Cód. Tarefa],"="&MID(B98,1,IF(ISEVEN(LEN(B98)),LEN(B98)-3,LEN(B98)-2))&"*",PLANILHA_TAREFA[Valor Parc. Total])),IF(SUMIF(PLANILHA_TAREFA[Cód. Tarefa],"="&MID(B98,1,IF(ISEVEN(LEN(B98)),LEN(B98)-3,LEN(B98)-2))&"*",PLANILHA_TAREFA[Valor Parc. Total])=0,0,J98/SUMIF(PLANILHA_TAREFA[Cód. Tarefa],"="&MID(B98,1,IF(ISEVEN(LEN(B98)),LEN(B98)-3,LEN(B98)-2))&"*",PLANILHA_TAREFA[Valor Parc. Total]))) -> 0.0207304427 | N98: 0.23 | O98: 29.231811 | P98: =IF(F98="",SUMIF(PLANILHA_TAREFA[Cód. Tarefa],"="&B98&"."&"*",PLANILHA_TAREFA[Valor Parc. Total - BDI]),0) -> 0
A99: TRUE | B99: 001.16.06 | C99: 401702 | D99: TORNEIRA CROMADA CURTA P/TANQUE 3/4'' | E99: 1 | F99: UN | G99: 19.7657 | H99: 0 | I99: =IF(AND(J99>=0,E99<>""),IF(K99=0,J99/SUMIF(PLANILHA_TAREFA[Cód. Tarefa],MID(B99,1,IF(ISERR(FIND(".",B99,1))=TRUE,LEN(B99),FIND(".",B99,1)-1)),PLANILHA_TAREFA[Quant.]),K99/E99),K99/SUMIF(PLANILHA_TAREFA[Cód. Tarefa],MID(B99,1,IF(ISERR(FIND(".",B99,1))=TRUE,LEN(B99),FIND(".",B99,1)-1)),PLANILHA_TAREFA[Quant.])) -> 19.7657 | J99: =IF(A99=TRUE,1,0)*IF(H99>0,H99,G99)*IF(AND(E99=0,F99=""),1,E99)*SUMIF(PLANILHA_TAREFA[Cód. Tarefa],MID(B99,1,IF(ISERR(FIND(".",B99,1))=TRUE,LEN(B99),FIND(".",B99,1)-1)),PLANILHA_TAREFA[Quant.]) -> 19.7657 | K99: =IF(F99="",SUMIF(PLANILHA_TAREFA[Cód. Tarefa],"="&B99&"."&"*",PLANILHA_TAREFA[Valor Parc. Total]),0) -> 0 | L99: =SUMIF(PLANILHA_TAREFA[Cód. Tarefa],MID(B99,1,IF(ISERR(FIND(".",B99,1))=TRUE,LEN(B99),FIND(".",B99,1)-1)),PLANILHA_TAREFA[Quant.]) -> 1 | M99: =IF(F99="",IF(SUMIF(PLANILHA_TAREFA[Cód. Tarefa],"="&MID(B99,1,IF(ISEVEN(LEN(B99)),LEN(B99)-3,LEN(B99)-2))&"*",PLANILHA_TAREFA[Valor Parc. Total])=0,0,K99/SUMIF(PLANILHA_TAREFA[Cód. Tarefa],"="&MID(B99,1,IF(ISEVEN(LEN(B99)),LEN(B99)-3,LEN(B99)-2))&"*",PLANILHA_TAREFA[Valor Parc. Total])),IF(SUMIF(PLANILHA_TAREFA[Cód. Tarefa],"="&MID(B99,1,IF(ISEVEN(LEN(B99)),LEN(B99)-3,LEN(B99)-2))&"*",PLANILHA_TAREFA[Valor Parc. Total])=0,0,J99/SUMIF(PLANILHA_TAREFA[Cód. Tarefa],"="&MID(B99,1,IF(ISEVEN(LEN(B99)),LEN(B99)-3,LEN(B99)-2))&"*",PLANILHA_TAREFA[Valor Parc. Total]))) -> 0.01724130622 | N99: 0.23 | O99: 24.311811 | P99: =IF(F99="",SUMIF(PLANILHA_TAREFA[Cód. Tarefa],"="&B99&"."&"*",PLANILHA_TAREFA[Valor Parc. Total - BDI]),0) -> 0
A100: TRUE | B100: 001.16.07 | C100: 401513 | D100: TORNEIRA CROMADA P/ PIA DE COZINHA 1/2'' | E100: 1 | F100: UN | G100: 31.7157 | H100: 0 | I100: =IF(AND(J100>=0,E100<>""),IF(K100=0,J100/SUMIF(PLANILHA_TAREFA[Cód. Tarefa],MID(B100,1,IF(ISERR(FIND(".",B100,1))=TRUE,LEN(B100),FIND(".",B100,1)-1)),PLANILHA_TAREFA[Quant.]),K100/E100),K100/SUMIF(PLANILHA_TAREFA[Cód. Tarefa],MID(B100,1,IF(ISERR(FIND(".",B100,1))=TRUE,LEN(B100),FIND(".",B100,1)-1)),PLANILHA_TAREFA[Quant.])) -> 31.7157 | J100: =IF(A100=TRUE,1,0)*IF(H100>0,H100,G100)*IF(AND(E100=0,F100=""),1,E100)*SUMIF(PLANILHA_TAREFA[Cód. Tarefa],MID(B100,1,IF(ISERR(FIND(".",B100,1))=TRUE,LEN(B100),FIND(".",B100,1)-1)),PLANILHA_TAREFA[Quant.]) -> 31.7157 | K100: =IF(F100="",SUMIF(PLANILHA_TAREFA[Cód. Tarefa],"="&B100&"."&"*",PLANILHA_TAREFA[Valor Parc. Total]),0) -> 0 | L100: =SUMIF(PLANILHA_TAREFA[Cód. Tarefa],MID(B100,1,IF(ISERR(FIND(".",B100,1))=TRUE,LEN(B100),FIND(".",B100,1)-1)),PLANILHA_TAREFA[Quant.]) -> 1 | M100: =IF(F100="",IF(SUMIF(PLANILHA_TAREFA[Cód. Tarefa],"="&MID(B100,1,IF(ISEVEN(LEN(B100)),LEN(B100)-3,LEN(B100)-2))&"*",PLANILHA_TAREFA[Valor Parc. Total])=0,0,K100/SUMIF(PLANILHA_TAREFA[Cód. Tarefa],"="&MID(B100,1,IF(ISEVEN(LEN(B100)),LEN(B100)-3,LEN(B100)-2))&"*",PLANILHA_TAREFA[Valor Parc. Total])),IF(SUMIF(PLANILHA_TAREFA[Cód. Tarefa],"="&MID(B100,1,IF(ISEVEN(LEN(B100)),LEN(B100)-3,LEN(B100)-2))&"*",PLANILHA_TAREFA[Valor Parc. Total])=0,0,J100/SUMIF(PLANILHA_TAREFA[Cód. Tarefa],"="&MID(B100,1,IF(ISEVEN(LEN(B100)),LEN(B100)-3,LEN(B100)-2))&"*",PLANILHA_TAREFA[Valor Parc. Total]))) -> 0.02766510145 | N100: 0.23 | O100: 39.010311 | P100: =IF(F100="",SUMIF(PLANILHA_TAREFA[Cód. Tarefa],"="&B100&"."&"*",PLANILHA_TAREFA[Valor Parc. Total - BDI]),0) -> 0
A101: TRUE | B101: 001.16.08 | C101: 403204 | D101: TORNEIRA P/ JARDIM AMARELA 1" | E101: 1 | F101: UN | G101: 29.0885 | H101: 0 | I101: =IF(AND(J101>=0,E101<>""),IF(K101=0,J101/SUMIF(PLANILHA_TAREFA[Cód. Tarefa],MID(B101,1,IF(ISERR(FIND(".",B101,1))=TRUE,LEN(B101),FIND(".",B101,1)-1)),PLANILHA_TAREFA[Quant.]),K101/E101),K101/SUMIF(PLANILHA_TAREFA[Cód. Tarefa],MID(B101,1,IF(ISERR(FIND(".",B101,1))=TRUE,LEN(B101),FIND(".",B101,1)-1)),PLANILHA_TAREFA[Quant.])) -> 29.0885 | J101: =IF(A101=TRUE,1,0)*IF(H101>0,H101,G101)*IF(AND(E101=0,F101=""),1,E101)*SUMIF(PLANILHA_TAREFA[Cód. Tarefa],MID(B101,1,IF(ISERR(FIND(".",B101,1))=TRUE,LEN(B101),FIND(".",B101,1)-1)),PLANILHA_TAREFA[Quant.]) -> 29.0885 | K101: =IF(F101="",SUMIF(PLANILHA_TAREFA[Cód. Tarefa],"="&B101&"."&"*",PLANILHA_TAREFA[Valor Parc. Total]),0) -> 0 | L101: =SUMIF(PLANILHA_TAREFA[Cód. Tarefa],MID(B101,1,IF(ISERR(FIND(".",B101,1))=TRUE,LEN(B101),FIND(".",B101,1)-1)),PLANILHA_TAREFA[Quant.]) -> 1 | M101: =IF(F101="",IF(SUMIF(PLANILHA_TAREFA[Cód. Tarefa],"="&MID(B101,1,IF(ISEVEN(LEN(B101)),LEN(B101)-3,LEN(B101)-2))&"*",PLANILHA_TAREFA[Valor Parc. Total])=0,0,K101/SUMIF(PLANILHA_TAREFA[Cód. Tarefa],"="&MID(B101,1,IF(ISEVEN(LEN(B101)),LEN(B101)-3,LEN(B101)-2))&"*",PLANILHA_TAREFA[Valor Parc. Total])),IF(SUMIF(PLANILHA_TAREFA[Cód. Tarefa],"="&MID(B101,1,IF(ISEVEN(LEN(B101)),LEN(B101)-3,LEN(B101)-2))&"*",PLANILHA_TAREFA[Valor Parc. Total])=0,0,J101/SUMIF(PLANILHA_TAREFA[Cód. Tarefa],"="&MID(B101,1,IF(ISEVEN(LEN(B101)),LEN(B101)-3,LEN(B101)-2))&"*",PLANILHA_TAREFA[Valor Parc. Total]))) -> 0.02537343661 | N101: 0.23 | O101: 35.778855 | P101: =IF(F101="",SUMIF(PLANILHA_TAREFA[Cód. Tarefa],"="&B101&"."&"*",PLANILHA_TAREFA[Valor Parc. Total - BDI]),0) -> 0
A102: TRUE | B102: 001.16.09 | C102: 151040 | D102: REGISTRO DE PRESSAO 3/4'' CROMADO C/ CANOPLA | E102: 1 | F102: UN | G102: 29.0021 | H102: 0 | I102: =IF(AND(J102>=0,E102<>""),IF(K102=0,J102/SUMIF(PLANILHA_TAREFA[Cód. Tarefa],MID(B102,1,IF(ISERR(FIND(".",B102,1))=TRUE,LEN(B102),FIND(".",B102,1)-1)),PLANILHA_TAREFA[Quant.]),K102/E102),K102/SUMIF(PLANILHA_TAREFA[Cód. Tarefa],MID(B102,1,IF(ISERR(FIND(".",B102,1))=TRUE,LEN(B102),FIND(".",B102,1)-1)),PLANILHA_TAREFA[Quant.])) -> 29.0021 | J102: =IF(A102=TRUE,1,0)*IF(H102>0,H102,G102)*IF(AND(E102=0,F102=""),1,E102)*SUMIF(PLANILHA_TAREFA[Cód. Tarefa],MID(B102,1,IF(ISERR(FIND(".",B102,1))=TRUE,LEN(B102),FIND(".",B102,1)-1)),PLANILHA_TAREFA[Quant.]) -> 29.0021 | K102: =IF(F102="",SUMIF(PLANILHA_TAREFA[Cód. Tarefa],"="&B102&"."&"*",PLANILHA_TAREFA[Valor Parc. Total]),0) -> 0 | L102: =SUMIF(PLANILHA_TAREFA[Cód. Tarefa],MID(B102,1,IF(ISERR(FIND(".",B102,1))=TRUE,LEN(B102),FIND(".",B102,1)-1)),PLANILHA_TAREFA[Quant.]) -> 1 | M102: =IF(F102="",IF(SUMIF(PLANILHA_TAREFA[Cód. Tarefa],"="&MID(B102,1,IF(ISEVEN(LEN(B102)),LEN(B102)-3,LEN(B102)-2))&"*",PLANILHA_TAREFA[Valor Parc. Total])=0,0,K102/SUMIF(PLANILHA_TAREFA[Cód. Tarefa],"="&MID(B102,1,IF(ISEVEN(LEN(B102)),LEN(B102)-3,LEN(B102)-2))&"*",PLANILHA_TAREFA[Valor Parc. Total])),IF(SUMIF(PLANILHA_TAREFA[Cód. Tarefa],"="&MID(B102,1,IF(ISEVEN(LEN(B102)),LEN(B102)-3,LEN(B102)-2))&"*",PLANILHA_TAREFA[Valor Parc. Total])=0,0,J102/SUMIF(PLANILHA_TAREFA[Cód. Tarefa],"="&MID(B102,1,IF(ISEVEN(LEN(B102)),LEN(B102)-3,LEN(B102)-2))&"*",PLANILHA_TAREFA[Valor Parc. Total]))) -> 0.02529807126 | N102: 0.23 | O102: 35.672583 | P102: =IF(F102="",SUMIF(PLANILHA_TAREFA[Cód. Tarefa],"="&B102&"."&"*",PLANILHA_TAREFA[Valor Parc. Total - BDI]),0) -> 0
A103: TRUE | B103: 001.16.10 | C103: 155468 | D103: REGISTRO DE GAVETA 3/4'' CROMADO C/ CANOPLA | E103: 2 | F103: UN | G103: 27.2245 | H103: 0 | I103: =IF(AND(J103>=0,E103<>""),IF(K103=0,J103/SUMIF(PLANILHA_TAREFA[Cód. Tarefa],MID(B103,1,IF(ISERR(FIND(".",B103,1))=TRUE,LEN(B103),FIND(".",B103,1)-1)),PLANILHA_TAREFA[Quant.]),K103/E103),K103/SUMIF(PLANILHA_TAREFA[Cód. Tarefa],MID(B103,1,IF(ISERR(FIND(".",B103,1))=TRUE,LEN(B103),FIND(".",B103,1)-1)),PLANILHA_TAREFA[Quant.])) -> 54.449 | J103: =IF(A103=TRUE,1,0)*IF(H103>0,H103,G103)*IF(AND(E103=0,F103=""),1,E103)*SUMIF(PLANILHA_TAREFA[Cód. Tarefa],MID(B103,1,IF(ISERR(FIND(".",B103,1))=TRUE,LEN(B103),FIND(".",B103,1)-1)),PLANILHA_TAREFA[Quant.]) -> 54.449 | K103: =IF(F103="",SUMIF(PLANILHA_TAREFA[Cód. Tarefa],"="&B103&"."&"*",PLANILHA_TAREFA[Valor Parc. Total]),0) -> 0 | L103: =SUMIF(PLANILHA_TAREFA[Cód. Tarefa],MID(B103,1,IF(ISERR(FIND(".",B103,1))=TRUE,LEN(B103),FIND(".",B103,1)-1)),PLANILHA_TAREFA[Quant.]) -> 1 | M103: =IF(F103="",IF(SUMIF(PLANILHA_TAREFA[Cód. Tarefa],"="&MID(B103,1,IF(ISEVEN(LEN(B103)),LEN(B103)-3,LEN(B103)-2))&"*",PLANILHA_TAREFA[Valor Parc. Total])=0,0,K103/SUMIF(PLANILHA_TAREFA[Cód. Tarefa],"="&MID(B103,1,IF(ISEVEN(LEN(B103)),LEN(B103)-3,LEN(B103)-2))&"*",PLANILHA_TAREFA[Valor Parc. Total])),IF(SUMIF(PLANILHA_TAREFA[Cód. Tarefa],"="&MID(B103,1,IF(ISEVEN(LEN(B103)),LEN(B103)-3,LEN(B103)-2))&"*",PLANILHA_TAREFA[Valor Parc. Total])=0,0,J103/SUMIF(PLANILHA_TAREFA[Cód. Tarefa],"="&MID(B103,1,IF(ISEVEN(LEN(B103)),LEN(B103)-3,LEN(B103)-2))&"*",PLANILHA_TAREFA[Valor Parc. Total]))) -> 0.04749499802 | N103: 0.23 | O103: 66.97227 | P103: =IF(F103="",SUMIF(PLANILHA_TAREFA[Cód. Tarefa],"="&B103&"."&"*",PLANILHA_TAREFA[Valor Parc. Total - BDI]),0) -> 0
A104: TRUE | B104: 001.17 | D104: SERVIÇOS COMPLEMENTARES | G104: 0 | H104: 0 | I104: =IF(AND(J104>=0,E104<>""),IF(K104=0,J104/SUMIF(PLANILHA_TAREFA[Cód. Tarefa],MID(B104,1,IF(ISERR(FIND(".",B104,1))=TRUE,LEN(B104),FIND(".",B104,1)-1)),PLANILHA_TAREFA[Quant.]),K104/E104),K104/SUMIF(PLANILHA_TAREFA[Cód. Tarefa],MID(B104,1,IF(ISERR(FIND(".",B104,1))=TRUE,LEN(B104),FIND(".",B104,1)-1)),PLANILHA_TAREFA[Quant.])) -> 4557.25183 | J104: =IF(A104=TRUE,1,0)*IF(H104>0,H104,G104)*IF(AND(E104=0,F104=""),1,E104)*SUMIF(PLANILHA_TAREFA[Cód. Tarefa],MID(B104,1,IF(ISERR(FIND(".",B104,1))=TRUE,LEN(B104),FIND(".",B104,1)-1)),PLANILHA_TAREFA[Quant.]) -> 0 | K104: =IF(F104="",SUMIF(PLANILHA_TAREFA[Cód. Tarefa],"="&B104&"."&"*",PLANILHA_TAREFA[Valor Parc. Total]),0) -> 4557.25183 | L104: =SUMIF(PLANILHA_TAREFA[Cód. Tarefa],MID(B104,1,IF(ISERR(FIND(".",B104,1))=TRUE,LEN(B104),FIND(".",B104,1)-1)),PLANILHA_TAREFA[Quant.]) -> 1 | M104: =IF(F104="",IF(SUMIF(PLANILHA_TAREFA[Cód. Tarefa],"="&MID(B104,1,IF(ISEVEN(LEN(B104)),LEN(B104)-3,LEN(B104)-2))&"*",PLANILHA_TAREFA[Valor Parc. Total])=0,0,K104/SUMIF(PLANILHA_TAREFA[Cód. Tarefa],"="&MID(B104,1,IF(ISEVEN(LEN(B104)),LEN(B104)-3,LEN(B104)-2))&"*",PLANILHA_TAREFA[Valor Parc. Total])),IF(SUMIF(PLANILHA_TAREFA[Cód. Tarefa],"="&MID(B104,1,IF(ISEVEN(LEN(B104)),LEN(B104)-3,LEN(B104)-2))&"*",PLANILHA_TAREFA[Valor Parc. Total])=0,0,J104/SUMIF(PLANILHA_TAREFA[Cód. Tarefa],"="&MID(B104,1,IF(ISEVEN(LEN(B104)),LEN(B104)-3,LEN(B104)-2))&"*",PLANILHA_TAREFA[Valor Parc. Total]))) -> 0.07396449641 | N104: 0.23 | O104: 0 | P104: =IF(F104="",SUMIF(PLANILHA_TAREFA[Cód. Tarefa],"="&B104&"."&"*",PLANILHA_TAREFA[Valor Parc. Total - BDI]),0) -> 5605.419751
A105: TRUE | B105: 001.17.01 | C105: 500488 | D105: MURO DE DIVISA PADRAO EM ALVENARIA - H = 1,50 M | E105: 12.4 | F105: MT | G105: 274.5967566 | H105: 0 | I105: =IF(AND(J105>=0,E105<>""),IF(K105=0,J105/SUMIF(PLANILHA_TAREFA[Cód. Tarefa],MID(B105,1,IF(ISERR(FIND(".",B105,1))=TRUE,LEN(B105),FIND(".",B105,1)-1)),PLANILHA_TAREFA[Quant.]),K105/E105),K105/SUMIF(PLANILHA_TAREFA[Cód. Tarefa],MID(B105,1,IF(ISERR(FIND(".",B105,1))=TRUE,LEN(B105),FIND(".",B105,1)-1)),PLANILHA_TAREFA[Quant.])) -> 3404.999782 | J105: =IF(A105=TRUE,1,0)*IF(H105>0,H105,G105)*IF(AND(E105=0,F105=""),1,E105)*SUMIF(PLANILHA_TAREFA[Cód. Tarefa],MID(B105,1,IF(ISERR(FIND(".",B105,1))=TRUE,LEN(B105),FIND(".",B105,1)-1)),PLANILHA_TAREFA[Quant.]) -> 3404.999782 | K105: =IF(F105="",SUMIF(PLANILHA_TAREFA[Cód. Tarefa],"="&B105&"."&"*",PLANILHA_TAREFA[Valor Parc. Total]),0) -> 0 | L105: =SUMIF(PLANILHA_TAREFA[Cód. Tarefa],MID(B105,1,IF(ISERR(FIND(".",B105,1))=TRUE,LEN(B105),FIND(".",B105,1)-1)),PLANILHA_TAREFA[Quant.]) -> 1 | M105: =IF(F105="",IF(SUMIF(PLANILHA_TAREFA[Cód. Tarefa],"="&MID(B105,1,IF(ISEVEN(LEN(B105)),LEN(B105)-3,LEN(B105)-2))&"*",PLANILHA_TAREFA[Valor Parc. Total])=0,0,K105/SUMIF(PLANILHA_TAREFA[Cód. Tarefa],"="&MID(B105,1,IF(ISEVEN(LEN(B105)),LEN(B105)-3,LEN(B105)-2))&"*",PLANILHA_TAREFA[Valor Parc. Total])),IF(SUMIF(PLANILHA_TAREFA[Cód. Tarefa],"="&MID(B105,1,IF(ISEVEN(LEN(B105)),LEN(B105)-3,LEN(B105)-2))&"*",PLANILHA_TAREFA[Valor Parc. Total])=0,0,J105/SUMIF(PLANILHA_TAREFA[Cód. Tarefa],"="&MID(B105,1,IF(ISEVEN(LEN(B105)),LEN(B105)-3,LEN(B105)-2))&"*",PLANILHA_TAREFA[Valor Parc. Total]))) -> 0.7471607691 | N105: 0.23 | O105: 4188.149732 | P105: =IF(F105="",SUMIF(PLANILHA_TAREFA[Cód. Tarefa],"="&B105&"."&"*",PLANILHA_TAREFA[Valor Parc. Total - BDI]),0) -> 0
A106: TRUE | B106: 001.17.02 | C106: 002330 | D106: LIMPEZA DA OBRA | E106: 52.57 | F106: M2 | G106: 3.9312 | H106: 0 | I106: =IF(AND(J106>=0,E106<>""),IF(K106=0,J106/SUMIF(PLANILHA_TAREFA[Cód. Tarefa],MID(B106,1,IF(ISERR(FIND(".",B106,1))=TRUE,LEN(B106),FIND(".",B106,1)-1)),PLANILHA_TAREFA[Quant.]),K106/E106),K106/SUMIF(PLANILHA_TAREFA[Cód. Tarefa],MID(B106,1,IF(ISERR(FIND(".",B106,1))=TRUE,LEN(B106),FIND(".",B106,1)-1)),PLANILHA_TAREFA[Quant.])) -> 206.663184 | J106: =IF(A106=TRUE,1,0)*IF(H106>0,H106,G106)*IF(AND(E106=0,F106=""),1,E106)*SUMIF(PLANILHA_TAREFA[Cód. Tarefa],MID(B106,1,IF(ISERR(FIND(".",B106,1))=TRUE,LEN(B106),FIND(".",B106,1)-1)),PLANILHA_TAREFA[Quant.]) -> 206.663184 | K106: =IF(F106="",SUMIF(PLANILHA_TAREFA[Cód. Tarefa],"="&B106&"."&"*",PLANILHA_TAREFA[Valor Parc. Total]),0) -> 0 | L106: =SUMIF(PLANILHA_TAREFA[Cód. Tarefa],MID(B106,1,IF(ISERR(FIND(".",B106,1))=TRUE,LEN(B106),FIND(".",B106,1)-1)),PLANILHA_TAREFA[Quant.]) -> 1 | M106: =IF(F106="",IF(SUMIF(PLANILHA_TAREFA[Cód. Tarefa],"="&MID(B106,1,IF(ISEVEN(LEN(B106)),LEN(B106)-3,LEN(B106)-2))&"*",PLANILHA_TAREFA[Valor Parc. Total])=0,0,K106/SUMIF(PLANILHA_TAREFA[Cód. Tarefa],"="&MID(B106,1,IF(ISEVEN(LEN(B106)),LEN(B106)-3,LEN(B106)-2))&"*",PLANILHA_TAREFA[Valor Parc. Total])),IF(SUMIF(PLANILHA_TAREFA[Cód. Tarefa],"="&MID(B106,1,IF(ISEVEN(LEN(B106)),LEN(B106)-3,LEN(B106)-2))&"*",PLANILHA_TAREFA[Valor Parc. Total])=0,0,J106/SUMIF(PLANILHA_TAREFA[Cód. Tarefa],"="&MID(B106,1,IF(ISEVEN(LEN(B106)),LEN(B106)-3,LEN(B106)-2))&"*",PLANILHA_TAREFA[Valor Parc. Total]))) -> 0.04534820364 | N106: 0.23 | O106: 254.1957163 | P106: =IF(F106="",SUMIF(PLANILHA_TAREFA[Cód. Tarefa],"="&B106&"."&"*",PLANILHA_TAREFA[Valor Parc. Total - BDI]),0) -> 0
A107: TRUE | B107: 001.17.03 | C107: 600216 | D107: PLACA DE IDENTIFICACAO - NUMERACAO DAS CASAS | E107: 1 | F107: UN | G107: 11.08108 | H107: 0 | I107: =IF(AND(J107>=0,E107<>""),IF(K107=0,J107/SUMIF(PLANILHA_TAREFA[Cód. Tarefa],MID(B107,1,IF(ISERR(FIND(".",B107,1))=TRUE,LEN(B107),FIND(".",B107,1)-1)),PLANILHA_TAREFA[Quant.]),K107/E107),K107/SUMIF(PLANILHA_TAREFA[Cód. Tarefa],MID(B107,1,IF(ISERR(FIND(".",B107,1))=TRUE,LEN(B107),FIND(".",B107,1)-1)),PLANILHA_TAREFA[Quant.])) -> 11.08108 | J107: =IF(A107=TRUE,1,0)*IF(H107>0,H107,G107)*IF(AND(E107=0,F107=""),1,E107)*SUMIF(PLANILHA_TAREFA[Cód. Tarefa],MID(B107,1,IF(ISERR(FIND(".",B107,1))=TRUE,LEN(B107),FIND(".",B107,1)-1)),PLANILHA_TAREFA[Quant.]) -> 11.08108 | K107: =IF(F107="",SUMIF(PLANILHA_TAREFA[Cód. Tarefa],"="&B107&"."&"*",PLANILHA_TAREFA[Valor Parc. Total]),0) -> 0 | L107: =SUMIF(PLANILHA_TAREFA[Cód. Tarefa],MID(B107,1,IF(ISERR(FIND(".",B107,1))=TRUE,LEN(B107),FIND(".",B107,1)-1)),PLANILHA_TAREFA[Quant.]) -> 1 | M107: =IF(F107="",IF(SUMIF(PLANILHA_TAREFA[Cód. Tarefa],"="&MID(B107,1,IF(ISEVEN(LEN(B107)),LEN(B107)-3,LEN(B107)-2))&"*",PLANILHA_TAREFA[Valor Parc. Total])=0,0,K107/SUMIF(PLANILHA_TAREFA[Cód. Tarefa],"="&MID(B107,1,IF(ISEVEN(LEN(B107)),LEN(B107)-3,LEN(B107)-2))&"*",PLANILHA_TAREFA[Valor Parc. Total])),IF(SUMIF(PLANILHA_TAREFA[Cód. Tarefa],"="&MID(B107,1,IF(ISEVEN(LEN(B107)),LEN(B107)-3,LEN(B107)-2))&"*",PLANILHA_TAREFA[Valor Parc. Total])=0,0,J107/SUMIF(PLANILHA_TAREFA[Cód. Tarefa],"="&MID(B107,1,IF(ISEVEN(LEN(B107)),LEN(B107)-3,LEN(B107)-2))&"*",PLANILHA_TAREFA[Valor Parc. Total]))) -> 0.002431526809 | N107: 0.23 | O107: =J107*(1+N107) -> 13.6297284 | P107: =IF(F107="",SUMIF(PLANILHA_TAREFA[Cód. Tarefa],"="&B107&"."&"*",PLANILHA_TAREFA[Valor Parc. Total - BDI]),0) -> 0
A108: TRUE | B108: 001.17.04 | C108: 500139 | D108: PAISAGISMO - PLANTIO DE GRAMA EM PLACAS (JARDINS) | E108: 34.66 | F108: M2 | G108: 7.356288 | H108: 0 | I108: =IF(AND(J108>=0,E108<>""),IF(K108=0,J108/SUMIF(PLANILHA_TAREFA[Cód. Tarefa],MID(B108,1,IF(ISERR(FIND(".",B108,1))=TRUE,LEN(B108),FIND(".",B108,1)-1)),PLANILHA_TAREFA[Quant.]),K108/E108),K108/SUMIF(PLANILHA_TAREFA[Cód. Tarefa],MID(B108,1,IF(ISERR(FIND(".",B108,1))=TRUE,LEN(B108),FIND(".",B108,1)-1)),PLANILHA_TAREFA[Quant.])) -> 254.9689421 | J108: =IF(A108=TRUE,1,0)*IF(H108>0,H108,G108)*IF(AND(E108=0,F108=""),1,E108)*SUMIF(PLANILHA_TAREFA[Cód. Tarefa],MID(B108,1,IF(ISERR(FIND(".",B108,1))=TRUE,LEN(B108),FIND(".",B108,1)-1)),PLANILHA_TAREFA[Quant.]) -> 254.9689421 | K108: =IF(F108="",SUMIF(PLANILHA_TAREFA[Cód. Tarefa],"="&B108&"."&"*",PLANILHA_TAREFA[Valor Parc. Total]),0) -> 0 | L108: =SUMIF(PLANILHA_TAREFA[Cód. Tarefa],MID(B108,1,IF(ISERR(FIND(".",B108,1))=TRUE,LEN(B108),FIND(".",B108,1)-1)),PLANILHA_TAREFA[Quant.]) -> 1 | M108: =IF(F108="",IF(SUMIF(PLANILHA_TAREFA[Cód. Tarefa],"="&MID(B108,1,IF(ISEVEN(LEN(B108)),LEN(B108)-3,LEN(B108)-2))&"*",PLANILHA_TAREFA[Valor Parc. Total])=0,0,K108/SUMIF(PLANILHA_TAREFA[Cód. Tarefa],"="&MID(B108,1,IF(ISEVEN(LEN(B108)),LEN(B108)-3,LEN(B108)-2))&"*",PLANILHA_TAREFA[Valor Parc. Total])),IF(SUMIF(PLANILHA_TAREFA[Cód. Tarefa],"="&MID(B108,1,IF(ISEVEN(LEN(B108)),LEN(B108)-3,LEN(B108)-2))&"*",PLANILHA_TAREFA[Valor Parc. Total])=0,0,J108/SUMIF(PLANILHA_TAREFA[Cód. Tarefa],"="&MID(B108,1,IF(ISEVEN(LEN(B108)),LEN(B108)-3,LEN(B108)-2))&"*",PLANILHA_TAREFA[Valor Parc. Total]))) -> 0.05594795978 | N108: 0.23 | O108: 313.6117988 | P108: =IF(F108="",SUMIF(PLANILHA_TAREFA[Cód. Tarefa],"="&B108&"."&"*",PLANILHA_TAREFA[Valor Parc. Total - BDI]),0) -> 0
A109: TRUE | B109: 001.17.05 | D109: CALCADA EXTERNA | G109: 0 | H109: 0 | I109: =IF(AND(J109>=0,E109<>""),IF(K109=0,J109/SUMIF(PLANILHA_TAREFA[Cód. Tarefa],MID(B109,1,IF(ISERR(FIND(".",B109,1))=TRUE,LEN(B109),FIND(".",B109,1)-1)),PLANILHA_TAREFA[Quant.]),K109/E109),K109/SUMIF(PLANILHA_TAREFA[Cód. Tarefa],MID(B109,1,IF(ISERR(FIND(".",B109,1))=TRUE,LEN(B109),FIND(".",B109,1)-1)),PLANILHA_TAREFA[Quant.])) -> 679.5388416 | J109: =IF(A109=TRUE,1,0)*IF(H109>0,H109,G109)*IF(AND(E109=0,F109=""),1,E109)*SUMIF(PLANILHA_TAREFA[Cód. Tarefa],MID(B109,1,IF(ISERR(FIND(".",B109,1))=TRUE,LEN(B109),FIND(".",B109,1)-1)),PLANILHA_TAREFA[Quant.]) -> 0 | K109: =IF(F109="",SUMIF(PLANILHA_TAREFA[Cód. Tarefa],"="&B109&"."&"*",PLANILHA_TAREFA[Valor Parc. Total]),0) -> 679.5388416 | L109: =SUMIF(PLANILHA_TAREFA[Cód. Tarefa],MID(B109,1,IF(ISERR(FIND(".",B109,1))=TRUE,LEN(B109),FIND(".",B109,1)-1)),PLANILHA_TAREFA[Quant.]) -> 1 | M109: =IF(F109="",IF(SUMIF(PLANILHA_TAREFA[Cód. Tarefa],"="&MID(B109,1,IF(ISEVEN(LEN(B109)),LEN(B109)-3,LEN(B109)-2))&"*",PLANILHA_TAREFA[Valor Parc. Total])=0,0,K109/SUMIF(PLANILHA_TAREFA[Cód. Tarefa],"="&MID(B109,1,IF(ISEVEN(LEN(B109)),LEN(B109)-3,LEN(B109)-2))&"*",PLANILHA_TAREFA[Valor Parc. Total])),IF(SUMIF(PLANILHA_TAREFA[Cód. Tarefa],"="&MID(B109,1,IF(ISEVEN(LEN(B109)),LEN(B109)-3,LEN(B109)-2))&"*",PLANILHA_TAREFA[Valor Parc. Total])=0,0,J109/SUMIF(PLANILHA_TAREFA[Cód. Tarefa],"="&MID(B109,1,IF(ISEVEN(LEN(B109)),LEN(B109)-3,LEN(B109)-2))&"*",PLANILHA_TAREFA[Valor Parc. Total]))) -> 0.1491115407 | N109: 0.23 | O109: 0 | P109: =IF(F109="",SUMIF(PLANILHA_TAREFA[Cód. Tarefa],"="&B109&"."&"*",PLANILHA_TAREFA[Valor Parc. Total - BDI]),0) -> 835.8327752
A110: TRUE | B110: 001.17.05.01 | C110: 500038 | D110: CALÇADA EXTERNA 7CM | E110: 16.8 | F110: M2 | G110: 34.6688 | H110: 0 | I110: =IF(AND(J110>=0,E110<>""),IF(K110=0,J110/SUMIF(PLANILHA_TAREFA[Cód. Tarefa],MID(B110,1,IF(ISERR(FIND(".",B110,1))=TRUE,LEN(B110),FIND(".",B110,1)-1)),PLANILHA_TAREFA[Quant.]),K110/E110),K110/SUMIF(PLANILHA_TAREFA[Cód. Tarefa],MID(B110,1,IF(ISERR(FIND(".",B110,1))=TRUE,LEN(B110),FIND(".",B110,1)-1)),PLANILHA_TAREFA[Quant.])) -> 582.43584 | J110: =IF(A110=TRUE,1,0)*IF(H110>0,H110,G110)*IF(AND(E110=0,F110=""),1,E110)*SUMIF(PLANILHA_TAREFA[Cód. Tarefa],MID(B110,1,IF(ISERR(FIND(".",B110,1))=TRUE,LEN(B110),FIND(".",B110,1)-1)),PLANILHA_TAREFA[Quant.]) -> 582.43584 | K110: =IF(F110="",SUMIF(PLANILHA_TAREFA[Cód. Tarefa],"="&B110&"."&"*",PLANILHA_TAREFA[Valor Parc. Total]),0) -> 0 | L110: =SUMIF(PLANILHA_TAREFA[Cód. Tarefa],MID(B110,1,IF(ISERR(FIND(".",B110,1))=TRUE,LEN(B110),FIND(".",B110,1)-1)),PLANILHA_TAREFA[Quant.]) -> 1 | M110: =IF(F110="",IF(SUMIF(PLANILHA_TAREFA[Cód. Tarefa],"="&MID(B110,1,IF(ISEVEN(LEN(B110)),LEN(B110)-3,LEN(B110)-2))&"*",PLANILHA_TAREFA[Valor Parc. Total])=0,0,K110/SUMIF(PLANILHA_TAREFA[Cód. Tarefa],"="&MID(B110,1,IF(ISEVEN(LEN(B110)),LEN(B110)-3,LEN(B110)-2))&"*",PLANILHA_TAREFA[Valor Parc. Total])),IF(SUMIF(PLANILHA_TAREFA[Cód. Tarefa],"="&MID(B110,1,IF(ISEVEN(LEN(B110)),LEN(B110)-3,LEN(B110)-2))&"*",PLANILHA_TAREFA[Valor Parc. Total])=0,0,J110/SUMIF(PLANILHA_TAREFA[Cód. Tarefa],"="&MID(B110,1,IF(ISEVEN(LEN(B110)),LEN(B110)-3,LEN(B110)-2))&"*",PLANILHA_TAREFA[Valor Parc. Total]))) -> 0.8571045602 | N110: 0.23 | O110: 716.3960832 | P110: =IF(F110="",SUMIF(PLANILHA_TAREFA[Cód. Tarefa],"="&B110&"."&"*",PLANILHA_TAREFA[Valor Parc. Total - BDI]),0) -> 0
A111: TRUE | B111: 001.17.05.02 | C111: 500139 | D111: PAISAGISMO - PLANTIO DE GRAMA EM PLACAS (JARDINS) | E111: 13.2 | F111: M2 | G111: 7.356288 | H111: 0 | I111: =IF(AND(J111>=0,E111<>""),IF(K111=0,J111/SUMIF(PLANILHA_TAREFA[Cód. Tarefa],MID(B111,1,IF(ISERR(FIND(".",B111,1))=TRUE,LEN(B111),FIND(".",B111,1)-1)),PLANILHA_TAREFA[Quant.]),K111/E111),K111/SUMIF(PLANILHA_TAREFA[Cód. Tarefa],MID(B111,1,IF(ISERR(FIND(".",B111,1))=TRUE,LEN(B111),FIND(".",B111,1)-1)),PLANILHA_TAREFA[Quant.])) -> 97.1030016 | J111: =IF(A111=TRUE,1,0)*IF(H111>0,H111,G111)*IF(AND(E111=0,F111=""),1,E111)*SUMIF(PLANILHA_TAREFA[Cód. Tarefa],MID(B111,1,IF(ISERR(FIND(".",B111,1))=TRUE,LEN(B111),FIND(".",B111,1)-1)),PLANILHA_TAREFA[Quant.]) -> 97.1030016 | K111: =IF(F111="",SUMIF(PLANILHA_TAREFA[Cód. Tarefa],"="&B111&"."&"*",PLANILHA_TAREFA[Valor Parc. Total]),0) -> 0 | L111: =SUMIF(PLANILHA_TAREFA[Cód. Tarefa],MID(B111,1,IF(ISERR(FIND(".",B111,1))=TRUE,LEN(B111),FIND(".",B111,1)-1)),PLANILHA_TAREFA[Quant.]) -> 1 | M111: =IF(F111="",IF(SUMIF(PLANILHA_TAREFA[Cód. Tarefa],"="&MID(B111,1,IF(ISEVEN(LEN(B111)),LEN(B111)-3,LEN(B111)-2))&"*",PLANILHA_TAREFA[Valor Parc. Total])=0,0,K111/SUMIF(PLANILHA_TAREFA[Cód. Tarefa],"="&MID(B111,1,IF(ISEVEN(LEN(B111)),LEN(B111)-3,LEN(B111)-2))&"*",PLANILHA_TAREFA[Valor Parc. Total])),IF(SUMIF(PLANILHA_TAREFA[Cód. Tarefa],"="&MID(B111,1,IF(ISEVEN(LEN(B111)),LEN(B111)-3,LEN(B111)-2))&"*",PLANILHA_TAREFA[Valor Parc. Total])=0,0,J111/SUMIF(PLANILHA_TAREFA[Cód. Tarefa],"="&MID(B111,1,IF(ISEVEN(LEN(B111)),LEN(B111)-3,LEN(B111)-2))&"*",PLANILHA_TAREFA[Valor Parc. Total]))) -> 0.1428954398 | N111: 0.23 | O111: 119.436692 | P111: =IF(F111="",SUMIF(PLANILHA_TAREFA[Cód. Tarefa],"="&B111&"."&"*",PLANILHA_TAREFA[Valor Parc. Total - BDI]),0) -> 0
A112: Total | I112: S/ BDI | J112: =SUBTOTAL(109,PLANILHA_TAREFA[Valor Parc. Total]) -> 61614.04526 | N112: C/ BDI | O112: =SUBTOTAL(109,PLANILHA_TAREFA[Valor Parc. Total - BDI]) -> 75785.27567
K117: =SUMPRODUCT(SUBTOTAL(3,OFFSET($B$2:$B$12,ROW($B$2:$B$12)-ROW($B$2),0,1)),--($B$2:$B$12=$A17)) -> 0

Sheet Relatorio de Composicoes
A3: Soma de Total | C3: Tipo
A4: Comp | B4: Descrição | C4: M.O. | D4: Mat. | E4: Diver | F4: - | G4: Empre | H4: Eq.Loc. | I4: Total Geral
A5: 000020 | B5: LOCACAO DA OBRA | C5: 3.55488 | D5: 0.957 | I5: 4.51188
A6: 000040 | B6: ESCAVACAO MANUAL DE VALA | C6: 30.4668 | I6: 30.4668
A7: 000090 | B7: APILOAMENTO MANUAL FUNDO VALA | C7: 8.55036 | I7: 8.55036
A8: 000100 | B8: LASTRO DE BRITA | C8: 20.6388 | D8: 38.5 | I8: 59.1388
A9: 000130 | B9: CONCRETO CONSUMO 161,0 KG CIMENTO/M3 - TRACO 1:4:8 - BETONEIRA C/ LANCAMENTO | C9: 115.8885 | D9: 116.46 | H9: 0.8925 | I9: 233.241
A10: 000150 | B10: REATERRO APILOADO DE VALA | C10: 14.45808 | I10: 14.45808
A11: 000190 | B11: ACO CA 50 06,3 MM | C11: 1.77744 | D11: 4.028 | I11: 5.80544
A12: 000200 | B12: ACO CA 50 08,0 MM | C12: 1.77744 | D12: 4.028 | I12: 5.80544
A13: 000270 | B13: CONCRETO IN LOCO 15,0 MPA SLUMP CONVENCIONAL C/ LANCAMENTO | C13: 115.8885 | D13: 172.968 | H13: 0.8925 | I13: 289.749
A14: 000310 | B14: CONCRETO USINADO 15,0 MPA SLUMP CONVENCIONAL C/ LANCAMENTO | C14: 66.7485 | D14: 235.1078 | E14: 30 | I14: 331.8563
A15: 000330 | B15: MICRO CONCRETO GRAUTE 12,0 MPA C/ LANCAMENTO | C15: 180.726 | D15: 174.294 | I15: 355.02
A16: 000510 | B16: CHAPISCO - TRACO 1:3 - VERTICAL | C16: 1.07835 | D16: 1.1674 | I16: 2.24575
A17: 000580 | B17: EMBOCO 1:3 C/ IMPERMEABILIZANTE - E = 02,0 CM (VERTICAL) | C17: 17.0625 | D17: 5.4216 | I17: 22.4841
A18: 000700 | B18: ALVENARIA DE TIJOLO DE BARRO MACICO - E = 10,0 CM | C18: 38.8206 | D18: 43.4875 | I18: 82.3081
A19: 000780 | B19: ALVENARIA BLOCO DE CONCRETO VEDACAO - E=14,0 CM - C=39,0 CM - 03,0 MPA | C19: 16.8441 | D19: 33.8722 | I19: 50.7163
A20: 000820 | B20: ALVENARIA BLOCO DE CONCRETO CANALETA VEDACAO - E=14,0 CM - C=39,0 CM - 03,0 MPA | C20: 16.8441 | D20: 40.8311 | I20: 57.6752
A21: 000830 | B21: ALVENARIA BLOCO DE CONCRETO CANALETA VEDACAO - E=19,0 CM - C=19,0 CM - 03,0 MPA | C21: 16.31448 | D21: 61.0946 | I21: 77.40908
A22: 001000 | B22: FORMA DE TABUA FUNDACAO | C22: 21.1071 | D22: 6.1975 | I22: 27.3046
A23: 001780 | B23: REGULARIZACAO PISO 1:3 DESEMPENADO E=3CM | C23: 10.51869 | D23: 6.9964 | I23: 17.51509
A24: 001910 | B24: PINTURA CAIACAO PAREDE EXTERNA 03 DEMAOS | C24: 4.50324 | F24: 0 | I24: 4.50324
A25: 002330 | B25: LIMPEZA DA OBRA | C25: 3.9312 | I25: 3.9312
A26: 002413 | B26: ALVENARIA BLOCO DE CONCRETO ESTRUTURAL - E=14,0 CM - C=39,0 CM - 04,5 MPA | C26: 18.17634 | D26: 7 | F26: 0 | I26: 25.17634
A27: 002414 | B27: ALVENARIA BLOCO DE CONCRETO CANALETA ESTRUTURAL - E=14,0 CM - C=39,0 CM - 04,5 MPA | C27: 18.17634 | D27: 7 | F27: 0 | I27: 25.17634
A28: 002481 | B28: PINTURA ESMALTE SOBRE ESQUADRIA DE MADEIRA - 2 DEMAOS | C28: 5.40918 | D28: 4.3148 | I28: 9.72398
A29: 002684 | B29: FECHADURA P/ PORTA EXTERNA - YALE | C29: 12.88644 | D29: 39.7 | I29: 52.58644
A30: 002685 | B30: FECHADURA P/ PORTA DO BANHEIRO | C30: 12.88644 | D30: 27.3 | I30: 40.18644
A31: 002687 | B31: FECHADURA P/ PORTA INTERNA - GORGES | C31: 12.88644 | D31: 27.2 | I31: 40.08644
A32: 002746 | B32: ESTACA ESCAV MEC D = 25 CM FCK = 15,0 MPa USINADO S/ ARMACAO - SOLO NORMAL | C32: 1.886976 | F32: 16.592815 | I32: 18.479791
A33: 002888 | B33: MICRO CONCRETO GRAUTE 15,0 MPA C/ LANCAMENTO | C33: 235.599 | D33: 197 | I33: 432.599
A34: 002953 | B34: CONCRETO USINADO 20,0 MPA SLUMP CONVENCIONAL C/ LANCAMENTO | C34: 66.7485 | D34: 240.711 | E34: 30 | I34: 337.4595
A35: 002955 | B35: BROCA DN 20 CM C/ LANCAMENTO (C/ ESCAVACAO / FCK = 20 MPA / USINADO / S/ ARMACAO) | C35: 21.7519029 | F35: 10.4612445 | I35: 32.2131474
A36: 003013 | B36: CONCRETO USINADO 25,0 MPA SLUMP CONVENCIONAL C/ LANCAMENTO | C36: 66.7485 | D36: 238.96 | E36: 30 | I36: 335.7085
A37: 003015 | B37: LOCACAO DE MUROS | C37: 0.262584 | H37: 0.0611 | I37: 0.323684
A38: 003017 | B38: AZULEJO BRANCO 15,0 X 15,0 CM | C38: 19.39665 | D38: 10.4475 | I38: 29.84415
A39: 151040 | B39: REGISTRO DE PRESSAO 3/4'' CROMADO C/ CANOPLA | C39: 5.5545 | D39: 23.4476 | I39: 29.0021
A40: 151290 | B40: BACIA SANITARIA C/ CAIXA ACOPLADA - PADRAO BAIXO | C40: 32.02563 | D40: 275.79 | I40: 307.81563
A41: 152030 | B41: TUBO PVC BRANCO 100 MM - ESGOTO | C41: 7.10976 | D41: 6.12926 | I41: 13.23902
A42: 152040 | B42: TUBO PVC BRANCO 075 MM - ESGOTO | C42: 6.22104 | D42: 4.7636 | I42: 10.98464
A43: 155281 | B43: LAVATORIO DE LOUCA C/ COLUNA - BRANCO | C43: 32.02563 | D43: 108.48 | I43: 140.50563
A44: 155376 | B44: TEE PVC SERIE "R" 075 MM - ESGOTO | C44: 6.6654 | D44: 10.9086 | I44: 17.574
A45: 155468 | B45: REGISTRO DE GAVETA 3/4'' CROMADO C/ CANOPLA | C45: 5.5545 | D45: 21.67 | I45: 27.2245
A46: 300571 | B46: TERRAPLENAGEM - CORTE DE MATERIAL DE 1ª CATEGORIA | G46: 4.58 | I46: 4.58
A47: 300573 | B47: TERRAPLENAGEM - FORNEC. DE MAT. P/ ATERRO, INCLUINDO CORTE,CARGA,TRANS | D47: 25.3 | I47: 25.3
A48: 300574 | B48: TERRAPLENAGEM - LIMPEZA,BEM COMO,REMOCAO DO SOLO VEGETAL NA ESP.MEDIA DE 10CM,CARGA E TRAN | G48: 2 | I48: 2
A49: 300576 | B49: TERRAPLENAGEM - TRANSP DE MAT EXCEDENTE ATE 1KM | F49: 0 | I49: 0
A50: 400131 | B50: ALCAPAO METALICO 0,60 X 0,60 M | C50: 24.82935 | D50: 66.6048 | F50: 4.4066688 | I50: 95.8408188
A51: 400132 | B51: PINTURA ESMALTE SOBRE ESQUADRIA METALICA (PREDIO) | C51: 9.55794 | D51: 3.7544 | I51: 13.31234
A52: 400843 | B52: CAIXA DE INSPECAO EM ALVENARIA DE TIJOLO COMUM - 060 X 060 X 070 CM - ESGOTO / AGUAS PLUVIAIS | D52: 3.74 | F52: 384.0947256 | I52: 387.8347256
A53: 401084 | B53: PINTURA TEXTURADA ACRILICA (EXTERNA - PREDIOS) | C53: 5.09292 | D53: 5.2596 | I53: 10.35252
A54: 401513 | B54: TORNEIRA CROMADA P/ PIA DE COZINHA 1/2'' | C54: 5.5545 | D54: 26.1612 | I54: 31.7157
A55: 401514 | B55: TORNEIRA P/LAVATORIO CROMADA | C55: 5.5545 | D55: 18.2112 | I55: 23.7657
A56: 401646 | B56: PISO CERAMICO 30,0 X 30,0 CM C/ REJUNTE | C56: 18.54762 | D56: 11.836 | I56: 30.38362
A57: 401702 | B57: TORNEIRA CROMADA CURTA P/TANQUE 3/4'' | C57: 5.5545 | D57: 14.2112 | I57: 19.7657
A58: 402096 | B58: TELHA DE FIBROCIMENTO ONDULADA - E = 05,0 MM | C58: 4.88796 | D58: 14.351 | I58: 19.23896
A59: 402485 | B59: FORMA DE COMPENSADO PLASTIFICADO 18,0 MM | C59: 26.6616 | D59: 23.388 | I59: 50.0496
A60: 403204 | B60: TORNEIRA P/ JARDIM AMARELA 1" | C60: 14.4417 | D60: 14.6468 | I60: 29.0885
A61: 500000 | B61: LOCACAO DA OBRA | C61: 3.55488 | D61: 0.957 | I61: 4.51188
A62: 500001 | B62: RADIER | C62: 10.11192 | D62: 43.301 | I62: 53.41292
A63: 500003 | B63: BROCA DN 20 CM - C/ ESCAVACAO, C/ ARMACAO E LANCAMENTO | C63: 19.5564054 | D63: 10.257134 | I63: 29.8135394
A64: 500004 | B64: LASTRO DE CONCRETO MAGRO | C64: 141.414 | D64: 141.48 | H64: 0.3825 | I64: 283.2765
A65: 500007 | B65: IMPERMEABILIZACAO DOS BALDRAMES | C65: 14.51268 | D65: 5.4216 | F65: 0 | I65: 19.93428
A66: 500015 | B66: ARMACAO ACO CA-50 MEDIA | C66: 1.77744 | D66: 4.479 | I66: 6.25644
A67: 500016 | B67: LAJE DE FORRO PRE-FABRICADA | C67: 10.63356 | D67: 49.2546 | E67: 0 | I67: 59.88816
A68: 500027 | B68: CALHA TIPO RUFO EM CHAPA GALVANIZADA Nº 26 D = 030 CM | D68: 16.1879 | I68: 16.1879
A69: 500031 | B69: CHAPISCO | C69: 1.07835 | D69: 1.1674 | I69: 2.24575
A70: 500033 | B70: EMBOCO | C70: 14.88123 | D70: 3.855 | I70: 18.73623
A71: 500034 | B71: EMBOCO C/ ARGAMASSA USINADA (CASA TERREA) | C71: 12.50886 | D71: 10.08 | I71: 22.58886
A72: 500038 | B72: CALÇADA EXTERNA 7CM | C72: 19.4103 | D72: 15.196 | H72: 0.0625 | I72: 34.6688
A73: 500048 | B73: LATEX PVA | C73: 3.77706 | D73: 1.4924 | I73: 5.26946
A74: 500049 | B74: LATEX ACRILICO | C74: 3.77706 | D74: 1.7287 | I74: 5.50576
A75: 500050 | B75: PINTURA ESMALTE SOBRE ESQUADRIA METALICAS (CASA TERREA) | C75: 5.38356 | D75: 3.405 | I75: 8.78856
A76: 500054 | B76: VIDRO LISO | D76: 94.26 | I76: 94.26
A77: 500058 | B77: PIA DE GRANITO 1,20 X 0,60 M C/ CUBA DE INOX | C77: 32.3505 | D77: 267.84 | I77: 300.1905
A78: 500069 | B78: VENEZIANA DE CORRER METALICO 1,50 X 1,10 M | C78: 58.76325 | D78: 163.0876 | I78: 221.85085
A79: 500090 | B79: PORTAO METALON 30 X 20 | C79: 31.91916 | D79: 206 | F79: 39.2296 | I79: 277.14876
A80: 500139 | B80: PAISAGISMO - PLANTIO DE GRAMA EM PLACAS (JARDINS) | C80: 1.926288 | D80: 5.43 | I80: 7.356288
A81: 500142 | B81: ASSENTAMENTO DAS PRIMEIRAS FIADAS C/ ARGAMASSA C/ IMPERMEABILIZANTE | C81: 3.23505 | D81: 3.09212 | I81: 6.32717
A82: 500146 | B82: BATENTE EM MADEIRA - 0,80 X 2,10 M - REQUADRO 055 MM | C82: 21.13566 | D82: 62.893 | I82: 84.02866
A83: 500147 | B83: BATENTE EM MADEIRA - 0,70 X 2,10 M - REQUADRO 055 MM | C83: 21.13566 | D83: 65.67134 | I83: 86.807
A84: 500148 | B84: PORTA DE MADEIRA C/ MIOLO SEMI-OCO - 0,70 X 2,10 M - 1F S/ BATENTE | C84: 14.21952 | D84: 65 | I84: 79.21952
A85: 500149 | B85: PORTA DE MADEIRA C/ MIOLO SEMI-OCO - 0,80 X 2,10 M - 1F S/ BATENTE | C85: 14.21952 | D85: 70 | I85: 84.21952
A86: 500154 | B86: RODAPE CERAMICO H = 05,0 CM | C86: 1.07835 | D86: 0.6368 | I86: 1.71515
A87: 500262 | B87: TANQUE DE MARMORE SINTETICO | C87: 33.327 | D87: 176.79 | I87: 210.117
A88: 500297 | B88: PINTURA ESMALTE SOBRE ESTRUTURA METALICA | C88: 5.77668 | D88: 1.1266 | I88: 6.90328
A89: 500466 | B89: ABRIGO PARA HIDROMETRO C/ TAMPA | F89: 273.2832208 | I89: 273.2832208
A90: 500468 | B90: CALHA DE CHAPA GALVANIZADA Nº 26 D = 050 CM | D90: 26.469 | I90: 26.469
A91: 500488 | B91: MURO DE DIVISA PADRAO EM ALVENARIA - H = 1,50 M | F91: 274.5967566 | I91: 274.5967566
A92: 600216 | B92: PLACA DE IDENTIFICACAO - NUMERACAO DAS CASAS | C92: 1.08108 | D92: 10 | I92: 11.08108
A93: 600226 | B93: CALHA TIPO PINGADEIRA EM CHAPA GALVANIZADA Nº 26 D = 030 CM | D93: 18.9105 | I93: 18.9105
A94: 600237 | B94: INSTALACAO ELETRICA - ENTRADA DE ENERGIA | C94: 151.893 | D94: 492.575 | I94: 644.468
A95: 600238 | B95: INSTALACAO ELETRICA - TUBULACAO + CAIXAS | C95: 319.9392 | D95: 170.49 | I95: 490.4292
A96: 600239 | B96: INSTALACAO ELETRICA - FIACAO | C96: 133.308 | D96: 419.692 | I96: 553
A97: 600240 | B97: INSTALACAO ELETRICA - ILUMINACAO, TOMADAS E INTERRUPTORES | C97: 122.199 | D97: 321.82 | I97: 444.019
A98: 600241 | B98: INSTALACAO ELETRICA - QUADRO DE DISTRIBUICAO | C98: 29.9943 | D98: 263.08 | I98: 293.0743
A99: 600242 | B99: INSTALACAO HIDRAULICA - ENTRADA DE AGUA FRIA | C99: 115.244766 | D99: 442.8598 | I99: 558.104566
A100: 600243 | B100: INSTALACAO HIDRAULICA - DISTRIBUICAO DE AGUA | C100: 126.6426 | D100: 88.1142 | I100: 214.7568
A101: 600244 | B101: INSTALACAO HIDRAULICA - CAIXA D'AGUA | C101: 88.64982 | D101: 187.1413 | I101: 275.79112
A102: 600245 | B102: INSTALACAO HIDRAULICA - ESGOTO EXTERNO | C102: 151.0824 | D102: 380.794 | F102: 143.6860546 | I102: 675.5624546
A103: 600246 | B103: INSTALACAO HIDRAULICA - ESGOTO INTERNO | C103: 179.41035 | D103: 122.455 | I103: 301.86535
A104: 600284 | B104: CAIXA DE GORDURA PRE-MOLDADA V = 23,5 L | F104: 143.6860546 | I104: 143.6860546
A105: 600285 | B105: PLUG PVC BRANCO 075 MM - ESGOTO | C105: 0.4914 | D105: 2.29 | I105: 2.7814
A106: 600627 | B106: IMPERMEABILIZACAO C/ SIKATOP | C106: 3.23505 | D106: 1.22 | I106: 4.45505
A107: 600681 | B107: BARRADO IMPERMEABILIZADO EXTERNO COM IGOFLEX | C107: 1.86732 | D107: 4.0824 | I107: 5.94972
A108: 600930 | B108: SILICONE INCOLOR | C108: 1.022112 | D108: 0.814 | I108: 1.836112
A109: 600961 | B109: VENEZIANA EM ACO GALVANIZADO DE CORRER LATERAL 1,80 X 1,10 M | C109: 59.872176 | D109: 215.2622 | I109: 275.134376
A110: 601051 | B110: VITRO MAXIM-AR EM ACO GALVANIZADO 1 FOLHA MOVEL (0,80X0,60M) | C110: 21.84546 | D110: 115.4045 | I110: 137.24996
A111: 601063 | B111: SOLEIRA DE ARDOSIA E=2CM L=15CM | C111: 9.01992 | D111: 12.4967 | I111: 21.51662
A112: 601077 | B112: BIT DE ARDOSIA E=2CM L=4CM | C112: 9.01992 | D112: 3.7033 | I112: 12.72322
A113: 611154 | B113: ESTRUTURA METALICA P/ TELHA CERAMICA (EQUIP. COMUNITARIOS) | D113: 80 | I113: 80
A114: 611364 | B114: VITRO ACO GALVANIZADO DE CORRER LATERAL 2,00 X 1,10 M | C114: 66.525732 | D114: 113.64236 | I114: 180.168092
A115: 611365 | B115: LIGACAO DOMICILIAR - AGUA POTAVEL | C115: 84.4284 | D115: 23.263 | I115: 107.6914
A116: 611366 | B116: LIGACAO DOMICILIAR - ESGOTO SANITARIO | C116: 94.115448 | D116: 207.2925 | I116: 301.407948
A117: (vazio) | B117: (vazio) | F117: 0 | I117: 0
A118: Total Geral | C118: 3688.5054 | D118: 7637.659614 | E118: 90 | F118: 1290.037141 | G118: 6.58 | H118: 2.2911 | I118: 12715.07325

Sheet Curva ABC - Insumos
A1: Tipo | B1: (Vários itens)
D3: Valores
A4: Insumo | B4: Descrição | C4: Unid | D4: Quant | E4: Valor | F4: Total
A5: F20007 | B5: PEDREIRO | C5: H | D5: 715.428268 | E5: 11.739 | F5: 8398.412438
A6: F20009 | B6: SERVENTE | C6: H | D6: 804.43552 | E6: 9.828 | F6: 7905.992291
A7: M10030 | B7: BLOCO DE CONCRETO VEDACAO - 14,0 X 19,0 X 39,0 CM - 03,0 MPA | C7: UN | D7: 2530.0197 | E7: 1.94 | F7: 4908.238218
A8: M91402 | B8: ESTRUTURA METALICA P/ TELHA DE CERAMICA (EQUIPAMENTOS COMUNITARIOS) | C8: M2 | D8: 56.03 | E8: 80 | F8: 4482.4
A9: F20001 | B9: AJUDANTE GERAL | C9: H | D9: 317.91825 | E9: 9.828 | F9: 3124.500561
A10: M91342 | B10: ARGAMASSA DE ASSENTAMENTO MULTIPLO USO RESISTENCIA 03,5 MPA | C10: KG | D10: 5701.405 | E10: 0.35 | F10: 1995.49175
A11: M13041 | B11: CONCRETO USINADO 25,0 MPA - SLUMP CONVENCIONAL | C11: M3 | D11: 7.904395 | E11: 232 | F11: 1833.81964
A12: M10020 | B12: CIMENTO | C12: KG | D12: 4649.3404 | E12: 0.38 | F12: 1766.749352
A13: M10203 | B13: ACO CA-50 - (MEDIA) | C13: KG | D13: 410.3868 | E13: 4 | F13: 1641.5472
A14: M30187 | B14: TERRAPLENAGEM - FORNEC. DE MAT. P/ ATERRO, INCLUINDO CORTE,CARGA,TRANS | C14: M3 | D14: 63 | E14: 25.3 | F14: 1593.9
A15: M10746 | B15: CONCRETO USINADO 20,0 MPA - SLUMP CONVENCIONAL | C15: M3 | D15: 6.4519184 | E15: 233.7 | F15: 1507.81333
A16: F20008 | B16: PINTOR | C16: H | D16: 109.1721 | E16: 12.39 | F16: 1352.642319
A17: M10034 | B17: LAJE PRE E=8CM | C17: M2 | D17: 52.57 | E17: 22 | F17: 1156.54
A18: M10013 | B18: AREIA MEDIA | C18: M3 | D18: 19.4632152 | E18: 40 | F18: 778.528608
A19: M16092 | B19: PORTAO P/ PEDESTRE METALON 30 X 20 | C19: M2 | D19: 3.75 | E19: 206 | F19: 772.5
A20: M80302 | B20: PINGADEIRA EM CHAPA GALVANIZADA N°26 D=30CM | C20: MT | D20: 41.097 | E20: 17.68 | F20: 726.59496
A21: F20005 | B21: ENCANADOR | C21: H | D21: 55.78 | E21: 12.39 | F21: 691.1142
A22: M15175 | B22: TELHA DE FIBROCIMENTO OND E = 5 MM | C22: M2 | D22: 64.4345 | E22: 10.38 | F22: 668.83011
A23: F20003 | B23: CARPINTEIRO | C23: H | D23: 52.71245 | E23: 12.39 | F23: 653.1072555
A24: M10018 | B24: CAL HIDRATADA | C24: KG | D24: 1478.7535 | E24: 0.43 | F24: 635.864005
A25: M16023 | B25: CALHA TIPO RUFO DE CHAPA GALVANIZADA Nº 26 D = 030 CM (COLOCADO) | C25: MT | D25: 40.788 | E25: 15.38 | F25: 627.31944
A26: M16042 | B26: VIDRO LISO | C26: M2 | D26: 6.31 | E26: 94.26 | F26: 594.7806
A27: M15092 | B27: TELA SOLDAVEL Q-092 | C27: M2 | D27: 90.181 | E27: 6.09 | F27: 549.20229
A28: M80285 | B28: FORMA METALICA P/ RADIER | C28: M2 | D28: 6.2433 | E28: 83 | F28: 518.1939
A29: M10038 | B29: BLOCO DE CONCRETO CANALETA VEDACAO - 14,0 X 19,0 X 39,0 CM - 03,0 MPA | C29: UN | D29: 176.9924 | E29: 2.47 | F29: 437.171228
A30: F20004 | B30: ELETRICISTA | C30: H | D30: 34.75 | E30: 12.39 | F30: 430.5525
A31: F20006 | B31: FERREIRO | C31: H | D31: 33.1236 | E31: 12.39 | F31: 410.401404
A32: M15049 | B32: PISO CERAMICO 30 X 30 CM | C32: M2 | D32: 52.8828 | E32: 7.5 | F32: 396.621
A33: M90248 | B33: CALHA DE CHAPA GALVANIZADA Nº 26 D = 050 CM (COLOCADO) | C33: MT | D33: 15.1513 | E33: 25.2 | F33: 381.81276
A34: M10007 | B34: TABUA DE MADEIRA DE LEI 01 X 12"' - 02,5 X 30,0 CM | C34: MT | D34: 69.4678 | E34: 4.82 | F34: 334.834796
A35: M16288 | B35: TUBO - PVC BRANCO NORMAL - PB - DE - 100 MM - ESGOTO | C35: MT | D35: 55.7475 | E35: 5.74 | F35: 319.99065
A36: M10815 | B36: PINTURA - TEXTURA ACRILICA | C36: KG | D36: 107.136 | E36: 2.76 | F36: 295.69536
A37: M90008 | B37: CHAPA - 18 MM - PLASTIFICADO | C37: M2 | D37: 10.18 | E37: 28.8 | F37: 293.184
A38: T30012 | B38: TERRAPLENAGEM - CORTE DE MATERIAL DE 1ª CATEGORIA | C38: M3 | D38: 63 | E38: 4.58 | F38: 288.54
A39: M16034 | B39: PORTA DE MADEIRA - 0,80 X 2,10 M - 1F C/ MIOLO SEMI-OCO E=3,5 CM | C39: UN | D39: 4 | E39: 70 | F39: 280
A40: M30002 | B40: GRAMA EM PLACAS | C40: M2 | D40: 47.86 | E40: 5.43 | F40: 259.8798
A41: M80283 | B41: CAIXA DE PROTECAO DE HIDROMETRO C/ KIT DE INSTALACAO | C41: UN | D41: 1 | E41: 252.1 | F41: 252.1
A42: M30467 | B42: TERRAPLENAGEM - LIMPEZA,BEM COMO,REMOCAO DO SOLO VEGETAL NA ESP.MEDIA DE 10CM,CARGA E TRAN | C42: M2 | D42: 125 | E42: 2 | F42: 250
A43: M91619 | B43: BATENTE EM MADEIRA - 0,80 X 2,10 M - REQUADRO 055 MM | C43: UN | D43: 4 | E43: 61.49 | F43: 245.96
A44: M80225 | B44: CAIXA DE INSPECAO PRE MOLD. 0,45 X 0,45 X 0,45 M | C44: UN | D44: 4 | E44: 60 | F44: 240
A45: M11058 | B45: BACIA SANITARIA C/ CAIXA ACOPLADA - PADRAO BAIXO | C45: UN | D45: 1 | E45: 225 | F45: 225
A46: M10002 | B46: PONTALETE DE MADEIRA DE LEI - 03 X 03" - 07,0 X 07,0 CM | C46: MT | D46: 88.367 | E46: 2.54 | F46: 224.45218
A47: M91156 | B47: VENEZIANA ACO GALVANIZADO DE CORRER LATERAL 1,80 X 1,10 M | C47: UN | D47: 1 | E47: 212 | F47: 212
A48: M12083 | B48: FIO DE COBRE ISOLADO - 750V - # 16,0MM² | C48: MT | D48: 69 | E48: 3.01 | F48: 207.69
A49: M16053 | B49: PIA DE GRANITO 1,20 X 0,60M COM CUBA DE INOX | C49: UN | D49: 1 | E49: 189 | F49: 189
A50: M12289 | B50: GLOBO LEITOSO DE VIDRO | C50: UN | D50: 6 | E50: 31.5 | F50: 189
A51: M10060 | B51: PINTURA - LATEX ACRILICO | C51: L | D51: 35.1968 | E51: 5.33 | F51: 187.598944
A52: M10086 | B52: PINTURA - SELADOR ACRILICO | C52: L | D52: 49.0848 | E52: 3.78 | F52: 185.540544
A53: M16412 | B53: TUBO - PVC VINILFORT (OCRE) JEI - PB - DE - 100 MM - ESGOTO | C53: MT | D53: 15.15 | E53: 11.95 | F53: 181.0425
A54: M12334 | B54: POSTE DE CONCRETO DUPLO ''T'' - 07,5 M - CAPACIDADE 90 KGF | C54: UN | D54: 1 | E54: 175.6 | F54: 175.6
A55: M10015 | B55: PEDRA - BRITA Nº1 | C55: M3 | D55: 4.906534 | E55: 35 | F55: 171.72869
A56: M12025 | B56: FIO DE COBRE ISOLADO - 750V - # 02,5MM² | C56: MT | D56: 248.4 | E56: 0.68 | F56: 168.912
A57: M16063 | B57: VENEZIANA DE CORRER METALICO 1,50 X 1,10 M | C57: UN | D57: 1 | E57: 160 | F57: 160
A58: F20012 | B58: TELHADISTA | C58: H | D58: 12.3266 | E58: 12.39 | F58: 152.726574
A59: M10091 | B59: ACO CA-50 - 06,3 MM | C59: KG | D59: 42.471 | E59: 3.59 | F59: 152.47089
A60: M10033 | B60: TIJOLO DE BARRO 05,0 X 10,0 X 20,0 CM | C60: UN | D60: 752.64 | E60: 0.2 | F60: 150.528
A61: M10065 | B61: PINTURA - AGUA RAZ | C61: L | D61: 22.513325 | E61: 6.28 | F61: 141.383681
A62: M80223 | B62: CAIXA D'AGUA POLIETILENO - 500 L | C62: UN | D62: 1 | E62: 137.2 | F62: 137.2
A63: M10799 | B63: CIMENTO COLANTE | C63: KG | D63: 456.66 | E63: 0.3 | F63: 136.998
A64: M16039 | B64: PINTURA - LATEX PVA | C64: L | D64: 34.34 | E64: 3.94 | F64: 135.2996
A65: M10039 | B65: BLOCO DE CONCRETO CANALETA VEDACAO - 19,0 X 19,0 X 19,0 CM - 03,0 MPA | C65: UN | D65: 66.963 | E65: 1.96 | F65: 131.24748
A66: M10156 | B66: PINTURA - TINTA ESMALTE | C66: L | D66: 10.2942 | E66: 12.12 | F66: 124.765704
A67: M10227 | B67: AZULEJO BRANCO 15 X 15 CM | C67: M2 | D67: 16.1385 | E67: 7.5 | F67: 121.03875
A68: M91258 | B68: VITRO MAXIM-AR EM ACO GALVANIZADO 1 FOLHA MOVEL (0,80X0,60M) | C68: UN | D68: 1 | E68: 115 | F68: 115
A69: M53502 | B69: TANQUE - MARMORE SINTETICO | C69: UN | D69: 1 | E69: 112.9 | F69: 112.9
A70: M91156-1 | B70: VITRO ACO GALVANIZADO DE CORRER LATERAL 2,00 X 1,10 M | C70: UN | D70: 1 | E70: 110 | F70: 110
A71: M10003 | B71: RIPA DE MADEIRA DE LEI - 05,0 X 01,5 CM | C71: MT | D71: 68.6504 | E71: 1.6 | F71: 109.84064
A72: M10011 | B72: SARRAFO DE MADEIRA DE LEI - 01 X 04" - 02,5 X 10,0 CM | C72: MT | D72: 78.4979 | E72: 1.27 | F72: 99.692333
A73: M12281 | B73: ELETRODUTO DE POLIETILENO SEMI RIGIDO - SELO VERMELHO - 3/4" | C73: MT | D73: 132.25 | E73: 0.75 | F73: 99.1875
A74: M80210 | B74: CAIXA DE MEDICAO TIPO IV | C74: UN | D74: 1 | E74: 88.4 | F74: 88.4
A75: M10220 | B75: REJUNTE | C75: KG | D75: 50.4307 | E75: 1.67 | F75: 84.219269
A76: M90922 | B76: IMPERMEABILIZANTE - IGOLFLEX | C76: L | D76: 7.1532 | E76: 11.34 | F76: 81.117288
A77: M11072 | B77: TORNEIRA BOIA P/ CAIXA D'AGUA - PVC - DE - 050 MM | C77: UN | D77: 1 | E77: 80.04 | F77: 80.04
A78: M16021 | B78: PARAFUSO 8 x 110 mm P/ TELHA DE FIBROCIMENTO | C78: UN | D78: 79.5626 | E78: 1 | F78: 79.5626
A79: M16427 | B79: HIDROMETRO 3/4" - Q = 01,5 M³/H | C79: UN | D79: 1 | E79: 78.96 | F79: 78.96
A80: M80271 | B80: BARRAMENTO N+T P/ 12 DISJUNTORES | C80: UN | D80: 2 | E80: 38.91 | F80: 77.82
A81: M10078 | B81: PREGO 18 X 27 MM | C81: KG | D81: 15.38349 | E81: 4.95 | F81: 76.1482755
A82: M11048 | B82: TUBO - PVC SOLDAVEL - PB - DE - 025 MM - AGUA FRIA | C82: MT | D82: 45.2 | E82: 1.61 | F82: 72.772
A83: M12352 | B83: CABO DE COBRE NU # 10,0 MM² | C83: MT | D83: 21.5 | E83: 3.38 | F83: 72.67
A84: M12125 | B84: QUADRO DE DISTRIBUICAO EM PVC P/12 DISJUTORES - VAZIO | C84: UN | D84: 1 | E84: 69.23 | F84: 69.23
A85: M11063 | B85: PARAFUSO CROMADO COMPLETO P/ FIXACAO DE APARELHO SANITARIO | C85: UN | D85: 5 | E85: 13.5 | F85: 67.5
A86: M11051 | B86: TUBO - PVC BRANCO NORMAL - PB - DE - 050 MM - ESGOTO | C86: MT | D86: 17.97 | E86: 3.74 | F86: 67.2078
A87: M16073 | B87: ALCAPAO METALICO 0,60 X 0,60 M | C87: UN | D87: 1 | E87: 66.1 | F87: 66.1
A88: M16035 | B88: PORTA DE MADEIRA - 0,70 X 2,10 M - 1F C/ MIOLO SEMI-OCO E=3,5 CM | C88: UN | D88: 1 | E88: 65 | F88: 65
A89: M91617 | B89: BATENTE EM MADEIRA - 0,70 X 2,10 M - REQUADRO 055 MM | C89: UN | D89: 1 | E89: 61.49 | F89: 61.49
A90: M16331 | B90: DISPOSITIVO DIFERENCIAL RESIDUAL - 2P - 63A - 30 mA | C90: UN | D90: 1 | E90: 58.7 | F90: 58.7
A91: M53255 | B91: CONJUNTO DE VEDACAO P/ TELHA KALHETAO | C91: UN | D91: 79.5626 | E91: 0.7 | F91: 55.69382
A92: M10063 | B92: FECHADURA P/ PORTA INTERNA GORGES | C92: UN | D92: 2 | E92: 27.2 | F92: 54.4
A93: M12026 | B93: FIO DE COBRE ISOLADO - 750V - # 01,5MM² | C93: MT | D93: 120.75 | E93: 0.42 | F93: 50.715
A94: M16045 | B94: LAVATORIO LOUCA C/ COLUNA | C94: UN | D94: 1 | E94: 50.29 | F94: 50.29
A95: M16051 | B95: PES CONCRETO | C95: UN | D95: 2 | E95: 25 | F95: 50
A96: M53499 | B96: SUPORTE METALICO P/ TANQUE DE MARMORE SINTETICO | C96: UN | D96: 2 | E96: 25 | F96: 50
A97: M16287 | B97: TUBO - PVC BRANCO NORMAL - PB - DE - 075 MM - ESGOTO | C97: MT | D97: 9.7515 | E97: 4.49 | F97: 43.784235
A98: M11460 | B98: REGISTRO DE GAVETA - ACAB. CROMADO - 3/4" C/ CANOPLA | C98: UN | D98: 2 | E98: 21.67 | F98: 43.34
A99: M12423 | B99: CAIXA METALICA OCTOGONAL ESTAMPADA C/ FUNDO MOVEL | C99: UN | D99: 12 | E99: 3.5 | F99: 42
A100: M10062 | B100: FECHADURA P/ PORTA INTERNA YALE | C100: UN | D100: 1 | E100: 39.7 | F100: 39.7
A101: M16005 | B101: IMPERMEABILIZANTE - SIKATOP | C101: KG | D101: 18.9832 | E101: 2 | F101: 37.9664
A102: M16338 | B102: TABUA DE MADEIRA DE LEI 01 X 09"' - 02,5 X 22,5 CM | C102: MT | D102: 15.771 | E102: 2.39 | F102: 37.69269
A103: M10085 | B103: PINTURA - FUNDO (BRANCO FOSCO) | C103: L | D103: 2.665 | E103: 13.8 | F103: 36.777
A104: M10143 | B104: CONCRETO USINADO 15,0 MPA - SLUMP CONVENCIONAL | C104: M3 | D104: 0.1452 | E104: 228.26 | F104: 33.143352
A105: M10028 | B105: ARAME RECOZIDO | C105: KG | D105: 8.2809 | E105: 3.95 | F105: 32.709555
A106: M10071 | B106: PINTURA - ZARCAO | C106: L | D106: 4.0278 | E106: 7.97 | F106: 32.101566
A107: M12039 | B107: FIO DE COBRE ISOLADO - 750V - # 06,0MM² | C107: MT | D107: 17.25 | E107: 1.8 | F107: 31.05
A108: M91626 | B108: ARGAMASSA PRONTA ENSACADA PARA REVESTIMENTO (CIMENTO+AREIA+CAL) | C108: KG | D108: 119.28 | E108: 0.24 | F108: 28.6272
A109: M10082 | B109: IMPERMEABILIZANTE - VEDACIT | C109: L | D109: 14.84108 | E109: 1.89 | F109: 28.0496412
A110: M10064 | B110: FECHADURA P/ BANHEIRO | C110: UN | D110: 1 | E110: 27.3 | F110: 27.3
A111: M11810 | B111: TORNEIRA CROMADA LONGA P/ PIA C23 - 1/2" | C111: UN | D111: 1 | E111: 26.15 | F111: 26.15
A112: M12045 | B112: HASTE DE ATERRAMENTO COBRE 5/8'' X 2,4 M | C112: UN | D112: 2 | E112: 12.63 | F112: 25.26
A113: M12422 | B113: CAIXA DE PVC 4X2'' - EMBUTIR | C113: UN | D113: 20 | E113: 1.24 | F113: 24.8
A114: M50341 | B114: LONA PLASTICA PRETA | C114: M2 | D114: 70.7574 | E114: 0.35 | F114: 24.76509
A115: M12143 | B115: CONJUNTO - 4 X 2" - (1 TOMADA 20A 2P+T) | C115: UN | D115: 9 | E115: 2.74 | F115: 24.66
A116: M10067 | B116: LIXA P/ MADEIRA | C116: UN | D116: 110.46 | E116: 0.22 | F116: 24.3012
A117: M16044 | B117: ENGATE CROMADO | C117: UN | D117: 3 | E117: 8.07 | F117: 24.21
A118: M11037 | B118: REGISTRO DE PRESSAO - ACAB. CROMADO - 3/4" C/ CANOPLA | C118: UN | D118: 1 | E118: 23.41 | F118: 23.41
A119: M90342 | B119: ADAPTADOR CURTO P/ CAIXA D'AGUA C/ FLANGES - PVC SOLDAVEL - DE - 025 X 3/4" - AGUA FRIA | C119: UN | D119: 3 | E119: 7.73 | F119: 23.19
A120: M12056 | B120: FITA ISOLANTE | C120: MT | D120: 40 | E120: 0.56 | F120: 22.4
A121: M11049 | B121: TUBO - PVC SOLDAVEL - PB - DE - 032 MM - AGUA FRIA | C121: MT | D121: 7.86 | E121: 2.82 | F121: 22.1652
A122: M19064 | B122: ELETRODUTO DE POLIETILENO SEMI RIGIDO - SELO AZUL - 1" | C122: MT | D122: 17.25 | E122: 1.25 | F122: 21.5625
A123: M90343 | B123: ADAPTADOR CURTO P/ CAIXA D'AGUA C/ FLANGES - PVC SOLDAVEL - DE - 032 X 1" - AGUA FRIA | C123: UN | D123: 3 | E123: 7.14 | F123: 21.42
A124: M80280 | B124: CAIXA SIFONADA QUADRADA C/ ANTI-ESPUMA - PVC BRANCO NORMAL - DE - 150 X 150 X 050 MM - ESGOTO | C124: UN | D124: 1 | E124: 20.38 | F124: 20.38
A125: M11099 | B125: CAIXA SIFONADA MONT. C/ GRELHA E PORTA GRELHA - PVC BRANCO NORMAL - DE - 150 X 150 X 050 MM - ESGOTO | C125: UN | D125: 1 | E125: 20.38 | F125: 20.38
A126: M10016 | B126: PEDRA - BRITA Nº2 | C126: M3 | D126: 0.564392 | E126: 35 | F126: 19.75372
A127: M91272 | B127: SOLEIRA DE ARDOSIA E=2CM L=15CM | C127: MT | D127: 1.68 | E127: 11.03 | F127: 18.5304
A128: M11073 | B128: TORNEIRA CURTA P/ LAVATORIO 1193 C23 - 1/2" | C128: UN | D128: 1 | E128: 18.2 | F128: 18.2
A129: M16456 | B129: PINTURA - SELADOR ACRILICO P/ TEXTURA | C129: L | D129: 7.1424 | E129: 2.43 | F129: 17.356032
A130: M10017 | B130: PEDRA - PEDRISCO | C130: M3 | D130: 0.42315 | E130: 40 | F130: 16.926
A131: M11294 | B131: PARAFUSO - 3,5 X 25 MM - AUTO ATARRACHANTE | C131: UN | D131: 16 | E131: 1 | F131: 16
A132: M16334 | B132: PLAFONIER C/ SOQUETE | C132: UN | D132: 8 | E132: 1.97 | F132: 15.76
A133: M16417 | B133: SELIM ELASTICO 90°00' - PVC VINILFORT (OCRE) - DE - 150 X 100 MM - ESGOTO | C133: UN | D133: 1 | E133: 15.75 | F133: 15.75
A134: M50058 | B134: TORNEIRA P/ JARDIM AMARELA 1" | C134: UN | D134: 1 | E134: 14.63 | F134: 14.63
A135: M11020 | B135: JOELHO 90º00' C/ BUCHA EM LATAO - PVC SOLDAVEL - BR - DE - 025 MM X 1/2" - AGUA FRIA | C135: UN | D135: 6 | E135: 2.4 | F135: 14.4
A136: M11809 | B136: TORNEIRA CROMADA CURTA P/ TANQUE 1128 - 1/2 X 3/4" | C136: UN | D136: 1 | E136: 14.2 | F136: 14.2
A137: M11807 | B137: ASSENTO PARA BACIA SANITARIA | C137: UN | D137: 1 | E137: 14.08 | F137: 14.08
A138: M11084 | B138: LUBRIFICANTE P/ PVC | C138: L | D138: 1.1985 | E138: 11.62 | F138: 13.92657
A139: M80208 | B139: DISJUNTOR - DIN - MON - 070A | C139: UN | D139: 1 | E139: 13.4 | F139: 13.4
A140: M10068 | B140: LIXA P/ FERRO | C140: UN | D140: 12.4885 | E140: 1.07 | F140: 13.362695
A141: M80205 | B141: ARMACAO TIPO C1 P/ HASTE METALICA - C/ ISOLADOR E ROLDANA | C141: UN | D141: 2 | E141: 6.3 | F141: 12.6
A142: M16332 | B142: DISJUNTOR - DIN - MON - 010 / 030A | C142: UN | D142: 2 | E142: 6.08 | F142: 12.16
A143: M11804 | B143: VALVULA AMERICANA PVC P/ PIA - 1.1/2'' | C143: UN | D143: 1 | E143: 12.12 | F143: 12.12
A144: M12010 | B144: CONJUNTO - 4 X 2" - (1 INT SIMPLES) | C144: UN | D144: 6 | E144: 1.94 | F144: 11.64
A145: M12144 | B145: CONJUNTO - 4 X 2" - (1 CIGARRA 60 HZ) | C145: UN | D145: 1 | E145: 11.04 | F145: 11.04
A146: M12720 | B146: CONJUNTO - 4 X 2" - (2 TOMADA 20A 2P+T) | C146: UN | D146: 2 | E146: 5.48 | F146: 10.96
A147: M11177 | B147: CURVA 45º00' CURTA - PVC VINILFORT (OCRE) - PB-JEI - DE - 100 MM - ESGOTO | C147: UN | D147: 1 | E147: 10.5 | F147: 10.5
A148: M90241 | B148: PLACA DE IDENTIFICACAO - NUMERACAO DE CASAS | C148: UN | D148: 1 | E148: 10 | F148: 10
A149: M13136 | B149: TEE - PVC SERIE "R" - 3B-JE - DE - 075 X 075 MM - ESGOTO | C149: UN | D149: 1 | E149: 9.92 | F149: 9.92
A150: M12127 | B150: BARRAMENTO BIFASICO 02 X 06 - 80A, P/ DISJ. DIN | C150: UN | D150: 1 | E150: 9.6 | F150: 9.6
A151: M11165 | B151: TUBO - PVC BRANCO NORMAL - PB - DE - 040 MM - ESGOTO | C151: MT | D151: 4.96 | E151: 1.91 | F151: 9.4736
A152: M90270 | B152: CONJUNTO - 4 X 4" - (1 TOMADA TELEFONE + 1 CONX ANTENA) | C152: UN | D152: 1 | E152: 9.4 | F152: 9.4
A153: M16299 | B153: JOELHO 90º00' - PVC BRANCO NORMAL - DE - 050 MM - ESGOTO | C153: UN | D153: 4 | E153: 2.3 | F153: 9.2
A154: M80194 | B154: ADAPTADOR P/ MAQUINA DE LAVAR - 38 MM | C154: UN | D154: 1 | E154: 9.07 | F154: 9.07
A155: M12044 | B155: CABO TELEFONICO - CCI - 01 PAR | C155: MT | D155: 34.5 | E155: 0.26 | F155: 8.97
A156: M11068 | B156: SIFAO PVC P/ PIA - 1.1/2" | C156: UN | D156: 1 | E156: 8.65 | F156: 8.65
A157: M12494 | B157: DISJUNTOR - DIN - MON - 040A | C157: UN | D157: 1 | E157: 8.57 | F157: 8.57
A158: M53504 | B158: VALVULA P/ TANQUE - 1.1/4 | C158: UN | D158: 1 | E158: 8.47 | F158: 8.47
A159: M11056 | B159: TUBO DE LIGACAO FLEXIVEL | C159: UN | D159: 2 | E159: 4.12 | F159: 8.24
A160: M80207 | B160: MASSA CALAFETADORA | C160: KG | D160: 0.5 | E160: 16.3 | F160: 8.15
A161: M11015 | B161: CURVA 90º00' CURTA - PVC BRANCO NORMAL - DE - 100 MM - ESGOTO | C161: UN | D161: 1 | E161: 8.12 | F161: 8.12
A162: M10090 | B162: ACO CA-50 - 08,0 MM | C162: KG | D162: 2.2 | E162: 3.59 | F162: 7.898
A163: M10080 | B163: PREGO 15 X 15 MM | C163: KG | D163: 1.3239 | E163: 5.7 | F163: 7.54623
A164: M11267 | B164: VALVULA - PVC - 1 X 2" - S/LADRAO P/ LAVATORIO | C164: UN | D164: 1 | E164: 7.2 | F164: 7.2
A165: M10458 | B165: CONECTOR P/ HASTE DE ATERRAMENTO - 5/8'' - 2 CABOS | C165: UN | D165: 1 | E165: 7.04 | F165: 7.04
A166: M91290 | B166: BIT DE ARDOSIA E=2CM L=4CM | C166: MT | D166: 2.1525 | E166: 2.94 | F166: 6.32835
A167: M80213 | B167: DISJUNTOR - DIN - MON - 010 / 030A | C167: UN | D167: 1 | E167: 5.85 | F167: 5.85
A168: M16333 | B168: DISJUNTOR - DIN - MON - 015 / 030A | C168: UN | D168: 1 | E168: 5.85 | F168: 5.85
A169: M12471 | B169: CONJUNTO - 4 X 2" - (1 TOMADA RJ-11, P/ TELEFONE) | C169: UN | D169: 2 | E169: 2.89 | F169: 5.78
A170: M13043 | B170: ARAME DE ACO GALVANIZADO Nº 14 | C170: KG | D170: 1 | E170: 5.43 | F170: 5.43
A171: M53503 | B171: SIFAO PVC P/ TANQUE SANFONADO | C171: UN | D171: 1 | E171: 5.42 | F171: 5.42
A172: M80211 | B172: CAIXA DE INSPECAO PVC ATERRAMENTO CONICA C/ TAMPA - 175 X 50 MM | C172: UN | D172: 2 | E172: 2.67 | F172: 5.34
A173: M80275 | B173: CAIXA SECA C/ GRELHA PLASTICA - PVC BRANCO NORMAL - DE - 100 X 100 X 040 MM - ESGOTO | C173: UN | D173: 1 | E173: 5.23 | F173: 5.23
A174: M12284 | B174: BENGALA PVC 4 M - 1" | C174: UN | D174: 1 | E174: 5.15 | F174: 5.15
A175: M80270 | B175: BARRA DE ESTANHO | C175: BR | D175: 1 | E175: 4.83 | F175: 4.83
A176: M11010 | B176: JOELHO 90º00' - PVC SOLDAVEL - 2B - DE - 032 MM - AGUA FRIA | C176: UN | D176: 6 | E176: 0.8 | F176: 4.8
A177: M16289 | B177: JUNCAO SIMPLES - PVC BRANCO NORMAL - DE - 075 X 050MM - ESGOTO | C177: UN | D177: 1 | E177: 4.68 | F177: 4.68
A178: M16297 | B178: JOELHO 90º00' - PVC BRANCO NORMAL - DE - 040 MM - ESGOTO | C178: UN | D178: 6 | E178: 0.71 | F178: 4.26
A179: M16243 | B179: JOELHO 90º00' - PVC SOLDAVEL - 2B - DE - 025 MM - AGUA FRIA | C179: UN | D179: 15 | E179: 0.28 | F179: 4.2
A180: M11039 | B180: TEE C/ BUCHA EM LATAO - PVC SOLDAVEL - DE - 025 MM X 3/4" - AGUA FRIA | C180: UN | D180: 1 | E180: 4.05 | F180: 4.05
A181: M11102 | B181: TEE C/ BUCHA EM LATAO - PVC SOLDAVEL - DE - 025 MM X 1/2" - AGUA FRIA | C181: UN | D181: 1 | E181: 3.96 | F181: 3.96
A182: M12421 | B182: CAIXA DE PVC 4X4'' - EMBUTIR | C182: UN | D182: 2 | E182: 1.97 | F182: 3.94
A183: M12013 | B183: CONJUNTO - 4 X 2" - (2 INT SIMPLES) | C183: UN | D183: 1 | E183: 3.88 | F183: 3.88
A184: M12380 | B184: CONECTOR P/ CABO SPLIT BOLD 16 MM² | C184: UN | D184: 1 | E184: 3.83 | F184: 3.83
A185: M11089 | B185: ANEL BORRACHA - PVC BRANCO NORMAL - JE - DE - 100 MM - ESGOTO | C185: UN | D185: 9.4375 | E185: 0.38 | F185: 3.58625
A186: M91050 | B186: COLAR DE TOMADA DE PP C/ SAIDA ROSCAVEL 50MM X 1'' | C186: UN | D186: 1 | E186: 3.5 | F186: 3.5
A187: E14016 | B187: BETONEIRA | C187: H | D187: 2.322254 | E187: 1.25 | F187: 2.9028175
A188: M11083 | B188: TEE - PVC SOLDAVEL - DE - 032 MM - AGUA FRIA | C188: UN | D188: 2 | E188: 1.3 | F188: 2.6
A189: M16049 | B189: TUBO DESPEJO | C189: UN | D189: 1 | E189: 2.42 | F189: 2.42
A190: M11004 | B190: ADAPTADOR CURTO P/ REGISTRO - PVC SOLDAVEL - BR - DE - 032 X 1" - AGUA FRIA | C190: UN | D190: 4 | E190: 0.59 | F190: 2.36
A191: M12498 | B191: TERMINAL PRESSAO TA P/ CABO 16 MM² | C191: UN | D191: 1 | E191: 2.31 | F191: 2.31
A192: M90253 | B192: PLUG - PVC BRANCO NORMAL - DE - 075 MM - ESGOTO | C192: UN | D192: 1 | E192: 2.29 | F192: 2.29
A193: M11194 | B193: REDUCAO EXCENTRICA - PVC BRANCO NORMAL - DE - 075 X 050 MM - ESGOTO | C193: UN | D193: 1 | E193: 2.28 | F193: 2.28
A194: M11087 | B194: ANEL BORRACHA - PVC BRANCO NORMAL - JE - DE - 050 MM - ESGOTO | C194: UN | D194: 9 | E194: 0.24 | F194: 2.16
A195: M15433 | B195: SILICONE INCOLOR EM BISNAGA 300 GR | C195: UN | D195: 0.1776 | E195: 11 | F195: 1.9536
A196: M12145 | B196: CONJUNTO - 4 X 2" - (1 INT PULSADOR - TIPO CAMPANHIA) | C196: UN | D196: 1 | E196: 1.94 | F196: 1.94
A197: F20014 | B197: AJUDANTE DE TOPOGRAFO | C197: H | D197: 0.1488 | E197: 12.915 | F197: 1.921752
A198: M16296 | B198: JOELHO 45º00' - PVC BRANCO NORMAL - DE - 040 MM - ESGOTO | C198: UN | D198: 2 | E198: 0.87 | F198: 1.74
A199: M12221 | B199: CURVA 90º00' P/ ELETRODUTO - PVC ROSCAVEL - DE - 1" - ELETRICA | C199: UN | D199: 1 | E199: 1.72 | F199: 1.72
A200: M11368 | B200: BOLSA P/ SAIDA DO VASO SANITARIO 100MM - ESG | C200: UN | D200: 1 | E200: 1.64 | F200: 1.64
A201: F20013 | B201: TOPOGRAFO | C201: H | D201: 0.0496 | E201: 26.901 | F201: 1.3342896
... 21 more rows

Sheet Curva ABC - Composições
A1: Tipo | B1: (Vários itens)
D3: Valores
A4: Comp | B4: Descrição | C4: Unid | D4: Quant | E4: Valor | F4: Total
A5: 000780 | B5: ALVENARIA BLOCO DE CONCRETO VEDACAO - E=14,0 CM - C=39,0 CM - 03,0 MPA | C5: M2 | D5: 192.69 | E5: 50.7163 | F5: 9772.523847
A6: 500033 | B6: EMBOCO | C6: M2 | D6: 421.06 | E6: 18.73623 | F6: 7889.077004
A7: 611154 | B7: ESTRUTURA METALICA P/ TELHA CERAMICA (EQUIP. COMUNITARIOS) | C7: M2 | D7: 56.03 | E7: 80 | F7: 4482.4
A8: 500001 | B8: RADIER | C8: M2 | D8: 69.37 | E8: 53.41292 | F8: 3705.25426
A9: 500016 | B9: LAJE DE FORRO PRE-FABRICADA | C9: M2 | D9: 52.57 | E9: 59.88816 | F9: 3148.320571
A10: 500015 | B10: ARMACAO ACO CA-50 MEDIA | C10: KG | D10: 319.605 | E10: 6.25644 | F10: 1999.589506
A11: 300573 | B11: TERRAPLENAGEM - FORNEC. DE MAT. P/ ATERRO, INCLUINDO CORTE,CARGA,TRANS | C11: M3 | D11: 63 | E11: 25.3 | F11: 1593.9
A12: 401646 | B12: PISO CERAMICO 30,0 X 30,0 CM C/ REJUNTE | C12: M2 | D12: 45.6 | E12: 30.38362 | F12: 1385.493072
A13: 500038 | B13: CALÇADA EXTERNA 7CM | C13: M2 | D13: 37.72 | E13: 34.6688 | F13: 1307.707136
A14: 402485 | B14: FORMA DE COMPENSADO PLASTIFICADO 18,0 MM | C14: M2 | D14: 25.45 | E14: 50.0496 | F14: 1273.76232
A15: 500049 | B15: LATEX ACRILICO | C15: M2 | D15: 207.04 | E15: 5.50576 | F15: 1139.91255
A16: 402096 | B16: TELHA DE FIBROCIMENTO ONDULADA - E = 05,0 MM | C16: M2 | D16: 56.03 | E16: 19.23896 | F16: 1077.958929
A17: 500048 | B17: LATEX PVA | C17: M2 | D17: 202 | E17: 5.26946 | F17: 1064.43092
A18: 500031 | B18: CHAPISCO | C18: M2 | D18: 423.9 | E18: 2.24575 | F18: 951.973425
A19: 002953 | B19: CONCRETO USINADO 20,0 MPA SLUMP CONVENCIONAL C/ LANCAMENTO | C19: M3 | D19: 2.69128 | E19: 337.4595 | F19: 908.1980032
A20: 500090 | B20: PORTAO METALON 30 X 20 | C20: M2 | D20: 3.75 | E20: 237.91916 | F20: 892.19685
A21: 001780 | B21: REGULARIZACAO PISO 1:3 DESEMPENADO E=3CM | C21: M2 | D21: 45.6 | E21: 17.51509 | F21: 798.688104
A22: 000820 | B22: ALVENARIA BLOCO DE CONCRETO CANALETA VEDACAO - E=14,0 CM - C=39,0 CM - 03,0 MPA | C22: M2 | D22: 13.48 | E22: 57.6752 | F22: 777.461696
A23: 600226 | B23: CALHA TIPO PINGADEIRA EM CHAPA GALVANIZADA Nº 26 D = 030 CM | C23: MT | D23: 39.14 | E23: 18.9105 | F23: 740.15697
A24: 000700 | B24: ALVENARIA DE TIJOLO DE BARRO MACICO - E = 10,0 CM | C24: M2 | D24: 8.96 | E24: 82.3081 | F24: 737.480576
A25: 600237 | B25: INSTALACAO ELETRICA - ENTRADA DE ENERGIA | C25: UN | D25: 1 | E25: 644.468 | F25: 644.468
A26: 500027 | B26: CALHA TIPO RUFO EM CHAPA GALVANIZADA Nº 26 D = 030 CM | C26: MT | D26: 39.6 | E26: 16.1879 | F26: 641.04084
A27: 401084 | B27: PINTURA TEXTURADA ACRILICA (EXTERNA - PREDIOS) | C27: M2 | D27: 59.52 | E27: 10.35252 | F27: 616.1819904
A28: 500054 | B28: VIDRO LISO | C28: M2 | D28: 6.31 | E28: 94.26 | F28: 594.7806
A29: 152030 | B29: TUBO PVC BRANCO 100 MM - ESGOTO | C29: MT | D29: 43.75 | E29: 13.23902 | F29: 579.207125
A30: 600242 | B30: INSTALACAO HIDRAULICA - ENTRADA DE AGUA FRIA | C30: UN | D30: 1 | E30: 558.104566 | F30: 558.104566
A31: 600239 | B31: INSTALACAO ELETRICA - FIACAO | C31: UN | D31: 1 | E31: 553 | F31: 553
A32: 600245 | B32: INSTALACAO HIDRAULICA - ESGOTO EXTERNO | C32: UN | D32: 1 | E32: 531.8764 | F32: 531.8764
A33: 600238 | B33: INSTALACAO ELETRICA - TUBULACAO + CAIXAS | C33: UN | D33: 1 | E33: 490.4292 | F33: 490.4292
A34: 003017 | B34: AZULEJO BRANCO 15,0 X 15,0 CM | C34: M2 | D34: 15.37 | E34: 29.84415 | F34: 458.7045855
A35: 600240 | B35: INSTALACAO ELETRICA - ILUMINACAO, TOMADAS E INTERRUPTORES | C35: UN | D35: 1 | E35: 444.019 | F35: 444.019
A36: 500468 | B36: CALHA DE CHAPA GALVANIZADA Nº 26 D = 050 CM | C36: MT | D36: 14.71 | E36: 26.469 | F36: 389.35899
A37: 500139 | B37: PAISAGISMO - PLANTIO DE GRAMA EM PLACAS (JARDINS) | C37: M2 | D37: 47.86 | E37: 7.356288 | F37: 352.0719437
A38: 500149 | B38: PORTA DE MADEIRA C/ MIOLO SEMI-OCO - 0,80 X 2,10 M - 1F S/ BATENTE | C38: UN | D38: 4 | E38: 84.21952 | F38: 336.87808
A39: 500146 | B39: BATENTE EM MADEIRA - 0,80 X 2,10 M - REQUADRO 055 MM | C39: UN | D39: 4 | E39: 84.02866 | F39: 336.11464
A40: 500142 | B40: ASSENTAMENTO DAS PRIMEIRAS FIADAS C/ ARGAMASSA C/ IMPERMEABILIZANTE | C40: MT | D40: 51.86 | E40: 6.32717 | F40: 328.1270362
A41: 002955 | B41: BROCA DN 20 CM C/ LANCAMENTO (C/ ESCAVACAO / FCK = 20 MPA / USINADO / S/ ARMACAO) | C41: MT | D41: 14.88 | E41: 21.7519029 | F41: 323.6683152
A42: 400132 | B42: PINTURA ESMALTE SOBRE ESQUADRIA METALICA (PREDIO) | C42: M2 | D42: 24.19 | E42: 13.31234 | F42: 322.0255046
A43: 151290 | B43: BACIA SANITARIA C/ CAIXA ACOPLADA - PADRAO BAIXO | C43: UN | D43: 1 | E43: 307.81563 | F43: 307.81563
A44: 600246 | B44: INSTALACAO HIDRAULICA - ESGOTO INTERNO | C44: UN | D44: 1 | E44: 301.86535 | F44: 301.86535
A45: 611366 | B45: LIGACAO DOMICILIAR - ESGOTO SANITARIO | C45: UN | D45: 1 | E45: 301.407948 | F45: 301.407948
A46: 500058 | B46: PIA DE GRANITO 1,20 X 0,60 M C/ CUBA DE INOX | C46: UN | D46: 1 | E46: 300.1905 | F46: 300.1905
A47: 600241 | B47: INSTALACAO ELETRICA - QUADRO DE DISTRIBUICAO | C47: UN | D47: 1 | E47: 293.0743 | F47: 293.0743
A48: 300571 | B48: TERRAPLENAGEM - CORTE DE MATERIAL DE 1ª CATEGORIA | C48: M3 | D48: 63 | E48: 4.58 | F48: 288.54
A49: 600244 | B49: INSTALACAO HIDRAULICA - CAIXA D'AGUA | C49: UN | D49: 1 | E49: 275.79112 | F49: 275.79112
A50: 600961 | B50: VENEZIANA EM ACO GALVANIZADO DE CORRER LATERAL 1,80 X 1,10 M | C50: UN | D50: 1 | E50: 275.134376 | F50: 275.134376
A51: 300574 | B51: TERRAPLENAGEM - LIMPEZA,BEM COMO,REMOCAO DO SOLO VEGETAL NA ESP.MEDIA DE 10CM,CARGA E TRAN | C51: M2 | D51: 125 | E51: 2 | F51: 250
A52: 000040 | B52: ESCAVACAO MANUAL DE VALA | C52: M3 | D52: 7.865 | E52: 30.4668 | F52: 239.621382
A53: 000020 | B53: LOCACAO DA OBRA | C53: M2 | D53: 52.57 | E53: 4.51188 | F53: 237.1895316
A54: 001000 | B54: FORMA DE TABUA FUNDACAO | C54: M2 | D54: 8.675 | E54: 27.3046 | F54: 236.867405
A55: 002888 | B55: MICRO CONCRETO GRAUTE 15,0 MPA C/ LANCAMENTO | C55: M3 | D55: 0.5425 | E55: 432.599 | F55: 234.6849575
A56: 000190 | B56: ACO CA 50 06,3 MM | C56: KG | D56: 38.61 | E56: 5.80544 | F56: 224.1480384
A57: 500069 | B57: VENEZIANA DE CORRER METALICO 1,50 X 1,10 M | C57: UN | D57: 1 | E57: 221.85085 | F57: 221.85085
A58: 600243 | B58: INSTALACAO HIDRAULICA - DISTRIBUICAO DE AGUA | C58: UN | D58: 1 | E58: 214.7568 | F58: 214.7568
A59: 500262 | B59: TANQUE DE MARMORE SINTETICO | C59: UN | D59: 1 | E59: 210.117 | F59: 210.117
A60: 002330 | B60: LIMPEZA DA OBRA | C60: M2 | D60: 52.57 | E60: 3.9312 | F60: 206.663184
A61: 002481 | B61: PINTURA ESMALTE SOBRE ESQUADRIA DE MADEIRA - 2 DEMAOS | C61: M2 | D61: 20.5 | E61: 9.72398 | F61: 199.34159
A62: 000830 | B62: ALVENARIA BLOCO DE CONCRETO CANALETA VEDACAO - E=19,0 CM - C=19,0 CM - 03,0 MPA | C62: M2 | D62: 2.55 | E62: 77.40908 | F62: 197.393154
A63: 611364 | B63: VITRO ACO GALVANIZADO DE CORRER LATERAL 2,00 X 1,10 M | C63: UN | D63: 1 | E63: 180.168092 | F63: 180.168092
A64: 000580 | B64: EMBOCO 1:3 C/ IMPERMEABILIZANTE - E = 02,0 CM (VERTICAL) | C64: M2 | D64: 7.2 | E64: 22.4841 | F64: 161.88552
A65: 155281 | B65: LAVATORIO DE LOUCA C/ COLUNA - BRANCO | C65: UN | D65: 1 | E65: 140.50563 | F65: 140.50563
A66: 600627 | B66: IMPERMEABILIZACAO C/ SIKATOP | C66: M2 | D66: 31.12 | E66: 4.45505 | F66: 138.641156
A67: 601051 | B67: VITRO MAXIM-AR EM ACO GALVANIZADO 1 FOLHA MOVEL (0,80X0,60M) | C67: UN | D67: 1 | E67: 137.24996 | F67: 137.24996
A68: 600681 | B68: BARRADO IMPERMEABILIZADO EXTERNO COM IGOFLEX | C68: M2 | D68: 19.87 | E68: 5.94972 | F68: 118.2209364
A69: 611365 | B69: LIGACAO DOMICILIAR - AGUA POTAVEL | C69: UN | D69: 1 | E69: 107.6914 | F69: 107.6914
A70: 500154 | B70: RODAPE CERAMICO H = 05,0 CM | C70: MT | D70: 60.58 | E70: 1.71515 | F70: 103.903787
A71: 400131 | B71: ALCAPAO METALICO 0,60 X 0,60 M | C71: UN | D71: 1 | E71: 91.43415 | F71: 91.43415
A72: 500147 | B72: BATENTE EM MADEIRA - 0,70 X 2,10 M - REQUADRO 055 MM | C72: UN | D72: 1 | E72: 86.807 | F72: 86.807
A73: 000130 | B73: CONCRETO CONSUMO 161,0 KG CIMENTO/M3 - TRACO 1:4:8 - BETONEIRA C/ LANCAMENTO | C73: M3 | D73: 0.355 | E73: 233.241 | F73: 82.800555
A74: 500050 | B74: PINTURA ESMALTE SOBRE ESQUADRIA METALICAS (CASA TERREA) | C74: M2 | D74: 9.375 | E74: 8.78856 | F74: 82.39275
A75: 002687 | B75: FECHADURA P/ PORTA INTERNA - GORGES | C75: UN | D75: 2 | E75: 40.08644 | F75: 80.17288
A76: 500148 | B76: PORTA DE MADEIRA C/ MIOLO SEMI-OCO - 0,70 X 2,10 M - 1F S/ BATENTE | C76: UN | D76: 1 | E76: 79.21952 | F76: 79.21952
A77: 000270 | B77: CONCRETO IN LOCO 15,0 MPA SLUMP CONVENCIONAL C/ LANCAMENTO | C77: M3 | D77: 0.256 | E77: 289.749 | F77: 74.175744
A78: 000090 | B78: APILOAMENTO MANUAL FUNDO VALA | C78: M2 | D78: 7.65 | E78: 8.55036 | F78: 65.410254
A79: 500297 | B79: PINTURA ESMALTE SOBRE ESTRUTURA METALICA | C79: M2 | D79: 9.375 | E79: 6.90328 | F79: 64.71825
A80: 500034 | B80: EMBOCO C/ ARGAMASSA USINADA (CASA TERREA) | C80: M2 | D80: 2.84 | E80: 22.58886 | F80: 64.1523624
A81: 500003 | B81: BROCA DN 20 CM - C/ ESCAVACAO, C/ ARMACAO E LANCAMENTO | C81: MT | D81: 2 | E81: 29.8135394 | F81: 59.6270788
A82: 000150 | B82: REATERRO APILOADO DE VALA | C82: M3 | D82: 3.9375 | E82: 14.45808 | F82: 56.92869
A83: 155468 | B83: REGISTRO DE GAVETA 3/4'' CROMADO C/ CANOPLA | C83: UN | D83: 2 | E83: 27.2245 | F83: 54.449
A84: 002684 | B84: FECHADURA P/ PORTA EXTERNA - YALE | C84: UN | D84: 1 | E84: 52.58644 | F84: 52.58644
A85: 002685 | B85: FECHADURA P/ PORTA DO BANHEIRO | C85: UN | D85: 1 | E85: 40.18644 | F85: 40.18644
A86: 601063 | B86: SOLEIRA DE ARDOSIA E=2CM L=15CM | C86: MT | D86: 1.6 | E86: 21.51662 | F86: 34.426592
A87: 401513 | B87: TORNEIRA CROMADA P/ PIA DE COZINHA 1/2'' | C87: UN | D87: 1 | E87: 31.7157 | F87: 31.7157
A88: 403204 | B88: TORNEIRA P/ JARDIM AMARELA 1" | C88: UN | D88: 1 | E88: 29.0885 | F88: 29.0885
A89: 151040 | B89: REGISTRO DE PRESSAO 3/4'' CROMADO C/ CANOPLA | C89: UN | D89: 1 | E89: 29.0021 | F89: 29.0021
A90: 000310 | B90: CONCRETO USINADO 15,0 MPA SLUMP CONVENCIONAL C/ LANCAMENTO | C90: M3 | D90: 0.08 | E90: 331.8563 | F90: 26.548504
A91: 601077 | B91: BIT DE ARDOSIA E=2CM L=4CM | C91: MT | D91: 2.05 | E91: 12.72322 | F91: 26.082601
A92: 401514 | B92: TORNEIRA P/LAVATORIO CROMADA | C92: UN | D92: 1 | E92: 23.7657 | F92: 23.7657
A93: 401702 | B93: TORNEIRA CROMADA CURTA P/TANQUE 3/4'' | C93: UN | D93: 1 | E93: 19.7657 | F93: 19.7657
A94: 155376 | B94: TEE PVC SERIE "R" 075 MM - ESGOTO | C94: UN | D94: 1 | E94: 17.574 | F94: 17.574
A95: 000510 | B95: CHAPISCO - TRACO 1:3 - VERTICAL | C95: M2 | D95: 7.2 | E95: 2.24575 | F95: 16.1694
A96: 400843 | B96: CAIXA DE INSPECAO EM ALVENARIA DE TIJOLO COMUM - 060 X 060 X 070 CM - ESGOTO / AGUAS PLUVIAIS | C96: UN | D96: 4 | E96: 3.74 | F96: 14.96
A97: 000100 | B97: LASTRO DE BRITA | C97: M3 | D97: 0.22 | E97: 59.1388 | F97: 13.010536
A98: 000200 | B98: ACO CA 50 08,0 MM | C98: KG | D98: 2 | E98: 5.80544 | F98: 11.61088
A99: 600216 | B99: PLACA DE IDENTIFICACAO - NUMERACAO DAS CASAS | C99: UN | D99: 1 | E99: 11.08108 | F99: 11.08108
A100: 003013 | B100: CONCRETO USINADO 25,0 MPA SLUMP CONVENCIONAL C/ LANCAMENTO | C100: M3 | D100: 0.03 | E100: 335.7085 | F100: 10.071255
A101: 600930 | B101: SILICONE INCOLOR | C101: MT | D101: 2.4 | E101: 1.836112 | F101: 4.4066688
A102: 003015 | B102: LOCACAO DE MUROS | C102: MT | D102: 12.4 | E102: 0.323684 | F102: 4.0136816
A103: 600285 | B103: PLUG PVC BRANCO 075 MM - ESGOTO | C103: UN | D103: 1 | E103: 2.7814 | F103: 2.7814
A104: 152040 | B104: TUBO PVC BRANCO 075 MM - ESGOTO | C104: MT | D104: 0.15 | E104: 10.98464 | F104: 1.647696
A105: 002746 | B105: ESTACA ESCAV MEC D = 25 CM FCK = 15,0 MPa USINADO S/ ARMACAO - SOLO NORMAL | C105: MT | D105: 0 | E105: 1.886976 | F105: 0
A106: 500000 | B106: LOCACAO DA OBRA | C106: M2 | D106: 0 | E106: 4.51188 | F106: 0
A107: 500004 | B107: LASTRO DE CONCRETO MAGRO | C107: M3 | D107: 0 | E107: 283.2765 | F107: 0
A108: 500007 | B108: IMPERMEABILIZACAO DOS BALDRAMES | C108: M2 | D108: 0 | E108: 19.93428 | F108: 0
A109: 002413 | B109: ALVENARIA BLOCO DE CONCRETO ESTRUTURAL - E=14,0 CM - C=39,0 CM - 04,5 MPA | C109: M2 | D109: 0 | E109: 25.17634 | F109: 0
A110: 000330 | B110: MICRO CONCRETO GRAUTE 12,0 MPA C/ LANCAMENTO | C110: M3 | D110: 0 | E110: 355.02 | F110: 0
A111: 002414 | B111: ALVENARIA BLOCO DE CONCRETO CANALETA ESTRUTURAL - E=14,0 CM - C=39,0 CM - 04,5 MPA | C111: M2 | D111: 0 | E111: 25.17634 | F111: 0
A112: 001910 | B112: PINTURA CAIACAO PAREDE EXTERNA 03 DEMAOS | C112: M2 | D112: 0 | E112: 4.50324 | F112: 0
A113: Total Geral | D113: 25.42553665 | E113: 11425.03611 | F113: 61614.04526

Sheet Total Por Tipo
A3: Total por Tipo
A4: Tipo | B4: Total
A5: Diver | B5: 84.0384
A6: M.O. | B6: 23122.70558
A7: Mat. | B7: 37865.10082
A8: Empre | B8: 538.54
A9: Eq.Loc. | B9: 3.6604575
A10: Total Geral | B10: 61614.04526

Sheet Relatorio de Composições
A1: Valor Obra | B1: (Tudo)
A3: Soma de Total
A4: Comp | B4: Descrição | C4: Un | D4: Insumo | E4: Descrição | F4: Unid | G4: Tipo | H4: Coef | I4: Valor | J4: Total
A5: 000020 | B5: LOCACAO DA OBRA | C5: M2 | D5: F20001 | E5: AJUDANTE GERAL | F5: H | G5: M.O. | H5: 0.16 | I5: 9.828 | J5: 1.57248
D6: F20003 | E6: CARPINTEIRO | F6: H | G6: M.O. | H6: 0.16 | I6: 12.39 | J6: 1.9824
D7: M10002 | E7: PONTALETE DE MADEIRA DE LEI - 03 X 03" - 07,0 X 07,0 CM | F7: MT | G7: Mat. | H7: 0.04 | I7: 2.54 | J7: 0.1016
D8: M10028 | E8: ARAME RECOZIDO | F8: KG | G8: Mat. | H8: 0.02 | I8: 3.95 | J8: 0.079
D9: M10078 | E9: PREGO 18 X 27 MM | F9: KG | G9: Mat. | H9: 0.012 | I9: 4.95 | J9: 0.0594
D10: M16338 | E10: TABUA DE MADEIRA DE LEI 01 X 09"' - 02,5 X 22,5 CM | F10: MT | G10: Mat. | H10: 0.3 | I10: 2.39 | J10: 0.717
A11: 000020 Total | J11: 4.51188
A12: 000040 | B12: ESCAVACAO MANUAL DE VALA | C12: M3 | D12: F20009 | E12: SERVENTE | F12: H | G12: M.O. | H12: 3.1 | I12: 9.828 | J12: 30.4668
A13: 000040 Total | J13: 30.4668
A14: 000090 | B14: APILOAMENTO MANUAL FUNDO VALA | C14: M2 | D14: F20009 | E14: SERVENTE | F14: H | G14: M.O. | H14: 0.87 | I14: 9.828 | J14: 8.55036
A15: 000090 Total | J15: 8.55036
A16: 000100 | B16: LASTRO DE BRITA | C16: M3 | D16: F20009 | E16: SERVENTE | F16: H | G16: M.O. | H16: 2.1 | I16: 9.828 | J16: 20.6388
D17: M10016 | E17: PEDRA - BRITA Nº2 | F17: M3 | G17: Mat. | H17: 1.1 | I17: 35 | J17: 38.5
A18: 000100 Total | J18: 59.1388
A19: 000130 | B19: CONCRETO CONSUMO 161,0 KG CIMENTO/M3 - TRACO 1:4:8 - BETONEIRA C/ LANCAMENTO | C19: M3 | D19: E14016 | E19: BETONEIRA | F19: H | G19: Eq.Loc. | H19: 0.714 | I19: 1.25 | J19: 0.8925
D20: F20007 | E20: PEDREIRO | F20: H | G20: M.O. | H20: 1.5 | I20: 11.739 | J20: 17.6085
D21: F20009 | E21: SERVENTE | F21: H | G21: M.O. | H21: 10 | I21: 9.828 | J21: 98.28
D22: M10013 | E22: AREIA MEDIA | F22: M3 | G22: Mat. | H22: 0.584 | I22: 40 | J22: 23.36
D23: M10015 | E23: PEDRA - BRITA Nº1 | F23: M3 | G23: Mat. | H23: 0.456 | I23: 35 | J23: 15.96
D24: M10016 | E24: PEDRA - BRITA Nº2 | F24: M3 | G24: Mat. | H24: 0.456 | I24: 35 | J24: 15.96
D25: M10020 | E25: CIMENTO | F25: KG | G25: Mat. | H25: 161 | I25: 0.38 | J25: 61.18
A26: 000130 Total | J26: 233.241
A27: 000150 | B27: REATERRO APILOADO DE VALA | C27: M3 | D27: F20007 | E27: PEDREIRO | F27: H | G27: M.O. | H27: 0.16 | I27: 11.739 | J27: 1.87824
D28: F20009 | E28: SERVENTE | F28: H | G28: M.O. | H28: 1.28 | I28: 9.828 | J28: 12.57984
A29: 000150 Total | J29: 14.45808
A30: 000190 | B30: ACO CA 50 06,3 MM | C30: KG | D30: F20001 | E30: AJUDANTE GERAL | F30: H | G30: M.O. | H30: 0.08 | I30: 9.828 | J30: 0.78624
D31: F20006 | E31: FERREIRO | F31: H | G31: M.O. | H31: 0.08 | I31: 12.39 | J31: 0.9912
D32: M10028 | E32: ARAME RECOZIDO | F32: KG | G32: Mat. | H32: 0.02 | I32: 3.95 | J32: 0.079
D33: M10091 | E33: ACO CA-50 - 06,3 MM | F33: KG | G33: Mat. | H33: 1.1 | I33: 3.59 | J33: 3.949
A34: 000190 Total | J34: 5.80544
A35: 000200 | B35: ACO CA 50 08,0 MM | C35: KG | D35: F20001 | E35: AJUDANTE GERAL | F35: H | G35: M.O. | H35: 0.08 | I35: 9.828 | J35: 0.78624
D36: F20006 | E36: FERREIRO | F36: H | G36: M.O. | H36: 0.08 | I36: 12.39 | J36: 0.9912
D37: M10028 | E37: ARAME RECOZIDO | F37: KG | G37: Mat. | H37: 0.02 | I37: 3.95 | J37: 0.079
D38: M10090 | E38: ACO CA-50 - 08,0 MM | F38: KG | G38: Mat. | H38: 1.1 | I38: 3.59 | J38: 3.949
A39: 000200 Total | J39: 5.80544
A40: 000270 | B40: CONCRETO IN LOCO 15,0 MPA SLUMP CONVENCIONAL C/ LANCAMENTO | C40: M3 | D40: E14016 | E40: BETONEIRA | F40: H | G40: Eq.Loc. | H40: 0.714 | I40: 1.25 | J40: 0.8925
D41: F20007 | E41: PEDREIRO | F41: H | G41: M.O. | H41: 1.5 | I41: 11.739 | J41: 17.6085
D42: F20009 | E42: SERVENTE | F42: H | G42: M.O. | H42: 10 | I42: 9.828 | J42: 98.28
D43: M10013 | E43: AREIA MEDIA | F43: M3 | G43: Mat. | H43: 0.9232 | I43: 40 | J43: 36.928
D44: M10015 | E44: PEDRA - BRITA Nº1 | F44: M3 | G44: Mat. | H44: 0.209 | I44: 35 | J44: 7.315
D45: M10016 | E45: PEDRA - BRITA Nº2 | F45: M3 | G45: Mat. | H45: 0.627 | I45: 35 | J45: 21.945
D46: M10020 | E46: CIMENTO | F46: KG | G46: Mat. | H46: 281 | I46: 0.38 | J46: 106.78
A47: 000270 Total | J47: 289.749
A48: 000310 | B48: CONCRETO USINADO 15,0 MPA SLUMP CONVENCIONAL C/ LANCAMENTO | C48: M3 | D48: F20007 | E48: PEDREIRO | F48: H | G48: M.O. | H48: 1.5 | I48: 11.739 | J48: 17.6085
D49: F20009 | E49: SERVENTE | F49: H | G49: M.O. | H49: 5 | I49: 9.828 | J49: 49.14
D50: M10143 | E50: CONCRETO USINADO 15,0 MPA - SLUMP CONVENCIONAL | F50: M3 | G50: Mat. | H50: 1.03 | I50: 228.26 | J50: 235.1078
D51: V30650 | E51: TAXA DE BOMBA | F51: VB | G51: Diver | H51: 1 | I51: 30 | J51: 30
A52: 000310 Total | J52: 331.8563
A53: 000330 | B53: MICRO CONCRETO GRAUTE 12,0 MPA C/ LANCAMENTO | C53: M3 | D53: F20007 | E53: PEDREIRO | F53: H | G53: M.O. | H53: 2 | I53: 11.739 | J53: 23.478
D54: F20009 | E54: SERVENTE | F54: H | G54: M.O. | H54: 16 | I54: 9.828 | J54: 157.248
D55: M10013 | E55: AREIA MEDIA | F55: M3 | G55: Mat. | H55: 0.5824 | I55: 40 | J55: 23.296
D56: M10017 | E56: PEDRA - PEDRISCO | F56: M3 | G56: Mat. | H56: 0.5945 | I56: 40 | J56: 23.78
D57: M10018 | E57: CAL HIDRATADA | F57: KG | G57: Mat. | H57: 12.8 | I57: 0.43 | J57: 5.504
D58: M10020 | E58: CIMENTO | F58: KG | G58: Mat. | H58: 320.3 | I58: 0.38 | J58: 121.714
A59: 000330 Total | J59: 355.02
A60: 000510 | B60: CHAPISCO - TRACO 1:3 - VERTICAL | C60: M2 | D60: F20007 | E60: PEDREIRO | F60: H | G60: M.O. | H60: 0.05 | I60: 11.739 | J60: 0.58695
D61: F20009 | E61: SERVENTE | F61: H | G61: M.O. | H61: 0.05 | I61: 9.828 | J61: 0.4914
D62: M10013 | E62: AREIA MEDIA | F62: M3 | G62: Mat. | H62: 0.0061 | I62: 40 | J62: 0.244
D63: M10020 | E63: CIMENTO | F63: KG | G63: Mat. | H63: 2.43 | I63: 0.38 | J63: 0.9234
A64: 000510 Total | J64: 2.24575
A65: 000580 | B65: EMBOCO 1:3 C/ IMPERMEABILIZANTE - E = 02,0 CM (VERTICAL) | C65: M2 | D65: F20007 | E65: PEDREIRO | F65: H | G65: M.O. | H65: 0.7 | I65: 11.739 | J65: 8.2173
D66: F20009 | E66: SERVENTE | F66: H | G66: M.O. | H66: 0.9 | I66: 9.828 | J66: 8.8452
D67: M10013 | E67: AREIA MEDIA | F67: M3 | G67: Mat. | H67: 0.0243 | I67: 40 | J67: 0.972
D68: M10020 | E68: CIMENTO | F68: KG | G68: Mat. | H68: 9.72 | I68: 0.38 | J68: 3.6936
D69: M10082 | E69: IMPERMEABILIZANTE - VEDACIT | F69: L | G69: Mat. | H69: 0.4 | I69: 1.89 | J69: 0.756
A70: 000580 Total | J70: 22.4841
A71: 000700 | B71: ALVENARIA DE TIJOLO DE BARRO MACICO - E = 10,0 CM | C71: M2 | D71: F20007 | E71: PEDREIRO | F71: H | G71: M.O. | H71: 1.8 | I71: 11.739 | J71: 21.1302
D72: F20009 | E72: SERVENTE | F72: H | G72: M.O. | H72: 1.8 | I72: 9.828 | J72: 17.6904
D73: M10033 | E73: TIJOLO DE BARRO 05,0 X 10,0 X 20,0 CM | F73: UN | G73: Mat. | H73: 84 | I73: 0.2 | J73: 16.8
D74: M91342 | E74: ARGAMASSA DE ASSENTAMENTO MULTIPLO USO RESISTENCIA 03,5 MPA | F74: KG | G74: Mat. | H74: 76.25 | I74: 0.35 | J74: 26.6875
A75: 000700 Total | J75: 82.3081
A76: 000780 | B76: ALVENARIA BLOCO DE CONCRETO VEDACAO - E=14,0 CM - C=39,0 CM - 03,0 MPA | C76: M2 | D76: F20007 | E76: PEDREIRO | F76: H | G76: M.O. | H76: 0.74 | I76: 11.739 | J76: 8.68686
D77: F20009 | E77: SERVENTE | F77: H | G77: M.O. | H77: 0.83 | I77: 9.828 | J77: 8.15724
D78: M10030 | E78: BLOCO DE CONCRETO VEDACAO - 14,0 X 19,0 X 39,0 CM - 03,0 MPA | F78: UN | G78: Mat. | H78: 13.13 | I78: 1.94 | J78: 25.4722
D79: M91342 | E79: ARGAMASSA DE ASSENTAMENTO MULTIPLO USO RESISTENCIA 03,5 MPA | F79: KG | G79: Mat. | H79: 24 | I79: 0.35 | J79: 8.4
A80: 000780 Total | J80: 50.7163
A81: 000820 | B81: ALVENARIA BLOCO DE CONCRETO CANALETA VEDACAO - E=14,0 CM - C=39,0 CM - 03,0 MPA | C81: M2 | D81: F20007 | E81: PEDREIRO | F81: H | G81: M.O. | H81: 0.74 | I81: 11.739 | J81: 8.68686
D82: F20009 | E82: SERVENTE | F82: H | G82: M.O. | H82: 0.83 | I82: 9.828 | J82: 8.15724
D83: M10038 | E83: BLOCO DE CONCRETO CANALETA VEDACAO - 14,0 X 19,0 X 39,0 CM - 03,0 MPA | F83: UN | G83: Mat. | H83: 13.13 | I83: 2.47 | J83: 32.4311
D84: M91342 | E84: ARGAMASSA DE ASSENTAMENTO MULTIPLO USO RESISTENCIA 03,5 MPA | F84: KG | G84: Mat. | H84: 24 | I84: 0.35 | J84: 8.4
A85: 000820 Total | J85: 57.6752
A86: 000830 | B86: ALVENARIA BLOCO DE CONCRETO CANALETA VEDACAO - E=19,0 CM - C=19,0 CM - 03,0 MPA | C86: M2 | D86: F20007 | E86: PEDREIRO | F86: H | G86: M.O. | H86: 0.72 | I86: 11.739 | J86: 8.45208
D87: F20009 | E87: SERVENTE | F87: H | G87: M.O. | H87: 0.8 | I87: 9.828 | J87: 7.8624
D88: M10039 | E88: BLOCO DE CONCRETO CANALETA VEDACAO - 19,0 X 19,0 X 19,0 CM - 03,0 MPA | F88: UN | G88: Mat. | H88: 26.26 | I88: 1.96 | J88: 51.4696
D89: M91342 | E89: ARGAMASSA DE ASSENTAMENTO MULTIPLO USO RESISTENCIA 03,5 MPA | F89: KG | G89: Mat. | H89: 27.5 | I89: 0.35 | J89: 9.625
A90: 000830 Total | J90: 77.40908
A91: 001000 | B91: FORMA DE TABUA FUNDACAO | C91: M2 | D91: F20001 | E91: AJUDANTE GERAL | F91: H | G91: M.O. | H91: 0.95 | I91: 9.828 | J91: 9.3366
D92: F20003 | E92: CARPINTEIRO | F92: H | G92: M.O. | H92: 0.95 | I92: 12.39 | J92: 11.7705
D93: M10007 | E93: TABUA DE MADEIRA DE LEI 01 X 12"' - 02,5 X 30,0 CM | F93: MT | G93: Mat. | H93: 1 | I93: 4.82 | J93: 4.82
D94: M10011 | E94: SARRAFO DE MADEIRA DE LEI - 01 X 04" - 02,5 X 10,0 CM | F94: MT | G94: Mat. | H94: 0.5 | I94: 1.27 | J94: 0.635
D95: M10078 | E95: PREGO 18 X 27 MM | F95: KG | G95: Mat. | H95: 0.15 | I95: 4.95 | J95: 0.7425
A96: 001000 Total | J96: 27.3046
A97: 001780 | B97: REGULARIZACAO PISO 1:3 DESEMPENADO E=3CM | C97: M2 | D97: F20007 | E97: PEDREIRO | F97: H | G97: M.O. | H97: 0.31 | I97: 11.739 | J97: 3.63909
D98: F20009 | E98: SERVENTE | F98: H | G98: M.O. | H98: 0.7 | I98: 9.828 | J98: 6.8796
D99: M10013 | E99: AREIA MEDIA | F99: M3 | G99: Mat. | H99: 0.0364 | I99: 40 | J99: 1.456
D100: M10020 | E100: CIMENTO | F100: KG | G100: Mat. | H100: 14.58 | I100: 0.38 | J100: 5.5404
A101: 001780 Total | J101: 17.51509
A102: 001910 | B102: PINTURA CAIACAO PAREDE EXTERNA 03 DEMAOS | C102: M2 | D102: F20001 | E102: AJUDANTE GERAL | F102: H | G102: M.O. | H102: 0.08 | I102: 9.828 | J102: 0.78624
D103: F20008 | E103: PINTOR | F103: H | G103: M.O. | H103: 0.3 | I103: 12.39 | J103: 3.717
D104: M10019 | E104: #N/D | F104: #N/D | G104: - | H104: 0.6 | I104: #REF! | J104: 0
D105: M10072 | E105: #N/D | F105: #N/D | G105: - | H105: 0.0225 | I105: #REF! | J105: 0
A106: 001910 Total | J106: 4.50324
A107: 002330 | B107: LIMPEZA DA OBRA | C107: M2 | D107: F20009 | E107: SERVENTE | F107: H | G107: M.O. | H107: 0.4 | I107: 9.828 | J107: 3.9312
A108: 002330 Total | J108: 3.9312
A109: 002413 | B109: ALVENARIA BLOCO DE CONCRETO ESTRUTURAL - E=14,0 CM - C=39,0 CM - 04,5 MPA | C109: M2 | D109: F20007 | E109: PEDREIRO | F109: H | G109: M.O. | H109: 0.82 | I109: 11.739 | J109: 9.62598
D110: F20009 | E110: SERVENTE | F110: H | G110: M.O. | H110: 0.87 | I110: 9.828 | J110: 8.55036
D111: M10189 | E111: #N/D | F111: #N/D | G111: - | H111: 13.13 | I111: #REF! | J111: 0
D112: M91342 | E112: ARGAMASSA DE ASSENTAMENTO MULTIPLO USO RESISTENCIA 03,5 MPA | F112: KG | G112: Mat. | H112: 20 | I112: 0.35 | J112: 7
A113: 002413 Total | J113: 25.17634
A114: 002414 | B114: ALVENARIA BLOCO DE CONCRETO CANALETA ESTRUTURAL - E=14,0 CM - C=39,0 CM - 04,5 MPA | C114: M2 | D114: F20007 | E114: PEDREIRO | F114: H | G114: M.O. | H114: 0.82 | I114: 11.739 | J114: 9.62598
D115: F20009 | E115: SERVENTE | F115: H | G115: M.O. | H115: 0.87 | I115: 9.828 | J115: 8.55036
D116: M10188 | E116: #N/D | F116: #N/D | G116: - | H116: 13.13 | I116: #REF! | J116: 0
D117: M91342 | E117: ARGAMASSA DE ASSENTAMENTO MULTIPLO USO RESISTENCIA 03,5 MPA | F117: KG | G117: Mat. | H117: 20 | I117: 0.35 | J117: 7
A118: 002414 Total | J118: 25.17634
A119: 002481 | B119: PINTURA ESMALTE SOBRE ESQUADRIA DE MADEIRA - 2 DEMAOS | C119: M2 | D119: F20001 | E119: AJUDANTE GERAL | F119: H | G119: M.O. | H119: 0.21 | I119: 9.828 | J119: 2.06388
D120: F20008 | E120: PINTOR | F120: H | G120: M.O. | H120: 0.27 | I120: 12.39 | J120: 3.3453
D121: M10065 | E121: PINTURA - AGUA RAZ | F121: L | G121: Mat. | H121: 0.04 | I121: 6.28 | J121: 0.2512
D122: M10067 | E122: LIXA P/ MADEIRA | F122: UN | G122: Mat. | H122: 0.4 | I122: 0.22 | J122: 0.088
D123: M10085 | E123: PINTURA - FUNDO (BRANCO FOSCO) | F123: L | G123: Mat. | H123: 0.13 | I123: 13.8 | J123: 1.794
D124: M10156 | E124: PINTURA - TINTA ESMALTE | F124: L | G124: Mat. | H124: 0.18 | I124: 12.12 | J124: 2.1816
A125: 002481 Total | J125: 9.72398
A126: 002746 | B126: ESTACA ESCAV MEC D = 25 CM FCK = 15,0 MPa USINADO S/ ARMACAO - SOLO NORMAL | C126: MT | D126: 000310 | E126: CONCRETO USINADO 15,0 MPA SLUMP CONVENCIONAL C/ LANCAMENTO | F126: M3 | G126: - | H126: 0.05 | I126: 331.8563 | J126: 16.592815
D127: E14021 | E127: #N/D | F127: #N/D | G127: - | H127: 1 | I127: #REF! | J127: 0
D128: F20009 | E128: SERVENTE | F128: H | G128: M.O. | H128: 0.192 | I128: 9.828 | J128: 1.886976
D129: V10658 | E129: #N/D | F129: #N/D | G129: - | H129: 0.0017 | I129: #REF! | J129: 0
A130: 002746 Total | J130: 18.479791
A131: 002888 | B131: MICRO CONCRETO GRAUTE 15,0 MPA C/ LANCAMENTO | C131: M3 | D131: F20007 | E131: PEDREIRO | F131: H | G131: M.O. | H131: 5 | I131: 11.739 | J131: 58.695
D132: F20009 | E132: SERVENTE | F132: H | G132: M.O. | H132: 18 | I132: 9.828 | J132: 176.904
D133: M10013 | E133: AREIA MEDIA | F133: M3 | G133: Mat. | H133: 0.82 | I133: 40 | J133: 32.8
D134: M10017 | E134: PEDRA - PEDRISCO | F134: M3 | G134: Mat. | H134: 0.78 | I134: 40 | J134: 31.2
D135: M10020 | E135: CIMENTO | F135: KG | G135: Mat. | H135: 350 | I135: 0.38 | J135: 133
A136: 002888 Total | J136: 432.599
A137: 002953 | B137: CONCRETO USINADO 20,0 MPA SLUMP CONVENCIONAL C/ LANCAMENTO | C137: M3 | D137: F20007 | E137: PEDREIRO | F137: H | G137: M.O. | H137: 1.5 | I137: 11.739 | J137: 17.6085
D138: F20009 | E138: SERVENTE | F138: H | G138: M.O. | H138: 5 | I138: 9.828 | J138: 49.14
D139: M10746 | E139: CONCRETO USINADO 20,0 MPA - SLUMP CONVENCIONAL | F139: M3 | G139: Mat. | H139: 1.03 | I139: 233.7 | J139: 240.711
D140: V30650 | E140: TAXA DE BOMBA | F140: VB | G140: Diver | H140: 1 | I140: 30 | J140: 30
A141: 002953 Total | J141: 337.4595
A142: 002955 | B142: BROCA DN 20 CM C/ LANCAMENTO (C/ ESCAVACAO / FCK = 20 MPA / USINADO / S/ ARMACAO) | C142: MT | D142: 002953 | E142: CONCRETO USINADO 20,0 MPA SLUMP CONVENCIONAL C/ LANCAMENTO | F142: M3 | G142: - | H142: 0.031 | I142: 337.4595 | J142: 10.4612445
D143: F20001 | E143: AJUDANTE GERAL | F143: H | G143: M.O. | H143: 2 | I143: 9.828 | J143: 19.656
D144: F20007 | E144: PEDREIRO | F144: H | G144: M.O. | H144: 0.0471 | I144: 11.739 | J144: 0.5529069
D145: F20009 | E145: SERVENTE | F145: H | G145: M.O. | H145: 0.157 | I145: 9.828 | J145: 1.542996
A146: 002955 Total | J146: 32.2131474
A147: 003013 | B147: CONCRETO USINADO 25,0 MPA SLUMP CONVENCIONAL C/ LANCAMENTO | C147: M3 | D147: F20007 | E147: PEDREIRO | F147: H | G147: M.O. | H147: 1.5 | I147: 11.739 | J147: 17.6085
D148: F20009 | E148: SERVENTE | F148: H | G148: M.O. | H148: 5 | I148: 9.828 | J148: 49.14
D149: M13041 | E149: CONCRETO USINADO 25,0 MPA - SLUMP CONVENCIONAL | F149: M3 | G149: Mat. | H149: 1.03 | I149: 232 | J149: 238.96
D150: V30650 | E150: TAXA DE BOMBA | F150: VB | G150: Diver | H150: 1 | I150: 30 | J150: 30
A151: 003013 Total | J151: 335.7085
A152: 003015 | B152: LOCACAO DE MUROS | C152: MT | D152: E14000 | E152: EQUIPAMENTO - UTILITARIO FURGAO - 0,7 TON | F152: H | G152: Eq.Loc. | H152: 0.01 | I152: 6.11 | J152: 0.0611
D153: F20013 | E153: TOPOGRAFO | F153: H | G153: M.O. | H153: 0.004 | I153: 26.901 | J153: 0.107604
D154: F20014 | E154: AJUDANTE DE TOPOGRAFO | F154: H | G154: M.O. | H154: 0.012 | I154: 12.915 | J154: 0.15498
A155: 003015 Total | J155: 0.323684
A156: 003017 | B156: AZULEJO BRANCO 15,0 X 15,0 CM | C156: M2 | D156: F20007 | E156: PEDREIRO | F156: H | G156: M.O. | H156: 1.15 | I156: 11.739 | J156: 13.49985
D157: F20009 | E157: SERVENTE | F157: H | G157: M.O. | H157: 0.6 | I157: 9.828 | J157: 5.8968
D158: M10220 | E158: REJUNTE | F158: KG | G158: Mat. | H158: 0.75 | I158: 1.67 | J158: 1.2525
D159: M10227 | E159: AZULEJO BRANCO 15 X 15 CM | F159: M2 | G159: Mat. | H159: 1.05 | I159: 7.5 | J159: 7.875
D160: M10799 | E160: CIMENTO COLANTE | F160: KG | G160: Mat. | H160: 4.4 | I160: 0.3 | J160: 1.32
A161: 003017 Total | J161: 29.84415
A162: 151040 | B162: REGISTRO DE PRESSAO 3/4'' CROMADO C/ CANOPLA | C162: UN | D162: F20001 | E162: AJUDANTE GERAL | F162: H | G162: M.O. | H162: 0.25 | I162: 9.828 | J162: 2.457
D163: F20005 | E163: ENCANADOR | F163: H | G163: M.O. | H163: 0.25 | I163: 12.39 | J163: 3.0975
D164: M11037 | E164: REGISTRO DE PRESSAO - ACAB. CROMADO - 3/4" C/ CANOPLA | F164: UN | G164: Mat. | H164: 1 | I164: 23.41 | J164: 23.41
D165: M11076 | E165: FITA VEDA ROSCA - 18 MM | F165: MT | G165: Mat. | H165: 0.94 | I165: 0.04 | J165: 0.0376
A166: 151040 Total | J166: 29.0021
A167: 151290 | B167: BACIA SANITARIA C/ CAIXA ACOPLADA - PADRAO BAIXO | C167: UN | D167: F20007 | E167: PEDREIRO | F167: H | G167: M.O. | H167: 1.69 | I167: 11.739 | J167: 19.83891
D168: F20009 | E168: SERVENTE | F168: H | G168: M.O. | H168: 1.24 | I168: 9.828 | J168: 12.18672
D169: M11058 | E169: BACIA SANITARIA C/ CAIXA ACOPLADA - PADRAO BAIXO | F169: UN | G169: Mat. | H169: 1 | I169: 225 | J169: 225
D170: M11063 | E170: PARAFUSO CROMADO COMPLETO P/ FIXACAO DE APARELHO SANITARIO | F170: UN | G170: Mat. | H170: 2 | I170: 13.5 | J170: 27
D171: M11368 | E171: BOLSA P/ SAIDA DO VASO SANITARIO 100MM - ESG | F171: UN | G171: Mat. | H171: 1 | I171: 1.64 | J171: 1.64
D172: M11807 | E172: ASSENTO PARA BACIA SANITARIA | F172: UN | G172: Mat. | H172: 1 | I172: 14.08 | J172: 14.08
D173: M16044 | E173: ENGATE CROMADO | F173: UN | G173: Mat. | H173: 1 | I173: 8.07 | J173: 8.07
A174: 151290 Total | J174: 307.81563
A175: 152030 | B175: TUBO PVC BRANCO 100 MM - ESGOTO | C175: MT | D175: F20001 | E175: AJUDANTE GERAL | F175: H | G175: M.O. | H175: 0.32 | I175: 9.828 | J175: 3.14496
D176: F20005 | E176: ENCANADOR | F176: H | G176: M.O. | H176: 0.32 | I176: 12.39 | J176: 3.9648
D177: M11084 | E177: LUBRIFICANTE P/ PVC | F177: L | G177: Mat. | H177: 0.023 | I177: 11.62 | J177: 0.26726
D178: M11089 | E178: ANEL BORRACHA - PVC BRANCO NORMAL - JE - DE - 100 MM - ESGOTO | F178: UN | G178: Mat. | H178: 0.17 | I178: 0.38 | J178: 0.0646
D179: M16288 | E179: TUBO - PVC BRANCO NORMAL - PB - DE - 100 MM - ESGOTO | F179: MT | G179: Mat. | H179: 1.01 | I179: 5.74 | J179: 5.7974
A180: 152030 Total | J180: 13.23902
A181: 152040 | B181: TUBO PVC BRANCO 075 MM - ESGOTO | C181: MT | D181: F20001 | E181: AJUDANTE GERAL | F181: H | G181: M.O. | H181: 0.28 | I181: 9.828 | J181: 2.75184
D182: F20005 | E182: ENCANADOR | F182: H | G182: M.O. | H182: 0.28 | I182: 12.39 | J182: 3.4692
D183: M11084 | E183: LUBRIFICANTE P/ PVC | F183: L | G183: Mat. | H183: 0.015 | I183: 11.62 | J183: 0.1743
D184: M16287 | E184: TUBO - PVC BRANCO NORMAL - PB - DE - 075 MM - ESGOTO | F184: MT | G184: Mat. | H184: 1.01 | I184: 4.49 | J184: 4.5349
D185: M90492 | E185: ANEL BORRACHA - PVC BRANCO NORMAL - JE - DE - 075 MM - ESGOTO | F185: UN | G185: Mat. | H185: 0.17 | I185: 0.32 | J185: 0.0544
A186: 152040 Total | J186: 10.98464
A187: 155281 | B187: LAVATORIO DE LOUCA C/ COLUNA - BRANCO | C187: UN | D187: F20007 | E187: PEDREIRO | F187: H | G187: M.O. | H187: 1.69 | I187: 11.739 | J187: 19.83891
D188: F20009 | E188: SERVENTE | F188: H | G188: M.O. | H188: 1.24 | I188: 9.828 | J188: 12.18672
D189: M11063 | E189: PARAFUSO CROMADO COMPLETO P/ FIXACAO DE APARELHO SANITARIO | F189: UN | G189: Mat. | H189: 3 | I189: 13.5 | J189: 40.5
D190: M11267 | E190: VALVULA - PVC - 1 X 2" - S/LADRAO P/ LAVATORIO | F190: UN | G190: Mat. | H190: 1 | I190: 7.2 | J190: 7.2
D191: M16044 | E191: ENGATE CROMADO | F191: UN | G191: Mat. | H191: 1 | I191: 8.07 | J191: 8.07
D192: M16045 | E192: LAVATORIO LOUCA C/ COLUNA | F192: UN | G192: Mat. | H192: 1 | I192: 50.29 | J192: 50.29
D193: M16049 | E193: TUBO DESPEJO | F193: UN | G193: Mat. | H193: 1 | I193: 2.42 | J193: 2.42
A194: 155281 Total | J194: 140.50563
A195: 155376 | B195: TEE PVC SERIE "R" 075 MM - ESGOTO | C195: UN | D195: F20001 | E195: AJUDANTE GERAL | F195: H | G195: M.O. | H195: 0.3 | I195: 9.828 | J195: 2.9484
D196: F20005 | E196: ENCANADOR | F196: H | G196: M.O. | H196: 0.3 | I196: 12.39 | J196: 3.717
D197: M11084 | E197: LUBRIFICANTE P/ PVC | F197: L | G197: Mat. | H197: 0.03 | I197: 11.62 | J197: 0.3486
D198: M13136 | E198: TEE - PVC SERIE "R" - 3B-JE - DE - 075 X 075 MM - ESGOTO | F198: UN | G198: Mat. | H198: 1 | I198: 9.92 | J198: 9.92
D199: M90492 | E199: ANEL BORRACHA - PVC BRANCO NORMAL - JE - DE - 075 MM - ESGOTO | F199: UN | G199: Mat. | H199: 2 | I199: 0.32 | J199: 0.64
A200: 155376 Total | J200: 17.574
A201: 155468 | B201: REGISTRO DE GAVETA 3/4'' CROMADO C/ CANOPLA | C201: UN | D201: F20001 | E201: AJUDANTE GERAL | F201: H | G201: M.O. | H201: 0.25 | I201: 9.828 | J201: 2.457
... 525 more rows

Sheet Composições por Tipo
D3: Valores
A4: Codigo | B4: Comp | C4: Un | D4: Soma DEPRE | E4: Soma DIVER | F4: Soma EMPRE | G4: Soma EQ.AQ. | H4: Soma EQ.LOC. | I4: Soma JUROS | J4: Soma M.O. | K4: Soma MANUT | L4: Soma MAT.
A5: 0 | B5: 0 | C5: 0 | D5: 0 | E5: 0 | F5: 0 | G5: 0 | H5: 0 | I5: 0 | J5: 0 | K5: 0 | L5: 0
A6: 000020 | B6: LOCACAO DA OBRA | C6: M2 | D6: 0 | E6: 0 | F6: 0 | G6: 0 | H6: 0 | I6: 0 | J6: 3.55488 | K6: 0 | L6: 0.957
A7: 000040 | B7: ESCAVACAO MANUAL DE VALA | C7: M3 | D7: 0 | E7: 0 | F7: 0 | G7: 0 | H7: 0 | I7: 0 | J7: 30.4668 | K7: 0 | L7: 0
A8: 000090 | B8: APILOAMENTO MANUAL FUNDO VALA | C8: M2 | D8: 0 | E8: 0 | F8: 0 | G8: 0 | H8: 0 | I8: 0 | J8: 8.55036 | K8: 0 | L8: 0
A9: 000100 | B9: LASTRO DE BRITA | C9: M3 | D9: 0 | E9: 0 | F9: 0 | G9: 0 | H9: 0 | I9: 0 | J9: 20.6388 | K9: 0 | L9: 38.5
A10: 000130 | B10: CONCRETO CONSUMO 161,0 KG CIMENTO/M3 - TRACO 1:4:8 - BETONEIRA C/ LANCAMENTO | C10: M3 | D10: 0 | E10: 0 | F10: 0 | G10: 0 | H10: 0.8925 | I10: 0 | J10: 115.8885 | K10: 0 | L10: 116.46
A11: 000150 | B11: REATERRO APILOADO DE VALA | C11: M3 | D11: 0 | E11: 0 | F11: 0 | G11: 0 | H11: 0 | I11: 0 | J11: 14.45808 | K11: 0 | L11: 0
A12: 000190 | B12: ACO CA 50 06,3 MM | C12: KG | D12: 0 | E12: 0 | F12: 0 | G12: 0 | H12: 0 | I12: 0 | J12: 1.77744 | K12: 0 | L12: 4.028
A13: 000200 | B13: ACO CA 50 08,0 MM | C13: KG | D13: 0 | E13: 0 | F13: 0 | G13: 0 | H13: 0 | I13: 0 | J13: 1.77744 | K13: 0 | L13: 4.028
A14: 000270 | B14: CONCRETO IN LOCO 15,0 MPA SLUMP CONVENCIONAL C/ LANCAMENTO | C14: M3 | D14: 0 | E14: 0 | F14: 0 | G14: 0 | H14: 0.8925 | I14: 0 | J14: 115.8885 | K14: 0 | L14: 172.968
A15: 000310 | B15: CONCRETO USINADO 15,0 MPA SLUMP CONVENCIONAL C/ LANCAMENTO | C15: M3 | D15: 0 | E15: 30 | F15: 0 | G15: 0 | H15: 0 | I15: 0 | J15: 66.7485 | K15: 0 | L15: 235.1078
A16: 000330 | B16: MICRO CONCRETO GRAUTE 12,0 MPA C/ LANCAMENTO | C16: M3 | D16: 0 | E16: 0 | F16: 0 | G16: 0 | H16: 0 | I16: 0 | J16: 180.726 | K16: 0 | L16: 174.294
A17: 000510 | B17: CHAPISCO - TRACO 1:3 - VERTICAL | C17: M2 | D17: 0 | E17: 0 | F17: 0 | G17: 0 | H17: 0 | I17: 0 | J17: 1.07835 | K17: 0 | L17: 1.1674
A18: 000580 | B18: EMBOCO 1:3 C/ IMPERMEABILIZANTE - E = 02,0 CM (VERTICAL) | C18: M2 | D18: 0 | E18: 0 | F18: 0 | G18: 0 | H18: 0 | I18: 0 | J18: 17.0625 | K18: 0 | L18: 5.4216
A19: 000700 | B19: ALVENARIA DE TIJOLO DE BARRO MACICO - E = 10,0 CM | C19: M2 | D19: 0 | E19: 0 | F19: 0 | G19: 0 | H19: 0 | I19: 0 | J19: 38.8206 | K19: 0 | L19: 43.4875
A20: 000780 | B20: ALVENARIA BLOCO DE CONCRETO VEDACAO - E=14,0 CM - C=39,0 CM - 03,0 MPA | C20: M2 | D20: 0 | E20: 0 | F20: 0 | G20: 0 | H20: 0 | I20: 0 | J20: 16.8441 | K20: 0 | L20: 33.8722
A21: 000820 | B21: ALVENARIA BLOCO DE CONCRETO CANALETA VEDACAO - E=14,0 CM - C=39,0 CM - 03,0 MPA | C21: M2 | D21: 0 | E21: 0 | F21: 0 | G21: 0 | H21: 0 | I21: 0 | J21: 16.8441 | K21: 0 | L21: 40.8311
